{"text_format":"1","workbook":"xlsx","n_sheets":4,"sheets":["入力の仕方","入力シート","印刷_年金保険","印刷_基金"],"not_rendered":{"charts":0,"images":1,"macros":1,"external_links":0,"defined_names":2,"comments":0,"pivot_tables":0},"unopened":[],"bounds":{"document_bytes":16777216,"sheet_cells":100000,"rows_first":2000,"rows_last":500,"rows_between":2000,"halvings":0,"cell_chars":16384,"cell_head_chars":4096},"cells_cut":0,"cells_raw":0,"read":"whole","date_system":"1900"}

{"sheet":"入力の仕方","index":0,"n_rows":55,"n_cols":13,"rows_kept":55,"cut":false,"hidden":false,"merged":[[23,12,23,37],[14,12,14,37],[50,12,50,37],[50,1,50,11],[49,1,49,11],[33,12,33,37],[37,12,37,37],[37,1,37,11],[48,12,48,37],[49,12,49,37],[34,1,34,11],[44,1,44,11],[41,1,41,11],[43,1,43,11],[38,12,38,37],[40,12,40,37],[21,12,21,37],[17,1,17,11],[4,0,4,37],[5,1,5,37],[48,1,48,11],[26,12,26,37],[27,12,27,37],[28,12,28,37],[40,1,40,11],[8,1,8,37],[9,1,9,37],[10,1,10,37],[13,12,13,37],[35,1,35,11],[36,1,36,11],[38,1,38,11],[15,12,15,37],[30,12,30,37],[32,1,32,11],[35,12,35,37],[25,1,25,33],[31,1,31,11],[29,1,29,11],[29,12,29,37],[31,12,31,37],[33,1,33,11],[28,1,28,11],[30,1,30,11],[17,12,17,37],[18,12,18,37],[19,12,19,37],[20,12,20,37],[0,0,0,37],[1,0,1,37],[2,0,2,37],[23,1,23,11],[6,1,6,37],[7,1,7,37],[18,1,18,11],[19,1,19,11],[20,1,20,11],[21,1,21,11],[13,1,13,11],[14,1,14,11],[15,1,15,11],[16,1,16,11],[12,0,12,36],[16,12,16,37],[53,12,53,37],[54,12,54,37],[26,1,26,11],[27,1,27,11],[53,1,53,11],[54,1,54,11],[51,1,51,11],[51,12,51,37],[36,12,36,37],[43,12,43,37],[44,12,44,37],[45,12,45,37],[32,12,32,37],[34,12,34,37],[52,12,52,37],[52,1,52,11],[47,1,47,11],[46,12,46,37],[47,12,47,37],[39,1,39,11],[39,12,39,37],[42,12,42,37],[42,1,42,11],[45,1,45,11],[41,12,41,37],[46,1,46,11]]}
["加入者資格喪失得届　（紙面）　作成要領"]
[]
["※このファイルは、年金事務所と当基金へ提出する喪失届を同時に作成するためのものです。"]
[]
["作成に際してのご注意事項"]
["・","このファイルは、紙面でご提出いただく際にご使用ください。"]
[null,"「入力」シートで必要事項を入力し、入力内容をチェックしたうえで、「印刷」シートを印刷して、ご提出ください。"]
[null,"なお、「入力」シートの一部または全てに入力を行わないまま「印刷」シートを印刷することで、一部または全てを手書きしてご提出いただくことも可能です。"]
["・","列の並べ替えや行は削除等を行わないでください。（入力が可能なセル以外には保護がかかっています。）"]
["・","一度に、24件まで入力することが出来ます。"]
[null,"24件を超えて入力する場合は、「印刷」シートを印刷後、「入力」シートの内容を抹消して入力しなおしてください。"]
[]
["項目について"]
[null,"企業年金基金　事業所番号",null,null,null,null,null,null,null,null,null,null,"当基金の事業所番号を入力してください。"]
[null,"厚生年金保険　事業所整理記号",null,null,null,null,null,null,null,null,null,null,"厚生年金保険の事業所整理記号を入力してください。"]
[null,"厚生年金保険　事業所番号",null,null,null,null,null,null,null,null,null,null,"厚生年金保険の事業所番号を入力してください。"]
[null,"事業所所在地（郵便番号）"]
[null,"事業所所在地（番地）"]
[null,"事業所所在地（ビル名）",null,null,null,null,null,null,null,null,null,null,"事業所の情報を入力してください。"]
[null,"事業所名称",null,null,null,null,null,null,null,null,null,null,"※郵便番号は\"-（ハイフン）\"を入れて入力してください。"]
[null,"事業主氏名"]
[null,"事業所電話番号"]
[]
[null,"提出日",null,null,null,null,null,null,null,null,null,null,"提出年月日を入力してください。"]
[]
[null,"（※）は年金事務所へ提出する喪失届に必要となります。"]
[null,"通番",null,null,null,null,null,null,null,null,null,null,"上から順にデータを作成してください。※「１－１」は1ページの1番目という意味です。"]
[null,"被保険者整理番号（※）",null,null,null,null,null,null,null,null,null,null,"被保険者整理番号を入力してください。"]
[null,"氏名（フリガナ）",null,null,null,null,null,null,null,null,null,null,"氏名をカタカナで入力してください。氏と名の間には空白（スペース）を半角で入力してください。"]
[null,null,null,null,null,null,null,null,null,null,null,null,"※空白（スペース）は必ず1文字は入れてください。"]
[null,"氏名（漢字）",null,null,null,null,null,null,null,null,null,null,"氏名を漢字で入力してください。氏と名の間には空白（スペース）を全角で入力してください。"]
[null,null,null,null,null,null,null,null,null,null,null,null,"※空白（スペース）は必ず1文字は入れてください。"]
[null,"生年月日",null,null,null,null,null,null,null,null,null,null,"生年月日を入力してください。"]
[null,null,null,null,null,null,null,null,null,null,null,null,"（例：「2000/1/5」や「H12/1/5」等と入力すると「H12.1.5」と表示されます。）"]
[null,"個人番号（※）",null,null,null,null,null,null,null,null,null,null,"個人番号を入力してください。"]
[null,"基礎年金番号（※）",null,null,null,null,null,null,null,null,null,null,"個人番号を入力しなかった場合には入力してください。入力する場合には\"-（ハイフン）\"なしで入力してください。"]
[null,"資格喪失年月日",null,null,null,null,null,null,null,null,null,null,"資格喪失年月日を入力してください。"]
[null,null,null,null,null,null,null,null,null,null,null,null,"（例：「2019/5/1」や「R1/5/1」等と入力すると「R1.5.1」と表示されます。）"]
[null,"厚生年金保険の喪失原因：原因（※）",null,null,null,null,null,null,null,null,null,null,"「4.退職等」、「5.死亡」、「7.75歳到達（健康保険のみ喪失）」、「9.障害認定（健康保険のみ喪"]
[null,null,null,null,null,null,null,null,null,null,null,null,"失）」をプルダウンから選択してください。"]
[null,"厚生年金保険の喪失原因：退職等の年月日（※）",null,null,null,null,null,null,null,null,null,null,"退職等の年月日を入力してください。"]
[null,"基金の喪失原因",null,null,null,null,null,null,null,null,null,null,"「01．事業所間異動」、「 02．定年」、「03．死亡」、「05．会社都合」、「06．自己都合」、"]
[null,null,null,null,null,null,null,null,null,null,null,null,"「07．懲戒解雇」、「08．その他」をプルダウンから選択してください。"]
[null,"備考：備考（※）",null,null,null,null,null,null,null,null,null,null,"「1．二以上事業所勤務者の喪失」、「2．退職後の継続再雇用者の喪失」、「3．その他」を"]
[null,null,null,null,null,null,null,null,null,null,null,null,"プルダウンから選択してください。"]
[null,"備考：その他を選んだ理由等（※）",null,null,null,null,null,null,null,null,null,null,"上記で「3．その他」を選択した場合は理由を、また特記事項があれば入力してください。"]
[null,"資格確認書回収(枚数)：添付",null,null,null,null,null,null,null,null,null,null,"資格確認書を回収した枚数を入力してください。"]
[null,"資格確認書回収(枚数)：返不能",null,null,null,null,null,null,null,null,null,null,"資格確認書を回収できなかった枚数を入力してください。"]
[null,"住所：郵便番号",null,null,null,null,null,null,null,null,null,null,"それぞれのセルに郵便番号、住所、マンション名等を入力してください。"]
[null,"住所：番地",null,null,null,null,null,null,null,null,null,null,"※郵便番号は\"-（ハイフン）\"を入れて入力してください。"]
[null,"住所：マンション名等"]
[null,"基金の備考：退職の事由",null,null,null,null,null,null,null,null,null,null,"「退職」、「再雇用」、「死亡」、「転籍」、「季節労働者」、「研修満了」、「その他」をプルダウンから"]
[null,null,null,null,null,null,null,null,null,null,null,null,"選択してください。"]
[null,"基金の備考：特記事項",null,null,null,null,null,null,null,null,null,null,"特記事項があれば入力してください。"]
[null,"加入者番号",null,null,null,null,null,null,null,null,null,null,"加入者番号を入力してください。（10桁で。満たない場合は前に”０”を付けて10桁にしてください。）"]

{"sheet":"入力シート","index":1,"n_rows":38,"n_cols":21,"rows_kept":38,"cut":false,"hidden":false,"merged":[[11,15,11,17],[8,10,8,11],[4,10,4,11],[0,10,0,11],[3,3,3,7],[4,3,4,7],[5,3,5,7],[0,3,0,7],[1,6,1,7],[2,3,2,7],[12,20,13,20],[12,0,13,0],[12,5,13,5],[12,6,13,6],[12,15,12,17],[12,11,12,12],[12,18,12,19],[12,8,12,9],[12,10,13,10],[12,13,12,14],[9,0,9,2],[10,0,10,2],[1,3,1,4],[12,4,13,4],[0,0,0,2],[1,0,1,2],[2,0,2,2],[3,0,3,2],[4,0,4,2],[5,0,5,2],[6,0,6,2],[7,0,7,2],[8,0,8,2],[6,3,6,7],[7,3,7,7],[8,3,8,7]]}
["企業年金基金　事業所番号",null,null,null,null,null,null,null,null,null,"厚生年金保険のみ印刷"]
["厚生年金保険　事業所整理記号",null,null,null,null,"－",null,null,null,null,"開始ページ"]
["厚生年金保険　事業所番号",null,null,null,null,null,null,null,null,null,"終了ページ"]
["事業所所在地（郵便番号）　※\"-\"を入れて入力"]
["事業所所在地（番地）",null,null,null,null,null,null,null,null,null,"基金のみ印刷"]
["事業所所在地（ビル名）",null,null,null,null,null,null,null,null,null,"開始ページ"]
["事業所名称",null,null,null,null,null,null,null,null,null,"終了ページ"]
["事業主氏名"]
["事業所電話番号",null,null,null,null,null,null,null,null,null,"厚生年金・基金の両方を印刷"]
[null,null,null,null,null,null,null,null,null,null,"開始ページ"]
["提出日",null,null,null,null,null,null,null,null,null,"終了ページ",null,null,null,null,null,null,null,null,null,"※加入者番号"]
[null,null,null,null,null,null,null,null,null,null,null,null,null,null,null,"※郵便番号は\"-（ハイフン）\"を入れて入力",null,null,null,null,"10桁で。満たない場合は前に”０”を付けて10桁にしてください。"]
["通番","被保険者","氏名","氏名","生年月日","個人番号","基礎年金番号\n（”-”なし）","資格喪失","厚生年金保険の喪失原因",null,"基金の喪失原因","備考",null,"資格確認書回収(枚数)",null,"住所",null,null,"基金の備考",null,"加入者番号"]
[null,"整理番号","フリガナ","漢字",null,null,null,"年月日","原因","退職等の年月日",null,"備考","その他を選んだ理由等","添付","返不能","郵便番号","番地","マンション名等","退職の事由","特記事項"]
["1-1"]
["1-2"]
["1-3"]
["1-4"]
["2-1"]
["2-2"]
["2-3"]
["2-4"]
["3-1"]
["3-2"]
["3-3"]
["3-4"]
["4-1"]
["4-2"]
["4-3"]
["4-4"]
["5-1"]
["5-2"]
["5-3"]
["5-4"]
["6-1"]
["6-2"]
["6-3"]
["6-4"]

{"sheet":"印刷_年金保険","index":2,"n_rows":909,"n_cols":68,"rows_kept":909,"cut":false,"hidden":false,"merged":[[167,65,168,66],[167,67,168,68],[168,39,170,42],[168,43,170,45],[168,46,170,47],[169,62,171,69],[162,3,163,6],[162,35,163,48],[162,49,165,52],[162,53,166,55],[162,56,166,69],[163,8,166,33],[164,3,164,6],[164,39,166,42],[164,43,166,45],[164,46,166,47],[165,3,171,6],[166,49,171,52],[167,8,170,33],[167,53,171,57],[167,58,171,61],[167,62,168,64],[113,42,116,52],[113,53,114,56],[113,57,122,61],[113,62,114,64],[143,67,144,68],[145,3,152,6],[145,27,152,30],[145,53,152,56],[146,62,152,69],[147,31,152,41],[147,42,152,52],[143,42,146,52],[143,53,144,56],[143,57,152,61],[143,62,144,64],[143,65,144,66],[153,44,154,45],[153,46,154,47],[153,49,154,52],[154,54,156,68],[155,3,161,6],[155,31,161,34],[155,41,161,48],[155,49,161,52],[158,54,160,55],[158,56,160,64],[158,65,160,68],[153,27,161,28],[153,29,161,30],[153,31,154,34],[153,35,161,40],[153,41,154,43],[143,1,171,2],[143,3,144,6],[143,7,152,26],[143,27,144,30],[143,31,146,41],[153,3,154,6],[153,7,161,8],[153,9,161,10],[153,11,161,12],[153,13,161,14],[153,15,161,16],[153,17,161,18],[153,19,161,20],[153,21,161,22],[153,23,161,24],[153,25,161,26],[113,1,141,2],[113,3,114,6],[113,7,122,26],[113,27,114,30],[113,31,116,41],[123,44,124,45],[123,46,124,47],[123,49,124,52],[137,65,138,66],[137,67,138,68],[138,39,140,42],[138,43,140,45],[138,46,140,47],[139,62,141,69],[132,3,133,6],[132,35,133,48],[132,49,135,52],[132,53,136,55],[132,56,136,69],[133,8,136,33],[134,3,134,6],[134,39,136,42],[134,43,136,45],[134,46,136,47],[135,3,141,6],[136,49,141,52],[137,8,140,33],[137,53,141,57],[137,58,141,61],[137,62,138,64],[113,65,114,66],[113,67,114,68],[115,3,122,6],[115,27,122,30],[115,53,122,56],[116,62,122,69],[117,31,122,41],[117,42,122,52],[123,3,124,6],[123,7,131,8],[123,9,131,10],[123,11,131,12],[123,13,131,14],[123,15,131,16],[123,17,131,18],[123,19,131,20],[123,21,131,22],[123,23,131,24],[123,25,131,26],[123,27,131,28],[123,29,131,30],[123,31,124,34],[124,54,126,68],[125,3,131,6],[125,31,131,34],[125,41,131,48],[125,49,131,52],[128,54,130,55],[128,56,130,64],[128,65,130,68],[123,35,131,40],[123,41,124,43],[102,49,105,52],[102,53,106,55],[102,56,106,69],[103,8,106,33],[104,3,104,6],[104,39,106,42],[104,43,106,45],[104,46,106,47],[105,3,111,6],[106,49,111,52],[107,8,110,33],[107,53,111,57],[107,58,111,61],[107,62,108,64],[107,65,108,66],[107,67,108,68],[109,62,111,69],[93,23,101,24],[93,25,101,26],[93,27,101,28],[93,29,101,30],[93,31,94,34],[93,35,101,40],[93,44,94,45],[93,46,94,47],[93,49,94,52],[94,54,96,68],[95,3,101,6],[95,31,101,34],[95,41,101,48],[95,49,101,52],[98,54,100,55],[98,56,100,64],[98,65,100,68],[83,53,84,56],[83,57,92,61],[83,62,84,64],[83,65,84,66],[83,67,84,68],[85,53,92,56],[86,62,92,69],[83,1,111,2],[83,3,84,6],[83,7,92,26],[83,27,84,30],[83,31,86,41],[85,3,92,6],[85,27,92,30],[87,31,92,41],[93,41,94,43],[102,3,103,6],[102,35,103,48],[108,39,110,42],[108,43,110,45],[108,46,110,47],[83,42,86,52],[87,42,92,52],[93,3,94,6],[93,7,101,8],[93,9,101,10],[93,11,101,12],[93,13,101,14],[93,15,101,16],[93,17,101,18],[93,19,101,20],[93,21,101,22],[74,3,74,6],[72,3,73,6],[68,56,70,64],[68,54,70,55],[55,53,62,56],[55,27,62,30],[53,7,62,26],[64,54,66,68],[72,49,75,52],[75,3,81,6],[72,35,73,48],[74,46,76,47],[74,43,76,45],[74,39,76,42],[78,39,80,42],[78,43,80,45],[78,46,80,47],[77,8,80,33],[63,17,71,18],[63,19,71,20],[63,21,71,22],[53,3,54,6],[63,29,71,30],[63,23,71,24],[63,25,71,26],[63,27,71,28],[63,31,64,34],[65,31,71,34],[63,11,71,12],[53,65,54,66],[53,67,54,68],[56,62,62,69],[2,18,6,25],[2,1,4,8],[5,1,7,2],[5,3,7,4],[5,5,7,6],[5,7,7,8],[2,27,6,47],[7,27,9,47],[43,3,47,6],[48,3,50,6],[26,8,29,9],[18,13,22,14],[17,55,17,69],[14,14,17,17],[14,1,17,13],[18,1,50,2],[18,3,22,6],[24,3,24,6],[7,18,9,25],[42,39,43,50],[24,8,25,35],[43,8,47,35],[44,39,50,69],[55,3,62,6],[53,1,81,2],[53,27,54,30],[63,3,64,6],[65,3,71,6],[73,8,76,33],[38,3,42,6],[38,8,42,35],[26,3,37,6],[34,8,37,35],[30,8,33,35],[76,49,81,52],[18,7,22,12],[24,7,50,7],[48,8,50,35],[77,62,78,64],[63,35,71,40],[63,7,71,8],[63,9,71,10],[77,58,81,61],[18,24,22,28],[18,29,22,36],[18,15,22,23],[26,10,29,24],[77,53,81,57],[53,57,62,61],[53,62,54,64],[18,55,20,69],[39,39,41,53],[63,13,71,14],[63,15,71,16],[79,62,81,69],[65,41,71,48],[53,53,54,56],[63,41,64,43],[63,44,64,45],[63,46,64,47],[77,67,78,68],[77,65,78,66],[63,49,64,52],[65,49,71,52],[72,53,76,55],[72,56,76,69],[57,31,62,41],[53,31,56,41],[57,42,62,52],[53,42,56,52],[68,65,70,68],[201,1,229,2],[201,3,202,6],[201,7,210,26],[201,27,202,30],[201,31,204,41],[201,42,204,52],[201,53,202,56],[201,57,210,61],[201,62,202,64],[211,44,212,45],[211,46,212,47],[211,49,212,52],[212,54,214,68],[213,3,219,6],[213,31,219,34],[213,41,219,48],[213,49,219,52],[216,54,218,55],[216,56,218,64],[216,65,218,68],[220,3,221,6],[220,35,221,48],[220,49,223,52],[220,53,224,55],[201,65,202,66],[201,67,202,68],[203,3,210,6],[203,27,210,30],[203,53,210,56],[204,62,210,69],[205,31,210,41],[205,42,210,52],[211,3,212,6],[211,7,219,8],[211,9,219,10],[211,11,219,12],[211,13,219,14],[211,15,219,16],[211,17,219,18],[211,19,219,20],[211,21,219,22],[211,23,219,24],[211,25,219,26],[211,27,219,28],[211,29,219,30],[211,31,212,34],[211,35,219,40],[211,41,212,43],[220,56,224,69],[221,8,224,33],[222,3,222,6],[222,39,224,42],[222,43,224,45],[222,46,224,47],[223,3,229,6],[224,49,229,52],[225,8,228,33],[225,53,229,57],[225,58,229,61],[225,62,226,64],[225,65,226,66],[225,67,226,68],[226,39,228,42],[226,43,228,45],[226,46,228,47],[227,62,229,69],[231,1,259,2],[231,3,232,6],[231,7,240,26],[231,27,232,30],[231,31,234,41],[231,42,234,52],[231,53,232,56],[231,57,240,61],[231,62,232,64],[241,44,242,45],[241,46,242,47],[241,49,242,52],[242,54,244,68],[243,3,249,6],[243,31,249,34],[243,41,249,48],[243,49,249,52],[246,54,248,55],[246,56,248,64],[246,65,248,68],[250,3,251,6],[250,35,251,48],[250,49,253,52],[250,53,254,55],[231,65,232,66],[231,67,232,68],[233,3,240,6],[233,27,240,30],[233,53,240,56],[234,62,240,69],[235,31,240,41],[235,42,240,52],[241,3,242,6],[241,7,249,8],[241,9,249,10],[241,11,249,12],[241,13,249,14],[241,15,249,16],[241,17,249,18],[241,19,249,20],[241,21,249,22],[241,23,249,24],[241,25,249,26],[241,27,249,28],[241,29,249,30],[241,31,242,34],[241,35,249,40],[241,41,242,43],[250,56,254,69],[251,8,254,33],[252,3,252,6],[252,39,254,42],[252,43,254,45],[252,46,254,47],[253,3,259,6],[254,49,259,52],[255,8,258,33],[255,53,259,57],[255,58,259,61],[255,62,256,64],[255,65,256,66],[255,67,256,68],[256,39,258,42],[256,43,258,45],[256,46,258,47],[257,62,259,69],[261,1,289,2],[261,3,262,6],[261,7,270,26],[261,27,262,30],[261,31,264,41],[261,42,264,52],[261,53,262,56],[261,57,270,61],[261,62,262,64],[271,44,272,45],[271,46,272,47],[271,49,272,52],[272,54,274,68],[273,3,279,6],[273,31,279,34],[273,41,279,48],[273,49,279,52],[276,54,278,55],[276,56,278,64],[276,65,278,68],[280,3,281,6],[280,35,281,48],[280,49,283,52],[280,53,284,55],[261,65,262,66],[261,67,262,68],[263,3,270,6],[263,27,270,30],[263,53,270,56],[264,62,270,69],[265,31,270,41],[265,42,270,52],[271,3,272,6],[271,7,279,8],[271,9,279,10],[271,11,279,12],[271,13,279,14],[271,15,279,16],[271,17,279,18],[271,19,279,20],[271,21,279,22],[271,23,279,24],[271,25,279,26],[271,27,279,28],[271,29,279,30],[271,31,272,34],[271,35,279,40],[271,41,272,43],[280,56,284,69],[281,8,284,33],[282,3,282,6],[282,39,284,42],[282,43,284,45],[282,46,284,47],[283,3,289,6],[284,49,289,52],[285,8,288,33],[285,53,289,57],[285,58,289,61],[285,62,286,64],[285,65,286,66],[285,67,286,68],[286,39,288,42],[286,43,288,45],[286,46,288,47],[287,62,289,69],[291,1,319,2],[291,3,292,6],[291,7,300,26],[291,27,292,30],[291,31,294,41],[291,42,294,52],[291,53,292,56],[291,57,300,61],[291,62,292,64],[301,44,302,45],[301,46,302,47],[301,49,302,52],[302,54,304,68],[303,3,309,6],[303,31,309,34],[303,41,309,48],[303,49,309,52],[306,54,308,55],[306,56,308,64],[306,65,308,68],[310,3,311,6],[310,35,311,48],[310,49,313,52],[310,53,314,55],[291,65,292,66],[291,67,292,68],[293,3,300,6],[293,27,300,30],[293,53,300,56],[294,62,300,69],[295,31,300,41],[295,42,300,52],[301,3,302,6],[301,7,309,8],[301,9,309,10],[301,11,309,12],[301,13,309,14],[301,15,309,16],[301,17,309,18],[301,19,309,20],[301,21,309,22],[301,23,309,24],[301,25,309,26],[301,27,309,28],[301,29,309,30],[301,31,302,34],[301,35,309,40],[301,41,302,43],[310,56,314,69],[311,8,314,33],[312,3,312,6],[312,39,314,42],[312,43,314,45],[312,46,314,47],[313,3,319,6],[314,49,319,52],[315,8,318,33],[315,53,319,57],[315,58,319,61],[315,62,316,64],[315,65,316,66],[315,67,316,68],[316,39,318,42],[316,43,318,45],[316,46,318,47],[317,62,319,69],[349,1,377,2],[349,3,350,6],[349,7,358,26],[349,27,350,30],[349,31,352,41],[349,42,352,52],[349,53,350,56],[349,57,358,61],[349,62,350,64],[359,44,360,45],[359,46,360,47],[359,49,360,52],[360,54,362,68],[361,3,367,6],[361,31,367,34],[361,41,367,48],[361,49,367,52],[364,54,366,55],[364,56,366,64],[364,65,366,68],[368,3,369,6],[368,35,369,48],[368,49,371,52],[368,53,372,55],[349,65,350,66],[349,67,350,68],[351,3,358,6],[351,27,358,30],[351,53,358,56],[352,62,358,69],[353,31,358,41],[353,42,358,52],[359,3,360,6],[359,7,367,8],[359,9,367,10],[359,11,367,12],[359,13,367,14],[359,15,367,16],[359,17,367,18],[359,19,367,20],[359,21,367,22],[359,23,367,24],[359,25,367,26],[359,27,367,28],[359,29,367,30],[359,31,360,34],[359,35,367,40],[359,41,360,43],[368,56,372,69],[369,8,372,33],[370,3,370,6],[370,39,372,42],[370,43,372,45],[370,46,372,47],[371,3,377,6],[372,49,377,52],[373,8,376,33],[373,53,377,57],[373,58,377,61],[373,62,374,64],[373,65,374,66],[373,67,374,68],[374,39,376,42],[374,43,376,45],[374,46,376,47],[375,62,377,69],[379,1,407,2],[379,3,380,6],[379,7,388,26],[379,27,380,30],[379,31,382,41],[379,42,382,52],[379,53,380,56],[379,57,388,61],[379,62,380,64],[389,44,390,45],[389,46,390,47],[389,49,390,52],[390,54,392,68],[391,3,397,6],[391,31,397,34],[391,41,397,48],[391,49,397,52],[394,54,396,55],[394,56,396,64],[394,65,396,68],[398,3,399,6],[398,35,399,48],[398,49,401,52],[398,53,402,55],[379,65,380,66],[379,67,380,68],[381,3,388,6],[381,27,388,30],[381,53,388,56],[382,62,388,69],[383,31,388,41],[383,42,388,52],[389,3,390,6],[389,7,397,8],[389,9,397,10],[389,11,397,12],[389,13,397,14],[389,15,397,16],[389,17,397,18],[389,19,397,20],[389,21,397,22],[389,23,397,24],[389,25,397,26],[389,27,397,28],[389,29,397,30],[389,31,390,34],[389,35,397,40],[389,41,390,43],[398,56,402,69],[399,8,402,33],[400,3,400,6],[400,39,402,42],[400,43,402,45],[400,46,402,47],[401,3,407,6],[402,49,407,52],[403,8,406,33],[403,53,407,57],[403,58,407,61],[403,62,404,64],[403,65,404,66],[403,67,404,68],[404,39,406,42],[404,43,406,45],[404,46,406,47],[405,62,407,69],[409,1,437,2],[409,3,410,6],[409,7,418,26],[409,27,410,30],[409,31,412,41],[409,42,412,52],[409,53,410,56],[409,57,418,61],[409,62,410,64],[419,44,420,45],[419,46,420,47],[419,49,420,52],[420,54,422,68],[421,3,427,6],[421,31,427,34],[421,41,427,48],[421,49,427,52],[424,54,426,55],[424,56,426,64],[424,65,426,68],[428,3,429,6],[428,35,429,48],[428,49,431,52],[428,53,432,55],[409,65,410,66],[409,67,410,68],[411,3,418,6],[411,27,418,30],[411,53,418,56],[412,62,418,69],[413,31,418,41],[413,42,418,52],[419,3,420,6],[419,7,427,8],[419,9,427,10],[419,11,427,12],[419,13,427,14],[419,15,427,16],[419,17,427,18],[419,19,427,20],[419,21,427,22],[419,23,427,24],[419,25,427,26],[419,27,427,28],[419,29,427,30],[419,31,420,34],[419,35,427,40],[419,41,420,43],[428,56,432,69],[429,8,432,33],[430,3,430,6],[430,39,432,42],[430,43,432,45],[430,46,432,47],[431,3,437,6],[432,49,437,52],[433,8,436,33],[433,53,437,57],[433,58,437,61],[433,62,434,64],[433,65,434,66],[433,67,434,68],[434,39,436,42],[434,43,436,45],[434,46,436,47],[435,62,437,69],[439,1,467,2],[439,3,440,6],[439,7,448,26],[439,27,440,30],[439,31,442,41],[439,42,442,52],[439,53,440,56],[439,57,448,61],[439,62,440,64],[449,44,450,45],[449,46,450,47],[449,49,450,52],[450,54,452,68],[451,3,457,6],[451,31,457,34],[451,41,457,48],[451,49,457,52],[454,54,456,55],[454,56,456,64],[454,65,456,68],[458,3,459,6],[458,35,459,48],[458,49,461,52],[458,53,462,55],[439,65,440,66],[439,67,440,68],[441,3,448,6],[441,27,448,30],[441,53,448,56],[442,62,448,69],[443,31,448,41],[443,42,448,52],[449,3,450,6],[449,7,457,8],[449,9,457,10],[449,11,457,12],[449,13,457,14],[449,15,457,16],[449,17,457,18],[449,19,457,20],[449,21,457,22],[449,23,457,24],[449,25,457,26],[449,27,457,28],[449,29,457,30],[449,31,450,34],[449,35,457,40],[449,41,450,43],[458,56,462,69],[459,8,462,33],[460,3,460,6],[460,39,462,42],[460,43,462,45],[460,46,462,47],[461,3,467,6],[462,49,467,52],[463,8,466,33],[463,53,467,57],[463,58,467,61],[463,62,464,64],[463,65,464,66],[463,67,464,68],[464,39,466,42],[464,43,466,45],[464,46,466,47],[465,62,467,69],[497,1,525,2],[497,3,498,6],[497,7,506,26],[497,27,498,30],[497,31,500,41],[497,42,500,52],[497,53,498,56],[497,57,506,61],[497,62,498,64],[507,44,508,45],[507,46,508,47],[507,49,508,52],[508,54,510,68],[509,3,515,6],[509,31,515,34],[509,41,515,48],[509,49,515,52],[512,54,514,55],[512,56,514,64],[512,65,514,68],[516,3,517,6],[516,35,517,48],[516,49,519,52],[516,53,520,55],[497,65,498,66],[497,67,498,68],[499,3,506,6],[499,27,506,30],[499,53,506,56],[500,62,506,69],[501,31,506,41],[501,42,506,52],[507,3,508,6],[507,7,515,8],[507,9,515,10],[507,11,515,12],[507,13,515,14],[507,15,515,16],[507,17,515,18],[507,19,515,20],[507,21,515,22],[507,23,515,24],[507,25,515,26],[507,27,515,28],[507,29,515,30],[507,31,508,34],[507,35,515,40],[507,41,508,43],[516,56,520,69],[517,8,520,33],[518,3,518,6],[518,39,520,42],[518,43,520,45],[518,46,520,47],[519,3,525,6],[520,49,525,52],[521,8,524,33],[521,53,525,57],[521,58,525,61],[521,62,522,64],[521,65,522,66],[521,67,522,68],[522,39,524,42],[522,43,524,45],[522,46,524,47],[523,62,525,69],[527,1,555,2],[527,3,528,6],[527,7,536,26],[527,27,528,30],[527,31,530,41],[527,42,530,52],[527,53,528,56],[527,57,536,61],[527,62,528,64],[537,44,538,45],[537,46,538,47],[537,49,538,52],[538,54,540,68],[539,3,545,6],[539,31,545,34],[539,41,545,48],[539,49,545,52],[542,54,544,55],[542,56,544,64],[542,65,544,68],[546,3,547,6],[546,35,547,48],[546,49,549,52],[546,53,550,55],[527,65,528,66],[527,67,528,68],[529,3,536,6],[529,27,536,30],[529,53,536,56],[530,62,536,69],[531,31,536,41],[531,42,536,52],[537,3,538,6],[537,7,545,8],[537,9,545,10],[537,11,545,12],[537,13,545,14],[537,15,545,16],[537,17,545,18],[537,19,545,20],[537,21,545,22],[537,23,545,24],[537,25,545,26],[537,27,545,28],[537,29,545,30],[537,31,538,34],[537,35,545,40],[537,41,538,43],[546,56,550,69],[547,8,550,33],[548,3,548,6],[548,39,550,42],[548,43,550,45],[548,46,550,47],[549,3,555,6],[550,49,555,52],[551,8,554,33],[551,53,555,57],[551,58,555,61],[551,62,552,64],[551,65,552,66],[551,67,552,68],[552,39,554,42],[552,43,554,45],[552,46,554,47],[553,62,555,69],[557,1,585,2],[557,3,558,6],[557,7,566,26],[557,27,558,30],[557,31,560,41],[557,42,560,52],[557,53,558,56],[557,57,566,61],[557,62,558,64],[567,44,568,45],[567,46,568,47],[567,49,568,52],[568,54,570,68],[569,3,575,6],[569,31,575,34],[569,41,575,48],[569,49,575,52],[572,54,574,55],[572,56,574,64],[572,65,574,68],[576,3,577,6],[576,35,577,48],[576,49,579,52],[576,53,580,55],[557,65,558,66],[557,67,558,68],[559,3,566,6],[559,27,566,30],[559,53,566,56],[560,62,566,69],[561,31,566,41],[561,42,566,52],[567,3,568,6],[567,7,575,8],[567,9,575,10],[567,11,575,12],[567,13,575,14],[567,15,575,16],[567,17,575,18]],"merged_total":1621,"flags":["merged_cut"]}
[]
[]
[null,"様式コード",null,null,null,null,null,null,null,null,null,null,null,null,null,null,null,null,"健　康　保　険\n厚生年金保険",null,null,null,null,null,null,null,null,"被保険者資格喪失届"]
[]
[]
[null,"２",null,"２",null,"０",null,"１"]
[]
[null,null,null,null,null,null,null,null,null,null,null,null,null,null,null,null,null,null,"厚生年金保険",null,null,null,null,null,null,null,null,"70歳以上被用者不該当届"]
[]
[]
[]
[]
[]
[]
[null,{"$f":"IF(入力シート!$D$11=\"\",\"\",入力シート!$D$11)","v":""},null,null,null,null,null,null,null,null,null,null,null,null,"提出"]
[]
[]
[]
[null,"提\n出\n者\n記\n入\n欄",null,"事 業 所\n整理記号",null,null,null,{"$f":"IF(入力シート!$D$2=\"\",\"\",DBCS(入力シート!$D$2))","v":""},null,null,null,null,null,"-",null,{"$f":"IF(入力シート!$G$2=\"\",\"\",DBCS(入力シート!$G$2))","v":""},null,null,null,null,null,null,null,null,"事業所\n番　号",null,null,null,null,{"$f":"IF(入力シート!$D$3=\"\",\"\",DBCS(入力シート!$D$3))","v":""},null,null,null,null,null,null,null,null,null,null,null,null,null,null,null,null,null,null,null,null,null,null,null,null,null,"受付印"]
[]
[]
[]
[]
[]
[null,null,null,null,null,null,null,null,"届書記入の個人番号に誤りがないことを確認しました。"]
[]
[null,null,null,"事業所\n所在地",null,null,null,null,"〒",null,{"$f":"IF(入力シート!$D$4=\"\",\"\",DBCS(入力シート!$D$4))","v":""}]
[]
[]
[]
[null,null,null,null,null,null,null,null,{"$f":"IF(入力シート!$D$5=\"\",\"\",DBCS(入力シート!$D$5))","v":""}]
[]
[]
[]
[null,null,null,null,null,null,null,null,{"$f":"IF(入力シート!$D$6=\"\",\"\",DBCS(入力シート!$D$6))","v":""}]
[]
[]
[]
[null,null,null,"事業所\n名　称",null,null,null,null,{"$f":"IF(入力シート!$D$7=\"\",\"\",DBCS(入力シート!$D$7))","v":""}]
[null,null,null,null,null,null,null,null,null,null,null,null,null,null,null,null,null,null,null,null,null,null,null,null,null,null,null,null,null,null,null,null,null,null,null,null,null,null,null,"社会保険労務士記載欄"]
[]
[]
[null,null,null,null,null,null,null,null,null,null,null,null,null,null,null,null,null,null,null,null,null,null,null,null,null,null,null,null,null,null,null,null,null,null,null,null,null,null,null,"　　氏　　名　　等"]
[null,null,null,"事業主\n氏　名",null,null,null,null,{"$f":"IF(入力シート!$D$8=\"\",\"\",DBCS(入力シート!$D$8))","v":""}]
[]
[]
[]
[]
[null,null,null,"電話番号",null,null,null,null,{"$f":"IF(入力シート!$D$9=\"\",\"\",DBCS(入力シート!$D$9))","v":""}]
[]
[]
[]
[]
[null,"被保険者\n１",null,"①",null,null,null,{"$f":"IF(入力シート!$B$15=\"\",\"\",DBCS(入力シート!$B$15))","v":""},null,null,null,null,null,null,null,null,null,null,null,null,null,null,null,null,null,null,null,"②",null,null,null,{"$f":"IFERROR(LEFT(入力シート!$C$15,FIND(\" \",入力シート!$C$15,1)-1),\"\")","v":""},null,null,null,null,null,null,null,null,null,null,{"$f":"IFERROR(RIGHT(入力シート!$C$15,LEN(入力シート!$C$15)-FIND(\" \",入力シート!$C$15,1)),\"\")","v":""},null,null,null,null,null,null,null,null,null,null,"③",null,null,null,{"$f":"IF(入力シート!$E$15=\"\",\"\",IF(TEXT(入力シート!$E$15,\"g\")=\"S\",\"5．昭和\",IF(TEXT(入力シート!$E$15,\"g\")=\"H\",\"7．平成\",IF(TEXT(入力シート!$E$15,\"g\")=\"R\",\"9．令和\"))))","v":""},null,null,null,null,"年",null,null,"月",null,"日"]
[]
[null,null,null,"被保険者\n整理番号",null,null,null,null,null,null,null,null,null,null,null,null,null,null,null,null,null,null,null,null,null,null,null,"氏名",null,null,null,null,null,null,null,null,null,null,null,null,null,null,null,null,null,null,null,null,null,null,null,null,null,"生年\n月日"]
[null,null,null,null,null,null,null,null,null,null,null,null,null,null,null,null,null,null,null,null,null,null,null,null,null,null,null,null,null,null,null,null,null,null,null,null,null,null,null,null,null,null,null,null,null,null,null,null,null,null,null,null,null,null,null,null,null,null,null,null,null,null,{"$f":"IF(入力シート!$E$15=\"\",\"\",DBCS(TEXT(入力シート!$E$15,\"eemmdd\")))","v":""}]
[null,null,null,null,null,null,null,null,null,null,null,null,null,null,null,null,null,null,null,null,null,null,null,null,null,null,null,null,null,null,null,{"$f":"IFERROR(LEFT(入力シート!$D$15,FIND(\"　\",入力シート!$D$15,1)-1),\"\")","v":""},null,null,null,null,null,null,null,null,null,null,{"$f":"IFERROR(RIGHT(入力シート!$D$15,LEN(入力シート!$D$15)-FIND(\"　\",入力シート!$D$15,1)),\"\")","v":""}]
[]
[]
[]
[]
[]
[null,null,null,"④",null,null,null,{"$f":"IFERROR(IF(入力シート!$F$15=\"\",DBCS(LEFT(RIGHT(入力シート!$G$15,18-COLUMN()))),DBCS(LEFT(RIGHT(入力シート!$F$15,20-COLUMN())))),\"\")","v":""},null,{"$f":"IFERROR(IF(入力シート!$F$15=\"\",DBCS(LEFT(RIGHT(入力シート!$G$15,19-COLUMN()))),DBCS(LEFT(RIGHT(入力シート!$F$15,21-COLUMN())))),\"\")","v":""},null,{"$f":"IFERROR(IF(入力シート!$F$15=\"\",DBCS(LEFT(RIGHT(入力シート!$G$15,20-COLUMN()))),DBCS(LEFT(RIGHT(入力シート!$F$15,22-COLUMN())))),\"\")","v":""},null,{"$f":"IFERROR(IF(入力シート!$F$15=\"\",DBCS(LEFT(RIGHT(入力シート!$G$15,21-COLUMN()))),DBCS(LEFT(RIGHT(入力シート!$F$15,23-COLUMN())))),\"\")","v":""},null,{"$f":"IFERROR(IF(入力シート!$F$15=\"\",DBCS(LEFT(RIGHT(入力シート!$G$15,22-COLUMN()))),DBCS(LEFT(RIGHT(入力シート!$F$15,24-COLUMN())))),\"\")","v":""},null,{"$f":"IFERROR(IF(入力シート!$F$15=\"\",DBCS(LEFT(RIGHT(入力シート!$G$15,23-COLUMN()))),DBCS(LEFT(RIGHT(入力シート!$F$15,25-COLUMN())))),\"\")","v":""},null,{"$f":"IFERROR(IF(入力シート!$F$15=\"\",DBCS(LEFT(RIGHT(入力シート!$G$15,24-COLUMN()))),DBCS(LEFT(RIGHT(入力シート!$F$15,26-COLUMN())))),\"\")","v":""},null,{"$f":"IFERROR(IF(入力シート!$F$15=\"\",DBCS(LEFT(RIGHT(入力シート!$G$15,25-COLUMN()))),DBCS(LEFT(RIGHT(入力シート!$F$15,27-COLUMN())))),\"\")","v":""},null,{"$f":"IFERROR(IF(入力シート!$F$15=\"\",DBCS(LEFT(RIGHT(入力シート!$G$15,26-COLUMN()))),DBCS(LEFT(RIGHT(入力シート!$F$15,28-COLUMN())))),\"\")","v":""},null,{"$f":"IFERROR(IF(入力シート!$F$15=\"\",DBCS(LEFT(RIGHT(入力シート!$G$15,27-COLUMN()))),DBCS(LEFT(RIGHT(入力シート!$F$15,29-COLUMN())))),\"\")","v":""},null,{"$f":"IFERROR(IF(入力シート!$F$15=\"\",\"\",DBCS(LEFT(RIGHT(入力シート!$F$15,30-COLUMN())))),\"\")","v":""},null,{"$f":"IFERROR(IF(入力シート!$F$15=\"\",\"\",DBCS(LEFT(RIGHT(入力シート!$F$15,31-COLUMN())))),\"\")","v":""},null,"⑤",null,null,null,{"$f":"IF(入力シート!$H$15=\"\",\"\",IF(TEXT(入力シート!$H$15,\"g\")=\"S\",\"5．昭和\",IF(TEXT(入力シート!$H$15,\"g\")=\"H\",\"7．平成\",IF(TEXT(入力シート!$H$15,\"g\")=\"R\",\"9．令和\"))))","v":""},null,null,null,null,null,"年",null,null,"月",null,"日",null,null,"⑥"]
[null,null,null,null,null,null,null,null,null,null,null,null,null,null,null,null,null,null,null,null,null,null,null,null,null,null,null,null,null,null,null,null,null,null,null,null,null,null,null,null,null,null,null,null,null,null,null,null,null,null,null,null,null,null,{"$f":"IF(入力シート!$I$15=\"\",\"\",DBCS(入力シート!$I$15))","v":""}]
[null,null,null,"個人番号\n（基礎年\n金番号）",null,null,null,null,null,null,null,null,null,null,null,null,null,null,null,null,null,null,null,null,null,null,null,null,null,null,null,"喪　失\n年月日",null,null,null,null,null,null,null,null,null,{"$f":"IF(入力シート!$H$15=\"\",\"\",DBCS(TEXT(入力シート!$H$15,\"eemmdd\")))","v":""},null,null,null,null,null,null,null,"喪失\n(不該当)\n原因"]
[]
[]
[null,null,null,null,null,null,null,null,null,null,null,null,null,null,null,null,null,null,null,null,null,null,null,null,null,null,null,null,null,null,null,null,null,null,null,null,null,null,null,null,null,null,null,null,null,null,null,null,null,null,null,null,null,null,"（",null,{"$f":"IF(入力シート!$I$15=\"4.退職等\",入力シート!$J$15,IF(入力シート!$I$15=\"5.死亡\",入力シート!$J$15,\"\"))","v":""},null,null,null,null,null,null,null,null,{"$f":"IF(入力シート!$I$15=\"4.退職等\",\"退職等）\",IF(入力シート!$I$15=\"5.死亡\",\"死亡）\",\"）\"))","v":"）"}]
[]
[]
[]
[null,null,null,"⑦",null,null,null,null,null,null,null,null,null,null,null,null,null,null,null,null,null,null,null,null,null,null,null,null,null,null,null,null,null,null,null,"資格確認書等回収",null,null,null,null,null,null,null,null,null,null,null,null,null,"⑧",null,null,null,null,null,null,"70歳以上被用者不該当\n（退職日または死亡日を記入してください）"]
[null,null,null,null,null,null,null,null,{"$f":"IF(入力シート!$L$15=\"\",\"\",DBCS(入力シート!$L$15))","v":""}]
[null,null,null,null,null,null,null,null,null,null,null,null,null,null,null,null,null,null,null,null,null,null,null,null,null,null,null,null,null,null,null,null,null,null,null,null,null,null,null,"添　付",null,null,null,{"$f":"IF(入力シート!$N$15=\"\",\"\",DBCS(入力シート!$N$15))","v":""},null,null,"枚"]
[null,null,null,"備考"]
[null,null,null,null,null,null,null,null,null,null,null,null,null,null,null,null,null,null,null,null,null,null,null,null,null,null,null,null,null,null,null,null,null,null,null,null,null,null,null,null,null,null,null,null,null,null,null,null,null,"70歳\n不該当"]
[null,null,null,null,null,null,null,null,{"$f":"IF(入力シート!$M$15=\"\",\"\",DBCS(入力シート!$M$15))","v":""},null,null,null,null,null,null,null,null,null,null,null,null,null,null,null,null,null,null,null,null,null,null,null,null,null,null,null,null,null,null,null,null,null,null,null,null,null,null,null,null,null,null,null,null,"不該当年月日",null,null,null,null,null,null,null,null,"年",null,null,"月",null,"日"]
[null,null,null,null,null,null,null,null,null,null,null,null,null,null,null,null,null,null,null,null,null,null,null,null,null,null,null,null,null,null,null,null,null,null,null,null,null,null,null,"返不能",null,null,null,{"$f":"IF(入力シート!$O$15=\"\",\"\",DBCS(入力シート!$O$15))","v":""},null,null,"枚"]
[]
[]
[]
[]
[null,"被保険者\n２",null,"①",null,null,null,{"$f":"IF(入力シート!$B$16=\"\",\"\",DBCS(入力シート!$B$16))","v":""},null,null,null,null,null,null,null,null,null,null,null,null,null,null,null,null,null,null,null,"②",null,null,null,{"$f":"IFERROR(LEFT(入力シート!$C$16,FIND(\" \",入力シート!$C$16,1)-1),\"\")","v":""},null,null,null,null,null,null,null,null,null,null,{"$f":"IFERROR(RIGHT(入力シート!$C$16,LEN(入力シート!$C$16)-FIND(\" \",入力シート!$C$16,1)),\"\")","v":""},null,null,null,null,null,null,null,null,null,null,"③",null,null,null,{"$f":"IF(入力シート!$E$16=\"\",\"\",IF(TEXT(入力シート!$E$16,\"g\")=\"S\",\"5．昭和\",IF(TEXT(入力シート!$E$16,\"g\")=\"H\",\"7．平成\",IF(TEXT(入力シート!$E$16,\"g\")=\"R\",\"9．令和\"))))","v":""},null,null,null,null,"年",null,null,"月",null,"日"]
[]
[null,null,null,"被保険者\n整理番号",null,null,null,null,null,null,null,null,null,null,null,null,null,null,null,null,null,null,null,null,null,null,null,"氏名",null,null,null,null,null,null,null,null,null,null,null,null,null,null,null,null,null,null,null,null,null,null,null,null,null,"生年\n月日"]
[null,null,null,null,null,null,null,null,null,null,null,null,null,null,null,null,null,null,null,null,null,null,null,null,null,null,null,null,null,null,null,null,null,null,null,null,null,null,null,null,null,null,null,null,null,null,null,null,null,null,null,null,null,null,null,null,null,null,null,null,null,null,{"$f":"IF(入力シート!$E$16=\"\",\"\",DBCS(TEXT(入力シート!$E$16,\"eemmdd\")))","v":""}]
[null,null,null,null,null,null,null,null,null,null,null,null,null,null,null,null,null,null,null,null,null,null,null,null,null,null,null,null,null,null,null,{"$f":"IFERROR(LEFT(入力シート!$D$16,FIND(\"　\",入力シート!$D$16,1)-1),\"\")","v":""},null,null,null,null,null,null,null,null,null,null,{"$f":"IFERROR(RIGHT(入力シート!$D$16,LEN(入力シート!$D$16)-FIND(\"　\",入力シート!$D$16,1)),\"\")","v":""}]
[]
[]
[]
[]
[]
[null,null,null,"④",null,null,null,{"$f":"IFERROR(IF(入力シート!$F$16=\"\",DBCS(LEFT(RIGHT(入力シート!$G$16,18-COLUMN()))),DBCS(LEFT(RIGHT(入力シート!$F$16,20-COLUMN())))),\"\")","v":""},null,{"$f":"IFERROR(IF(入力シート!$F$16=\"\",DBCS(LEFT(RIGHT(入力シート!$G$16,19-COLUMN()))),DBCS(LEFT(RIGHT(入力シート!$F$16,21-COLUMN())))),\"\")","v":""},null,{"$f":"IFERROR(IF(入力シート!$F$16=\"\",DBCS(LEFT(RIGHT(入力シート!$G$16,20-COLUMN()))),DBCS(LEFT(RIGHT(入力シート!$F$16,22-COLUMN())))),\"\")","v":""},null,{"$f":"IFERROR(IF(入力シート!$F$16=\"\",DBCS(LEFT(RIGHT(入力シート!$G$16,21-COLUMN()))),DBCS(LEFT(RIGHT(入力シート!$F$16,23-COLUMN())))),\"\")","v":""},null,{"$f":"IFERROR(IF(入力シート!$F$16=\"\",DBCS(LEFT(RIGHT(入力シート!$G$16,22-COLUMN()))),DBCS(LEFT(RIGHT(入力シート!$F$16,24-COLUMN())))),\"\")","v":""},null,{"$f":"IFERROR(IF(入力シート!$F$16=\"\",DBCS(LEFT(RIGHT(入力シート!$G$16,23-COLUMN()))),DBCS(LEFT(RIGHT(入力シート!$F$16,25-COLUMN())))),\"\")","v":""},null,{"$f":"IFERROR(IF(入力シート!$F$16=\"\",DBCS(LEFT(RIGHT(入力シート!$G$16,24-COLUMN()))),DBCS(LEFT(RIGHT(入力シート!$F$16,26-COLUMN())))),\"\")","v":""},null,{"$f":"IFERROR(IF(入力シート!$F$16=\"\",DBCS(LEFT(RIGHT(入力シート!$G$16,25-COLUMN()))),DBCS(LEFT(RIGHT(入力シート!$F$16,27-COLUMN())))),\"\")","v":""},null,{"$f":"IFERROR(IF(入力シート!$F$16=\"\",DBCS(LEFT(RIGHT(入力シート!$G$16,26-COLUMN()))),DBCS(LEFT(RIGHT(入力シート!$F$16,28-COLUMN())))),\"\")","v":""},null,{"$f":"IFERROR(IF(入力シート!$F$16=\"\",DBCS(LEFT(RIGHT(入力シート!$G$16,27-COLUMN()))),DBCS(LEFT(RIGHT(入力シート!$F$16,29-COLUMN())))),\"\")","v":""},null,{"$f":"IFERROR(IF(入力シート!$F$16=\"\",\"\",DBCS(LEFT(RIGHT(入力シート!$F$16,30-COLUMN())))),\"\")","v":""},null,{"$f":"IFERROR(IF(入力シート!$F$16=\"\",\"\",DBCS(LEFT(RIGHT(入力シート!$F$16,31-COLUMN())))),\"\")","v":""},null,"⑤",null,null,null,{"$f":"IF(入力シート!$H$16=\"\",\"\",IF(TEXT(入力シート!$H$16,\"g\")=\"S\",\"5．昭和\",IF(TEXT(入力シート!$H$16,\"g\")=\"H\",\"7．平成\",IF(TEXT(入力シート!$H$16,\"g\")=\"R\",\"9．令和\"))))","v":""},null,null,null,null,null,"年",null,null,"月",null,"日",null,null,"⑥"]
[null,null,null,null,null,null,null,null,null,null,null,null,null,null,null,null,null,null,null,null,null,null,null,null,null,null,null,null,null,null,null,null,null,null,null,null,null,null,null,null,null,null,null,null,null,null,null,null,null,null,null,null,null,null,{"$f":"IF(入力シート!$I$16=\"\",\"\",DBCS(入力シート!$I$16))","v":""}]
[null,null,null,"個人番号\n（基礎年\n金番号）",null,null,null,null,null,null,null,null,null,null,null,null,null,null,null,null,null,null,null,null,null,null,null,null,null,null,null,"喪　失\n年月日",null,null,null,null,null,null,null,null,null,{"$f":"IF(入力シート!$H$16=\"\",\"\",DBCS(TEXT(入力シート!$H$16,\"eemmdd\")))","v":""},null,null,null,null,null,null,null,"喪失\n(不該当)\n原因"]
[]
[]
[null,null,null,null,null,null,null,null,null,null,null,null,null,null,null,null,null,null,null,null,null,null,null,null,null,null,null,null,null,null,null,null,null,null,null,null,null,null,null,null,null,null,null,null,null,null,null,null,null,null,null,null,null,null,"（",null,{"$f":"IF(入力シート!$I$16=\"4.退職等\",入力シート!$J$16,IF(入力シート!$I$16=\"5.死亡\",入力シート!$J$16,\"\"))","v":""},null,null,null,null,null,null,null,null,{"$f":"IF(入力シート!$I$16=\"4.退職等\",\"退職等）\",IF(入力シート!$I$16=\"5.死亡\",\"死亡）\",\"）\"))","v":"）"}]
[]
[]
[]
[null,null,null,"⑦",null,null,null,null,null,null,null,null,null,null,null,null,null,null,null,null,null,null,null,null,null,null,null,null,null,null,null,null,null,null,null,"資格確認書等回収",null,null,null,null,null,null,null,null,null,null,null,null,null,"⑧",null,null,null,null,null,null,"70歳以上被用者不該当\n（退職日または死亡日を記入してください）"]
[null,null,null,null,null,null,null,null,{"$f":"IF(入力シート!$L$16=\"\",\"\",DBCS(入力シート!$L$16))","v":""}]
[null,null,null,null,null,null,null,null,null,null,null,null,null,null,null,null,null,null,null,null,null,null,null,null,null,null,null,null,null,null,null,null,null,null,null,null,null,null,null,"添　付",null,null,null,{"$f":"IF(入力シート!$N$16=\"\",\"\",DBCS(入力シート!$N$16))","v":""},null,null,"枚"]
[null,null,null,"備考"]
[null,null,null,null,null,null,null,null,null,null,null,null,null,null,null,null,null,null,null,null,null,null,null,null,null,null,null,null,null,null,null,null,null,null,null,null,null,null,null,null,null,null,null,null,null,null,null,null,null,"70歳\n不該当"]
[null,null,null,null,null,null,null,null,{"$f":"IF(入力シート!$M$16=\"\",\"\",DBCS(入力シート!$M$16))","v":""},null,null,null,null,null,null,null,null,null,null,null,null,null,null,null,null,null,null,null,null,null,null,null,null,null,null,null,null,null,null,null,null,null,null,null,null,null,null,null,null,null,null,null,null,"不該当年月日",null,null,null,null,null,null,null,null,"年",null,null,"月",null,"日"]
[null,null,null,null,null,null,null,null,null,null,null,null,null,null,null,null,null,null,null,null,null,null,null,null,null,null,null,null,null,null,null,null,null,null,null,null,null,null,null,"返不能",null,null,null,{"$f":"IF(入力シート!$O$16=\"\",\"\",DBCS(入力シート!$O$16))","v":""},null,null,"枚"]
[]
[]
[]
[]
[null,"被保険者\n３",null,"①",null,null,null,{"$f":"IF(入力シート!$B$17=\"\",\"\",DBCS(入力シート!$B$17))","v":""},null,null,null,null,null,null,null,null,null,null,null,null,null,null,null,null,null,null,null,"②",null,null,null,{"$f":"IFERROR(LEFT(入力シート!$C$17,FIND(\" \",入力シート!$C$17,1)-1),\"\")","v":""},null,null,null,null,null,null,null,null,null,null,{"$f":"IFERROR(RIGHT(入力シート!$C$17,LEN(入力シート!$C$17)-FIND(\" \",入力シート!$C$17,1)),\"\")","v":""},null,null,null,null,null,null,null,null,null,null,"③",null,null,null,{"$f":"IF(入力シート!$E$17=\"\",\"\",IF(TEXT(入力シート!$E$17,\"g\")=\"S\",\"5．昭和\",IF(TEXT(入力シート!$E$17,\"g\")=\"H\",\"7．平成\",IF(TEXT(入力シート!$E$17,\"g\")=\"R\",\"9．令和\"))))","v":""},null,null,null,null,"年",null,null,"月",null,"日"]
[]
[null,null,null,"被保険者\n整理番号",null,null,null,null,null,null,null,null,null,null,null,null,null,null,null,null,null,null,null,null,null,null,null,"氏名",null,null,null,null,null,null,null,null,null,null,null,null,null,null,null,null,null,null,null,null,null,null,null,null,null,"生年\n月日"]
[null,null,null,null,null,null,null,null,null,null,null,null,null,null,null,null,null,null,null,null,null,null,null,null,null,null,null,null,null,null,null,null,null,null,null,null,null,null,null,null,null,null,null,null,null,null,null,null,null,null,null,null,null,null,null,null,null,null,null,null,null,null,{"$f":"IF(入力シート!$E$17=\"\",\"\",DBCS(TEXT(入力シート!$E$17,\"eemmdd\")))","v":""}]
[null,null,null,null,null,null,null,null,null,null,null,null,null,null,null,null,null,null,null,null,null,null,null,null,null,null,null,null,null,null,null,{"$f":"IFERROR(LEFT(入力シート!$D$17,FIND(\"　\",入力シート!$D$17,1)-1),\"\")","v":""},null,null,null,null,null,null,null,null,null,null,{"$f":"IFERROR(RIGHT(入力シート!$D$17,LEN(入力シート!$D$17)-FIND(\"　\",入力シート!$D$17,1)),\"\")","v":""}]
[]
[]
[]
[]
[]
[null,null,null,"④",null,null,null,{"$f":"IFERROR(IF(入力シート!$F$17=\"\",DBCS(LEFT(RIGHT(入力シート!$G$17,18-COLUMN()))),DBCS(LEFT(RIGHT(入力シート!$F$17,20-COLUMN())))),\"\")","v":""},null,{"$f":"IFERROR(IF(入力シート!$F$17=\"\",DBCS(LEFT(RIGHT(入力シート!$G$17,19-COLUMN()))),DBCS(LEFT(RIGHT(入力シート!$F$17,21-COLUMN())))),\"\")","v":""},null,{"$f":"IFERROR(IF(入力シート!$F$17=\"\",DBCS(LEFT(RIGHT(入力シート!$G$17,20-COLUMN()))),DBCS(LEFT(RIGHT(入力シート!$F$17,22-COLUMN())))),\"\")","v":""},null,{"$f":"IFERROR(IF(入力シート!$F$17=\"\",DBCS(LEFT(RIGHT(入力シート!$G$17,21-COLUMN()))),DBCS(LEFT(RIGHT(入力シート!$F$17,23-COLUMN())))),\"\")","v":""},null,{"$f":"IFERROR(IF(入力シート!$F$17=\"\",DBCS(LEFT(RIGHT(入力シート!$G$17,22-COLUMN()))),DBCS(LEFT(RIGHT(入力シート!$F$17,24-COLUMN())))),\"\")","v":""},null,{"$f":"IFERROR(IF(入力シート!$F$17=\"\",DBCS(LEFT(RIGHT(入力シート!$G$17,23-COLUMN()))),DBCS(LEFT(RIGHT(入力シート!$F$17,25-COLUMN())))),\"\")","v":""},null,{"$f":"IFERROR(IF(入力シート!$F$17=\"\",DBCS(LEFT(RIGHT(入力シート!$G$17,24-COLUMN()))),DBCS(LEFT(RIGHT(入力シート!$F$17,26-COLUMN())))),\"\")","v":""},null,{"$f":"IFERROR(IF(入力シート!$F$17=\"\",DBCS(LEFT(RIGHT(入力シート!$G$17,25-COLUMN()))),DBCS(LEFT(RIGHT(入力シート!$F$17,27-COLUMN())))),\"\")","v":""},null,{"$f":"IFERROR(IF(入力シート!$F$17=\"\",DBCS(LEFT(RIGHT(入力シート!$G$17,26-COLUMN()))),DBCS(LEFT(RIGHT(入力シート!$F$17,28-COLUMN())))),\"\")","v":""},null,{"$f":"IFERROR(IF(入力シート!$F$17=\"\",DBCS(LEFT(RIGHT(入力シート!$G$17,27-COLUMN()))),DBCS(LEFT(RIGHT(入力シート!$F$17,29-COLUMN())))),\"\")","v":""},null,{"$f":"IFERROR(IF(入力シート!$F$17=\"\",\"\",DBCS(LEFT(RIGHT(入力シート!$F$17,30-COLUMN())))),\"\")","v":""},null,{"$f":"IFERROR(IF(入力シート!$F$17=\"\",\"\",DBCS(LEFT(RIGHT(入力シート!$F$17,31-COLUMN())))),\"\")","v":""},null,"⑤",null,null,null,{"$f":"IF(入力シート!$H$17=\"\",\"\",IF(TEXT(入力シート!$H$17,\"g\")=\"S\",\"5．昭和\",IF(TEXT(入力シート!$H$17,\"g\")=\"H\",\"7．平成\",IF(TEXT(入力シート!$H$17,\"g\")=\"R\",\"9．令和\"))))","v":""},null,null,null,null,null,"年",null,null,"月",null,"日",null,null,"⑥"]
[null,null,null,null,null,null,null,null,null,null,null,null,null,null,null,null,null,null,null,null,null,null,null,null,null,null,null,null,null,null,null,null,null,null,null,null,null,null,null,null,null,null,null,null,null,null,null,null,null,null,null,null,null,null,{"$f":"IF(入力シート!$I$17=\"\",\"\",DBCS(入力シート!$I$17))","v":""}]
[null,null,null,"個人番号\n（基礎年\n金番号）",null,null,null,null,null,null,null,null,null,null,null,null,null,null,null,null,null,null,null,null,null,null,null,null,null,null,null,"喪　失\n年月日",null,null,null,null,null,null,null,null,null,{"$f":"IF(入力シート!$H$17=\"\",\"\",DBCS(TEXT(入力シート!$H$17,\"eemmdd\")))","v":""},null,null,null,null,null,null,null,"喪失\n(不該当)\n原因"]
[]
[]
[null,null,null,null,null,null,null,null,null,null,null,null,null,null,null,null,null,null,null,null,null,null,null,null,null,null,null,null,null,null,null,null,null,null,null,null,null,null,null,null,null,null,null,null,null,null,null,null,null,null,null,null,null,null,"（",null,{"$f":"IF(入力シート!$I$17=\"4.退職等\",入力シート!$J$17,IF(入力シート!$I$17=\"5.死亡\",入力シート!$J$17,\"\"))","v":""},null,null,null,null,null,null,null,null,{"$f":"IF(入力シート!$I$17=\"4.退職等\",\"退職等）\",IF(入力シート!$I$17=\"5.死亡\",\"死亡）\",\"）\"))","v":"）"}]
[]
[]
[]
[null,null,null,"⑦",null,null,null,null,null,null,null,null,null,null,null,null,null,null,null,null,null,null,null,null,null,null,null,null,null,null,null,null,null,null,null,"資格確認書等回収",null,null,null,null,null,null,null,null,null,null,null,null,null,"⑧",null,null,null,null,null,null,"70歳以上被用者不該当\n（退職日または死亡日を記入してください）"]
[null,null,null,null,null,null,null,null,{"$f":"IF(入力シート!$L$17=\"\",\"\",DBCS(入力シート!$L$17))","v":""}]
[null,null,null,null,null,null,null,null,null,null,null,null,null,null,null,null,null,null,null,null,null,null,null,null,null,null,null,null,null,null,null,null,null,null,null,null,null,null,null,"添　付",null,null,null,{"$f":"IF(入力シート!$N$17=\"\",\"\",DBCS(入力シート!$N$17))","v":""},null,null,"枚"]
[null,null,null,"備考"]
[null,null,null,null,null,null,null,null,null,null,null,null,null,null,null,null,null,null,null,null,null,null,null,null,null,null,null,null,null,null,null,null,null,null,null,null,null,null,null,null,null,null,null,null,null,null,null,null,null,"70歳\n不該当"]
[null,null,null,null,null,null,null,null,{"$f":"IF(入力シート!$M$17=\"\",\"\",DBCS(入力シート!$M$17))","v":""},null,null,null,null,null,null,null,null,null,null,null,null,null,null,null,null,null,null,null,null,null,null,null,null,null,null,null,null,null,null,null,null,null,null,null,null,null,null,null,null,null,null,null,null,"不該当年月日",null,null,null,null,null,null,null,null,"年",null,null,"月",null,"日"]
[null,null,null,null,null,null,null,null,null,null,null,null,null,null,null,null,null,null,null,null,null,null,null,null,null,null,null,null,null,null,null,null,null,null,null,null,null,null,null,"返不能",null,null,null,{"$f":"IF(入力シート!$O$17=\"\",\"\",DBCS(入力シート!$O$17))","v":""},null,null,"枚"]
[]
[]
[]
[]
[null,"被保険者\n４",null,"①",null,null,null,{"$f":"IF(入力シート!$B$18=\"\",\"\",DBCS(入力シート!$B$18))","v":""},null,null,null,null,null,null,null,null,null,null,null,null,null,null,null,null,null,null,null,"②",null,null,null,{"$f":"IFERROR(LEFT(入力シート!$C$18,FIND(\" \",入力シート!$C$18,1)-1),\"\")","v":""},null,null,null,null,null,null,null,null,null,null,{"$f":"IFERROR(RIGHT(入力シート!$C$18,LEN(入力シート!$C$18)-FIND(\" \",入力シート!$C$18,1)),\"\")","v":""},null,null,null,null,null,null,null,null,null,null,"③",null,null,null,{"$f":"IF(入力シート!$E$18=\"\",\"\",IF(TEXT(入力シート!$E$18,\"g\")=\"S\",\"5．昭和\",IF(TEXT(入力シート!$E$18,\"g\")=\"H\",\"7．平成\",IF(TEXT(入力シート!$E$18,\"g\")=\"R\",\"9．令和\"))))","v":""},null,null,null,null,"年",null,null,"月",null,"日"]
[]
[null,null,null,"被保険者\n整理番号",null,null,null,null,null,null,null,null,null,null,null,null,null,null,null,null,null,null,null,null,null,null,null,"氏名",null,null,null,null,null,null,null,null,null,null,null,null,null,null,null,null,null,null,null,null,null,null,null,null,null,"生年\n月日"]
[null,null,null,null,null,null,null,null,null,null,null,null,null,null,null,null,null,null,null,null,null,null,null,null,null,null,null,null,null,null,null,null,null,null,null,null,null,null,null,null,null,null,null,null,null,null,null,null,null,null,null,null,null,null,null,null,null,null,null,null,null,null,{"$f":"IF(入力シート!$E$18=\"\",\"\",DBCS(TEXT(入力シート!$E$18,\"eemmdd\")))","v":""}]
[null,null,null,null,null,null,null,null,null,null,null,null,null,null,null,null,null,null,null,null,null,null,null,null,null,null,null,null,null,null,null,{"$f":"IFERROR(LEFT(入力シート!$D$18,FIND(\"　\",入力シート!$D$18,1)-1),\"\")","v":""},null,null,null,null,null,null,null,null,null,null,{"$f":"IFERROR(RIGHT(入力シート!$D$18,LEN(入力シート!$D$18)-FIND(\"　\",入力シート!$D$18,1)),\"\")","v":""}]
[]
[]
[]
[]
[]
[null,null,null,"④",null,null,null,{"$f":"IFERROR(IF(入力シート!$F$18=\"\",DBCS(LEFT(RIGHT(入力シート!$G$18,18-COLUMN()))),DBCS(LEFT(RIGHT(入力シート!$F$18,20-COLUMN())))),\"\")","v":""},null,{"$f":"IFERROR(IF(入力シート!$F$18=\"\",DBCS(LEFT(RIGHT(入力シート!$G$18,19-COLUMN()))),DBCS(LEFT(RIGHT(入力シート!$F$18,21-COLUMN())))),\"\")","v":""},null,{"$f":"IFERROR(IF(入力シート!$F$18=\"\",DBCS(LEFT(RIGHT(入力シート!$G$18,20-COLUMN()))),DBCS(LEFT(RIGHT(入力シート!$F$18,22-COLUMN())))),\"\")","v":""},null,{"$f":"IFERROR(IF(入力シート!$F$18=\"\",DBCS(LEFT(RIGHT(入力シート!$G$18,21-COLUMN()))),DBCS(LEFT(RIGHT(入力シート!$F$18,23-COLUMN())))),\"\")","v":""},null,{"$f":"IFERROR(IF(入力シート!$F$18=\"\",DBCS(LEFT(RIGHT(入力シート!$G$18,22-COLUMN()))),DBCS(LEFT(RIGHT(入力シート!$F$18,24-COLUMN())))),\"\")","v":""},null,{"$f":"IFERROR(IF(入力シート!$F$18=\"\",DBCS(LEFT(RIGHT(入力シート!$G$18,23-COLUMN()))),DBCS(LEFT(RIGHT(入力シート!$F$18,25-COLUMN())))),\"\")","v":""},null,{"$f":"IFERROR(IF(入力シート!$F$18=\"\",DBCS(LEFT(RIGHT(入力シート!$G$18,24-COLUMN()))),DBCS(LEFT(RIGHT(入力シート!$F$18,26-COLUMN())))),\"\")","v":""},null,{"$f":"IFERROR(IF(入力シート!$F$18=\"\",DBCS(LEFT(RIGHT(入力シート!$G$18,25-COLUMN()))),DBCS(LEFT(RIGHT(入力シート!$F$18,27-COLUMN())))),\"\")","v":""},null,{"$f":"IFERROR(IF(入力シート!$F$18=\"\",DBCS(LEFT(RIGHT(入力シート!$G$18,26-COLUMN()))),DBCS(LEFT(RIGHT(入力シート!$F$18,28-COLUMN())))),\"\")","v":""},null,{"$f":"IFERROR(IF(入力シート!$F$18=\"\",DBCS(LEFT(RIGHT(入力シート!$G$18,27-COLUMN()))),DBCS(LEFT(RIGHT(入力シート!$F$18,29-COLUMN())))),\"\")","v":""},null,{"$f":"IFERROR(IF(入力シート!$F$18=\"\",\"\",DBCS(LEFT(RIGHT(入力シート!$F$18,30-COLUMN())))),\"\")","v":""},null,{"$f":"IFERROR(IF(入力シート!$F$18=\"\",\"\",DBCS(LEFT(RIGHT(入力シート!$F$18,31-COLUMN())))),\"\")","v":""},null,"⑤",null,null,null,{"$f":"IF(入力シート!$H$18=\"\",\"\",IF(TEXT(入力シート!$H$18,\"g\")=\"S\",\"5．昭和\",IF(TEXT(入力シート!$H$18,\"g\")=\"H\",\"7．平成\",IF(TEXT(入力シート!$H$18,\"g\")=\"R\",\"9．令和\"))))","v":""},null,null,null,null,null,"年",null,null,"月",null,"日",null,null,"⑥"]
[null,null,null,null,null,null,null,null,null,null,null,null,null,null,null,null,null,null,null,null,null,null,null,null,null,null,null,null,null,null,null,null,null,null,null,null,null,null,null,null,null,null,null,null,null,null,null,null,null,null,null,null,null,null,{"$f":"IF(入力シート!$I$18=\"\",\"\",DBCS(入力シート!$I$18))","v":""}]
[null,null,null,"個人番号\n（基礎年\n金番号）",null,null,null,null,null,null,null,null,null,null,null,null,null,null,null,null,null,null,null,null,null,null,null,null,null,null,null,"喪　失\n年月日",null,null,null,null,null,null,null,null,null,{"$f":"IF(入力シート!$H$18=\"\",\"\",DBCS(TEXT(入力シート!$H$18,\"eemmdd\")))","v":""},null,null,null,null,null,null,null,"喪失\n(不該当)\n原因"]
[]
[]
[null,null,null,null,null,null,null,null,null,null,null,null,null,null,null,null,null,null,null,null,null,null,null,null,null,null,null,null,null,null,null,null,null,null,null,null,null,null,null,null,null,null,null,null,null,null,null,null,null,null,null,null,null,null,"（",null,{"$f":"IF(入力シート!$I$18=\"4.退職等\",入力シート!$J$18,IF(入力シート!$I$18=\"5.死亡\",入力シート!$J$18,\"\"))","v":""},null,null,null,null,null,null,null,null,{"$f":"IF(入力シート!$I$18=\"4.退職等\",\"退職等）\",IF(入力シート!$I$18=\"5.死亡\",\"死亡）\",\"）\"))","v":"）"}]
[]
[]
[]
[null,null,null,"⑦",null,null,null,null,null,null,null,null,null,null,null,null,null,null,null,null,null,null,null,null,null,null,null,null,null,null,null,null,null,null,null,"資格確認書等回収",null,null,null,null,null,null,null,null,null,null,null,null,null,"⑧",null,null,null,null,null,null,"70歳以上被用者不該当\n（退職日または死亡日を記入してください）"]
[null,null,null,null,null,null,null,null,{"$f":"IF(入力シート!$L$18=\"\",\"\",DBCS(入力シート!$L$18))","v":""}]
[null,null,null,null,null,null,null,null,null,null,null,null,null,null,null,null,null,null,null,null,null,null,null,null,null,null,null,null,null,null,null,null,null,null,null,null,null,null,null,"添　付",null,null,null,{"$f":"IF(入力シート!$N$18=\"\",\"\",DBCS(入力シート!$N$18))","v":""},null,null,"枚"]
[null,null,null,"備考"]
[null,null,null,null,null,null,null,null,null,null,null,null,null,null,null,null,null,null,null,null,null,null,null,null,null,null,null,null,null,null,null,null,null,null,null,null,null,null,null,null,null,null,null,null,null,null,null,null,null,"70歳\n不該当"]
[null,null,null,null,null,null,null,null,{"$f":"IF(入力シート!$M$18=\"\",\"\",DBCS(入力シート!$M$18))","v":""},null,null,null,null,null,null,null,null,null,null,null,null,null,null,null,null,null,null,null,null,null,null,null,null,null,null,null,null,null,null,null,null,null,null,null,null,null,null,null,null,null,null,null,null,"不該当年月日",null,null,null,null,null,null,null,null,"年",null,null,"月",null,"日"]
[null,null,null,null,null,null,null,null,null,null,null,null,null,null,null,null,null,null,null,null,null,null,null,null,null,null,null,null,null,null,null,null,null,null,null,null,null,null,null,"返不能",null,null,null,{"$f":"IF(入力シート!$O$18=\"\",\"\",DBCS(入力シート!$O$18))","v":""},null,null,"枚"]
[]
[]
[]
[]
[]
[]
[]
[]
[]
[]
[]
[]
[]
[]
[]
[]
[]
[]
[]
[]
[]
[]
[]
[]
[]
[]
[]
[]
[]
[]
[]
[]
[null,"被保険者\n１",null,"①",null,null,null,{"$f":"IF(入力シート!$B$19=\"\",\"\",DBCS(入力シート!$B$19))","v":""},null,null,null,null,null,null,null,null,null,null,null,null,null,null,null,null,null,null,null,"②",null,null,null,{"$f":"IFERROR(LEFT(入力シート!$C$19,FIND(\" \",入力シート!$C$19,1)-1),\"\")","v":""},null,null,null,null,null,null,null,null,null,null,{"$f":"IFERROR(RIGHT(入力シート!$C$19,LEN(入力シート!$C$19)-FIND(\" \",入力シート!$C$19,1)),\"\")","v":""},null,null,null,null,null,null,null,null,null,null,"③",null,null,null,{"$f":"IF(入力シート!$E$19=\"\",\"\",IF(TEXT(入力シート!$E$19,\"g\")=\"S\",\"5．昭和\",IF(TEXT(入力シート!$E$19,\"g\")=\"H\",\"7．平成\",IF(TEXT(入力シート!$E$19,\"g\")=\"R\",\"9．令和\"))))","v":""},null,null,null,null,"年",null,null,"月",null,"日"]
[]
[null,null,null,"被保険者\n整理番号",null,null,null,null,null,null,null,null,null,null,null,null,null,null,null,null,null,null,null,null,null,null,null,"氏名",null,null,null,null,null,null,null,null,null,null,null,null,null,null,null,null,null,null,null,null,null,null,null,null,null,"生年\n月日"]
[null,null,null,null,null,null,null,null,null,null,null,null,null,null,null,null,null,null,null,null,null,null,null,null,null,null,null,null,null,null,null,null,null,null,null,null,null,null,null,null,null,null,null,null,null,null,null,null,null,null,null,null,null,null,null,null,null,null,null,null,null,null,{"$f":"IF(入力シート!$E$19=\"\",\"\",DBCS(TEXT(入力シート!$E$19,\"eemmdd\")))","v":""}]
[null,null,null,null,null,null,null,null,null,null,null,null,null,null,null,null,null,null,null,null,null,null,null,null,null,null,null,null,null,null,null,{"$f":"IFERROR(LEFT(入力シート!$D$19,FIND(\"　\",入力シート!$D$19,1)-1),\"\")","v":""},null,null,null,null,null,null,null,null,null,null,{"$f":"IFERROR(RIGHT(入力シート!$D$19,LEN(入力シート!$D$19)-FIND(\"　\",入力シート!$D$19,1)),\"\")","v":""}]
[]
[]
[]
[]
[]
[null,null,null,"④",null,null,null,{"$f":"IFERROR(IF(入力シート!$F$19=\"\",DBCS(LEFT(RIGHT(入力シート!$G$19,18-COLUMN()))),DBCS(LEFT(RIGHT(入力シート!$F$19,20-COLUMN())))),\"\")","v":""},null,{"$f":"IFERROR(IF(入力シート!$F$19=\"\",DBCS(LEFT(RIGHT(入力シート!$G$19,19-COLUMN()))),DBCS(LEFT(RIGHT(入力シート!$F$19,21-COLUMN())))),\"\")","v":""},null,{"$f":"IFERROR(IF(入力シート!$F$19=\"\",DBCS(LEFT(RIGHT(入力シート!$G$19,20-COLUMN()))),DBCS(LEFT(RIGHT(入力シート!$F$19,22-COLUMN())))),\"\")","v":""},null,{"$f":"IFERROR(IF(入力シート!$F$19=\"\",DBCS(LEFT(RIGHT(入力シート!$G$19,21-COLUMN()))),DBCS(LEFT(RIGHT(入力シート!$F$19,23-COLUMN())))),\"\")","v":""},null,{"$f":"IFERROR(IF(入力シート!$F$19=\"\",DBCS(LEFT(RIGHT(入力シート!$G$19,22-COLUMN()))),DBCS(LEFT(RIGHT(入力シート!$F$19,24-COLUMN())))),\"\")","v":""},null,{"$f":"IFERROR(IF(入力シート!$F$19=\"\",DBCS(LEFT(RIGHT(入力シート!$G$19,23-COLUMN()))),DBCS(LEFT(RIGHT(入力シート!$F$19,25-COLUMN())))),\"\")","v":""},null,{"$f":"IFERROR(IF(入力シート!$F$19=\"\",DBCS(LEFT(RIGHT(入力シート!$G$19,24-COLUMN()))),DBCS(LEFT(RIGHT(入力シート!$F$19,26-COLUMN())))),\"\")","v":""},null,{"$f":"IFERROR(IF(入力シート!$F$19=\"\",DBCS(LEFT(RIGHT(入力シート!$G$19,25-COLUMN()))),DBCS(LEFT(RIGHT(入力シート!$F$19,27-COLUMN())))),\"\")","v":""},null,{"$f":"IFERROR(IF(入力シート!$F$19=\"\",DBCS(LEFT(RIGHT(入力シート!$G$19,26-COLUMN()))),DBCS(LEFT(RIGHT(入力シート!$F$19,28-COLUMN())))),\"\")","v":""},null,{"$f":"IFERROR(IF(入力シート!$F$19=\"\",DBCS(LEFT(RIGHT(入力シート!$G$19,27-COLUMN()))),DBCS(LEFT(RIGHT(入力シート!$F$19,29-COLUMN())))),\"\")","v":""},null,{"$f":"IFERROR(IF(入力シート!$F$19=\"\",\"\",DBCS(LEFT(RIGHT(入力シート!$F$19,30-COLUMN())))),\"\")","v":""},null,{"$f":"IFERROR(IF(入力シート!$F$19=\"\",\"\",DBCS(LEFT(RIGHT(入力シート!$F$19,31-COLUMN())))),\"\")","v":""},null,"⑤",null,null,null,{"$f":"IF(入力シート!$H$19=\"\",\"\",IF(TEXT(入力シート!$H$19,\"g\")=\"S\",\"5．昭和\",IF(TEXT(入力シート!$H$19,\"g\")=\"H\",\"7．平成\",IF(TEXT(入力シート!$H$19,\"g\")=\"R\",\"9．令和\"))))","v":""},null,null,null,null,null,"年",null,null,"月",null,"日",null,null,"⑥"]
[null,null,null,null,null,null,null,null,null,null,null,null,null,null,null,null,null,null,null,null,null,null,null,null,null,null,null,null,null,null,null,null,null,null,null,null,null,null,null,null,null,null,null,null,null,null,null,null,null,null,null,null,null,null,{"$f":"IF(入力シート!$I$19=\"\",\"\",DBCS(入力シート!$I$19))","v":""}]
[null,null,null,"個人番号\n（基礎年\n金番号）",null,null,null,null,null,null,null,null,null,null,null,null,null,null,null,null,null,null,null,null,null,null,null,null,null,null,null,"喪　失\n年月日",null,null,null,null,null,null,null,null,null,{"$f":"IF(入力シート!$H$19=\"\",\"\",DBCS(TEXT(入力シート!$H$19,\"eemmdd\")))","v":""},null,null,null,null,null,null,null,"喪失\n(不該当)\n原因"]
[]
[]
[null,null,null,null,null,null,null,null,null,null,null,null,null,null,null,null,null,null,null,null,null,null,null,null,null,null,null,null,null,null,null,null,null,null,null,null,null,null,null,null,null,null,null,null,null,null,null,null,null,null,null,null,null,null,"（",null,{"$f":"IF(入力シート!$I$19=\"4.退職等\",入力シート!$J$19,IF(入力シート!$I$19=\"5.死亡\",入力シート!$J$19,\"\"))","v":""},null,null,null,null,null,null,null,null,{"$f":"IF(入力シート!$I$19=\"4.退職等\",\"退職等）\",IF(入力シート!$I$19=\"5.死亡\",\"死亡）\",\"）\"))","v":"）"}]
[]
[]
[]
[null,null,null,"⑦",null,null,null,null,null,null,null,null,null,null,null,null,null,null,null,null,null,null,null,null,null,null,null,null,null,null,null,null,null,null,null,"資格確認書等回収",null,null,null,null,null,null,null,null,null,null,null,null,null,"⑧",null,null,null,null,null,null,"70歳以上被用者不該当\n（退職日または死亡日を記入してください）"]
[null,null,null,null,null,null,null,null,{"$f":"IF(入力シート!$L$19=\"\",\"\",DBCS(入力シート!$L$19))","v":""}]
[null,null,null,null,null,null,null,null,null,null,null,null,null,null,null,null,null,null,null,null,null,null,null,null,null,null,null,null,null,null,null,null,null,null,null,null,null,null,null,"添　付",null,null,null,{"$f":"IF(入力シート!$N$19=\"\",\"\",DBCS(入力シート!$N$19))","v":""},null,null,"枚"]
[null,null,null,"備考"]
[null,null,null,null,null,null,null,null,null,null,null,null,null,null,null,null,null,null,null,null,null,null,null,null,null,null,null,null,null,null,null,null,null,null,null,null,null,null,null,null,null,null,null,null,null,null,null,null,null,"70歳\n不該当"]
[null,null,null,null,null,null,null,null,{"$f":"IF(入力シート!$M$19=\"\",\"\",DBCS(入力シート!$M$19))","v":""},null,null,null,null,null,null,null,null,null,null,null,null,null,null,null,null,null,null,null,null,null,null,null,null,null,null,null,null,null,null,null,null,null,null,null,null,null,null,null,null,null,null,null,null,"不該当年月日",null,null,null,null,null,null,null,null,"年",null,null,"月",null,"日"]
[null,null,null,null,null,null,null,null,null,null,null,null,null,null,null,null,null,null,null,null,null,null,null,null,null,null,null,null,null,null,null,null,null,null,null,null,null,null,null,"返不能",null,null,null,{"$f":"IF(入力シート!$O$19=\"\",\"\",DBCS(入力シート!$O$19))","v":""},null,null,"枚"]
[]
[]
[]
[]
[null,"被保険者\n２",null,"①",null,null,null,{"$f":"IF(入力シート!$B$20=\"\",\"\",DBCS(入力シート!$B$20))","v":""},null,null,null,null,null,null,null,null,null,null,null,null,null,null,null,null,null,null,null,"②",null,null,null,{"$f":"IFERROR(LEFT(入力シート!$C$20,FIND(\" \",入力シート!$C$20,1)-1),\"\")","v":""},null,null,null,null,null,null,null,null,null,null,{"$f":"IFERROR(RIGHT(入力シート!$C$20,LEN(入力シート!$C$20)-FIND(\" \",入力シート!$C$20,1)),\"\")","v":""},null,null,null,null,null,null,null,null,null,null,"③",null,null,null,{"$f":"IF(入力シート!$E$20=\"\",\"\",IF(TEXT(入力シート!$E$20,\"g\")=\"S\",\"5．昭和\",IF(TEXT(入力シート!$E$20,\"g\")=\"H\",\"7．平成\",IF(TEXT(入力シート!$E$20,\"g\")=\"R\",\"9．令和\"))))","v":""},null,null,null,null,"年",null,null,"月",null,"日"]
[]
[null,null,null,"被保険者\n整理番号",null,null,null,null,null,null,null,null,null,null,null,null,null,null,null,null,null,null,null,null,null,null,null,"氏名",null,null,null,null,null,null,null,null,null,null,null,null,null,null,null,null,null,null,null,null,null,null,null,null,null,"生年\n月日"]
[null,null,null,null,null,null,null,null,null,null,null,null,null,null,null,null,null,null,null,null,null,null,null,null,null,null,null,null,null,null,null,null,null,null,null,null,null,null,null,null,null,null,null,null,null,null,null,null,null,null,null,null,null,null,null,null,null,null,null,null,null,null,{"$f":"IF(入力シート!$E$20=\"\",\"\",DBCS(TEXT(入力シート!$E$20,\"eemmdd\")))","v":""}]
[null,null,null,null,null,null,null,null,null,null,null,null,null,null,null,null,null,null,null,null,null,null,null,null,null,null,null,null,null,null,null,{"$f":"IFERROR(LEFT(入力シート!$D$20,FIND(\"　\",入力シート!$D$20,1)-1),\"\")","v":""},null,null,null,null,null,null,null,null,null,null,{"$f":"IFERROR(RIGHT(入力シート!$D$20,LEN(入力シート!$D$20)-FIND(\"　\",入力シート!$D$20,1)),\"\")","v":""}]
[]
[]
[]
[]
[]
[null,null,null,"④",null,null,null,{"$f":"IFERROR(IF(入力シート!$F$20=\"\",DBCS(LEFT(RIGHT(入力シート!$G$20,18-COLUMN()))),DBCS(LEFT(RIGHT(入力シート!$F$20,20-COLUMN())))),\"\")","v":""},null,{"$f":"IFERROR(IF(入力シート!$F$20=\"\",DBCS(LEFT(RIGHT(入力シート!$G$20,19-COLUMN()))),DBCS(LEFT(RIGHT(入力シート!$F$20,21-COLUMN())))),\"\")","v":""},null,{"$f":"IFERROR(IF(入力シート!$F$20=\"\",DBCS(LEFT(RIGHT(入力シート!$G$20,20-COLUMN()))),DBCS(LEFT(RIGHT(入力シート!$F$20,22-COLUMN())))),\"\")","v":""},null,{"$f":"IFERROR(IF(入力シート!$F$20=\"\",DBCS(LEFT(RIGHT(入力シート!$G$20,21-COLUMN()))),DBCS(LEFT(RIGHT(入力シート!$F$20,23-COLUMN())))),\"\")","v":""},null,{"$f":"IFERROR(IF(入力シート!$F$20=\"\",DBCS(LEFT(RIGHT(入力シート!$G$20,22-COLUMN()))),DBCS(LEFT(RIGHT(入力シート!$F$20,24-COLUMN())))),\"\")","v":""},null,{"$f":"IFERROR(IF(入力シート!$F$20=\"\",DBCS(LEFT(RIGHT(入力シート!$G$20,23-COLUMN()))),DBCS(LEFT(RIGHT(入力シート!$F$20,25-COLUMN())))),\"\")","v":""},null,{"$f":"IFERROR(IF(入力シート!$F$20=\"\",DBCS(LEFT(RIGHT(入力シート!$G$20,24-COLUMN()))),DBCS(LEFT(RIGHT(入力シート!$F$20,26-COLUMN())))),\"\")","v":""},null,{"$f":"IFERROR(IF(入力シート!$F$20=\"\",DBCS(LEFT(RIGHT(入力シート!$G$20,25-COLUMN()))),DBCS(LEFT(RIGHT(入力シート!$F$20,27-COLUMN())))),\"\")","v":""},null,{"$f":"IFERROR(IF(入力シート!$F$20=\"\",DBCS(LEFT(RIGHT(入力シート!$G$20,26-COLUMN()))),DBCS(LEFT(RIGHT(入力シート!$F$20,28-COLUMN())))),\"\")","v":""},null,{"$f":"IFERROR(IF(入力シート!$F$20=\"\",DBCS(LEFT(RIGHT(入力シート!$G$20,27-COLUMN()))),DBCS(LEFT(RIGHT(入力シート!$F$20,29-COLUMN())))),\"\")","v":""},null,{"$f":"IFERROR(IF(入力シート!$F$20=\"\",\"\",DBCS(LEFT(RIGHT(入力シート!$F$20,30-COLUMN())))),\"\")","v":""},null,{"$f":"IFERROR(IF(入力シート!$F$20=\"\",\"\",DBCS(LEFT(RIGHT(入力シート!$F$20,31-COLUMN())))),\"\")","v":""},null,"⑤",null,null,null,{"$f":"IF(入力シート!$H$20=\"\",\"\",IF(TEXT(入力シート!$H$20,\"g\")=\"S\",\"5．昭和\",IF(TEXT(入力シート!$H$20,\"g\")=\"H\",\"7．平成\",IF(TEXT(入力シート!$H$20,\"g\")=\"R\",\"9．令和\"))))","v":""},null,null,null,null,null,"年",null,null,"月",null,"日",null,null,"⑥"]
[null,null,null,null,null,null,null,null,null,null,null,null,null,null,null,null,null,null,null,null,null,null,null,null,null,null,null,null,null,null,null,null,null,null,null,null,null,null,null,null,null,null,null,null,null,null,null,null,null,null,null,null,null,null,{"$f":"IF(入力シート!$I$20=\"\",\"\",DBCS(入力シート!$I$20))","v":""}]
[null,null,null,"個人番号\n（基礎年\n金番号）",null,null,null,null,null,null,null,null,null,null,null,null,null,null,null,null,null,null,null,null,null,null,null,null,null,null,null,"喪　失\n年月日",null,null,null,null,null,null,null,null,null,{"$f":"IF(入力シート!$H$20=\"\",\"\",DBCS(TEXT(入力シート!$H$20,\"eemmdd\")))","v":""},null,null,null,null,null,null,null,"喪失\n(不該当)\n原因"]
[]
[]
[null,null,null,null,null,null,null,null,null,null,null,null,null,null,null,null,null,null,null,null,null,null,null,null,null,null,null,null,null,null,null,null,null,null,null,null,null,null,null,null,null,null,null,null,null,null,null,null,null,null,null,null,null,null,"（",null,{"$f":"IF(入力シート!$I$20=\"4.退職等\",入力シート!$J$20,IF(入力シート!$I$20=\"5.死亡\",入力シート!$J$20,\"\"))","v":""},null,null,null,null,null,null,null,null,{"$f":"IF(入力シート!$I$20=\"4.退職等\",\"退職等）\",IF(入力シート!$I$20=\"5.死亡\",\"死亡）\",\"）\"))","v":"）"}]
[]
[]
[]
[null,null,null,"⑦",null,null,null,null,null,null,null,null,null,null,null,null,null,null,null,null,null,null,null,null,null,null,null,null,null,null,null,null,null,null,null,"資格確認書等回収",null,null,null,null,null,null,null,null,null,null,null,null,null,"⑧",null,null,null,null,null,null,"70歳以上被用者不該当\n（退職日または死亡日を記入してください）"]
[null,null,null,null,null,null,null,null,{"$f":"IF(入力シート!$L$20=\"\",\"\",DBCS(入力シート!$L$20))","v":""}]
[null,null,null,null,null,null,null,null,null,null,null,null,null,null,null,null,null,null,null,null,null,null,null,null,null,null,null,null,null,null,null,null,null,null,null,null,null,null,null,"添　付",null,null,null,{"$f":"IF(入力シート!$N$20=\"\",\"\",DBCS(入力シート!$N$20))","v":""},null,null,"枚"]
[null,null,null,"備考"]
[null,null,null,null,null,null,null,null,null,null,null,null,null,null,null,null,null,null,null,null,null,null,null,null,null,null,null,null,null,null,null,null,null,null,null,null,null,null,null,null,null,null,null,null,null,null,null,null,null,"70歳\n不該当"]
[null,null,null,null,null,null,null,null,{"$f":"IF(入力シート!$M$20=\"\",\"\",DBCS(入力シート!$M$20))","v":""},null,null,null,null,null,null,null,null,null,null,null,null,null,null,null,null,null,null,null,null,null,null,null,null,null,null,null,null,null,null,null,null,null,null,null,null,null,null,null,null,null,null,null,null,"不該当年月日",null,null,null,null,null,null,null,null,"年",null,null,"月",null,"日"]
[null,null,null,null,null,null,null,null,null,null,null,null,null,null,null,null,null,null,null,null,null,null,null,null,null,null,null,null,null,null,null,null,null,null,null,null,null,null,null,"返不能",null,null,null,{"$f":"IF(入力シート!$O$20=\"\",\"\",DBCS(入力シート!$O$20))","v":""},null,null,"枚"]
[]
[]
[]
[]
[null,"被保険者\n３",null,"①",null,null,null,{"$f":"IF(入力シート!$B$21=\"\",\"\",DBCS(入力シート!$B$21))","v":""},null,null,null,null,null,null,null,null,null,null,null,null,null,null,null,null,null,null,null,"②",null,null,null,{"$f":"IFERROR(LEFT(入力シート!$C$21,FIND(\" \",入力シート!$C$21,1)-1),\"\")","v":""},null,null,null,null,null,null,null,null,null,null,{"$f":"IFERROR(RIGHT(入力シート!$C$21,LEN(入力シート!$C$21)-FIND(\" \",入力シート!$C$21,1)),\"\")","v":""},null,null,null,null,null,null,null,null,null,null,"③",null,null,null,{"$f":"IF(入力シート!$E$21=\"\",\"\",IF(TEXT(入力シート!$E$21,\"g\")=\"S\",\"5．昭和\",IF(TEXT(入力シート!$E$21,\"g\")=\"H\",\"7．平成\",IF(TEXT(入力シート!$E$21,\"g\")=\"R\",\"9．令和\"))))","v":""},null,null,null,null,"年",null,null,"月",null,"日"]
[]
[null,null,null,"被保険者\n整理番号",null,null,null,null,null,null,null,null,null,null,null,null,null,null,null,null,null,null,null,null,null,null,null,"氏名",null,null,null,null,null,null,null,null,null,null,null,null,null,null,null,null,null,null,null,null,null,null,null,null,null,"生年\n月日"]
[null,null,null,null,null,null,null,null,null,null,null,null,null,null,null,null,null,null,null,null,null,null,null,null,null,null,null,null,null,null,null,null,null,null,null,null,null,null,null,null,null,null,null,null,null,null,null,null,null,null,null,null,null,null,null,null,null,null,null,null,null,null,{"$f":"IF(入力シート!$E$21=\"\",\"\",DBCS(TEXT(入力シート!$E$21,\"eemmdd\")))","v":""}]
[null,null,null,null,null,null,null,null,null,null,null,null,null,null,null,null,null,null,null,null,null,null,null,null,null,null,null,null,null,null,null,{"$f":"IFERROR(LEFT(入力シート!$D$21,FIND(\"　\",入力シート!$D$21,1)-1),\"\")","v":""},null,null,null,null,null,null,null,null,null,null,{"$f":"IFERROR(RIGHT(入力シート!$D$21,LEN(入力シート!$D$21)-FIND(\"　\",入力シート!$D$21,1)),\"\")","v":""}]
[]
[]
[]
[]
[]
[null,null,null,"④",null,null,null,{"$f":"IFERROR(IF(入力シート!$F$21=\"\",DBCS(LEFT(RIGHT(入力シート!$G$21,18-COLUMN()))),DBCS(LEFT(RIGHT(入力シート!$F$21,20-COLUMN())))),\"\")","v":""},null,{"$f":"IFERROR(IF(入力シート!$F$21=\"\",DBCS(LEFT(RIGHT(入力シート!$G$21,19-COLUMN()))),DBCS(LEFT(RIGHT(入力シート!$F$21,21-COLUMN())))),\"\")","v":""},null,{"$f":"IFERROR(IF(入力シート!$F$21=\"\",DBCS(LEFT(RIGHT(入力シート!$G$21,20-COLUMN()))),DBCS(LEFT(RIGHT(入力シート!$F$21,22-COLUMN())))),\"\")","v":""},null,{"$f":"IFERROR(IF(入力シート!$F$21=\"\",DBCS(LEFT(RIGHT(入力シート!$G$21,21-COLUMN()))),DBCS(LEFT(RIGHT(入力シート!$F$21,23-COLUMN())))),\"\")","v":""},null,{"$f":"IFERROR(IF(入力シート!$F$21=\"\",DBCS(LEFT(RIGHT(入力シート!$G$21,22-COLUMN()))),DBCS(LEFT(RIGHT(入力シート!$F$21,24-COLUMN())))),\"\")","v":""},null,{"$f":"IFERROR(IF(入力シート!$F$21=\"\",DBCS(LEFT(RIGHT(入力シート!$G$21,23-COLUMN()))),DBCS(LEFT(RIGHT(入力シート!$F$21,25-COLUMN())))),\"\")","v":""},null,{"$f":"IFERROR(IF(入力シート!$F$21=\"\",DBCS(LEFT(RIGHT(入力シート!$G$21,24-COLUMN()))),DBCS(LEFT(RIGHT(入力シート!$F$21,26-COLUMN())))),\"\")","v":""},null,{"$f":"IFERROR(IF(入力シート!$F$21=\"\",DBCS(LEFT(RIGHT(入力シート!$G$21,25-COLUMN()))),DBCS(LEFT(RIGHT(入力シート!$F$21,27-COLUMN())))),\"\")","v":""},null,{"$f":"IFERROR(IF(入力シート!$F$21=\"\",DBCS(LEFT(RIGHT(入力シート!$G$21,26-COLUMN()))),DBCS(LEFT(RIGHT(入力シート!$F$21,28-COLUMN())))),\"\")","v":""},null,{"$f":"IFERROR(IF(入力シート!$F$21=\"\",DBCS(LEFT(RIGHT(入力シート!$G$21,27-COLUMN()))),DBCS(LEFT(RIGHT(入力シート!$F$21,29-COLUMN())))),\"\")","v":""},null,{"$f":"IFERROR(IF(入力シート!$F$21=\"\",\"\",DBCS(LEFT(RIGHT(入力シート!$F$21,30-COLUMN())))),\"\")","v":""},null,{"$f":"IFERROR(IF(入力シート!$F$21=\"\",\"\",DBCS(LEFT(RIGHT(入力シート!$F$21,31-COLUMN())))),\"\")","v":""},null,"⑤",null,null,null,{"$f":"IF(入力シート!$H$21=\"\",\"\",IF(TEXT(入力シート!$H$21,\"g\")=\"S\",\"5．昭和\",IF(TEXT(入力シート!$H$21,\"g\")=\"H\",\"7．平成\",IF(TEXT(入力シート!$H$21,\"g\")=\"R\",\"9．令和\"))))","v":""},null,null,null,null,null,"年",null,null,"月",null,"日",null,null,"⑥"]
[null,null,null,null,null,null,null,null,null,null,null,null,null,null,null,null,null,null,null,null,null,null,null,null,null,null,null,null,null,null,null,null,null,null,null,null,null,null,null,null,null,null,null,null,null,null,null,null,null,null,null,null,null,null,{"$f":"IF(入力シート!$I$21=\"\",\"\",DBCS(入力シート!$I$21))","v":""}]
[null,null,null,"個人番号\n（基礎年\n金番号）",null,null,null,null,null,null,null,null,null,null,null,null,null,null,null,null,null,null,null,null,null,null,null,null,null,null,null,"喪　失\n年月日",null,null,null,null,null,null,null,null,null,{"$f":"IF(入力シート!$H$21=\"\",\"\",DBCS(TEXT(入力シート!$H$21,\"eemmdd\")))","v":""},null,null,null,null,null,null,null,"喪失\n(不該当)\n原因"]
[]
[]
[null,null,null,null,null,null,null,null,null,null,null,null,null,null,null,null,null,null,null,null,null,null,null,null,null,null,null,null,null,null,null,null,null,null,null,null,null,null,null,null,null,null,null,null,null,null,null,null,null,null,null,null,null,null,"（",null,{"$f":"IF(入力シート!$I$21=\"4.退職等\",入力シート!$J$21,IF(入力シート!$I$21=\"5.死亡\",入力シート!$J$21,\"\"))","v":""},null,null,null,null,null,null,null,null,{"$f":"IF(入力シート!$I$21=\"4.退職等\",\"退職等）\",IF(入力シート!$I$21=\"5.死亡\",\"死亡）\",\"）\"))","v":"）"}]
[]
[]
[]
[null,null,null,"⑦",null,null,null,null,null,null,null,null,null,null,null,null,null,null,null,null,null,null,null,null,null,null,null,null,null,null,null,null,null,null,null,"資格確認書等回収",null,null,null,null,null,null,null,null,null,null,null,null,null,"⑧",null,null,null,null,null,null,"70歳以上被用者不該当\n（退職日または死亡日を記入してください）"]
[null,null,null,null,null,null,null,null,{"$f":"IF(入力シート!$L$21=\"\",\"\",DBCS(入力シート!$L$21))","v":""}]
[null,null,null,null,null,null,null,null,null,null,null,null,null,null,null,null,null,null,null,null,null,null,null,null,null,null,null,null,null,null,null,null,null,null,null,null,null,null,null,"添　付",null,null,null,{"$f":"IF(入力シート!$N$21=\"\",\"\",DBCS(入力シート!$N$21))","v":""},null,null,"枚"]
[null,null,null,"備考"]
[null,null,null,null,null,null,null,null,null,null,null,null,null,null,null,null,null,null,null,null,null,null,null,null,null,null,null,null,null,null,null,null,null,null,null,null,null,null,null,null,null,null,null,null,null,null,null,null,null,"70歳\n不該当"]
[null,null,null,null,null,null,null,null,{"$f":"IF(入力シート!$M$21=\"\",\"\",DBCS(入力シート!$M$21))","v":""},null,null,null,null,null,null,null,null,null,null,null,null,null,null,null,null,null,null,null,null,null,null,null,null,null,null,null,null,null,null,null,null,null,null,null,null,null,null,null,null,null,null,null,null,"不該当年月日",null,null,null,null,null,null,null,null,"年",null,null,"月",null,"日"]
[null,null,null,null,null,null,null,null,null,null,null,null,null,null,null,null,null,null,null,null,null,null,null,null,null,null,null,null,null,null,null,null,null,null,null,null,null,null,null,"返不能",null,null,null,{"$f":"IF(入力シート!$O$21=\"\",\"\",DBCS(入力シート!$O$21))","v":""},null,null,"枚"]
[]
[]
[]
[]
[null,"被保険者\n４",null,"①",null,null,null,{"$f":"IF(入力シート!$B$22=\"\",\"\",DBCS(入力シート!$B$22))","v":""},null,null,null,null,null,null,null,null,null,null,null,null,null,null,null,null,null,null,null,"②",null,null,null,{"$f":"IFERROR(LEFT(入力シート!$C$22,FIND(\" \",入力シート!$C$22,1)-1),\"\")","v":""},null,null,null,null,null,null,null,null,null,null,{"$f":"IFERROR(RIGHT(入力シート!$C$22,LEN(入力シート!$C$22)-FIND(\" \",入力シート!$C$22,1)),\"\")","v":""},null,null,null,null,null,null,null,null,null,null,"③",null,null,null,{"$f":"IF(入力シート!$E$22=\"\",\"\",IF(TEXT(入力シート!$E$22,\"g\")=\"S\",\"5．昭和\",IF(TEXT(入力シート!$E$22,\"g\")=\"H\",\"7．平成\",IF(TEXT(入力シート!$E$22,\"g\")=\"R\",\"9．令和\"))))","v":""},null,null,null,null,"年",null,null,"月",null,"日"]
[]
[null,null,null,"被保険者\n整理番号",null,null,null,null,null,null,null,null,null,null,null,null,null,null,null,null,null,null,null,null,null,null,null,"氏名",null,null,null,null,null,null,null,null,null,null,null,null,null,null,null,null,null,null,null,null,null,null,null,null,null,"生年\n月日"]
[null,null,null,null,null,null,null,null,null,null,null,null,null,null,null,null,null,null,null,null,null,null,null,null,null,null,null,null,null,null,null,null,null,null,null,null,null,null,null,null,null,null,null,null,null,null,null,null,null,null,null,null,null,null,null,null,null,null,null,null,null,null,{"$f":"IF(入力シート!$E$22=\"\",\"\",DBCS(TEXT(入力シート!$E$22,\"eemmdd\")))","v":""}]
[null,null,null,null,null,null,null,null,null,null,null,null,null,null,null,null,null,null,null,null,null,null,null,null,null,null,null,null,null,null,null,{"$f":"IFERROR(LEFT(入力シート!$D$22,FIND(\"　\",入力シート!$D$22,1)-1),\"\")","v":""},null,null,null,null,null,null,null,null,null,null,{"$f":"IFERROR(RIGHT(入力シート!$D$22,LEN(入力シート!$D$22)-FIND(\"　\",入力シート!$D$22,1)),\"\")","v":""}]
[]
[]
[]
[]
[]
[null,null,null,"④",null,null,null,{"$f":"IFERROR(IF(入力シート!$F$22=\"\",DBCS(LEFT(RIGHT(入力シート!$G$22,18-COLUMN()))),DBCS(LEFT(RIGHT(入力シート!$F$22,20-COLUMN())))),\"\")","v":""},null,{"$f":"IFERROR(IF(入力シート!$F$22=\"\",DBCS(LEFT(RIGHT(入力シート!$G$22,19-COLUMN()))),DBCS(LEFT(RIGHT(入力シート!$F$22,21-COLUMN())))),\"\")","v":""},null,{"$f":"IFERROR(IF(入力シート!$F$22=\"\",DBCS(LEFT(RIGHT(入力シート!$G$22,20-COLUMN()))),DBCS(LEFT(RIGHT(入力シート!$F$22,22-COLUMN())))),\"\")","v":""},null,{"$f":"IFERROR(IF(入力シート!$F$22=\"\",DBCS(LEFT(RIGHT(入力シート!$G$22,21-COLUMN()))),DBCS(LEFT(RIGHT(入力シート!$F$22,23-COLUMN())))),\"\")","v":""},null,{"$f":"IFERROR(IF(入力シート!$F$22=\"\",DBCS(LEFT(RIGHT(入力シート!$G$22,22-COLUMN()))),DBCS(LEFT(RIGHT(入力シート!$F$22,24-COLUMN())))),\"\")","v":""},null,{"$f":"IFERROR(IF(入力シート!$F$22=\"\",DBCS(LEFT(RIGHT(入力シート!$G$22,23-COLUMN()))),DBCS(LEFT(RIGHT(入力シート!$F$22,25-COLUMN())))),\"\")","v":""},null,{"$f":"IFERROR(IF(入力シート!$F$22=\"\",DBCS(LEFT(RIGHT(入力シート!$G$22,24-COLUMN()))),DBCS(LEFT(RIGHT(入力シート!$F$22,26-COLUMN())))),\"\")","v":""},null,{"$f":"IFERROR(IF(入力シート!$F$22=\"\",DBCS(LEFT(RIGHT(入力シート!$G$22,25-COLUMN()))),DBCS(LEFT(RIGHT(入力シート!$F$22,27-COLUMN())))),\"\")","v":""},null,{"$f":"IFERROR(IF(入力シート!$F$22=\"\",DBCS(LEFT(RIGHT(入力シート!$G$22,26-COLUMN()))),DBCS(LEFT(RIGHT(入力シート!$F$22,28-COLUMN())))),\"\")","v":""},null,{"$f":"IFERROR(IF(入力シート!$F$22=\"\",DBCS(LEFT(RIGHT(入力シート!$G$22,27-COLUMN()))),DBCS(LEFT(RIGHT(入力シート!$F$22,29-COLUMN())))),\"\")","v":""},null,{"$f":"IFERROR(IF(入力シート!$F$22=\"\",\"\",DBCS(LEFT(RIGHT(入力シート!$F$22,30-COLUMN())))),\"\")","v":""},null,{"$f":"IFERROR(IF(入力シート!$F$22=\"\",\"\",DBCS(LEFT(RIGHT(入力シート!$F$22,31-COLUMN())))),\"\")","v":""},null,"⑤",null,null,null,{"$f":"IF(入力シート!$H$22=\"\",\"\",IF(TEXT(入力シート!$H$22,\"g\")=\"S\",\"5．昭和\",IF(TEXT(入力シート!$H$22,\"g\")=\"H\",\"7．平成\",IF(TEXT(入力シート!$H$22,\"g\")=\"R\",\"9．令和\"))))","v":""},null,null,null,null,null,"年",null,null,"月",null,"日",null,null,"⑥"]
[null,null,null,null,null,null,null,null,null,null,null,null,null,null,null,null,null,null,null,null,null,null,null,null,null,null,null,null,null,null,null,null,null,null,null,null,null,null,null,null,null,null,null,null,null,null,null,null,null,null,null,null,null,null,{"$f":"IF(入力シート!$I$22=\"\",\"\",DBCS(入力シート!$I$22))","v":""}]
[null,null,null,"個人番号\n（基礎年\n金番号）",null,null,null,null,null,null,null,null,null,null,null,null,null,null,null,null,null,null,null,null,null,null,null,null,null,null,null,"喪　失\n年月日",null,null,null,null,null,null,null,null,null,{"$f":"IF(入力シート!$H$22=\"\",\"\",DBCS(TEXT(入力シート!$H$22,\"eemmdd\")))","v":""},null,null,null,null,null,null,null,"喪失\n(不該当)\n原因"]
[]
[]
[null,null,null,null,null,null,null,null,null,null,null,null,null,null,null,null,null,null,null,null,null,null,null,null,null,null,null,null,null,null,null,null,null,null,null,null,null,null,null,null,null,null,null,null,null,null,null,null,null,null,null,null,null,null,"（",null,{"$f":"IF(入力シート!$I$22=\"4.退職等\",入力シート!$J$22,IF(入力シート!$I$22=\"5.死亡\",入力シート!$J$22,\"\"))","v":""},null,null,null,null,null,null,null,null,{"$f":"IF(入力シート!$I$22=\"4.退職等\",\"退職等）\",IF(入力シート!$I$22=\"5.死亡\",\"死亡）\",\"）\"))","v":"）"}]
[]
[]
[]
[null,null,null,"⑦",null,null,null,null,null,null,null,null,null,null,null,null,null,null,null,null,null,null,null,null,null,null,null,null,null,null,null,null,null,null,null,"資格確認書等回収",null,null,null,null,null,null,null,null,null,null,null,null,null,"⑧",null,null,null,null,null,null,"70歳以上被用者不該当\n（退職日または死亡日を記入してください）"]
[null,null,null,null,null,null,null,null,{"$f":"IF(入力シート!$L$22=\"\",\"\",DBCS(入力シート!$L$22))","v":""}]
[null,null,null,null,null,null,null,null,null,null,null,null,null,null,null,null,null,null,null,null,null,null,null,null,null,null,null,null,null,null,null,null,null,null,null,null,null,null,null,"添　付",null,null,null,{"$f":"IF(入力シート!$N$22=\"\",\"\",DBCS(入力シート!$N$22))","v":""},null,null,"枚"]
[null,null,null,"備考"]
[null,null,null,null,null,null,null,null,null,null,null,null,null,null,null,null,null,null,null,null,null,null,null,null,null,null,null,null,null,null,null,null,null,null,null,null,null,null,null,null,null,null,null,null,null,null,null,null,null,"70歳\n不該当"]
[null,null,null,null,null,null,null,null,{"$f":"IF(入力シート!$M$22=\"\",\"\",DBCS(入力シート!$M$22))","v":""},null,null,null,null,null,null,null,null,null,null,null,null,null,null,null,null,null,null,null,null,null,null,null,null,null,null,null,null,null,null,null,null,null,null,null,null,null,null,null,null,null,null,null,null,"不該当年月日",null,null,null,null,null,null,null,null,"年",null,null,"月",null,"日"]
[null,null,null,null,null,null,null,null,null,null,null,null,null,null,null,null,null,null,null,null,null,null,null,null,null,null,null,null,null,null,null,null,null,null,null,null,null,null,null,"返不能",null,null,null,{"$f":"IF(入力シート!$O$22=\"\",\"\",DBCS(入力シート!$O$22))","v":""},null,null,"枚"]
[]
[]
[]
[]
[]
[]
[]
[]
[]
[]
[]
[]
[]
[]
[]
[]
[]
[]
[]
[]
[]
[]
[]
[]
[]
[]
[]
[]
[]
[]
[]
[]
[null,"被保険者\n１",null,"①",null,null,null,{"$f":"IF(入力シート!$B$23=\"\",\"\",DBCS(入力シート!$B$23))","v":""},null,null,null,null,null,null,null,null,null,null,null,null,null,null,null,null,null,null,null,"②",null,null,null,{"$f":"IFERROR(LEFT(入力シート!$C$23,FIND(\" \",入力シート!$C$23,1)-1),\"\")","v":""},null,null,null,null,null,null,null,null,null,null,{"$f":"IFERROR(RIGHT(入力シート!$C$23,LEN(入力シート!$C$23)-FIND(\" \",入力シート!$C$23,1)),\"\")","v":""},null,null,null,null,null,null,null,null,null,null,"③",null,null,null,{"$f":"IF(入力シート!$E$23=\"\",\"\",IF(TEXT(入力シート!$E$23,\"g\")=\"S\",\"5．昭和\",IF(TEXT(入力シート!$E$23,\"g\")=\"H\",\"7．平成\",IF(TEXT(入力シート!$E$23,\"g\")=\"R\",\"9．令和\"))))","v":""},null,null,null,null,"年",null,null,"月",null,"日"]
[]
[null,null,null,"被保険者\n整理番号",null,null,null,null,null,null,null,null,null,null,null,null,null,null,null,null,null,null,null,null,null,null,null,"氏名",null,null,null,null,null,null,null,null,null,null,null,null,null,null,null,null,null,null,null,null,null,null,null,null,null,"生年\n月日"]
[null,null,null,null,null,null,null,null,null,null,null,null,null,null,null,null,null,null,null,null,null,null,null,null,null,null,null,null,null,null,null,null,null,null,null,null,null,null,null,null,null,null,null,null,null,null,null,null,null,null,null,null,null,null,null,null,null,null,null,null,null,null,{"$f":"IF(入力シート!$E$23=\"\",\"\",DBCS(TEXT(入力シート!$E$23,\"eemmdd\")))","v":""}]
[null,null,null,null,null,null,null,null,null,null,null,null,null,null,null,null,null,null,null,null,null,null,null,null,null,null,null,null,null,null,null,{"$f":"IFERROR(LEFT(入力シート!$D$23,FIND(\"　\",入力シート!$D$23,1)-1),\"\")","v":""},null,null,null,null,null,null,null,null,null,null,{"$f":"IFERROR(RIGHT(入力シート!$D$23,LEN(入力シート!$D$23)-FIND(\"　\",入力シート!$D$23,1)),\"\")","v":""}]
[]
[]
[]
[]
[]
[null,null,null,"④",null,null,null,{"$f":"IFERROR(IF(入力シート!$F$23=\"\",DBCS(LEFT(RIGHT(入力シート!$G$23,18-COLUMN()))),DBCS(LEFT(RIGHT(入力シート!$F$23,20-COLUMN())))),\"\")","v":""},null,{"$f":"IFERROR(IF(入力シート!$F$23=\"\",DBCS(LEFT(RIGHT(入力シート!$G$23,19-COLUMN()))),DBCS(LEFT(RIGHT(入力シート!$F$23,21-COLUMN())))),\"\")","v":""},null,{"$f":"IFERROR(IF(入力シート!$F$23=\"\",DBCS(LEFT(RIGHT(入力シート!$G$23,20-COLUMN()))),DBCS(LEFT(RIGHT(入力シート!$F$23,22-COLUMN())))),\"\")","v":""},null,{"$f":"IFERROR(IF(入力シート!$F$23=\"\",DBCS(LEFT(RIGHT(入力シート!$G$23,21-COLUMN()))),DBCS(LEFT(RIGHT(入力シート!$F$23,23-COLUMN())))),\"\")","v":""},null,{"$f":"IFERROR(IF(入力シート!$F$23=\"\",DBCS(LEFT(RIGHT(入力シート!$G$23,22-COLUMN()))),DBCS(LEFT(RIGHT(入力シート!$F$23,24-COLUMN())))),\"\")","v":""},null,{"$f":"IFERROR(IF(入力シート!$F$23=\"\",DBCS(LEFT(RIGHT(入力シート!$G$23,23-COLUMN()))),DBCS(LEFT(RIGHT(入力シート!$F$23,25-COLUMN())))),\"\")","v":""},null,{"$f":"IFERROR(IF(入力シート!$F$23=\"\",DBCS(LEFT(RIGHT(入力シート!$G$23,24-COLUMN()))),DBCS(LEFT(RIGHT(入力シート!$F$23,26-COLUMN())))),\"\")","v":""},null,{"$f":"IFERROR(IF(入力シート!$F$23=\"\",DBCS(LEFT(RIGHT(入力シート!$G$23,25-COLUMN()))),DBCS(LEFT(RIGHT(入力シート!$F$23,27-COLUMN())))),\"\")","v":""},null,{"$f":"IFERROR(IF(入力シート!$F$23=\"\",DBCS(LEFT(RIGHT(入力シート!$G$23,26-COLUMN()))),DBCS(LEFT(RIGHT(入力シート!$F$23,28-COLUMN())))),\"\")","v":""},null,{"$f":"IFERROR(IF(入力シート!$F$23=\"\",DBCS(LEFT(RIGHT(入力シート!$G$23,27-COLUMN()))),DBCS(LEFT(RIGHT(入力シート!$F$23,29-COLUMN())))),\"\")","v":""},null,{"$f":"IFERROR(IF(入力シート!$F$23=\"\",\"\",DBCS(LEFT(RIGHT(入力シート!$F$23,30-COLUMN())))),\"\")","v":""},null,{"$f":"IFERROR(IF(入力シート!$F$23=\"\",\"\",DBCS(LEFT(RIGHT(入力シート!$F$23,31-COLUMN())))),\"\")","v":""},null,"⑤",null,null,null,{"$f":"IF(入力シート!$H$23=\"\",\"\",IF(TEXT(入力シート!$H$23,\"g\")=\"S\",\"5．昭和\",IF(TEXT(入力シート!$H$23,\"g\")=\"H\",\"7．平成\",IF(TEXT(入力シート!$H$23,\"g\")=\"R\",\"9．令和\"))))","v":""},null,null,null,null,null,"年",null,null,"月",null,"日",null,null,"⑥"]
[null,null,null,null,null,null,null,null,null,null,null,null,null,null,null,null,null,null,null,null,null,null,null,null,null,null,null,null,null,null,null,null,null,null,null,null,null,null,null,null,null,null,null,null,null,null,null,null,null,null,null,null,null,null,{"$f":"IF(入力シート!$I$23=\"\",\"\",DBCS(入力シート!$I$23))","v":""}]
[null,null,null,"個人番号\n（基礎年\n金番号）",null,null,null,null,null,null,null,null,null,null,null,null,null,null,null,null,null,null,null,null,null,null,null,null,null,null,null,"喪　失\n年月日",null,null,null,null,null,null,null,null,null,{"$f":"IF(入力シート!$H$23=\"\",\"\",DBCS(TEXT(入力シート!$H$23,\"eemmdd\")))","v":""},null,null,null,null,null,null,null,"喪失\n(不該当)\n原因"]
[]
[]
[null,null,null,null,null,null,null,null,null,null,null,null,null,null,null,null,null,null,null,null,null,null,null,null,null,null,null,null,null,null,null,null,null,null,null,null,null,null,null,null,null,null,null,null,null,null,null,null,null,null,null,null,null,null,"（",null,{"$f":"IF(入力シート!$I$23=\"4.退職等\",入力シート!$J$23,IF(入力シート!$I$23=\"5.死亡\",入力シート!$J$23,\"\"))","v":""},null,null,null,null,null,null,null,null,{"$f":"IF(入力シート!$I$23=\"4.退職等\",\"退職等）\",IF(入力シート!$I$23=\"5.死亡\",\"死亡）\",\"）\"))","v":"）"}]
[]
[]
[]
[null,null,null,"⑦",null,null,null,null,null,null,null,null,null,null,null,null,null,null,null,null,null,null,null,null,null,null,null,null,null,null,null,null,null,null,null,"資格確認書等回収",null,null,null,null,null,null,null,null,null,null,null,null,null,"⑧",null,null,null,null,null,null,"70歳以上被用者不該当\n（退職日または死亡日を記入してください）"]
[null,null,null,null,null,null,null,null,{"$f":"IF(入力シート!$L$23=\"\",\"\",DBCS(入力シート!$L$23))","v":""}]
[null,null,null,null,null,null,null,null,null,null,null,null,null,null,null,null,null,null,null,null,null,null,null,null,null,null,null,null,null,null,null,null,null,null,null,null,null,null,null,"添　付",null,null,null,{"$f":"IF(入力シート!$N$23=\"\",\"\",DBCS(入力シート!$N$23))","v":""},null,null,"枚"]
[null,null,null,"備考"]
[null,null,null,null,null,null,null,null,null,null,null,null,null,null,null,null,null,null,null,null,null,null,null,null,null,null,null,null,null,null,null,null,null,null,null,null,null,null,null,null,null,null,null,null,null,null,null,null,null,"70歳\n不該当"]
[null,null,null,null,null,null,null,null,{"$f":"IF(入力シート!$M$23=\"\",\"\",DBCS(入力シート!$M$23))","v":""},null,null,null,null,null,null,null,null,null,null,null,null,null,null,null,null,null,null,null,null,null,null,null,null,null,null,null,null,null,null,null,null,null,null,null,null,null,null,null,null,null,null,null,null,"不該当年月日",null,null,null,null,null,null,null,null,"年",null,null,"月",null,"日"]
[null,null,null,null,null,null,null,null,null,null,null,null,null,null,null,null,null,null,null,null,null,null,null,null,null,null,null,null,null,null,null,null,null,null,null,null,null,null,null,"返不能",null,null,null,{"$f":"IF(入力シート!$O$23=\"\",\"\",DBCS(入力シート!$O$23))","v":""},null,null,"枚"]
[]
[]
[]
[]
[null,"被保険者\n２",null,"①",null,null,null,{"$f":"IF(入力シート!$B$24=\"\",\"\",DBCS(入力シート!$B$24))","v":""},null,null,null,null,null,null,null,null,null,null,null,null,null,null,null,null,null,null,null,"②",null,null,null,{"$f":"IFERROR(LEFT(入力シート!$C$24,FIND(\" \",入力シート!$C$24,1)-1),\"\")","v":""},null,null,null,null,null,null,null,null,null,null,{"$f":"IFERROR(RIGHT(入力シート!$C$24,LEN(入力シート!$C$24)-FIND(\" \",入力シート!$C$24,1)),\"\")","v":""},null,null,null,null,null,null,null,null,null,null,"③",null,null,null,{"$f":"IF(入力シート!$E$24=\"\",\"\",IF(TEXT(入力シート!$E$24,\"g\")=\"S\",\"5．昭和\",IF(TEXT(入力シート!$E$24,\"g\")=\"H\",\"7．平成\",IF(TEXT(入力シート!$E$24,\"g\")=\"R\",\"9．令和\"))))","v":""},null,null,null,null,"年",null,null,"月",null,"日"]
[]
[null,null,null,"被保険者\n整理番号",null,null,null,null,null,null,null,null,null,null,null,null,null,null,null,null,null,null,null,null,null,null,null,"氏名",null,null,null,null,null,null,null,null,null,null,null,null,null,null,null,null,null,null,null,null,null,null,null,null,null,"生年\n月日"]
[null,null,null,null,null,null,null,null,null,null,null,null,null,null,null,null,null,null,null,null,null,null,null,null,null,null,null,null,null,null,null,null,null,null,null,null,null,null,null,null,null,null,null,null,null,null,null,null,null,null,null,null,null,null,null,null,null,null,null,null,null,null,{"$f":"IF(入力シート!$E$24=\"\",\"\",DBCS(TEXT(入力シート!$E$24,\"eemmdd\")))","v":""}]
[null,null,null,null,null,null,null,null,null,null,null,null,null,null,null,null,null,null,null,null,null,null,null,null,null,null,null,null,null,null,null,{"$f":"IFERROR(LEFT(入力シート!$D$24,FIND(\"　\",入力シート!$D$24,1)-1),\"\")","v":""},null,null,null,null,null,null,null,null,null,null,{"$f":"IFERROR(RIGHT(入力シート!$D$24,LEN(入力シート!$D$24)-FIND(\"　\",入力シート!$D$24,1)),\"\")","v":""}]
[]
[]
[]
[]
[]
[null,null,null,"④",null,null,null,{"$f":"IFERROR(IF(入力シート!$F$24=\"\",DBCS(LEFT(RIGHT(入力シート!$G$24,18-COLUMN()))),DBCS(LEFT(RIGHT(入力シート!$F$24,20-COLUMN())))),\"\")","v":""},null,{"$f":"IFERROR(IF(入力シート!$F$24=\"\",DBCS(LEFT(RIGHT(入力シート!$G$24,19-COLUMN()))),DBCS(LEFT(RIGHT(入力シート!$F$24,21-COLUMN())))),\"\")","v":""},null,{"$f":"IFERROR(IF(入力シート!$F$24=\"\",DBCS(LEFT(RIGHT(入力シート!$G$24,20-COLUMN()))),DBCS(LEFT(RIGHT(入力シート!$F$24,22-COLUMN())))),\"\")","v":""},null,{"$f":"IFERROR(IF(入力シート!$F$24=\"\",DBCS(LEFT(RIGHT(入力シート!$G$24,21-COLUMN()))),DBCS(LEFT(RIGHT(入力シート!$F$24,23-COLUMN())))),\"\")","v":""},null,{"$f":"IFERROR(IF(入力シート!$F$24=\"\",DBCS(LEFT(RIGHT(入力シート!$G$24,22-COLUMN()))),DBCS(LEFT(RIGHT(入力シート!$F$24,24-COLUMN())))),\"\")","v":""},null,{"$f":"IFERROR(IF(入力シート!$F$24=\"\",DBCS(LEFT(RIGHT(入力シート!$G$24,23-COLUMN()))),DBCS(LEFT(RIGHT(入力シート!$F$24,25-COLUMN())))),\"\")","v":""},null,{"$f":"IFERROR(IF(入力シート!$F$24=\"\",DBCS(LEFT(RIGHT(入力シート!$G$24,24-COLUMN()))),DBCS(LEFT(RIGHT(入力シート!$F$24,26-COLUMN())))),\"\")","v":""},null,{"$f":"IFERROR(IF(入力シート!$F$24=\"\",DBCS(LEFT(RIGHT(入力シート!$G$24,25-COLUMN()))),DBCS(LEFT(RIGHT(入力シート!$F$24,27-COLUMN())))),\"\")","v":""},null,{"$f":"IFERROR(IF(入力シート!$F$24=\"\",DBCS(LEFT(RIGHT(入力シート!$G$24,26-COLUMN()))),DBCS(LEFT(RIGHT(入力シート!$F$24,28-COLUMN())))),\"\")","v":""},null,{"$f":"IFERROR(IF(入力シート!$F$24=\"\",DBCS(LEFT(RIGHT(入力シート!$G$24,27-COLUMN()))),DBCS(LEFT(RIGHT(入力シート!$F$24,29-COLUMN())))),\"\")","v":""},null,{"$f":"IFERROR(IF(入力シート!$F$24=\"\",\"\",DBCS(LEFT(RIGHT(入力シート!$F$24,30-COLUMN())))),\"\")","v":""},null,{"$f":"IFERROR(IF(入力シート!$F$24=\"\",\"\",DBCS(LEFT(RIGHT(入力シート!$F$24,31-COLUMN())))),\"\")","v":""},null,"⑤",null,null,null,{"$f":"IF(入力シート!$H$24=\"\",\"\",IF(TEXT(入力シート!$H$24,\"g\")=\"S\",\"5．昭和\",IF(TEXT(入力シート!$H$24,\"g\")=\"H\",\"7．平成\",IF(TEXT(入力シート!$H$24,\"g\")=\"R\",\"9．令和\"))))","v":""},null,null,null,null,null,"年",null,null,"月",null,"日",null,null,"⑥"]
[null,null,null,null,null,null,null,null,null,null,null,null,null,null,null,null,null,null,null,null,null,null,null,null,null,null,null,null,null,null,null,null,null,null,null,null,null,null,null,null,null,null,null,null,null,null,null,null,null,null,null,null,null,null,{"$f":"IF(入力シート!$I$24=\"\",\"\",DBCS(入力シート!$I$24))","v":""}]
[null,null,null,"個人番号\n（基礎年\n金番号）",null,null,null,null,null,null,null,null,null,null,null,null,null,null,null,null,null,null,null,null,null,null,null,null,null,null,null,"喪　失\n年月日",null,null,null,null,null,null,null,null,null,{"$f":"IF(入力シート!$H$24=\"\",\"\",DBCS(TEXT(入力シート!$H$24,\"eemmdd\")))","v":""},null,null,null,null,null,null,null,"喪失\n(不該当)\n原因"]
[]
[]
[null,null,null,null,null,null,null,null,null,null,null,null,null,null,null,null,null,null,null,null,null,null,null,null,null,null,null,null,null,null,null,null,null,null,null,null,null,null,null,null,null,null,null,null,null,null,null,null,null,null,null,null,null,null,"（",null,{"$f":"IF(入力シート!$I$24=\"4.退職等\",入力シート!$J$24,IF(入力シート!$I$24=\"5.死亡\",入力シート!$J$24,\"\"))","v":""},null,null,null,null,null,null,null,null,{"$f":"IF(入力シート!$I$24=\"4.退職等\",\"退職等）\",IF(入力シート!$I$24=\"5.死亡\",\"死亡）\",\"）\"))","v":"）"}]
[]
[]
[]
[null,null,null,"⑦",null,null,null,null,null,null,null,null,null,null,null,null,null,null,null,null,null,null,null,null,null,null,null,null,null,null,null,null,null,null,null,"資格確認書等回収",null,null,null,null,null,null,null,null,null,null,null,null,null,"⑧",null,null,null,null,null,null,"70歳以上被用者不該当\n（退職日または死亡日を記入してください）"]
[null,null,null,null,null,null,null,null,{"$f":"IF(入力シート!$L$24=\"\",\"\",DBCS(入力シート!$L$24))","v":""}]
[null,null,null,null,null,null,null,null,null,null,null,null,null,null,null,null,null,null,null,null,null,null,null,null,null,null,null,null,null,null,null,null,null,null,null,null,null,null,null,"添　付",null,null,null,{"$f":"IF(入力シート!$N$24=\"\",\"\",DBCS(入力シート!$N$24))","v":""},null,null,"枚"]
[null,null,null,"備考"]
[null,null,null,null,null,null,null,null,null,null,null,null,null,null,null,null,null,null,null,null,null,null,null,null,null,null,null,null,null,null,null,null,null,null,null,null,null,null,null,null,null,null,null,null,null,null,null,null,null,"70歳\n不該当"]
[null,null,null,null,null,null,null,null,{"$f":"IF(入力シート!$M$24=\"\",\"\",DBCS(入力シート!$M$24))","v":""},null,null,null,null,null,null,null,null,null,null,null,null,null,null,null,null,null,null,null,null,null,null,null,null,null,null,null,null,null,null,null,null,null,null,null,null,null,null,null,null,null,null,null,null,"不該当年月日",null,null,null,null,null,null,null,null,"年",null,null,"月",null,"日"]
[null,null,null,null,null,null,null,null,null,null,null,null,null,null,null,null,null,null,null,null,null,null,null,null,null,null,null,null,null,null,null,null,null,null,null,null,null,null,null,"返不能",null,null,null,{"$f":"IF(入力シート!$O$24=\"\",\"\",DBCS(入力シート!$O$24))","v":""},null,null,"枚"]
[]
[]
[]
[]
[null,"被保険者\n３",null,"①",null,null,null,{"$f":"IF(入力シート!$B$25=\"\",\"\",DBCS(入力シート!$B$25))","v":""},null,null,null,null,null,null,null,null,null,null,null,null,null,null,null,null,null,null,null,"②",null,null,null,{"$f":"IFERROR(LEFT(入力シート!$C$25,FIND(\" \",入力シート!$C$25,1)-1),\"\")","v":""},null,null,null,null,null,null,null,null,null,null,{"$f":"IFERROR(RIGHT(入力シート!$C$25,LEN(入力シート!$C$25)-FIND(\" \",入力シート!$C$25,1)),\"\")","v":""},null,null,null,null,null,null,null,null,null,null,"③",null,null,null,{"$f":"IF(入力シート!$E$25=\"\",\"\",IF(TEXT(入力シート!$E$25,\"g\")=\"S\",\"5．昭和\",IF(TEXT(入力シート!$E$25,\"g\")=\"H\",\"7．平成\",IF(TEXT(入力シート!$E$25,\"g\")=\"R\",\"9．令和\"))))","v":""},null,null,null,null,"年",null,null,"月",null,"日"]
[]
[null,null,null,"被保険者\n整理番号",null,null,null,null,null,null,null,null,null,null,null,null,null,null,null,null,null,null,null,null,null,null,null,"氏名",null,null,null,null,null,null,null,null,null,null,null,null,null,null,null,null,null,null,null,null,null,null,null,null,null,"生年\n月日"]
[null,null,null,null,null,null,null,null,null,null,null,null,null,null,null,null,null,null,null,null,null,null,null,null,null,null,null,null,null,null,null,null,null,null,null,null,null,null,null,null,null,null,null,null,null,null,null,null,null,null,null,null,null,null,null,null,null,null,null,null,null,null,{"$f":"IF(入力シート!$E$25=\"\",\"\",DBCS(TEXT(入力シート!$E$25,\"eemmdd\")))","v":""}]
[null,null,null,null,null,null,null,null,null,null,null,null,null,null,null,null,null,null,null,null,null,null,null,null,null,null,null,null,null,null,null,{"$f":"IFERROR(LEFT(入力シート!$D$25,FIND(\"　\",入力シート!$D$25,1)-1),\"\")","v":""},null,null,null,null,null,null,null,null,null,null,{"$f":"IFERROR(RIGHT(入力シート!$D$25,LEN(入力シート!$D$25)-FIND(\"　\",入力シート!$D$25,1)),\"\")","v":""}]
[]
[]
[]
[]
[]
[null,null,null,"④",null,null,null,{"$f":"IFERROR(IF(入力シート!$F$25=\"\",DBCS(LEFT(RIGHT(入力シート!$G$25,18-COLUMN()))),DBCS(LEFT(RIGHT(入力シート!$F$25,20-COLUMN())))),\"\")","v":""},null,{"$f":"IFERROR(IF(入力シート!$F$25=\"\",DBCS(LEFT(RIGHT(入力シート!$G$25,19-COLUMN()))),DBCS(LEFT(RIGHT(入力シート!$F$25,21-COLUMN())))),\"\")","v":""},null,{"$f":"IFERROR(IF(入力シート!$F$25=\"\",DBCS(LEFT(RIGHT(入力シート!$G$25,20-COLUMN()))),DBCS(LEFT(RIGHT(入力シート!$F$25,22-COLUMN())))),\"\")","v":""},null,{"$f":"IFERROR(IF(入力シート!$F$25=\"\",DBCS(LEFT(RIGHT(入力シート!$G$25,21-COLUMN()))),DBCS(LEFT(RIGHT(入力シート!$F$25,23-COLUMN())))),\"\")","v":""},null,{"$f":"IFERROR(IF(入力シート!$F$25=\"\",DBCS(LEFT(RIGHT(入力シート!$G$25,22-COLUMN()))),DBCS(LEFT(RIGHT(入力シート!$F$25,24-COLUMN())))),\"\")","v":""},null,{"$f":"IFERROR(IF(入力シート!$F$25=\"\",DBCS(LEFT(RIGHT(入力シート!$G$25,23-COLUMN()))),DBCS(LEFT(RIGHT(入力シート!$F$25,25-COLUMN())))),\"\")","v":""},null,{"$f":"IFERROR(IF(入力シート!$F$25=\"\",DBCS(LEFT(RIGHT(入力シート!$G$25,24-COLUMN()))),DBCS(LEFT(RIGHT(入力シート!$F$25,26-COLUMN())))),\"\")","v":""},null,{"$f":"IFERROR(IF(入力シート!$F$25=\"\",DBCS(LEFT(RIGHT(入力シート!$G$25,25-COLUMN()))),DBCS(LEFT(RIGHT(入力シート!$F$25,27-COLUMN())))),\"\")","v":""},null,{"$f":"IFERROR(IF(入力シート!$F$25=\"\",DBCS(LEFT(RIGHT(入力シート!$G$25,26-COLUMN()))),DBCS(LEFT(RIGHT(入力シート!$F$25,28-COLUMN())))),\"\")","v":""},null,{"$f":"IFERROR(IF(入力シート!$F$25=\"\",DBCS(LEFT(RIGHT(入力シート!$G$25,27-COLUMN()))),DBCS(LEFT(RIGHT(入力シート!$F$25,29-COLUMN())))),\"\")","v":""},null,{"$f":"IFERROR(IF(入力シート!$F$25=\"\",\"\",DBCS(LEFT(RIGHT(入力シート!$F$25,30-COLUMN())))),\"\")","v":""},null,{"$f":"IFERROR(IF(入力シート!$F$25=\"\",\"\",DBCS(LEFT(RIGHT(入力シート!$F$25,31-COLUMN())))),\"\")","v":""},null,"⑤",null,null,null,{"$f":"IF(入力シート!$H$25=\"\",\"\",IF(TEXT(入力シート!$H$25,\"g\")=\"S\",\"5．昭和\",IF(TEXT(入力シート!$H$25,\"g\")=\"H\",\"7．平成\",IF(TEXT(入力シート!$H$25,\"g\")=\"R\",\"9．令和\"))))","v":""},null,null,null,null,null,"年",null,null,"月",null,"日",null,null,"⑥"]
[null,null,null,null,null,null,null,null,null,null,null,null,null,null,null,null,null,null,null,null,null,null,null,null,null,null,null,null,null,null,null,null,null,null,null,null,null,null,null,null,null,null,null,null,null,null,null,null,null,null,null,null,null,null,{"$f":"IF(入力シート!$I$25=\"\",\"\",DBCS(入力シート!$I$25))","v":""}]
[null,null,null,"個人番号\n（基礎年\n金番号）",null,null,null,null,null,null,null,null,null,null,null,null,null,null,null,null,null,null,null,null,null,null,null,null,null,null,null,"喪　失\n年月日",null,null,null,null,null,null,null,null,null,{"$f":"IF(入力シート!$H$25=\"\",\"\",DBCS(TEXT(入力シート!$H$25,\"eemmdd\")))","v":""},null,null,null,null,null,null,null,"喪失\n(不該当)\n原因"]
[]
[]
[null,null,null,null,null,null,null,null,null,null,null,null,null,null,null,null,null,null,null,null,null,null,null,null,null,null,null,null,null,null,null,null,null,null,null,null,null,null,null,null,null,null,null,null,null,null,null,null,null,null,null,null,null,null,"（",null,{"$f":"IF(入力シート!$I$25=\"4.退職等\",入力シート!$J$25,IF(入力シート!$I$25=\"5.死亡\",入力シート!$J$25,\"\"))","v":""},null,null,null,null,null,null,null,null,{"$f":"IF(入力シート!$I$25=\"4.退職等\",\"退職等）\",IF(入力シート!$I$25=\"5.死亡\",\"死亡）\",\"）\"))","v":"）"}]
[]
[]
[]
[null,null,null,"⑦",null,null,null,null,null,null,null,null,null,null,null,null,null,null,null,null,null,null,null,null,null,null,null,null,null,null,null,null,null,null,null,"資格確認書等回収",null,null,null,null,null,null,null,null,null,null,null,null,null,"⑧",null,null,null,null,null,null,"70歳以上被用者不該当\n（退職日または死亡日を記入してください）"]
[null,null,null,null,null,null,null,null,{"$f":"IF(入力シート!$L$25=\"\",\"\",DBCS(入力シート!$L$25))","v":""}]
[null,null,null,null,null,null,null,null,null,null,null,null,null,null,null,null,null,null,null,null,null,null,null,null,null,null,null,null,null,null,null,null,null,null,null,null,null,null,null,"添　付",null,null,null,{"$f":"IF(入力シート!$N$25=\"\",\"\",DBCS(入力シート!$N$25))","v":""},null,null,"枚"]
[null,null,null,"備考"]
[null,null,null,null,null,null,null,null,null,null,null,null,null,null,null,null,null,null,null,null,null,null,null,null,null,null,null,null,null,null,null,null,null,null,null,null,null,null,null,null,null,null,null,null,null,null,null,null,null,"70歳\n不該当"]
[null,null,null,null,null,null,null,null,{"$f":"IF(入力シート!$M$25=\"\",\"\",DBCS(入力シート!$M$25))","v":""},null,null,null,null,null,null,null,null,null,null,null,null,null,null,null,null,null,null,null,null,null,null,null,null,null,null,null,null,null,null,null,null,null,null,null,null,null,null,null,null,null,null,null,null,"不該当年月日",null,null,null,null,null,null,null,null,"年",null,null,"月",null,"日"]
[null,null,null,null,null,null,null,null,null,null,null,null,null,null,null,null,null,null,null,null,null,null,null,null,null,null,null,null,null,null,null,null,null,null,null,null,null,null,null,"返不能",null,null,null,{"$f":"IF(入力シート!$O$25=\"\",\"\",DBCS(入力シート!$O$25))","v":""},null,null,"枚"]
[]
[]
[]
[]
[null,"被保険者\n４",null,"①",null,null,null,{"$f":"IF(入力シート!$B$26=\"\",\"\",DBCS(入力シート!$B$26))","v":""},null,null,null,null,null,null,null,null,null,null,null,null,null,null,null,null,null,null,null,"②",null,null,null,{"$f":"IFERROR(LEFT(入力シート!$C$26,FIND(\" \",入力シート!$C$26,1)-1),\"\")","v":""},null,null,null,null,null,null,null,null,null,null,{"$f":"IFERROR(RIGHT(入力シート!$C$26,LEN(入力シート!$C$26)-FIND(\" \",入力シート!$C$26,1)),\"\")","v":""},null,null,null,null,null,null,null,null,null,null,"③",null,null,null,{"$f":"IF(入力シート!$E$26=\"\",\"\",IF(TEXT(入力シート!$E$26,\"g\")=\"S\",\"5．昭和\",IF(TEXT(入力シート!$E$26,\"g\")=\"H\",\"7．平成\",IF(TEXT(入力シート!$E$26,\"g\")=\"R\",\"9．令和\"))))","v":""},null,null,null,null,"年",null,null,"月",null,"日"]
[]
[null,null,null,"被保険者\n整理番号",null,null,null,null,null,null,null,null,null,null,null,null,null,null,null,null,null,null,null,null,null,null,null,"氏名",null,null,null,null,null,null,null,null,null,null,null,null,null,null,null,null,null,null,null,null,null,null,null,null,null,"生年\n月日"]
[null,null,null,null,null,null,null,null,null,null,null,null,null,null,null,null,null,null,null,null,null,null,null,null,null,null,null,null,null,null,null,null,null,null,null,null,null,null,null,null,null,null,null,null,null,null,null,null,null,null,null,null,null,null,null,null,null,null,null,null,null,null,{"$f":"IF(入力シート!$E$26=\"\",\"\",DBCS(TEXT(入力シート!$E$26,\"eemmdd\")))","v":""}]
[null,null,null,null,null,null,null,null,null,null,null,null,null,null,null,null,null,null,null,null,null,null,null,null,null,null,null,null,null,null,null,{"$f":"IFERROR(LEFT(入力シート!$D$26,FIND(\"　\",入力シート!$D$26,1)-1),\"\")","v":""},null,null,null,null,null,null,null,null,null,null,{"$f":"IFERROR(RIGHT(入力シート!$D$26,LEN(入力シート!$D$26)-FIND(\"　\",入力シート!$D$26,1)),\"\")","v":""}]
[]
[]
[]
[]
[]
[null,null,null,"④",null,null,null,{"$f":"IFERROR(IF(入力シート!$F$26=\"\",DBCS(LEFT(RIGHT(入力シート!$G$26,18-COLUMN()))),DBCS(LEFT(RIGHT(入力シート!$F$26,20-COLUMN())))),\"\")","v":""},null,{"$f":"IFERROR(IF(入力シート!$F$26=\"\",DBCS(LEFT(RIGHT(入力シート!$G$26,19-COLUMN()))),DBCS(LEFT(RIGHT(入力シート!$F$26,21-COLUMN())))),\"\")","v":""},null,{"$f":"IFERROR(IF(入力シート!$F$26=\"\",DBCS(LEFT(RIGHT(入力シート!$G$26,20-COLUMN()))),DBCS(LEFT(RIGHT(入力シート!$F$26,22-COLUMN())))),\"\")","v":""},null,{"$f":"IFERROR(IF(入力シート!$F$26=\"\",DBCS(LEFT(RIGHT(入力シート!$G$26,21-COLUMN()))),DBCS(LEFT(RIGHT(入力シート!$F$26,23-COLUMN())))),\"\")","v":""},null,{"$f":"IFERROR(IF(入力シート!$F$26=\"\",DBCS(LEFT(RIGHT(入力シート!$G$26,22-COLUMN()))),DBCS(LEFT(RIGHT(入力シート!$F$26,24-COLUMN())))),\"\")","v":""},null,{"$f":"IFERROR(IF(入力シート!$F$26=\"\",DBCS(LEFT(RIGHT(入力シート!$G$26,23-COLUMN()))),DBCS(LEFT(RIGHT(入力シート!$F$26,25-COLUMN())))),\"\")","v":""},null,{"$f":"IFERROR(IF(入力シート!$F$26=\"\",DBCS(LEFT(RIGHT(入力シート!$G$26,24-COLUMN()))),DBCS(LEFT(RIGHT(入力シート!$F$26,26-COLUMN())))),\"\")","v":""},null,{"$f":"IFERROR(IF(入力シート!$F$26=\"\",DBCS(LEFT(RIGHT(入力シート!$G$26,25-COLUMN()))),DBCS(LEFT(RIGHT(入力シート!$F$26,27-COLUMN())))),\"\")","v":""},null,{"$f":"IFERROR(IF(入力シート!$F$26=\"\",DBCS(LEFT(RIGHT(入力シート!$G$26,26-COLUMN()))),DBCS(LEFT(RIGHT(入力シート!$F$26,28-COLUMN())))),\"\")","v":""},null,{"$f":"IFERROR(IF(入力シート!$F$26=\"\",DBCS(LEFT(RIGHT(入力シート!$G$26,27-COLUMN()))),DBCS(LEFT(RIGHT(入力シート!$F$26,29-COLUMN())))),\"\")","v":""},null,{"$f":"IFERROR(IF(入力シート!$F$26=\"\",\"\",DBCS(LEFT(RIGHT(入力シート!$F$26,30-COLUMN())))),\"\")","v":""},null,{"$f":"IFERROR(IF(入力シート!$F$26=\"\",\"\",DBCS(LEFT(RIGHT(入力シート!$F$26,31-COLUMN())))),\"\")","v":""},null,"⑤",null,null,null,{"$f":"IF(入力シート!$H$26=\"\",\"\",IF(TEXT(入力シート!$H$26,\"g\")=\"S\",\"5．昭和\",IF(TEXT(入力シート!$H$26,\"g\")=\"H\",\"7．平成\",IF(TEXT(入力シート!$H$26,\"g\")=\"R\",\"9．令和\"))))","v":""},null,null,null,null,null,"年",null,null,"月",null,"日",null,null,"⑥"]
[null,null,null,null,null,null,null,null,null,null,null,null,null,null,null,null,null,null,null,null,null,null,null,null,null,null,null,null,null,null,null,null,null,null,null,null,null,null,null,null,null,null,null,null,null,null,null,null,null,null,null,null,null,null,{"$f":"IF(入力シート!$I$26=\"\",\"\",DBCS(入力シート!$I$26))","v":""}]
[null,null,null,"個人番号\n（基礎年\n金番号）",null,null,null,null,null,null,null,null,null,null,null,null,null,null,null,null,null,null,null,null,null,null,null,null,null,null,null,"喪　失\n年月日",null,null,null,null,null,null,null,null,null,{"$f":"IF(入力シート!$H$26=\"\",\"\",DBCS(TEXT(入力シート!$H$26,\"eemmdd\")))","v":""},null,null,null,null,null,null,null,"喪失\n(不該当)\n原因"]
[]
[]
[null,null,null,null,null,null,null,null,null,null,null,null,null,null,null,null,null,null,null,null,null,null,null,null,null,null,null,null,null,null,null,null,null,null,null,null,null,null,null,null,null,null,null,null,null,null,null,null,null,null,null,null,null,null,"（",null,{"$f":"IF(入力シート!$I$26=\"4.退職等\",入力シート!$J$26,IF(入力シート!$I$26=\"5.死亡\",入力シート!$J$26,\"\"))","v":""},null,null,null,null,null,null,null,null,{"$f":"IF(入力シート!$I$26=\"4.退職等\",\"退職等）\",IF(入力シート!$I$26=\"5.死亡\",\"死亡）\",\"）\"))","v":"）"}]
[]
[]
[]
[null,null,null,"⑦",null,null,null,null,null,null,null,null,null,null,null,null,null,null,null,null,null,null,null,null,null,null,null,null,null,null,null,null,null,null,null,"資格確認書等回収",null,null,null,null,null,null,null,null,null,null,null,null,null,"⑧",null,null,null,null,null,null,"70歳以上被用者不該当\n（退職日または死亡日を記入してください）"]
[null,null,null,null,null,null,null,null,{"$f":"IF(入力シート!$L$26=\"\",\"\",DBCS(入力シート!$L$26))","v":""}]
[null,null,null,null,null,null,null,null,null,null,null,null,null,null,null,null,null,null,null,null,null,null,null,null,null,null,null,null,null,null,null,null,null,null,null,null,null,null,null,"添　付",null,null,null,{"$f":"IF(入力シート!$N$26=\"\",\"\",DBCS(入力シート!$N$26))","v":""},null,null,"枚"]
[null,null,null,"備考"]
[null,null,null,null,null,null,null,null,null,null,null,null,null,null,null,null,null,null,null,null,null,null,null,null,null,null,null,null,null,null,null,null,null,null,null,null,null,null,null,null,null,null,null,null,null,null,null,null,null,"70歳\n不該当"]
[null,null,null,null,null,null,null,null,{"$f":"IF(入力シート!$M$26=\"\",\"\",DBCS(入力シート!$M$26))","v":""},null,null,null,null,null,null,null,null,null,null,null,null,null,null,null,null,null,null,null,null,null,null,null,null,null,null,null,null,null,null,null,null,null,null,null,null,null,null,null,null,null,null,null,null,"不該当年月日",null,null,null,null,null,null,null,null,"年",null,null,"月",null,"日"]
[null,null,null,null,null,null,null,null,null,null,null,null,null,null,null,null,null,null,null,null,null,null,null,null,null,null,null,null,null,null,null,null,null,null,null,null,null,null,null,"返不能",null,null,null,{"$f":"IF(入力シート!$O$26=\"\",\"\",DBCS(入力シート!$O$26))","v":""},null,null,"枚"]
[]
[]
[]
[]
[]
[]
[]
[]
[]
[]
[]
[]
[]
[]
[]
[]
[]
[]
[]
[]
[]
[]
[]
[]
[]
[]
[]
[]
[]
[]
[]
[]
[null,"被保険者\n１",null,"①",null,null,null,{"$f":"IF(入力シート!$B$27=\"\",\"\",DBCS(入力シート!$B$27))","v":""},null,null,null,null,null,null,null,null,null,null,null,null,null,null,null,null,null,null,null,"②",null,null,null,{"$f":"IFERROR(LEFT(入力シート!$C$27,FIND(\" \",入力シート!$C$27,1)-1),\"\")","v":""},null,null,null,null,null,null,null,null,null,null,{"$f":"IFERROR(RIGHT(入力シート!$C$27,LEN(入力シート!$C$27)-FIND(\" \",入力シート!$C$27,1)),\"\")","v":""},null,null,null,null,null,null,null,null,null,null,"③",null,null,null,{"$f":"IF(入力シート!$E$27=\"\",\"\",IF(TEXT(入力シート!$E$27,\"g\")=\"S\",\"5．昭和\",IF(TEXT(入力シート!$E$27,\"g\")=\"H\",\"7．平成\",IF(TEXT(入力シート!$E$27,\"g\")=\"R\",\"9．令和\"))))","v":""},null,null,null,null,"年",null,null,"月",null,"日"]
[]
[null,null,null,"被保険者\n整理番号",null,null,null,null,null,null,null,null,null,null,null,null,null,null,null,null,null,null,null,null,null,null,null,"氏名",null,null,null,null,null,null,null,null,null,null,null,null,null,null,null,null,null,null,null,null,null,null,null,null,null,"生年\n月日"]
[null,null,null,null,null,null,null,null,null,null,null,null,null,null,null,null,null,null,null,null,null,null,null,null,null,null,null,null,null,null,null,null,null,null,null,null,null,null,null,null,null,null,null,null,null,null,null,null,null,null,null,null,null,null,null,null,null,null,null,null,null,null,{"$f":"IF(入力シート!$E$27=\"\",\"\",DBCS(TEXT(入力シート!$E$27,\"eemmdd\")))","v":""}]
[null,null,null,null,null,null,null,null,null,null,null,null,null,null,null,null,null,null,null,null,null,null,null,null,null,null,null,null,null,null,null,{"$f":"IFERROR(LEFT(入力シート!$D$27,FIND(\"　\",入力シート!$D$27,1)-1),\"\")","v":""},null,null,null,null,null,null,null,null,null,null,{"$f":"IFERROR(RIGHT(入力シート!$D$27,LEN(入力シート!$D$27)-FIND(\"　\",入力シート!$D$27,1)),\"\")","v":""}]
[]
[]
[]
[]
[]
[null,null,null,"④",null,null,null,{"$f":"IFERROR(IF(入力シート!$F$27=\"\",DBCS(LEFT(RIGHT(入力シート!$G$27,18-COLUMN()))),DBCS(LEFT(RIGHT(入力シート!$F$27,20-COLUMN())))),\"\")","v":""},null,{"$f":"IFERROR(IF(入力シート!$F$27=\"\",DBCS(LEFT(RIGHT(入力シート!$G$27,19-COLUMN()))),DBCS(LEFT(RIGHT(入力シート!$F$27,21-COLUMN())))),\"\")","v":""},null,{"$f":"IFERROR(IF(入力シート!$F$27=\"\",DBCS(LEFT(RIGHT(入力シート!$G$27,20-COLUMN()))),DBCS(LEFT(RIGHT(入力シート!$F$27,22-COLUMN())))),\"\")","v":""},null,{"$f":"IFERROR(IF(入力シート!$F$27=\"\",DBCS(LEFT(RIGHT(入力シート!$G$27,21-COLUMN()))),DBCS(LEFT(RIGHT(入力シート!$F$27,23-COLUMN())))),\"\")","v":""},null,{"$f":"IFERROR(IF(入力シート!$F$27=\"\",DBCS(LEFT(RIGHT(入力シート!$G$27,22-COLUMN()))),DBCS(LEFT(RIGHT(入力シート!$F$27,24-COLUMN())))),\"\")","v":""},null,{"$f":"IFERROR(IF(入力シート!$F$27=\"\",DBCS(LEFT(RIGHT(入力シート!$G$27,23-COLUMN()))),DBCS(LEFT(RIGHT(入力シート!$F$27,25-COLUMN())))),\"\")","v":""},null,{"$f":"IFERROR(IF(入力シート!$F$27=\"\",DBCS(LEFT(RIGHT(入力シート!$G$27,24-COLUMN()))),DBCS(LEFT(RIGHT(入力シート!$F$27,26-COLUMN())))),\"\")","v":""},null,{"$f":"IFERROR(IF(入力シート!$F$27=\"\",DBCS(LEFT(RIGHT(入力シート!$G$27,25-COLUMN()))),DBCS(LEFT(RIGHT(入力シート!$F$27,27-COLUMN())))),\"\")","v":""},null,{"$f":"IFERROR(IF(入力シート!$F$27=\"\",DBCS(LEFT(RIGHT(入力シート!$G$27,26-COLUMN()))),DBCS(LEFT(RIGHT(入力シート!$F$27,28-COLUMN())))),\"\")","v":""},null,{"$f":"IFERROR(IF(入力シート!$F$27=\"\",DBCS(LEFT(RIGHT(入力シート!$G$27,27-COLUMN()))),DBCS(LEFT(RIGHT(入力シート!$F$27,29-COLUMN())))),\"\")","v":""},null,{"$f":"IFERROR(IF(入力シート!$F$27=\"\",\"\",DBCS(LEFT(RIGHT(入力シート!$F$27,30-COLUMN())))),\"\")","v":""},null,{"$f":"IFERROR(IF(入力シート!$F$27=\"\",\"\",DBCS(LEFT(RIGHT(入力シート!$F$27,31-COLUMN())))),\"\")","v":""},null,"⑤",null,null,null,{"$f":"IF(入力シート!$H$27=\"\",\"\",IF(TEXT(入力シート!$H$27,\"g\")=\"S\",\"5．昭和\",IF(TEXT(入力シート!$H$27,\"g\")=\"H\",\"7．平成\",IF(TEXT(入力シート!$H$27,\"g\")=\"R\",\"9．令和\"))))","v":""},null,null,null,null,null,"年",null,null,"月",null,"日",null,null,"⑥"]
[null,null,null,null,null,null,null,null,null,null,null,null,null,null,null,null,null,null,null,null,null,null,null,null,null,null,null,null,null,null,null,null,null,null,null,null,null,null,null,null,null,null,null,null,null,null,null,null,null,null,null,null,null,null,{"$f":"IF(入力シート!$I$27=\"\",\"\",DBCS(入力シート!$I$27))","v":""}]
[null,null,null,"個人番号\n（基礎年\n金番号）",null,null,null,null,null,null,null,null,null,null,null,null,null,null,null,null,null,null,null,null,null,null,null,null,null,null,null,"喪　失\n年月日",null,null,null,null,null,null,null,null,null,{"$f":"IF(入力シート!$H$27=\"\",\"\",DBCS(TEXT(入力シート!$H$27,\"eemmdd\")))","v":""},null,null,null,null,null,null,null,"喪失\n(不該当)\n原因"]
[]
[]
[null,null,null,null,null,null,null,null,null,null,null,null,null,null,null,null,null,null,null,null,null,null,null,null,null,null,null,null,null,null,null,null,null,null,null,null,null,null,null,null,null,null,null,null,null,null,null,null,null,null,null,null,null,null,"（",null,{"$f":"IF(入力シート!$I$27=\"4.退職等\",入力シート!$J$27,IF(入力シート!$I$27=\"5.死亡\",入力シート!$J$27,\"\"))","v":""},null,null,null,null,null,null,null,null,{"$f":"IF(入力シート!$I$27=\"4.退職等\",\"退職等）\",IF(入力シート!$I$27=\"5.死亡\",\"死亡）\",\"）\"))","v":"）"}]
[]
[]
[]
[null,null,null,"⑦",null,null,null,null,null,null,null,null,null,null,null,null,null,null,null,null,null,null,null,null,null,null,null,null,null,null,null,null,null,null,null,"資格確認書等回収",null,null,null,null,null,null,null,null,null,null,null,null,null,"⑧",null,null,null,null,null,null,"70歳以上被用者不該当\n（退職日または死亡日を記入してください）"]
[null,null,null,null,null,null,null,null,{"$f":"IF(入力シート!$L$27=\"\",\"\",DBCS(入力シート!$L$27))","v":""}]
[null,null,null,null,null,null,null,null,null,null,null,null,null,null,null,null,null,null,null,null,null,null,null,null,null,null,null,null,null,null,null,null,null,null,null,null,null,null,null,"添　付",null,null,null,{"$f":"IF(入力シート!$N$27=\"\",\"\",DBCS(入力シート!$N$27))","v":""},null,null,"枚"]
[null,null,null,"備考"]
[null,null,null,null,null,null,null,null,null,null,null,null,null,null,null,null,null,null,null,null,null,null,null,null,null,null,null,null,null,null,null,null,null,null,null,null,null,null,null,null,null,null,null,null,null,null,null,null,null,"70歳\n不該当"]
[null,null,null,null,null,null,null,null,{"$f":"IF(入力シート!$M$27=\"\",\"\",DBCS(入力シート!$M$27))","v":""},null,null,null,null,null,null,null,null,null,null,null,null,null,null,null,null,null,null,null,null,null,null,null,null,null,null,null,null,null,null,null,null,null,null,null,null,null,null,null,null,null,null,null,null,"不該当年月日",null,null,null,null,null,null,null,null,"年",null,null,"月",null,"日"]
[null,null,null,null,null,null,null,null,null,null,null,null,null,null,null,null,null,null,null,null,null,null,null,null,null,null,null,null,null,null,null,null,null,null,null,null,null,null,null,"返不能",null,null,null,{"$f":"IF(入力シート!$O$27=\"\",\"\",DBCS(入力シート!$O$27))","v":""},null,null,"枚"]
[]
[]
[]
[]
[null,"被保険者\n２",null,"①",null,null,null,{"$f":"IF(入力シート!$B$28=\"\",\"\",DBCS(入力シート!$B$28))","v":""},null,null,null,null,null,null,null,null,null,null,null,null,null,null,null,null,null,null,null,"②",null,null,null,{"$f":"IFERROR(LEFT(入力シート!$C$28,FIND(\" \",入力シート!$C$28,1)-1),\"\")","v":""},null,null,null,null,null,null,null,null,null,null,{"$f":"IFERROR(RIGHT(入力シート!$C$28,LEN(入力シート!$C$28)-FIND(\" \",入力シート!$C$28,1)),\"\")","v":""},null,null,null,null,null,null,null,null,null,null,"③",null,null,null,{"$f":"IF(入力シート!$E$28=\"\",\"\",IF(TEXT(入力シート!$E$28,\"g\")=\"S\",\"5．昭和\",IF(TEXT(入力シート!$E$28,\"g\")=\"H\",\"7．平成\",IF(TEXT(入力シート!$E$28,\"g\")=\"R\",\"9．令和\"))))","v":""},null,null,null,null,"年",null,null,"月",null,"日"]
[]
[null,null,null,"被保険者\n整理番号",null,null,null,null,null,null,null,null,null,null,null,null,null,null,null,null,null,null,null,null,null,null,null,"氏名",null,null,null,null,null,null,null,null,null,null,null,null,null,null,null,null,null,null,null,null,null,null,null,null,null,"生年\n月日"]
[null,null,null,null,null,null,null,null,null,null,null,null,null,null,null,null,null,null,null,null,null,null,null,null,null,null,null,null,null,null,null,null,null,null,null,null,null,null,null,null,null,null,null,null,null,null,null,null,null,null,null,null,null,null,null,null,null,null,null,null,null,null,{"$f":"IF(入力シート!$E$28=\"\",\"\",DBCS(TEXT(入力シート!$E$28,\"eemmdd\")))","v":""}]
[null,null,null,null,null,null,null,null,null,null,null,null,null,null,null,null,null,null,null,null,null,null,null,null,null,null,null,null,null,null,null,{"$f":"IFERROR(LEFT(入力シート!$D$28,FIND(\"　\",入力シート!$D$28,1)-1),\"\")","v":""},null,null,null,null,null,null,null,null,null,null,{"$f":"IFERROR(RIGHT(入力シート!$D$28,LEN(入力シート!$D$28)-FIND(\"　\",入力シート!$D$28,1)),\"\")","v":""}]
[]
[]
[]
[]
[]
[null,null,null,"④",null,null,null,{"$f":"IFERROR(IF(入力シート!$F$28=\"\",DBCS(LEFT(RIGHT(入力シート!$G$28,18-COLUMN()))),DBCS(LEFT(RIGHT(入力シート!$F$28,20-COLUMN())))),\"\")","v":""},null,{"$f":"IFERROR(IF(入力シート!$F$28=\"\",DBCS(LEFT(RIGHT(入力シート!$G$28,19-COLUMN()))),DBCS(LEFT(RIGHT(入力シート!$F$28,21-COLUMN())))),\"\")","v":""},null,{"$f":"IFERROR(IF(入力シート!$F$28=\"\",DBCS(LEFT(RIGHT(入力シート!$G$28,20-COLUMN()))),DBCS(LEFT(RIGHT(入力シート!$F$28,22-COLUMN())))),\"\")","v":""},null,{"$f":"IFERROR(IF(入力シート!$F$28=\"\",DBCS(LEFT(RIGHT(入力シート!$G$28,21-COLUMN()))),DBCS(LEFT(RIGHT(入力シート!$F$28,23-COLUMN())))),\"\")","v":""},null,{"$f":"IFERROR(IF(入力シート!$F$28=\"\",DBCS(LEFT(RIGHT(入力シート!$G$28,22-COLUMN()))),DBCS(LEFT(RIGHT(入力シート!$F$28,24-COLUMN())))),\"\")","v":""},null,{"$f":"IFERROR(IF(入力シート!$F$28=\"\",DBCS(LEFT(RIGHT(入力シート!$G$28,23-COLUMN()))),DBCS(LEFT(RIGHT(入力シート!$F$28,25-COLUMN())))),\"\")","v":""},null,{"$f":"IFERROR(IF(入力シート!$F$28=\"\",DBCS(LEFT(RIGHT(入力シート!$G$28,24-COLUMN()))),DBCS(LEFT(RIGHT(入力シート!$F$28,26-COLUMN())))),\"\")","v":""},null,{"$f":"IFERROR(IF(入力シート!$F$28=\"\",DBCS(LEFT(RIGHT(入力シート!$G$28,25-COLUMN()))),DBCS(LEFT(RIGHT(入力シート!$F$28,27-COLUMN())))),\"\")","v":""},null,{"$f":"IFERROR(IF(入力シート!$F$28=\"\",DBCS(LEFT(RIGHT(入力シート!$G$28,26-COLUMN()))),DBCS(LEFT(RIGHT(入力シート!$F$28,28-COLUMN())))),\"\")","v":""},null,{"$f":"IFERROR(IF(入力シート!$F$28=\"\",DBCS(LEFT(RIGHT(入力シート!$G$28,27-COLUMN()))),DBCS(LEFT(RIGHT(入力シート!$F$28,29-COLUMN())))),\"\")","v":""},null,{"$f":"IFERROR(IF(入力シート!$F$28=\"\",\"\",DBCS(LEFT(RIGHT(入力シート!$F$28,30-COLUMN())))),\"\")","v":""},null,{"$f":"IFERROR(IF(入力シート!$F$28=\"\",\"\",DBCS(LEFT(RIGHT(入力シート!$F$28,31-COLUMN())))),\"\")","v":""},null,"⑤",null,null,null,{"$f":"IF(入力シート!$H$28=\"\",\"\",IF(TEXT(入力シート!$H$28,\"g\")=\"S\",\"5．昭和\",IF(TEXT(入力シート!$H$28,\"g\")=\"H\",\"7．平成\",IF(TEXT(入力シート!$H$28,\"g\")=\"R\",\"9．令和\"))))","v":""},null,null,null,null,null,"年",null,null,"月",null,"日",null,null,"⑥"]
[null,null,null,null,null,null,null,null,null,null,null,null,null,null,null,null,null,null,null,null,null,null,null,null,null,null,null,null,null,null,null,null,null,null,null,null,null,null,null,null,null,null,null,null,null,null,null,null,null,null,null,null,null,null,{"$f":"IF(入力シート!$I$28=\"\",\"\",DBCS(入力シート!$I$28))","v":""}]
[null,null,null,"個人番号\n（基礎年\n金番号）",null,null,null,null,null,null,null,null,null,null,null,null,null,null,null,null,null,null,null,null,null,null,null,null,null,null,null,"喪　失\n年月日",null,null,null,null,null,null,null,null,null,{"$f":"IF(入力シート!$H$28=\"\",\"\",DBCS(TEXT(入力シート!$H$28,\"eemmdd\")))","v":""},null,null,null,null,null,null,null,"喪失\n(不該当)\n原因"]
[]
[]
[null,null,null,null,null,null,null,null,null,null,null,null,null,null,null,null,null,null,null,null,null,null,null,null,null,null,null,null,null,null,null,null,null,null,null,null,null,null,null,null,null,null,null,null,null,null,null,null,null,null,null,null,null,null,"（",null,{"$f":"IF(入力シート!$I$28=\"4.退職等\",入力シート!$J$28,IF(入力シート!$I$28=\"5.死亡\",入力シート!$J$28,\"\"))","v":""},null,null,null,null,null,null,null,null,{"$f":"IF(入力シート!$I$28=\"4.退職等\",\"退職等）\",IF(入力シート!$I$28=\"5.死亡\",\"死亡）\",\"）\"))","v":"）"}]
[]
[]
[]
[null,null,null,"⑦",null,null,null,null,null,null,null,null,null,null,null,null,null,null,null,null,null,null,null,null,null,null,null,null,null,null,null,null,null,null,null,"資格確認書等回収",null,null,null,null,null,null,null,null,null,null,null,null,null,"⑧",null,null,null,null,null,null,"70歳以上被用者不該当\n（退職日または死亡日を記入してください）"]
[null,null,null,null,null,null,null,null,{"$f":"IF(入力シート!$L$28=\"\",\"\",DBCS(入力シート!$L$28))","v":""}]
[null,null,null,null,null,null,null,null,null,null,null,null,null,null,null,null,null,null,null,null,null,null,null,null,null,null,null,null,null,null,null,null,null,null,null,null,null,null,null,"添　付",null,null,null,{"$f":"IF(入力シート!$N$28=\"\",\"\",DBCS(入力シート!$N$28))","v":""},null,null,"枚"]
[null,null,null,"備考"]
[null,null,null,null,null,null,null,null,null,null,null,null,null,null,null,null,null,null,null,null,null,null,null,null,null,null,null,null,null,null,null,null,null,null,null,null,null,null,null,null,null,null,null,null,null,null,null,null,null,"70歳\n不該当"]
[null,null,null,null,null,null,null,null,{"$f":"IF(入力シート!$M$28=\"\",\"\",DBCS(入力シート!$M$28))","v":""},null,null,null,null,null,null,null,null,null,null,null,null,null,null,null,null,null,null,null,null,null,null,null,null,null,null,null,null,null,null,null,null,null,null,null,null,null,null,null,null,null,null,null,null,"不該当年月日",null,null,null,null,null,null,null,null,"年",null,null,"月",null,"日"]
[null,null,null,null,null,null,null,null,null,null,null,null,null,null,null,null,null,null,null,null,null,null,null,null,null,null,null,null,null,null,null,null,null,null,null,null,null,null,null,"返不能",null,null,null,{"$f":"IF(入力シート!$O$28=\"\",\"\",DBCS(入力シート!$O$28))","v":""},null,null,"枚"]
[]
[]
[]
[]
[null,"被保険者\n３",null,"①",null,null,null,{"$f":"IF(入力シート!$B$29=\"\",\"\",DBCS(入力シート!$B$29))","v":""},null,null,null,null,null,null,null,null,null,null,null,null,null,null,null,null,null,null,null,"②",null,null,null,{"$f":"IFERROR(LEFT(入力シート!$C$29,FIND(\" \",入力シート!$C$29,1)-1),\"\")","v":""},null,null,null,null,null,null,null,null,null,null,{"$f":"IFERROR(RIGHT(入力シート!$C$29,LEN(入力シート!$C$29)-FIND(\" \",入力シート!$C$29,1)),\"\")","v":""},null,null,null,null,null,null,null,null,null,null,"③",null,null,null,{"$f":"IF(入力シート!$E$29=\"\",\"\",IF(TEXT(入力シート!$E$29,\"g\")=\"S\",\"5．昭和\",IF(TEXT(入力シート!$E$29,\"g\")=\"H\",\"7．平成\",IF(TEXT(入力シート!$E$29,\"g\")=\"R\",\"9．令和\"))))","v":""},null,null,null,null,"年",null,null,"月",null,"日"]
[]
[null,null,null,"被保険者\n整理番号",null,null,null,null,null,null,null,null,null,null,null,null,null,null,null,null,null,null,null,null,null,null,null,"氏名",null,null,null,null,null,null,null,null,null,null,null,null,null,null,null,null,null,null,null,null,null,null,null,null,null,"生年\n月日"]
[null,null,null,null,null,null,null,null,null,null,null,null,null,null,null,null,null,null,null,null,null,null,null,null,null,null,null,null,null,null,null,null,null,null,null,null,null,null,null,null,null,null,null,null,null,null,null,null,null,null,null,null,null,null,null,null,null,null,null,null,null,null,{"$f":"IF(入力シート!$E$29=\"\",\"\",DBCS(TEXT(入力シート!$E$29,\"eemmdd\")))","v":""}]
[null,null,null,null,null,null,null,null,null,null,null,null,null,null,null,null,null,null,null,null,null,null,null,null,null,null,null,null,null,null,null,{"$f":"IFERROR(LEFT(入力シート!$D$29,FIND(\"　\",入力シート!$D$29,1)-1),\"\")","v":""},null,null,null,null,null,null,null,null,null,null,{"$f":"IFERROR(RIGHT(入力シート!$D$29,LEN(入力シート!$D$29)-FIND(\"　\",入力シート!$D$29,1)),\"\")","v":""}]
[]
[]
[]
[]
[]
[null,null,null,"④",null,null,null,{"$f":"IFERROR(IF(入力シート!$F$29=\"\",DBCS(LEFT(RIGHT(入力シート!$G$29,18-COLUMN()))),DBCS(LEFT(RIGHT(入力シート!$F$29,20-COLUMN())))),\"\")","v":""},null,{"$f":"IFERROR(IF(入力シート!$F$29=\"\",DBCS(LEFT(RIGHT(入力シート!$G$29,19-COLUMN()))),DBCS(LEFT(RIGHT(入力シート!$F$29,21-COLUMN())))),\"\")","v":""},null,{"$f":"IFERROR(IF(入力シート!$F$29=\"\",DBCS(LEFT(RIGHT(入力シート!$G$29,20-COLUMN()))),DBCS(LEFT(RIGHT(入力シート!$F$29,22-COLUMN())))),\"\")","v":""},null,{"$f":"IFERROR(IF(入力シート!$F$29=\"\",DBCS(LEFT(RIGHT(入力シート!$G$29,21-COLUMN()))),DBCS(LEFT(RIGHT(入力シート!$F$29,23-COLUMN())))),\"\")","v":""},null,{"$f":"IFERROR(IF(入力シート!$F$29=\"\",DBCS(LEFT(RIGHT(入力シート!$G$29,22-COLUMN()))),DBCS(LEFT(RIGHT(入力シート!$F$29,24-COLUMN())))),\"\")","v":""},null,{"$f":"IFERROR(IF(入力シート!$F$29=\"\",DBCS(LEFT(RIGHT(入力シート!$G$29,23-COLUMN()))),DBCS(LEFT(RIGHT(入力シート!$F$29,25-COLUMN())))),\"\")","v":""},null,{"$f":"IFERROR(IF(入力シート!$F$29=\"\",DBCS(LEFT(RIGHT(入力シート!$G$29,24-COLUMN()))),DBCS(LEFT(RIGHT(入力シート!$F$29,26-COLUMN())))),\"\")","v":""},null,{"$f":"IFERROR(IF(入力シート!$F$29=\"\",DBCS(LEFT(RIGHT(入力シート!$G$29,25-COLUMN()))),DBCS(LEFT(RIGHT(入力シート!$F$29,27-COLUMN())))),\"\")","v":""},null,{"$f":"IFERROR(IF(入力シート!$F$29=\"\",DBCS(LEFT(RIGHT(入力シート!$G$29,26-COLUMN()))),DBCS(LEFT(RIGHT(入力シート!$F$29,28-COLUMN())))),\"\")","v":""},null,{"$f":"IFERROR(IF(入力シート!$F$29=\"\",DBCS(LEFT(RIGHT(入力シート!$G$29,27-COLUMN()))),DBCS(LEFT(RIGHT(入力シート!$F$29,29-COLUMN())))),\"\")","v":""},null,{"$f":"IFERROR(IF(入力シート!$F$29=\"\",\"\",DBCS(LEFT(RIGHT(入力シート!$F$29,30-COLUMN())))),\"\")","v":""},null,{"$f":"IFERROR(IF(入力シート!$F$29=\"\",\"\",DBCS(LEFT(RIGHT(入力シート!$F$29,31-COLUMN())))),\"\")","v":""},null,"⑤",null,null,null,{"$f":"IF(入力シート!$H$29=\"\",\"\",IF(TEXT(入力シート!$H$29,\"g\")=\"S\",\"5．昭和\",IF(TEXT(入力シート!$H$29,\"g\")=\"H\",\"7．平成\",IF(TEXT(入力シート!$H$29,\"g\")=\"R\",\"9．令和\"))))","v":""},null,null,null,null,null,"年",null,null,"月",null,"日",null,null,"⑥"]
[null,null,null,null,null,null,null,null,null,null,null,null,null,null,null,null,null,null,null,null,null,null,null,null,null,null,null,null,null,null,null,null,null,null,null,null,null,null,null,null,null,null,null,null,null,null,null,null,null,null,null,null,null,null,{"$f":"IF(入力シート!$I$29=\"\",\"\",DBCS(入力シート!$I$29))","v":""}]
[null,null,null,"個人番号\n（基礎年\n金番号）",null,null,null,null,null,null,null,null,null,null,null,null,null,null,null,null,null,null,null,null,null,null,null,null,null,null,null,"喪　失\n年月日",null,null,null,null,null,null,null,null,null,{"$f":"IF(入力シート!$H$29=\"\",\"\",DBCS(TEXT(入力シート!$H$29,\"eemmdd\")))","v":""},null,null,null,null,null,null,null,"喪失\n(不該当)\n原因"]
[]
[]
[null,null,null,null,null,null,null,null,null,null,null,null,null,null,null,null,null,null,null,null,null,null,null,null,null,null,null,null,null,null,null,null,null,null,null,null,null,null,null,null,null,null,null,null,null,null,null,null,null,null,null,null,null,null,"（",null,{"$f":"IF(入力シート!$I$29=\"4.退職等\",入力シート!$J$29,IF(入力シート!$I$29=\"5.死亡\",入力シート!$J$29,\"\"))","v":""},null,null,null,null,null,null,null,null,{"$f":"IF(入力シート!$I$29=\"4.退職等\",\"退職等）\",IF(入力シート!$I$29=\"5.死亡\",\"死亡）\",\"）\"))","v":"）"}]
[]
[]
[]
[null,null,null,"⑦",null,null,null,null,null,null,null,null,null,null,null,null,null,null,null,null,null,null,null,null,null,null,null,null,null,null,null,null,null,null,null,"資格確認書等回収",null,null,null,null,null,null,null,null,null,null,null,null,null,"⑧",null,null,null,null,null,null,"70歳以上被用者不該当\n（退職日または死亡日を記入してください）"]
[null,null,null,null,null,null,null,null,{"$f":"IF(入力シート!$L$29=\"\",\"\",DBCS(入力シート!$L$29))","v":""}]
[null,null,null,null,null,null,null,null,null,null,null,null,null,null,null,null,null,null,null,null,null,null,null,null,null,null,null,null,null,null,null,null,null,null,null,null,null,null,null,"添　付",null,null,null,{"$f":"IF(入力シート!$N$29=\"\",\"\",DBCS(入力シート!$N$29))","v":""},null,null,"枚"]
[null,null,null,"備考"]
[null,null,null,null,null,null,null,null,null,null,null,null,null,null,null,null,null,null,null,null,null,null,null,null,null,null,null,null,null,null,null,null,null,null,null,null,null,null,null,null,null,null,null,null,null,null,null,null,null,"70歳\n不該当"]
[null,null,null,null,null,null,null,null,{"$f":"IF(入力シート!$M$29=\"\",\"\",DBCS(入力シート!$M$29))","v":""},null,null,null,null,null,null,null,null,null,null,null,null,null,null,null,null,null,null,null,null,null,null,null,null,null,null,null,null,null,null,null,null,null,null,null,null,null,null,null,null,null,null,null,null,"不該当年月日",null,null,null,null,null,null,null,null,"年",null,null,"月",null,"日"]
[null,null,null,null,null,null,null,null,null,null,null,null,null,null,null,null,null,null,null,null,null,null,null,null,null,null,null,null,null,null,null,null,null,null,null,null,null,null,null,"返不能",null,null,null,{"$f":"IF(入力シート!$O$29=\"\",\"\",DBCS(入力シート!$O$29))","v":""},null,null,"枚"]
[]
[]
[]
[]
[null,"被保険者\n４",null,"①",null,null,null,{"$f":"IF(入力シート!$B$30=\"\",\"\",DBCS(入力シート!$B$30))","v":""},null,null,null,null,null,null,null,null,null,null,null,null,null,null,null,null,null,null,null,"②",null,null,null,{"$f":"IFERROR(LEFT(入力シート!$C$30,FIND(\" \",入力シート!$C$30,1)-1),\"\")","v":""},null,null,null,null,null,null,null,null,null,null,{"$f":"IFERROR(RIGHT(入力シート!$C$30,LEN(入力シート!$C$30)-FIND(\" \",入力シート!$C$30,1)),\"\")","v":""},null,null,null,null,null,null,null,null,null,null,"③",null,null,null,{"$f":"IF(入力シート!$E$30=\"\",\"\",IF(TEXT(入力シート!$E$30,\"g\")=\"S\",\"5．昭和\",IF(TEXT(入力シート!$E$30,\"g\")=\"H\",\"7．平成\",IF(TEXT(入力シート!$E$30,\"g\")=\"R\",\"9．令和\"))))","v":""},null,null,null,null,"年",null,null,"月",null,"日"]
[]
[null,null,null,"被保険者\n整理番号",null,null,null,null,null,null,null,null,null,null,null,null,null,null,null,null,null,null,null,null,null,null,null,"氏名",null,null,null,null,null,null,null,null,null,null,null,null,null,null,null,null,null,null,null,null,null,null,null,null,null,"生年\n月日"]
[null,null,null,null,null,null,null,null,null,null,null,null,null,null,null,null,null,null,null,null,null,null,null,null,null,null,null,null,null,null,null,null,null,null,null,null,null,null,null,null,null,null,null,null,null,null,null,null,null,null,null,null,null,null,null,null,null,null,null,null,null,null,{"$f":"IF(入力シート!$E$30=\"\",\"\",DBCS(TEXT(入力シート!$E$30,\"eemmdd\")))","v":""}]
[null,null,null,null,null,null,null,null,null,null,null,null,null,null,null,null,null,null,null,null,null,null,null,null,null,null,null,null,null,null,null,{"$f":"IFERROR(LEFT(入力シート!$D$30,FIND(\"　\",入力シート!$D$30,1)-1),\"\")","v":""},null,null,null,null,null,null,null,null,null,null,{"$f":"IFERROR(RIGHT(入力シート!$D$30,LEN(入力シート!$D$30)-FIND(\"　\",入力シート!$D$30,1)),\"\")","v":""}]
[]
[]
[]
[]
[]
[null,null,null,"④",null,null,null,{"$f":"IFERROR(IF(入力シート!$F$30=\"\",DBCS(LEFT(RIGHT(入力シート!$G$30,18-COLUMN()))),DBCS(LEFT(RIGHT(入力シート!$F$30,20-COLUMN())))),\"\")","v":""},null,{"$f":"IFERROR(IF(入力シート!$F$30=\"\",DBCS(LEFT(RIGHT(入力シート!$G$30,19-COLUMN()))),DBCS(LEFT(RIGHT(入力シート!$F$30,21-COLUMN())))),\"\")","v":""},null,{"$f":"IFERROR(IF(入力シート!$F$30=\"\",DBCS(LEFT(RIGHT(入力シート!$G$30,20-COLUMN()))),DBCS(LEFT(RIGHT(入力シート!$F$30,22-COLUMN())))),\"\")","v":""},null,{"$f":"IFERROR(IF(入力シート!$F$30=\"\",DBCS(LEFT(RIGHT(入力シート!$G$30,21-COLUMN()))),DBCS(LEFT(RIGHT(入力シート!$F$30,23-COLUMN())))),\"\")","v":""},null,{"$f":"IFERROR(IF(入力シート!$F$30=\"\",DBCS(LEFT(RIGHT(入力シート!$G$30,22-COLUMN()))),DBCS(LEFT(RIGHT(入力シート!$F$30,24-COLUMN())))),\"\")","v":""},null,{"$f":"IFERROR(IF(入力シート!$F$30=\"\",DBCS(LEFT(RIGHT(入力シート!$G$30,23-COLUMN()))),DBCS(LEFT(RIGHT(入力シート!$F$30,25-COLUMN())))),\"\")","v":""},null,{"$f":"IFERROR(IF(入力シート!$F$30=\"\",DBCS(LEFT(RIGHT(入力シート!$G$30,24-COLUMN()))),DBCS(LEFT(RIGHT(入力シート!$F$30,26-COLUMN())))),\"\")","v":""},null,{"$f":"IFERROR(IF(入力シート!$F$30=\"\",DBCS(LEFT(RIGHT(入力シート!$G$30,25-COLUMN()))),DBCS(LEFT(RIGHT(入力シート!$F$30,27-COLUMN())))),\"\")","v":""},null,{"$f":"IFERROR(IF(入力シート!$F$30=\"\",DBCS(LEFT(RIGHT(入力シート!$G$30,26-COLUMN()))),DBCS(LEFT(RIGHT(入力シート!$F$30,28-COLUMN())))),\"\")","v":""},null,{"$f":"IFERROR(IF(入力シート!$F$30=\"\",DBCS(LEFT(RIGHT(入力シート!$G$30,27-COLUMN()))),DBCS(LEFT(RIGHT(入力シート!$F$30,29-COLUMN())))),\"\")","v":""},null,{"$f":"IFERROR(IF(入力シート!$F$30=\"\",\"\",DBCS(LEFT(RIGHT(入力シート!$F$30,30-COLUMN())))),\"\")","v":""},null,{"$f":"IFERROR(IF(入力シート!$F$30=\"\",\"\",DBCS(LEFT(RIGHT(入力シート!$F$30,31-COLUMN())))),\"\")","v":""},null,"⑤",null,null,null,{"$f":"IF(入力シート!$H$30=\"\",\"\",IF(TEXT(入力シート!$H$30,\"g\")=\"S\",\"5．昭和\",IF(TEXT(入力シート!$H$30,\"g\")=\"H\",\"7．平成\",IF(TEXT(入力シート!$H$30,\"g\")=\"R\",\"9．令和\"))))","v":""},null,null,null,null,null,"年",null,null,"月",null,"日",null,null,"⑥"]
[null,null,null,null,null,null,null,null,null,null,null,null,null,null,null,null,null,null,null,null,null,null,null,null,null,null,null,null,null,null,null,null,null,null,null,null,null,null,null,null,null,null,null,null,null,null,null,null,null,null,null,null,null,null,{"$f":"IF(入力シート!$I$30=\"\",\"\",DBCS(入力シート!$I$30))","v":""}]
[null,null,null,"個人番号\n（基礎年\n金番号）",null,null,null,null,null,null,null,null,null,null,null,null,null,null,null,null,null,null,null,null,null,null,null,null,null,null,null,"喪　失\n年月日",null,null,null,null,null,null,null,null,null,{"$f":"IF(入力シート!$H$30=\"\",\"\",DBCS(TEXT(入力シート!$H$30,\"eemmdd\")))","v":""},null,null,null,null,null,null,null,"喪失\n(不該当)\n原因"]
[]
[]
[null,null,null,null,null,null,null,null,null,null,null,null,null,null,null,null,null,null,null,null,null,null,null,null,null,null,null,null,null,null,null,null,null,null,null,null,null,null,null,null,null,null,null,null,null,null,null,null,null,null,null,null,null,null,"（",null,{"$f":"IF(入力シート!$I$30=\"4.退職等\",入力シート!$J$30,IF(入力シート!$I$30=\"5.死亡\",入力シート!$J$30,\"\"))","v":""},null,null,null,null,null,null,null,null,{"$f":"IF(入力シート!$I$30=\"4.退職等\",\"退職等）\",IF(入力シート!$I$30=\"5.死亡\",\"死亡）\",\"）\"))","v":"）"}]
[]
[]
[]
[null,null,null,"⑦",null,null,null,null,null,null,null,null,null,null,null,null,null,null,null,null,null,null,null,null,null,null,null,null,null,null,null,null,null,null,null,"資格確認書等回収",null,null,null,null,null,null,null,null,null,null,null,null,null,"⑧",null,null,null,null,null,null,"70歳以上被用者不該当\n（退職日または死亡日を記入してください）"]
[null,null,null,null,null,null,null,null,{"$f":"IF(入力シート!$L$30=\"\",\"\",DBCS(入力シート!$L$30))","v":""}]
[null,null,null,null,null,null,null,null,null,null,null,null,null,null,null,null,null,null,null,null,null,null,null,null,null,null,null,null,null,null,null,null,null,null,null,null,null,null,null,"添　付",null,null,null,{"$f":"IF(入力シート!$N$30=\"\",\"\",DBCS(入力シート!$N$30))","v":""},null,null,"枚"]
[null,null,null,"備考"]
[null,null,null,null,null,null,null,null,null,null,null,null,null,null,null,null,null,null,null,null,null,null,null,null,null,null,null,null,null,null,null,null,null,null,null,null,null,null,null,null,null,null,null,null,null,null,null,null,null,"70歳\n不該当"]
[null,null,null,null,null,null,null,null,{"$f":"IF(入力シート!$M$30=\"\",\"\",DBCS(入力シート!$M$30))","v":""},null,null,null,null,null,null,null,null,null,null,null,null,null,null,null,null,null,null,null,null,null,null,null,null,null,null,null,null,null,null,null,null,null,null,null,null,null,null,null,null,null,null,null,null,"不該当年月日",null,null,null,null,null,null,null,null,"年",null,null,"月",null,"日"]
[null,null,null,null,null,null,null,null,null,null,null,null,null,null,null,null,null,null,null,null,null,null,null,null,null,null,null,null,null,null,null,null,null,null,null,null,null,null,null,"返不能",null,null,null,{"$f":"IF(入力シート!$O$30=\"\",\"\",DBCS(入力シート!$O$30))","v":""},null,null,"枚"]
[]
[]
[]
[]
[]
[]
[]
[]
[]
[]
[]
[]
[]
[]
[]
[]
[]
[]
[]
[]
[]
[]
[]
[]
[]
[]
[]
[]
[]
[]
[]
[]
[null,"被保険者\n１",null,"①",null,null,null,{"$f":"IF(入力シート!$B$31=\"\",\"\",DBCS(入力シート!$B$31))","v":""},null,null,null,null,null,null,null,null,null,null,null,null,null,null,null,null,null,null,null,"②",null,null,null,{"$f":"IFERROR(LEFT(入力シート!$C$31,FIND(\" \",入力シート!$C$31,1)-1),\"\")","v":""},null,null,null,null,null,null,null,null,null,null,{"$f":"IFERROR(RIGHT(入力シート!$C$31,LEN(入力シート!$C$31)-FIND(\" \",入力シート!$C$31,1)),\"\")","v":""},null,null,null,null,null,null,null,null,null,null,"③",null,null,null,{"$f":"IF(入力シート!$E$31=\"\",\"\",IF(TEXT(入力シート!$E$31,\"g\")=\"S\",\"5．昭和\",IF(TEXT(入力シート!$E$31,\"g\")=\"H\",\"7．平成\",IF(TEXT(入力シート!$E$31,\"g\")=\"R\",\"9．令和\"))))","v":""},null,null,null,null,"年",null,null,"月",null,"日"]
[]
[null,null,null,"被保険者\n整理番号",null,null,null,null,null,null,null,null,null,null,null,null,null,null,null,null,null,null,null,null,null,null,null,"氏名",null,null,null,null,null,null,null,null,null,null,null,null,null,null,null,null,null,null,null,null,null,null,null,null,null,"生年\n月日"]
[null,null,null,null,null,null,null,null,null,null,null,null,null,null,null,null,null,null,null,null,null,null,null,null,null,null,null,null,null,null,null,null,null,null,null,null,null,null,null,null,null,null,null,null,null,null,null,null,null,null,null,null,null,null,null,null,null,null,null,null,null,null,{"$f":"IF(入力シート!$E$31=\"\",\"\",DBCS(TEXT(入力シート!$E$31,\"eemmdd\")))","v":""}]
[null,null,null,null,null,null,null,null,null,null,null,null,null,null,null,null,null,null,null,null,null,null,null,null,null,null,null,null,null,null,null,{"$f":"IFERROR(LEFT(入力シート!$D$31,FIND(\"　\",入力シート!$D$31,1)-1),\"\")","v":""},null,null,null,null,null,null,null,null,null,null,{"$f":"IFERROR(RIGHT(入力シート!$D$31,LEN(入力シート!$D$31)-FIND(\"　\",入力シート!$D$31,1)),\"\")","v":""}]
[]
[]
[]
[]
[]
[null,null,null,"④",null,null,null,{"$f":"IFERROR(IF(入力シート!$F$31=\"\",DBCS(LEFT(RIGHT(入力シート!$G$31,18-COLUMN()))),DBCS(LEFT(RIGHT(入力シート!$F$31,20-COLUMN())))),\"\")","v":""},null,{"$f":"IFERROR(IF(入力シート!$F$31=\"\",DBCS(LEFT(RIGHT(入力シート!$G$31,19-COLUMN()))),DBCS(LEFT(RIGHT(入力シート!$F$31,21-COLUMN())))),\"\")","v":""},null,{"$f":"IFERROR(IF(入力シート!$F$31=\"\",DBCS(LEFT(RIGHT(入力シート!$G$31,20-COLUMN()))),DBCS(LEFT(RIGHT(入力シート!$F$31,22-COLUMN())))),\"\")","v":""},null,{"$f":"IFERROR(IF(入力シート!$F$31=\"\",DBCS(LEFT(RIGHT(入力シート!$G$31,21-COLUMN()))),DBCS(LEFT(RIGHT(入力シート!$F$31,23-COLUMN())))),\"\")","v":""},null,{"$f":"IFERROR(IF(入力シート!$F$31=\"\",DBCS(LEFT(RIGHT(入力シート!$G$31,22-COLUMN()))),DBCS(LEFT(RIGHT(入力シート!$F$31,24-COLUMN())))),\"\")","v":""},null,{"$f":"IFERROR(IF(入力シート!$F$31=\"\",DBCS(LEFT(RIGHT(入力シート!$G$31,23-COLUMN()))),DBCS(LEFT(RIGHT(入力シート!$F$31,25-COLUMN())))),\"\")","v":""},null,{"$f":"IFERROR(IF(入力シート!$F$31=\"\",DBCS(LEFT(RIGHT(入力シート!$G$31,24-COLUMN()))),DBCS(LEFT(RIGHT(入力シート!$F$31,26-COLUMN())))),\"\")","v":""},null,{"$f":"IFERROR(IF(入力シート!$F$31=\"\",DBCS(LEFT(RIGHT(入力シート!$G$31,25-COLUMN()))),DBCS(LEFT(RIGHT(入力シート!$F$31,27-COLUMN())))),\"\")","v":""},null,{"$f":"IFERROR(IF(入力シート!$F$31=\"\",DBCS(LEFT(RIGHT(入力シート!$G$31,26-COLUMN()))),DBCS(LEFT(RIGHT(入力シート!$F$31,28-COLUMN())))),\"\")","v":""},null,{"$f":"IFERROR(IF(入力シート!$F$31=\"\",DBCS(LEFT(RIGHT(入力シート!$G$31,27-COLUMN()))),DBCS(LEFT(RIGHT(入力シート!$F$31,29-COLUMN())))),\"\")","v":""},null,{"$f":"IFERROR(IF(入力シート!$F$31=\"\",\"\",DBCS(LEFT(RIGHT(入力シート!$F$31,30-COLUMN())))),\"\")","v":""},null,{"$f":"IFERROR(IF(入力シート!$F$31=\"\",\"\",DBCS(LEFT(RIGHT(入力シート!$F$31,31-COLUMN())))),\"\")","v":""},null,"⑤",null,null,null,{"$f":"IF(入力シート!$H$31=\"\",\"\",IF(TEXT(入力シート!$H$31,\"g\")=\"S\",\"5．昭和\",IF(TEXT(入力シート!$H$31,\"g\")=\"H\",\"7．平成\",IF(TEXT(入力シート!$H$31,\"g\")=\"R\",\"9．令和\"))))","v":""},null,null,null,null,null,"年",null,null,"月",null,"日",null,null,"⑥"]
[null,null,null,null,null,null,null,null,null,null,null,null,null,null,null,null,null,null,null,null,null,null,null,null,null,null,null,null,null,null,null,null,null,null,null,null,null,null,null,null,null,null,null,null,null,null,null,null,null,null,null,null,null,null,{"$f":"IF(入力シート!$I$31=\"\",\"\",DBCS(入力シート!$I$31))","v":""}]
[null,null,null,"個人番号\n（基礎年\n金番号）",null,null,null,null,null,null,null,null,null,null,null,null,null,null,null,null,null,null,null,null,null,null,null,null,null,null,null,"喪　失\n年月日",null,null,null,null,null,null,null,null,null,{"$f":"IF(入力シート!$H$31=\"\",\"\",DBCS(TEXT(入力シート!$H$31,\"eemmdd\")))","v":""},null,null,null,null,null,null,null,"喪失\n(不該当)\n原因"]
[]
[]
[null,null,null,null,null,null,null,null,null,null,null,null,null,null,null,null,null,null,null,null,null,null,null,null,null,null,null,null,null,null,null,null,null,null,null,null,null,null,null,null,null,null,null,null,null,null,null,null,null,null,null,null,null,null,"（",null,{"$f":"IF(入力シート!$I$31=\"4.退職等\",入力シート!$J$31,IF(入力シート!$I$31=\"5.死亡\",入力シート!$J$31,\"\"))","v":""},null,null,null,null,null,null,null,null,{"$f":"IF(入力シート!$I$31=\"4.退職等\",\"退職等）\",IF(入力シート!$I$31=\"5.死亡\",\"死亡）\",\"）\"))","v":"）"}]
[]
[]
[]
[null,null,null,"⑦",null,null,null,null,null,null,null,null,null,null,null,null,null,null,null,null,null,null,null,null,null,null,null,null,null,null,null,null,null,null,null,"資格確認書等回収",null,null,null,null,null,null,null,null,null,null,null,null,null,"⑧",null,null,null,null,null,null,"70歳以上被用者不該当\n（退職日または死亡日を記入してください）"]
[null,null,null,null,null,null,null,null,{"$f":"IF(入力シート!$L$31=\"\",\"\",DBCS(入力シート!$L$31))","v":""}]
[null,null,null,null,null,null,null,null,null,null,null,null,null,null,null,null,null,null,null,null,null,null,null,null,null,null,null,null,null,null,null,null,null,null,null,null,null,null,null,"添　付",null,null,null,{"$f":"IF(入力シート!$N$31=\"\",\"\",DBCS(入力シート!$N$31))","v":""},null,null,"枚"]
[null,null,null,"備考"]
[null,null,null,null,null,null,null,null,null,null,null,null,null,null,null,null,null,null,null,null,null,null,null,null,null,null,null,null,null,null,null,null,null,null,null,null,null,null,null,null,null,null,null,null,null,null,null,null,null,"70歳\n不該当"]
[null,null,null,null,null,null,null,null,{"$f":"IF(入力シート!$M$31=\"\",\"\",DBCS(入力シート!$M$31))","v":""},null,null,null,null,null,null,null,null,null,null,null,null,null,null,null,null,null,null,null,null,null,null,null,null,null,null,null,null,null,null,null,null,null,null,null,null,null,null,null,null,null,null,null,null,"不該当年月日",null,null,null,null,null,null,null,null,"年",null,null,"月",null,"日"]
[null,null,null,null,null,null,null,null,null,null,null,null,null,null,null,null,null,null,null,null,null,null,null,null,null,null,null,null,null,null,null,null,null,null,null,null,null,null,null,"返不能",null,null,null,{"$f":"IF(入力シート!$O$31=\"\",\"\",DBCS(入力シート!$O$31))","v":""},null,null,"枚"]
[]
[]
[]
[]
[null,"被保険者\n２",null,"①",null,null,null,{"$f":"IF(入力シート!$B$32=\"\",\"\",DBCS(入力シート!$B$32))","v":""},null,null,null,null,null,null,null,null,null,null,null,null,null,null,null,null,null,null,null,"②",null,null,null,{"$f":"IFERROR(LEFT(入力シート!$C$32,FIND(\" \",入力シート!$C$32,1)-1),\"\")","v":""},null,null,null,null,null,null,null,null,null,null,{"$f":"IFERROR(RIGHT(入力シート!$C$32,LEN(入力シート!$C$32)-FIND(\" \",入力シート!$C$32,1)),\"\")","v":""},null,null,null,null,null,null,null,null,null,null,"③",null,null,null,{"$f":"IF(入力シート!$E$32=\"\",\"\",IF(TEXT(入力シート!$E$32,\"g\")=\"S\",\"5．昭和\",IF(TEXT(入力シート!$E$32,\"g\")=\"H\",\"7．平成\",IF(TEXT(入力シート!$E$32,\"g\")=\"R\",\"9．令和\"))))","v":""},null,null,null,null,"年",null,null,"月",null,"日"]
[]
[null,null,null,"被保険者\n整理番号",null,null,null,null,null,null,null,null,null,null,null,null,null,null,null,null,null,null,null,null,null,null,null,"氏名",null,null,null,null,null,null,null,null,null,null,null,null,null,null,null,null,null,null,null,null,null,null,null,null,null,"生年\n月日"]
[null,null,null,null,null,null,null,null,null,null,null,null,null,null,null,null,null,null,null,null,null,null,null,null,null,null,null,null,null,null,null,null,null,null,null,null,null,null,null,null,null,null,null,null,null,null,null,null,null,null,null,null,null,null,null,null,null,null,null,null,null,null,{"$f":"IF(入力シート!$E$32=\"\",\"\",DBCS(TEXT(入力シート!$E$32,\"eemmdd\")))","v":""}]
[null,null,null,null,null,null,null,null,null,null,null,null,null,null,null,null,null,null,null,null,null,null,null,null,null,null,null,null,null,null,null,{"$f":"IFERROR(LEFT(入力シート!$D$32,FIND(\"　\",入力シート!$D$32,1)-1),\"\")","v":""},null,null,null,null,null,null,null,null,null,null,{"$f":"IFERROR(RIGHT(入力シート!$D$32,LEN(入力シート!$D$32)-FIND(\"　\",入力シート!$D$32,1)),\"\")","v":""}]
[]
[]
[]
[]
[]
[null,null,null,"④",null,null,null,{"$f":"IFERROR(IF(入力シート!$F$32=\"\",DBCS(LEFT(RIGHT(入力シート!$G$32,18-COLUMN()))),DBCS(LEFT(RIGHT(入力シート!$F$32,20-COLUMN())))),\"\")","v":""},null,{"$f":"IFERROR(IF(入力シート!$F$32=\"\",DBCS(LEFT(RIGHT(入力シート!$G$32,19-COLUMN()))),DBCS(LEFT(RIGHT(入力シート!$F$32,21-COLUMN())))),\"\")","v":""},null,{"$f":"IFERROR(IF(入力シート!$F$32=\"\",DBCS(LEFT(RIGHT(入力シート!$G$32,20-COLUMN()))),DBCS(LEFT(RIGHT(入力シート!$F$32,22-COLUMN())))),\"\")","v":""},null,{"$f":"IFERROR(IF(入力シート!$F$32=\"\",DBCS(LEFT(RIGHT(入力シート!$G$32,21-COLUMN()))),DBCS(LEFT(RIGHT(入力シート!$F$32,23-COLUMN())))),\"\")","v":""},null,{"$f":"IFERROR(IF(入力シート!$F$32=\"\",DBCS(LEFT(RIGHT(入力シート!$G$32,22-COLUMN()))),DBCS(LEFT(RIGHT(入力シート!$F$32,24-COLUMN())))),\"\")","v":""},null,{"$f":"IFERROR(IF(入力シート!$F$32=\"\",DBCS(LEFT(RIGHT(入力シート!$G$32,23-COLUMN()))),DBCS(LEFT(RIGHT(入力シート!$F$32,25-COLUMN())))),\"\")","v":""},null,{"$f":"IFERROR(IF(入力シート!$F$32=\"\",DBCS(LEFT(RIGHT(入力シート!$G$32,24-COLUMN()))),DBCS(LEFT(RIGHT(入力シート!$F$32,26-COLUMN())))),\"\")","v":""},null,{"$f":"IFERROR(IF(入力シート!$F$32=\"\",DBCS(LEFT(RIGHT(入力シート!$G$32,25-COLUMN()))),DBCS(LEFT(RIGHT(入力シート!$F$32,27-COLUMN())))),\"\")","v":""},null,{"$f":"IFERROR(IF(入力シート!$F$32=\"\",DBCS(LEFT(RIGHT(入力シート!$G$32,26-COLUMN()))),DBCS(LEFT(RIGHT(入力シート!$F$32,28-COLUMN())))),\"\")","v":""},null,{"$f":"IFERROR(IF(入力シート!$F$32=\"\",DBCS(LEFT(RIGHT(入力シート!$G$32,27-COLUMN()))),DBCS(LEFT(RIGHT(入力シート!$F$32,29-COLUMN())))),\"\")","v":""},null,{"$f":"IFERROR(IF(入力シート!$F$32=\"\",\"\",DBCS(LEFT(RIGHT(入力シート!$F$32,30-COLUMN())))),\"\")","v":""},null,{"$f":"IFERROR(IF(入力シート!$F$32=\"\",\"\",DBCS(LEFT(RIGHT(入力シート!$F$32,31-COLUMN())))),\"\")","v":""},null,"⑤",null,null,null,{"$f":"IF(入力シート!$H$32=\"\",\"\",IF(TEXT(入力シート!$H$32,\"g\")=\"S\",\"5．昭和\",IF(TEXT(入力シート!$H$32,\"g\")=\"H\",\"7．平成\",IF(TEXT(入力シート!$H$32,\"g\")=\"R\",\"9．令和\"))))","v":""},null,null,null,null,null,"年",null,null,"月",null,"日",null,null,"⑥"]
[null,null,null,null,null,null,null,null,null,null,null,null,null,null,null,null,null,null,null,null,null,null,null,null,null,null,null,null,null,null,null,null,null,null,null,null,null,null,null,null,null,null,null,null,null,null,null,null,null,null,null,null,null,null,{"$f":"IF(入力シート!$I$32=\"\",\"\",DBCS(入力シート!$I$32))","v":""}]
[null,null,null,"個人番号\n（基礎年\n金番号）",null,null,null,null,null,null,null,null,null,null,null,null,null,null,null,null,null,null,null,null,null,null,null,null,null,null,null,"喪　失\n年月日",null,null,null,null,null,null,null,null,null,{"$f":"IF(入力シート!$H$32=\"\",\"\",DBCS(TEXT(入力シート!$H$32,\"eemmdd\")))","v":""},null,null,null,null,null,null,null,"喪失\n(不該当)\n原因"]
[]
[]
[null,null,null,null,null,null,null,null,null,null,null,null,null,null,null,null,null,null,null,null,null,null,null,null,null,null,null,null,null,null,null,null,null,null,null,null,null,null,null,null,null,null,null,null,null,null,null,null,null,null,null,null,null,null,"（",null,{"$f":"IF(入力シート!$I$32=\"4.退職等\",入力シート!$J$32,IF(入力シート!$I$32=\"5.死亡\",入力シート!$J$32,\"\"))","v":""},null,null,null,null,null,null,null,null,{"$f":"IF(入力シート!$I$32=\"4.退職等\",\"退職等）\",IF(入力シート!$I$32=\"5.死亡\",\"死亡）\",\"）\"))","v":"）"}]
[]
[]
[]
[null,null,null,"⑦",null,null,null,null,null,null,null,null,null,null,null,null,null,null,null,null,null,null,null,null,null,null,null,null,null,null,null,null,null,null,null,"資格確認書等回収",null,null,null,null,null,null,null,null,null,null,null,null,null,"⑧",null,null,null,null,null,null,"70歳以上被用者不該当\n（退職日または死亡日を記入してください）"]
[null,null,null,null,null,null,null,null,{"$f":"IF(入力シート!$L$32=\"\",\"\",DBCS(入力シート!$L$32))","v":""}]
[null,null,null,null,null,null,null,null,null,null,null,null,null,null,null,null,null,null,null,null,null,null,null,null,null,null,null,null,null,null,null,null,null,null,null,null,null,null,null,"添　付",null,null,null,{"$f":"IF(入力シート!$N$32=\"\",\"\",DBCS(入力シート!$N$32))","v":""},null,null,"枚"]
[null,null,null,"備考"]
[null,null,null,null,null,null,null,null,null,null,null,null,null,null,null,null,null,null,null,null,null,null,null,null,null,null,null,null,null,null,null,null,null,null,null,null,null,null,null,null,null,null,null,null,null,null,null,null,null,"70歳\n不該当"]
[null,null,null,null,null,null,null,null,{"$f":"IF(入力シート!$M$32=\"\",\"\",DBCS(入力シート!$M$32))","v":""},null,null,null,null,null,null,null,null,null,null,null,null,null,null,null,null,null,null,null,null,null,null,null,null,null,null,null,null,null,null,null,null,null,null,null,null,null,null,null,null,null,null,null,null,"不該当年月日",null,null,null,null,null,null,null,null,"年",null,null,"月",null,"日"]
[null,null,null,null,null,null,null,null,null,null,null,null,null,null,null,null,null,null,null,null,null,null,null,null,null,null,null,null,null,null,null,null,null,null,null,null,null,null,null,"返不能",null,null,null,{"$f":"IF(入力シート!$O$32=\"\",\"\",DBCS(入力シート!$O$32))","v":""},null,null,"枚"]
[]
[]
[]
[]
[null,"被保険者\n３",null,"①",null,null,null,{"$f":"IF(入力シート!$B$33=\"\",\"\",DBCS(入力シート!$B$33))","v":""},null,null,null,null,null,null,null,null,null,null,null,null,null,null,null,null,null,null,null,"②",null,null,null,{"$f":"IFERROR(LEFT(入力シート!$C$33,FIND(\" \",入力シート!$C$33,1)-1),\"\")","v":""},null,null,null,null,null,null,null,null,null,null,{"$f":"IFERROR(RIGHT(入力シート!$C$33,LEN(入力シート!$C$33)-FIND(\" \",入力シート!$C$33,1)),\"\")","v":""},null,null,null,null,null,null,null,null,null,null,"③",null,null,null,{"$f":"IF(入力シート!$E$33=\"\",\"\",IF(TEXT(入力シート!$E$33,\"g\")=\"S\",\"5．昭和\",IF(TEXT(入力シート!$E$33,\"g\")=\"H\",\"7．平成\",IF(TEXT(入力シート!$E$33,\"g\")=\"R\",\"9．令和\"))))","v":""},null,null,null,null,"年",null,null,"月",null,"日"]
[]
[null,null,null,"被保険者\n整理番号",null,null,null,null,null,null,null,null,null,null,null,null,null,null,null,null,null,null,null,null,null,null,null,"氏名",null,null,null,null,null,null,null,null,null,null,null,null,null,null,null,null,null,null,null,null,null,null,null,null,null,"生年\n月日"]
[null,null,null,null,null,null,null,null,null,null,null,null,null,null,null,null,null,null,null,null,null,null,null,null,null,null,null,null,null,null,null,null,null,null,null,null,null,null,null,null,null,null,null,null,null,null,null,null,null,null,null,null,null,null,null,null,null,null,null,null,null,null,{"$f":"IF(入力シート!$E$33=\"\",\"\",DBCS(TEXT(入力シート!$E$33,\"eemmdd\")))","v":""}]
[null,null,null,null,null,null,null,null,null,null,null,null,null,null,null,null,null,null,null,null,null,null,null,null,null,null,null,null,null,null,null,{"$f":"IFERROR(LEFT(入力シート!$D$33,FIND(\"　\",入力シート!$D$33,1)-1),\"\")","v":""},null,null,null,null,null,null,null,null,null,null,{"$f":"IFERROR(RIGHT(入力シート!$D$33,LEN(入力シート!$D$33)-FIND(\"　\",入力シート!$D$33,1)),\"\")","v":""}]
[]
[]
[]
[]
[]
[null,null,null,"④",null,null,null,{"$f":"IFERROR(IF(入力シート!$F$33=\"\",DBCS(LEFT(RIGHT(入力シート!$G$33,18-COLUMN()))),DBCS(LEFT(RIGHT(入力シート!$F$33,20-COLUMN())))),\"\")","v":""},null,{"$f":"IFERROR(IF(入力シート!$F$33=\"\",DBCS(LEFT(RIGHT(入力シート!$G$33,19-COLUMN()))),DBCS(LEFT(RIGHT(入力シート!$F$33,21-COLUMN())))),\"\")","v":""},null,{"$f":"IFERROR(IF(入力シート!$F$33=\"\",DBCS(LEFT(RIGHT(入力シート!$G$33,20-COLUMN()))),DBCS(LEFT(RIGHT(入力シート!$F$33,22-COLUMN())))),\"\")","v":""},null,{"$f":"IFERROR(IF(入力シート!$F$33=\"\",DBCS(LEFT(RIGHT(入力シート!$G$33,21-COLUMN()))),DBCS(LEFT(RIGHT(入力シート!$F$33,23-COLUMN())))),\"\")","v":""},null,{"$f":"IFERROR(IF(入力シート!$F$33=\"\",DBCS(LEFT(RIGHT(入力シート!$G$33,22-COLUMN()))),DBCS(LEFT(RIGHT(入力シート!$F$33,24-COLUMN())))),\"\")","v":""},null,{"$f":"IFERROR(IF(入力シート!$F$33=\"\",DBCS(LEFT(RIGHT(入力シート!$G$33,23-COLUMN()))),DBCS(LEFT(RIGHT(入力シート!$F$33,25-COLUMN())))),\"\")","v":""},null,{"$f":"IFERROR(IF(入力シート!$F$33=\"\",DBCS(LEFT(RIGHT(入力シート!$G$33,24-COLUMN()))),DBCS(LEFT(RIGHT(入力シート!$F$33,26-COLUMN())))),\"\")","v":""},null,{"$f":"IFERROR(IF(入力シート!$F$33=\"\",DBCS(LEFT(RIGHT(入力シート!$G$33,25-COLUMN()))),DBCS(LEFT(RIGHT(入力シート!$F$33,27-COLUMN())))),\"\")","v":""},null,{"$f":"IFERROR(IF(入力シート!$F$33=\"\",DBCS(LEFT(RIGHT(入力シート!$G$33,26-COLUMN()))),DBCS(LEFT(RIGHT(入力シート!$F$33,28-COLUMN())))),\"\")","v":""},null,{"$f":"IFERROR(IF(入力シート!$F$33=\"\",DBCS(LEFT(RIGHT(入力シート!$G$33,27-COLUMN()))),DBCS(LEFT(RIGHT(入力シート!$F$33,29-COLUMN())))),\"\")","v":""},null,{"$f":"IFERROR(IF(入力シート!$F$33=\"\",\"\",DBCS(LEFT(RIGHT(入力シート!$F$33,30-COLUMN())))),\"\")","v":""},null,{"$f":"IFERROR(IF(入力シート!$F$33=\"\",\"\",DBCS(LEFT(RIGHT(入力シート!$F$33,31-COLUMN())))),\"\")","v":""},null,"⑤",null,null,null,{"$f":"IF(入力シート!$H$33=\"\",\"\",IF(TEXT(入力シート!$H$33,\"g\")=\"S\",\"5．昭和\",IF(TEXT(入力シート!$H$33,\"g\")=\"H\",\"7．平成\",IF(TEXT(入力シート!$H$33,\"g\")=\"R\",\"9．令和\"))))","v":""},null,null,null,null,null,"年",null,null,"月",null,"日",null,null,"⑥"]
[null,null,null,null,null,null,null,null,null,null,null,null,null,null,null,null,null,null,null,null,null,null,null,null,null,null,null,null,null,null,null,null,null,null,null,null,null,null,null,null,null,null,null,null,null,null,null,null,null,null,null,null,null,null,{"$f":"IF(入力シート!$I$33=\"\",\"\",DBCS(入力シート!$I$33))","v":""}]
[null,null,null,"個人番号\n（基礎年\n金番号）",null,null,null,null,null,null,null,null,null,null,null,null,null,null,null,null,null,null,null,null,null,null,null,null,null,null,null,"喪　失\n年月日",null,null,null,null,null,null,null,null,null,{"$f":"IF(入力シート!$H$33=\"\",\"\",DBCS(TEXT(入力シート!$H$33,\"eemmdd\")))","v":""},null,null,null,null,null,null,null,"喪失\n(不該当)\n原因"]
[]
[]
[null,null,null,null,null,null,null,null,null,null,null,null,null,null,null,null,null,null,null,null,null,null,null,null,null,null,null,null,null,null,null,null,null,null,null,null,null,null,null,null,null,null,null,null,null,null,null,null,null,null,null,null,null,null,"（",null,{"$f":"IF(入力シート!$I$33=\"4.退職等\",入力シート!$J$33,IF(入力シート!$I$33=\"5.死亡\",入力シート!$J$33,\"\"))","v":""},null,null,null,null,null,null,null,null,{"$f":"IF(入力シート!$I$33=\"4.退職等\",\"退職等）\",IF(入力シート!$I$33=\"5.死亡\",\"死亡）\",\"）\"))","v":"）"}]
[]
[]
[]
[null,null,null,"⑦",null,null,null,null,null,null,null,null,null,null,null,null,null,null,null,null,null,null,null,null,null,null,null,null,null,null,null,null,null,null,null,"資格確認書等回収",null,null,null,null,null,null,null,null,null,null,null,null,null,"⑧",null,null,null,null,null,null,"70歳以上被用者不該当\n（退職日または死亡日を記入してください）"]
[null,null,null,null,null,null,null,null,{"$f":"IF(入力シート!$L$33=\"\",\"\",DBCS(入力シート!$L$33))","v":""}]
[null,null,null,null,null,null,null,null,null,null,null,null,null,null,null,null,null,null,null,null,null,null,null,null,null,null,null,null,null,null,null,null,null,null,null,null,null,null,null,"添　付",null,null,null,{"$f":"IF(入力シート!$N$33=\"\",\"\",DBCS(入力シート!$N$33))","v":""},null,null,"枚"]
[null,null,null,"備考"]
[null,null,null,null,null,null,null,null,null,null,null,null,null,null,null,null,null,null,null,null,null,null,null,null,null,null,null,null,null,null,null,null,null,null,null,null,null,null,null,null,null,null,null,null,null,null,null,null,null,"70歳\n不該当"]
[null,null,null,null,null,null,null,null,{"$f":"IF(入力シート!$M$33=\"\",\"\",DBCS(入力シート!$M$33))","v":""},null,null,null,null,null,null,null,null,null,null,null,null,null,null,null,null,null,null,null,null,null,null,null,null,null,null,null,null,null,null,null,null,null,null,null,null,null,null,null,null,null,null,null,null,"不該当年月日",null,null,null,null,null,null,null,null,"年",null,null,"月",null,"日"]
[null,null,null,null,null,null,null,null,null,null,null,null,null,null,null,null,null,null,null,null,null,null,null,null,null,null,null,null,null,null,null,null,null,null,null,null,null,null,null,"返不能",null,null,null,{"$f":"IF(入力シート!$O$33=\"\",\"\",DBCS(入力シート!$O$33))","v":""},null,null,"枚"]
[]
[]
[]
[]
[null,"被保険者\n４",null,"①",null,null,null,{"$f":"IF(入力シート!$B$34=\"\",\"\",DBCS(入力シート!$B$34))","v":""},null,null,null,null,null,null,null,null,null,null,null,null,null,null,null,null,null,null,null,"②",null,null,null,{"$f":"IFERROR(LEFT(入力シート!$C$34,FIND(\" \",入力シート!$C$34,1)-1),\"\")","v":""},null,null,null,null,null,null,null,null,null,null,{"$f":"IFERROR(RIGHT(入力シート!$C$34,LEN(入力シート!$C$34)-FIND(\" \",入力シート!$C$34,1)),\"\")","v":""},null,null,null,null,null,null,null,null,null,null,"③",null,null,null,{"$f":"IF(入力シート!$E$34=\"\",\"\",IF(TEXT(入力シート!$E$34,\"g\")=\"S\",\"5．昭和\",IF(TEXT(入力シート!$E$34,\"g\")=\"H\",\"7．平成\",IF(TEXT(入力シート!$E$34,\"g\")=\"R\",\"9．令和\"))))","v":""},null,null,null,null,"年",null,null,"月",null,"日"]
[]
[null,null,null,"被保険者\n整理番号",null,null,null,null,null,null,null,null,null,null,null,null,null,null,null,null,null,null,null,null,null,null,null,"氏名",null,null,null,null,null,null,null,null,null,null,null,null,null,null,null,null,null,null,null,null,null,null,null,null,null,"生年\n月日"]
[null,null,null,null,null,null,null,null,null,null,null,null,null,null,null,null,null,null,null,null,null,null,null,null,null,null,null,null,null,null,null,null,null,null,null,null,null,null,null,null,null,null,null,null,null,null,null,null,null,null,null,null,null,null,null,null,null,null,null,null,null,null,{"$f":"IF(入力シート!$E$34=\"\",\"\",DBCS(TEXT(入力シート!$E$34,\"eemmdd\")))","v":""}]
[null,null,null,null,null,null,null,null,null,null,null,null,null,null,null,null,null,null,null,null,null,null,null,null,null,null,null,null,null,null,null,{"$f":"IFERROR(LEFT(入力シート!$D$34,FIND(\"　\",入力シート!$D$34,1)-1),\"\")","v":""},null,null,null,null,null,null,null,null,null,null,{"$f":"IFERROR(RIGHT(入力シート!$D$34,LEN(入力シート!$D$34)-FIND(\"　\",入力シート!$D$34,1)),\"\")","v":""}]
[]
[]
[]
[]
[]
[null,null,null,"④",null,null,null,{"$f":"IFERROR(IF(入力シート!$F$34=\"\",DBCS(LEFT(RIGHT(入力シート!$G$34,18-COLUMN()))),DBCS(LEFT(RIGHT(入力シート!$F$34,20-COLUMN())))),\"\")","v":""},null,{"$f":"IFERROR(IF(入力シート!$F$34=\"\",DBCS(LEFT(RIGHT(入力シート!$G$34,19-COLUMN()))),DBCS(LEFT(RIGHT(入力シート!$F$34,21-COLUMN())))),\"\")","v":""},null,{"$f":"IFERROR(IF(入力シート!$F$34=\"\",DBCS(LEFT(RIGHT(入力シート!$G$34,20-COLUMN()))),DBCS(LEFT(RIGHT(入力シート!$F$34,22-COLUMN())))),\"\")","v":""},null,{"$f":"IFERROR(IF(入力シート!$F$34=\"\",DBCS(LEFT(RIGHT(入力シート!$G$34,21-COLUMN()))),DBCS(LEFT(RIGHT(入力シート!$F$34,23-COLUMN())))),\"\")","v":""},null,{"$f":"IFERROR(IF(入力シート!$F$34=\"\",DBCS(LEFT(RIGHT(入力シート!$G$34,22-COLUMN()))),DBCS(LEFT(RIGHT(入力シート!$F$34,24-COLUMN())))),\"\")","v":""},null,{"$f":"IFERROR(IF(入力シート!$F$34=\"\",DBCS(LEFT(RIGHT(入力シート!$G$34,23-COLUMN()))),DBCS(LEFT(RIGHT(入力シート!$F$34,25-COLUMN())))),\"\")","v":""},null,{"$f":"IFERROR(IF(入力シート!$F$34=\"\",DBCS(LEFT(RIGHT(入力シート!$G$34,24-COLUMN()))),DBCS(LEFT(RIGHT(入力シート!$F$34,26-COLUMN())))),\"\")","v":""},null,{"$f":"IFERROR(IF(入力シート!$F$34=\"\",DBCS(LEFT(RIGHT(入力シート!$G$34,25-COLUMN()))),DBCS(LEFT(RIGHT(入力シート!$F$34,27-COLUMN())))),\"\")","v":""},null,{"$f":"IFERROR(IF(入力シート!$F$34=\"\",DBCS(LEFT(RIGHT(入力シート!$G$34,26-COLUMN()))),DBCS(LEFT(RIGHT(入力シート!$F$34,28-COLUMN())))),\"\")","v":""},null,{"$f":"IFERROR(IF(入力シート!$F$34=\"\",DBCS(LEFT(RIGHT(入力シート!$G$34,27-COLUMN()))),DBCS(LEFT(RIGHT(入力シート!$F$34,29-COLUMN())))),\"\")","v":""},null,{"$f":"IFERROR(IF(入力シート!$F$34=\"\",\"\",DBCS(LEFT(RIGHT(入力シート!$F$34,30-COLUMN())))),\"\")","v":""},null,{"$f":"IFERROR(IF(入力シート!$F$34=\"\",\"\",DBCS(LEFT(RIGHT(入力シート!$F$34,31-COLUMN())))),\"\")","v":""},null,"⑤",null,null,null,{"$f":"IF(入力シート!$H$34=\"\",\"\",IF(TEXT(入力シート!$H$34,\"g\")=\"S\",\"5．昭和\",IF(TEXT(入力シート!$H$34,\"g\")=\"H\",\"7．平成\",IF(TEXT(入力シート!$H$34,\"g\")=\"R\",\"9．令和\"))))","v":""},null,null,null,null,null,"年",null,null,"月",null,"日",null,null,"⑥"]
[null,null,null,null,null,null,null,null,null,null,null,null,null,null,null,null,null,null,null,null,null,null,null,null,null,null,null,null,null,null,null,null,null,null,null,null,null,null,null,null,null,null,null,null,null,null,null,null,null,null,null,null,null,null,{"$f":"IF(入力シート!$I$34=\"\",\"\",DBCS(入力シート!$I$34))","v":""}]
[null,null,null,"個人番号\n（基礎年\n金番号）",null,null,null,null,null,null,null,null,null,null,null,null,null,null,null,null,null,null,null,null,null,null,null,null,null,null,null,"喪　失\n年月日",null,null,null,null,null,null,null,null,null,{"$f":"IF(入力シート!$H$34=\"\",\"\",DBCS(TEXT(入力シート!$H$34,\"eemmdd\")))","v":""},null,null,null,null,null,null,null,"喪失\n(不該当)\n原因"]
[]
[]
[null,null,null,null,null,null,null,null,null,null,null,null,null,null,null,null,null,null,null,null,null,null,null,null,null,null,null,null,null,null,null,null,null,null,null,null,null,null,null,null,null,null,null,null,null,null,null,null,null,null,null,null,null,null,"（",null,{"$f":"IF(入力シート!$I$34=\"4.退職等\",入力シート!$J$34,IF(入力シート!$I$34=\"5.死亡\",入力シート!$J$34,\"\"))","v":""},null,null,null,null,null,null,null,null,{"$f":"IF(入力シート!$I$34=\"4.退職等\",\"退職等）\",IF(入力シート!$I$34=\"5.死亡\",\"死亡）\",\"）\"))","v":"）"}]
[]
[]
[]
[null,null,null,"⑦",null,null,null,null,null,null,null,null,null,null,null,null,null,null,null,null,null,null,null,null,null,null,null,null,null,null,null,null,null,null,null,"資格確認書等回収",null,null,null,null,null,null,null,null,null,null,null,null,null,"⑧",null,null,null,null,null,null,"70歳以上被用者不該当\n（退職日または死亡日を記入してください）"]
[null,null,null,null,null,null,null,null,{"$f":"IF(入力シート!$L$34=\"\",\"\",DBCS(入力シート!$L$34))","v":""}]
[null,null,null,null,null,null,null,null,null,null,null,null,null,null,null,null,null,null,null,null,null,null,null,null,null,null,null,null,null,null,null,null,null,null,null,null,null,null,null,"添　付",null,null,null,{"$f":"IF(入力シート!$N$34=\"\",\"\",DBCS(入力シート!$N$34))","v":""},null,null,"枚"]
[null,null,null,"備考"]
[null,null,null,null,null,null,null,null,null,null,null,null,null,null,null,null,null,null,null,null,null,null,null,null,null,null,null,null,null,null,null,null,null,null,null,null,null,null,null,null,null,null,null,null,null,null,null,null,null,"70歳\n不該当"]
[null,null,null,null,null,null,null,null,{"$f":"IF(入力シート!$M$34=\"\",\"\",DBCS(入力シート!$M$34))","v":""},null,null,null,null,null,null,null,null,null,null,null,null,null,null,null,null,null,null,null,null,null,null,null,null,null,null,null,null,null,null,null,null,null,null,null,null,null,null,null,null,null,null,null,null,"不該当年月日",null,null,null,null,null,null,null,null,"年",null,null,"月",null,"日"]
[null,null,null,null,null,null,null,null,null,null,null,null,null,null,null,null,null,null,null,null,null,null,null,null,null,null,null,null,null,null,null,null,null,null,null,null,null,null,null,"返不能",null,null,null,{"$f":"IF(入力シート!$O$34=\"\",\"\",DBCS(入力シート!$O$34))","v":""},null,null,"枚"]
[]
[]
[]
[]
[]
[]
[]
[]
[]
[]
[]
[]
[]
[]
[]
[]
[]
[]
[]
[]
[]
[]
[]
[]
[]
[]
[]
[]
[]
[]
[]
[]
[null,"被保険者\n１",null,"①",null,null,null,{"$f":"IF(入力シート!$B$35=\"\",\"\",DBCS(入力シート!$B$35))","v":""},null,null,null,null,null,null,null,null,null,null,null,null,null,null,null,null,null,null,null,"②",null,null,null,{"$f":"IFERROR(LEFT(入力シート!$C$35,FIND(\" \",入力シート!$C$35,1)-1),\"\")","v":""},null,null,null,null,null,null,null,null,null,null,{"$f":"IFERROR(RIGHT(入力シート!$C$35,LEN(入力シート!$C$35)-FIND(\" \",入力シート!$C$35,1)),\"\")","v":""},null,null,null,null,null,null,null,null,null,null,"③",null,null,null,{"$f":"IF(入力シート!$E$35=\"\",\"\",IF(TEXT(入力シート!$E$35,\"g\")=\"S\",\"5．昭和\",IF(TEXT(入力シート!$E$35,\"g\")=\"H\",\"7．平成\",IF(TEXT(入力シート!$E$35,\"g\")=\"R\",\"9．令和\"))))","v":""},null,null,null,null,"年",null,null,"月",null,"日"]
[]
[null,null,null,"被保険者\n整理番号",null,null,null,null,null,null,null,null,null,null,null,null,null,null,null,null,null,null,null,null,null,null,null,"氏名",null,null,null,null,null,null,null,null,null,null,null,null,null,null,null,null,null,null,null,null,null,null,null,null,null,"生年\n月日"]
[null,null,null,null,null,null,null,null,null,null,null,null,null,null,null,null,null,null,null,null,null,null,null,null,null,null,null,null,null,null,null,null,null,null,null,null,null,null,null,null,null,null,null,null,null,null,null,null,null,null,null,null,null,null,null,null,null,null,null,null,null,null,{"$f":"IF(入力シート!$E$35=\"\",\"\",DBCS(TEXT(入力シート!$E$35,\"eemmdd\")))","v":""}]
[null,null,null,null,null,null,null,null,null,null,null,null,null,null,null,null,null,null,null,null,null,null,null,null,null,null,null,null,null,null,null,{"$f":"IFERROR(LEFT(入力シート!$D$35,FIND(\"　\",入力シート!$D$35,1)-1),\"\")","v":""},null,null,null,null,null,null,null,null,null,null,{"$f":"IFERROR(RIGHT(入力シート!$D$35,LEN(入力シート!$D$35)-FIND(\"　\",入力シート!$D$35,1)),\"\")","v":""}]
[]
[]
[]
[]
[]
[null,null,null,"④",null,null,null,{"$f":"IFERROR(IF(入力シート!$F$35=\"\",DBCS(LEFT(RIGHT(入力シート!$G$35,18-COLUMN()))),DBCS(LEFT(RIGHT(入力シート!$F$35,20-COLUMN())))),\"\")","v":""},null,{"$f":"IFERROR(IF(入力シート!$F$35=\"\",DBCS(LEFT(RIGHT(入力シート!$G$35,19-COLUMN()))),DBCS(LEFT(RIGHT(入力シート!$F$35,21-COLUMN())))),\"\")","v":""},null,{"$f":"IFERROR(IF(入力シート!$F$35=\"\",DBCS(LEFT(RIGHT(入力シート!$G$35,20-COLUMN()))),DBCS(LEFT(RIGHT(入力シート!$F$35,22-COLUMN())))),\"\")","v":""},null,{"$f":"IFERROR(IF(入力シート!$F$35=\"\",DBCS(LEFT(RIGHT(入力シート!$G$35,21-COLUMN()))),DBCS(LEFT(RIGHT(入力シート!$F$35,23-COLUMN())))),\"\")","v":""},null,{"$f":"IFERROR(IF(入力シート!$F$35=\"\",DBCS(LEFT(RIGHT(入力シート!$G$35,22-COLUMN()))),DBCS(LEFT(RIGHT(入力シート!$F$35,24-COLUMN())))),\"\")","v":""},null,{"$f":"IFERROR(IF(入力シート!$F$35=\"\",DBCS(LEFT(RIGHT(入力シート!$G$35,23-COLUMN()))),DBCS(LEFT(RIGHT(入力シート!$F$35,25-COLUMN())))),\"\")","v":""},null,{"$f":"IFERROR(IF(入力シート!$F$35=\"\",DBCS(LEFT(RIGHT(入力シート!$G$35,24-COLUMN()))),DBCS(LEFT(RIGHT(入力シート!$F$35,26-COLUMN())))),\"\")","v":""},null,{"$f":"IFERROR(IF(入力シート!$F$35=\"\",DBCS(LEFT(RIGHT(入力シート!$G$35,25-COLUMN()))),DBCS(LEFT(RIGHT(入力シート!$F$35,27-COLUMN())))),\"\")","v":""},null,{"$f":"IFERROR(IF(入力シート!$F$35=\"\",DBCS(LEFT(RIGHT(入力シート!$G$35,26-COLUMN()))),DBCS(LEFT(RIGHT(入力シート!$F$35,28-COLUMN())))),\"\")","v":""},null,{"$f":"IFERROR(IF(入力シート!$F$35=\"\",DBCS(LEFT(RIGHT(入力シート!$G$35,27-COLUMN()))),DBCS(LEFT(RIGHT(入力シート!$F$35,29-COLUMN())))),\"\")","v":""},null,{"$f":"IFERROR(IF(入力シート!$F$35=\"\",\"\",DBCS(LEFT(RIGHT(入力シート!$F$35,30-COLUMN())))),\"\")","v":""},null,{"$f":"IFERROR(IF(入力シート!$F$35=\"\",\"\",DBCS(LEFT(RIGHT(入力シート!$F$35,31-COLUMN())))),\"\")","v":""},null,"⑤",null,null,null,{"$f":"IF(入力シート!$H$35=\"\",\"\",IF(TEXT(入力シート!$H$35,\"g\")=\"S\",\"5．昭和\",IF(TEXT(入力シート!$H$35,\"g\")=\"H\",\"7．平成\",IF(TEXT(入力シート!$H$35,\"g\")=\"R\",\"9．令和\"))))","v":""},null,null,null,null,null,"年",null,null,"月",null,"日",null,null,"⑥"]
[null,null,null,null,null,null,null,null,null,null,null,null,null,null,null,null,null,null,null,null,null,null,null,null,null,null,null,null,null,null,null,null,null,null,null,null,null,null,null,null,null,null,null,null,null,null,null,null,null,null,null,null,null,null,{"$f":"IF(入力シート!$I$35=\"\",\"\",DBCS(入力シート!$I$35))","v":""}]
[null,null,null,"個人番号\n（基礎年\n金番号）",null,null,null,null,null,null,null,null,null,null,null,null,null,null,null,null,null,null,null,null,null,null,null,null,null,null,null,"喪　失\n年月日",null,null,null,null,null,null,null,null,null,{"$f":"IF(入力シート!$H$35=\"\",\"\",DBCS(TEXT(入力シート!$H$35,\"eemmdd\")))","v":""},null,null,null,null,null,null,null,"喪失\n(不該当)\n原因"]
[]
[]
[null,null,null,null,null,null,null,null,null,null,null,null,null,null,null,null,null,null,null,null,null,null,null,null,null,null,null,null,null,null,null,null,null,null,null,null,null,null,null,null,null,null,null,null,null,null,null,null,null,null,null,null,null,null,"（",null,{"$f":"IF(入力シート!$I$35=\"4.退職等\",入力シート!$J$35,IF(入力シート!$I$35=\"5.死亡\",入力シート!$J$35,\"\"))","v":""},null,null,null,null,null,null,null,null,{"$f":"IF(入力シート!$I$35=\"4.退職等\",\"退職等）\",IF(入力シート!$I$35=\"5.死亡\",\"死亡）\",\"）\"))","v":"）"}]
[]
[]
[]
[null,null,null,"⑦",null,null,null,null,null,null,null,null,null,null,null,null,null,null,null,null,null,null,null,null,null,null,null,null,null,null,null,null,null,null,null,"資格確認書等回収",null,null,null,null,null,null,null,null,null,null,null,null,null,"⑧",null,null,null,null,null,null,"70歳以上被用者不該当\n（退職日または死亡日を記入してください）"]
[null,null,null,null,null,null,null,null,{"$f":"IF(入力シート!$L$35=\"\",\"\",DBCS(入力シート!$L$35))","v":""}]
[null,null,null,null,null,null,null,null,null,null,null,null,null,null,null,null,null,null,null,null,null,null,null,null,null,null,null,null,null,null,null,null,null,null,null,null,null,null,null,"添　付",null,null,null,{"$f":"IF(入力シート!$N$35=\"\",\"\",DBCS(入力シート!$N$35))","v":""},null,null,"枚"]
[null,null,null,"備考"]
[null,null,null,null,null,null,null,null,null,null,null,null,null,null,null,null,null,null,null,null,null,null,null,null,null,null,null,null,null,null,null,null,null,null,null,null,null,null,null,null,null,null,null,null,null,null,null,null,null,"70歳\n不該当"]
[null,null,null,null,null,null,null,null,{"$f":"IF(入力シート!$M$35=\"\",\"\",DBCS(入力シート!$M$35))","v":""},null,null,null,null,null,null,null,null,null,null,null,null,null,null,null,null,null,null,null,null,null,null,null,null,null,null,null,null,null,null,null,null,null,null,null,null,null,null,null,null,null,null,null,null,"不該当年月日",null,null,null,null,null,null,null,null,"年",null,null,"月",null,"日"]
[null,null,null,null,null,null,null,null,null,null,null,null,null,null,null,null,null,null,null,null,null,null,null,null,null,null,null,null,null,null,null,null,null,null,null,null,null,null,null,"返不能",null,null,null,{"$f":"IF(入力シート!$O$35=\"\",\"\",DBCS(入力シート!$O$35))","v":""},null,null,"枚"]
[]
[]
[]
[]
[null,"被保険者\n２",null,"①",null,null,null,{"$f":"IF(入力シート!$B$36=\"\",\"\",DBCS(入力シート!$B$36))","v":""},null,null,null,null,null,null,null,null,null,null,null,null,null,null,null,null,null,null,null,"②",null,null,null,{"$f":"IFERROR(LEFT(入力シート!$C$36,FIND(\" \",入力シート!$C$36,1)-1),\"\")","v":""},null,null,null,null,null,null,null,null,null,null,{"$f":"IFERROR(RIGHT(入力シート!$C$36,LEN(入力シート!$C$36)-FIND(\" \",入力シート!$C$36,1)),\"\")","v":""},null,null,null,null,null,null,null,null,null,null,"③",null,null,null,{"$f":"IF(入力シート!$E$36=\"\",\"\",IF(TEXT(入力シート!$E$36,\"g\")=\"S\",\"5．昭和\",IF(TEXT(入力シート!$E$36,\"g\")=\"H\",\"7．平成\",IF(TEXT(入力シート!$E$36,\"g\")=\"R\",\"9．令和\"))))","v":""},null,null,null,null,"年",null,null,"月",null,"日"]
[]
[null,null,null,"被保険者\n整理番号",null,null,null,null,null,null,null,null,null,null,null,null,null,null,null,null,null,null,null,null,null,null,null,"氏名",null,null,null,null,null,null,null,null,null,null,null,null,null,null,null,null,null,null,null,null,null,null,null,null,null,"生年\n月日"]
[null,null,null,null,null,null,null,null,null,null,null,null,null,null,null,null,null,null,null,null,null,null,null,null,null,null,null,null,null,null,null,null,null,null,null,null,null,null,null,null,null,null,null,null,null,null,null,null,null,null,null,null,null,null,null,null,null,null,null,null,null,null,{"$f":"IF(入力シート!$E$36=\"\",\"\",DBCS(TEXT(入力シート!$E$36,\"eemmdd\")))","v":""}]
[null,null,null,null,null,null,null,null,null,null,null,null,null,null,null,null,null,null,null,null,null,null,null,null,null,null,null,null,null,null,null,{"$f":"IFERROR(LEFT(入力シート!$D$36,FIND(\"　\",入力シート!$D$36,1)-1),\"\")","v":""},null,null,null,null,null,null,null,null,null,null,{"$f":"IFERROR(RIGHT(入力シート!$D$36,LEN(入力シート!$D$36)-FIND(\"　\",入力シート!$D$36,1)),\"\")","v":""}]
[]
[]
[]
[]
[]
[null,null,null,"④",null,null,null,{"$f":"IFERROR(IF(入力シート!$F$36=\"\",DBCS(LEFT(RIGHT(入力シート!$G$36,18-COLUMN()))),DBCS(LEFT(RIGHT(入力シート!$F$36,20-COLUMN())))),\"\")","v":""},null,{"$f":"IFERROR(IF(入力シート!$F$36=\"\",DBCS(LEFT(RIGHT(入力シート!$G$36,19-COLUMN()))),DBCS(LEFT(RIGHT(入力シート!$F$36,21-COLUMN())))),\"\")","v":""},null,{"$f":"IFERROR(IF(入力シート!$F$36=\"\",DBCS(LEFT(RIGHT(入力シート!$G$36,20-COLUMN()))),DBCS(LEFT(RIGHT(入力シート!$F$36,22-COLUMN())))),\"\")","v":""},null,{"$f":"IFERROR(IF(入力シート!$F$36=\"\",DBCS(LEFT(RIGHT(入力シート!$G$36,21-COLUMN()))),DBCS(LEFT(RIGHT(入力シート!$F$36,23-COLUMN())))),\"\")","v":""},null,{"$f":"IFERROR(IF(入力シート!$F$36=\"\",DBCS(LEFT(RIGHT(入力シート!$G$36,22-COLUMN()))),DBCS(LEFT(RIGHT(入力シート!$F$36,24-COLUMN())))),\"\")","v":""},null,{"$f":"IFERROR(IF(入力シート!$F$36=\"\",DBCS(LEFT(RIGHT(入力シート!$G$36,23-COLUMN()))),DBCS(LEFT(RIGHT(入力シート!$F$36,25-COLUMN())))),\"\")","v":""},null,{"$f":"IFERROR(IF(入力シート!$F$36=\"\",DBCS(LEFT(RIGHT(入力シート!$G$36,24-COLUMN()))),DBCS(LEFT(RIGHT(入力シート!$F$36,26-COLUMN())))),\"\")","v":""},null,{"$f":"IFERROR(IF(入力シート!$F$36=\"\",DBCS(LEFT(RIGHT(入力シート!$G$36,25-COLUMN()))),DBCS(LEFT(RIGHT(入力シート!$F$36,27-COLUMN())))),\"\")","v":""},null,{"$f":"IFERROR(IF(入力シート!$F$36=\"\",DBCS(LEFT(RIGHT(入力シート!$G$36,26-COLUMN()))),DBCS(LEFT(RIGHT(入力シート!$F$36,28-COLUMN())))),\"\")","v":""},null,{"$f":"IFERROR(IF(入力シート!$F$36=\"\",DBCS(LEFT(RIGHT(入力シート!$G$36,27-COLUMN()))),DBCS(LEFT(RIGHT(入力シート!$F$36,29-COLUMN())))),\"\")","v":""},null,{"$f":"IFERROR(IF(入力シート!$F$36=\"\",\"\",DBCS(LEFT(RIGHT(入力シート!$F$36,30-COLUMN())))),\"\")","v":""},null,{"$f":"IFERROR(IF(入力シート!$F$36=\"\",\"\",DBCS(LEFT(RIGHT(入力シート!$F$36,31-COLUMN())))),\"\")","v":""},null,"⑤",null,null,null,{"$f":"IF(入力シート!$H$36=\"\",\"\",IF(TEXT(入力シート!$H$36,\"g\")=\"S\",\"5．昭和\",IF(TEXT(入力シート!$H$36,\"g\")=\"H\",\"7．平成\",IF(TEXT(入力シート!$H$36,\"g\")=\"R\",\"9．令和\"))))","v":""},null,null,null,null,null,"年",null,null,"月",null,"日",null,null,"⑥"]
[null,null,null,null,null,null,null,null,null,null,null,null,null,null,null,null,null,null,null,null,null,null,null,null,null,null,null,null,null,null,null,null,null,null,null,null,null,null,null,null,null,null,null,null,null,null,null,null,null,null,null,null,null,null,{"$f":"IF(入力シート!$I$36=\"\",\"\",DBCS(入力シート!$I$36))","v":""}]
[null,null,null,"個人番号\n（基礎年\n金番号）",null,null,null,null,null,null,null,null,null,null,null,null,null,null,null,null,null,null,null,null,null,null,null,null,null,null,null,"喪　失\n年月日",null,null,null,null,null,null,null,null,null,{"$f":"IF(入力シート!$H$36=\"\",\"\",DBCS(TEXT(入力シート!$H$36,\"eemmdd\")))","v":""},null,null,null,null,null,null,null,"喪失\n(不該当)\n原因"]
[]
[]
[null,null,null,null,null,null,null,null,null,null,null,null,null,null,null,null,null,null,null,null,null,null,null,null,null,null,null,null,null,null,null,null,null,null,null,null,null,null,null,null,null,null,null,null,null,null,null,null,null,null,null,null,null,null,"（",null,{"$f":"IF(入力シート!$I$36=\"4.退職等\",入力シート!$J$36,IF(入力シート!$I$36=\"5.死亡\",入力シート!$J$36,\"\"))","v":""},null,null,null,null,null,null,null,null,{"$f":"IF(入力シート!$I$36=\"4.退職等\",\"退職等）\",IF(入力シート!$I$36=\"5.死亡\",\"死亡）\",\"）\"))","v":"）"}]
[]
[]
[]
[null,null,null,"⑦",null,null,null,null,null,null,null,null,null,null,null,null,null,null,null,null,null,null,null,null,null,null,null,null,null,null,null,null,null,null,null,"資格確認書等回収",null,null,null,null,null,null,null,null,null,null,null,null,null,"⑧",null,null,null,null,null,null,"70歳以上被用者不該当\n（退職日または死亡日を記入してください）"]
[null,null,null,null,null,null,null,null,{"$f":"IF(入力シート!$L$36=\"\",\"\",DBCS(入力シート!$L$36))","v":""}]
[null,null,null,null,null,null,null,null,null,null,null,null,null,null,null,null,null,null,null,null,null,null,null,null,null,null,null,null,null,null,null,null,null,null,null,null,null,null,null,"添　付",null,null,null,{"$f":"IF(入力シート!$N$36=\"\",\"\",DBCS(入力シート!$N$36))","v":""},null,null,"枚"]
[null,null,null,"備考"]
[null,null,null,null,null,null,null,null,null,null,null,null,null,null,null,null,null,null,null,null,null,null,null,null,null,null,null,null,null,null,null,null,null,null,null,null,null,null,null,null,null,null,null,null,null,null,null,null,null,"70歳\n不該当"]
[null,null,null,null,null,null,null,null,{"$f":"IF(入力シート!$M$36=\"\",\"\",DBCS(入力シート!$M$36))","v":""},null,null,null,null,null,null,null,null,null,null,null,null,null,null,null,null,null,null,null,null,null,null,null,null,null,null,null,null,null,null,null,null,null,null,null,null,null,null,null,null,null,null,null,null,"不該当年月日",null,null,null,null,null,null,null,null,"年",null,null,"月",null,"日"]
[null,null,null,null,null,null,null,null,null,null,null,null,null,null,null,null,null,null,null,null,null,null,null,null,null,null,null,null,null,null,null,null,null,null,null,null,null,null,null,"返不能",null,null,null,{"$f":"IF(入力シート!$O$36=\"\",\"\",DBCS(入力シート!$O$36))","v":""},null,null,"枚"]
[]
[]
[]
[]
[null,"被保険者\n３",null,"①",null,null,null,{"$f":"IF(入力シート!$B$37=\"\",\"\",DBCS(入力シート!$B$37))","v":""},null,null,null,null,null,null,null,null,null,null,null,null,null,null,null,null,null,null,null,"②",null,null,null,{"$f":"IFERROR(LEFT(入力シート!$C$37,FIND(\" \",入力シート!$C$37,1)-1),\"\")","v":""},null,null,null,null,null,null,null,null,null,null,{"$f":"IFERROR(RIGHT(入力シート!$C$37,LEN(入力シート!$C$37)-FIND(\" \",入力シート!$C$37,1)),\"\")","v":""},null,null,null,null,null,null,null,null,null,null,"③",null,null,null,{"$f":"IF(入力シート!$E$37=\"\",\"\",IF(TEXT(入力シート!$E$37,\"g\")=\"S\",\"5．昭和\",IF(TEXT(入力シート!$E$37,\"g\")=\"H\",\"7．平成\",IF(TEXT(入力シート!$E$37,\"g\")=\"R\",\"9．令和\"))))","v":""},null,null,null,null,"年",null,null,"月",null,"日"]
[]
[null,null,null,"被保険者\n整理番号",null,null,null,null,null,null,null,null,null,null,null,null,null,null,null,null,null,null,null,null,null,null,null,"氏名",null,null,null,null,null,null,null,null,null,null,null,null,null,null,null,null,null,null,null,null,null,null,null,null,null,"生年\n月日"]
[null,null,null,null,null,null,null,null,null,null,null,null,null,null,null,null,null,null,null,null,null,null,null,null,null,null,null,null,null,null,null,null,null,null,null,null,null,null,null,null,null,null,null,null,null,null,null,null,null,null,null,null,null,null,null,null,null,null,null,null,null,null,{"$f":"IF(入力シート!$E$37=\"\",\"\",DBCS(TEXT(入力シート!$E$37,\"eemmdd\")))","v":""}]
[null,null,null,null,null,null,null,null,null,null,null,null,null,null,null,null,null,null,null,null,null,null,null,null,null,null,null,null,null,null,null,{"$f":"IFERROR(LEFT(入力シート!$D$37,FIND(\"　\",入力シート!$D$37,1)-1),\"\")","v":""},null,null,null,null,null,null,null,null,null,null,{"$f":"IFERROR(RIGHT(入力シート!$D$37,LEN(入力シート!$D$37)-FIND(\"　\",入力シート!$D$37,1)),\"\")","v":""}]
[]
[]
[]
[]
[]
[null,null,null,"④",null,null,null,{"$f":"IFERROR(IF(入力シート!$F$37=\"\",DBCS(LEFT(RIGHT(入力シート!$G$37,18-COLUMN()))),DBCS(LEFT(RIGHT(入力シート!$F$37,20-COLUMN())))),\"\")","v":""},null,{"$f":"IFERROR(IF(入力シート!$F$37=\"\",DBCS(LEFT(RIGHT(入力シート!$G$37,19-COLUMN()))),DBCS(LEFT(RIGHT(入力シート!$F$37,21-COLUMN())))),\"\")","v":""},null,{"$f":"IFERROR(IF(入力シート!$F$37=\"\",DBCS(LEFT(RIGHT(入力シート!$G$37,20-COLUMN()))),DBCS(LEFT(RIGHT(入力シート!$F$37,22-COLUMN())))),\"\")","v":""},null,{"$f":"IFERROR(IF(入力シート!$F$37=\"\",DBCS(LEFT(RIGHT(入力シート!$G$37,21-COLUMN()))),DBCS(LEFT(RIGHT(入力シート!$F$37,23-COLUMN())))),\"\")","v":""},null,{"$f":"IFERROR(IF(入力シート!$F$37=\"\",DBCS(LEFT(RIGHT(入力シート!$G$37,22-COLUMN()))),DBCS(LEFT(RIGHT(入力シート!$F$37,24-COLUMN())))),\"\")","v":""},null,{"$f":"IFERROR(IF(入力シート!$F$37=\"\",DBCS(LEFT(RIGHT(入力シート!$G$37,23-COLUMN()))),DBCS(LEFT(RIGHT(入力シート!$F$37,25-COLUMN())))),\"\")","v":""},null,{"$f":"IFERROR(IF(入力シート!$F$37=\"\",DBCS(LEFT(RIGHT(入力シート!$G$37,24-COLUMN()))),DBCS(LEFT(RIGHT(入力シート!$F$37,26-COLUMN())))),\"\")","v":""},null,{"$f":"IFERROR(IF(入力シート!$F$37=\"\",DBCS(LEFT(RIGHT(入力シート!$G$37,25-COLUMN()))),DBCS(LEFT(RIGHT(入力シート!$F$37,27-COLUMN())))),\"\")","v":""},null,{"$f":"IFERROR(IF(入力シート!$F$37=\"\",DBCS(LEFT(RIGHT(入力シート!$G$37,26-COLUMN()))),DBCS(LEFT(RIGHT(入力シート!$F$37,28-COLUMN())))),\"\")","v":""},null,{"$f":"IFERROR(IF(入力シート!$F$37=\"\",DBCS(LEFT(RIGHT(入力シート!$G$37,27-COLUMN()))),DBCS(LEFT(RIGHT(入力シート!$F$37,29-COLUMN())))),\"\")","v":""},null,{"$f":"IFERROR(IF(入力シート!$F$37=\"\",\"\",DBCS(LEFT(RIGHT(入力シート!$F$37,30-COLUMN())))),\"\")","v":""},null,{"$f":"IFERROR(IF(入力シート!$F$37=\"\",\"\",DBCS(LEFT(RIGHT(入力シート!$F$37,31-COLUMN())))),\"\")","v":""},null,"⑤",null,null,null,{"$f":"IF(入力シート!$H$37=\"\",\"\",IF(TEXT(入力シート!$H$37,\"g\")=\"S\",\"5．昭和\",IF(TEXT(入力シート!$H$37,\"g\")=\"H\",\"7．平成\",IF(TEXT(入力シート!$H$37,\"g\")=\"R\",\"9．令和\"))))","v":""},null,null,null,null,null,"年",null,null,"月",null,"日",null,null,"⑥"]
[null,null,null,null,null,null,null,null,null,null,null,null,null,null,null,null,null,null,null,null,null,null,null,null,null,null,null,null,null,null,null,null,null,null,null,null,null,null,null,null,null,null,null,null,null,null,null,null,null,null,null,null,null,null,{"$f":"IF(入力シート!$I$37=\"\",\"\",DBCS(入力シート!$I$37))","v":""}]
[null,null,null,"個人番号\n（基礎年\n金番号）",null,null,null,null,null,null,null,null,null,null,null,null,null,null,null,null,null,null,null,null,null,null,null,null,null,null,null,"喪　失\n年月日",null,null,null,null,null,null,null,null,null,{"$f":"IF(入力シート!$H$37=\"\",\"\",DBCS(TEXT(入力シート!$H$37,\"eemmdd\")))","v":""},null,null,null,null,null,null,null,"喪失\n(不該当)\n原因"]
[]
[]
[null,null,null,null,null,null,null,null,null,null,null,null,null,null,null,null,null,null,null,null,null,null,null,null,null,null,null,null,null,null,null,null,null,null,null,null,null,null,null,null,null,null,null,null,null,null,null,null,null,null,null,null,null,null,"（",null,{"$f":"IF(入力シート!$I$37=\"4.退職等\",入力シート!$J$37,IF(入力シート!$I$37=\"5.死亡\",入力シート!$J$37,\"\"))","v":""},null,null,null,null,null,null,null,null,{"$f":"IF(入力シート!$I$37=\"4.退職等\",\"退職等）\",IF(入力シート!$I$37=\"5.死亡\",\"死亡）\",\"）\"))","v":"）"}]
[]
[]
[]
[null,null,null,"⑦",null,null,null,null,null,null,null,null,null,null,null,null,null,null,null,null,null,null,null,null,null,null,null,null,null,null,null,null,null,null,null,"資格確認書等回収",null,null,null,null,null,null,null,null,null,null,null,null,null,"⑧",null,null,null,null,null,null,"70歳以上被用者不該当\n（退職日または死亡日を記入してください）"]
[null,null,null,null,null,null,null,null,{"$f":"IF(入力シート!$L$37=\"\",\"\",DBCS(入力シート!$L$37))","v":""}]
[null,null,null,null,null,null,null,null,null,null,null,null,null,null,null,null,null,null,null,null,null,null,null,null,null,null,null,null,null,null,null,null,null,null,null,null,null,null,null,"添　付",null,null,null,{"$f":"IF(入力シート!$N$37=\"\",\"\",DBCS(入力シート!$N$37))","v":""},null,null,"枚"]
[null,null,null,"備考"]
[null,null,null,null,null,null,null,null,null,null,null,null,null,null,null,null,null,null,null,null,null,null,null,null,null,null,null,null,null,null,null,null,null,null,null,null,null,null,null,null,null,null,null,null,null,null,null,null,null,"70歳\n不該当"]
[null,null,null,null,null,null,null,null,{"$f":"IF(入力シート!$M$37=\"\",\"\",DBCS(入力シート!$M$37))","v":""},null,null,null,null,null,null,null,null,null,null,null,null,null,null,null,null,null,null,null,null,null,null,null,null,null,null,null,null,null,null,null,null,null,null,null,null,null,null,null,null,null,null,null,null,"不該当年月日",null,null,null,null,null,null,null,null,"年",null,null,"月",null,"日"]
[null,null,null,null,null,null,null,null,null,null,null,null,null,null,null,null,null,null,null,null,null,null,null,null,null,null,null,null,null,null,null,null,null,null,null,null,null,null,null,"返不能",null,null,null,{"$f":"IF(入力シート!$O$37=\"\",\"\",DBCS(入力シート!$O$37))","v":""},null,null,"枚"]
[]
[]
[]
[]
[null,"被保険者\n４",null,"①",null,null,null,{"$f":"IF(入力シート!$B$38=\"\",\"\",DBCS(入力シート!$B$38))","v":""},null,null,null,null,null,null,null,null,null,null,null,null,null,null,null,null,null,null,null,"②",null,null,null,{"$f":"IFERROR(LEFT(入力シート!$C$38,FIND(\" \",入力シート!$C$38,1)-1),\"\")","v":""},null,null,null,null,null,null,null,null,null,null,{"$f":"IFERROR(RIGHT(入力シート!$C$38,LEN(入力シート!$C$38)-FIND(\" \",入力シート!$C$38,1)),\"\")","v":""},null,null,null,null,null,null,null,null,null,null,"③",null,null,null,{"$f":"IF(入力シート!$E$38=\"\",\"\",IF(TEXT(入力シート!$E$38,\"g\")=\"S\",\"5．昭和\",IF(TEXT(入力シート!$E$38,\"g\")=\"H\",\"7．平成\",IF(TEXT(入力シート!$E$38,\"g\")=\"R\",\"9．令和\"))))","v":""},null,null,null,null,"年",null,null,"月",null,"日"]
[]
[null,null,null,"被保険者\n整理番号",null,null,null,null,null,null,null,null,null,null,null,null,null,null,null,null,null,null,null,null,null,null,null,"氏名",null,null,null,null,null,null,null,null,null,null,null,null,null,null,null,null,null,null,null,null,null,null,null,null,null,"生年\n月日"]
[null,null,null,null,null,null,null,null,null,null,null,null,null,null,null,null,null,null,null,null,null,null,null,null,null,null,null,null,null,null,null,null,null,null,null,null,null,null,null,null,null,null,null,null,null,null,null,null,null,null,null,null,null,null,null,null,null,null,null,null,null,null,{"$f":"IF(入力シート!$E$38=\"\",\"\",DBCS(TEXT(入力シート!$E$38,\"eemmdd\")))","v":""}]
[null,null,null,null,null,null,null,null,null,null,null,null,null,null,null,null,null,null,null,null,null,null,null,null,null,null,null,null,null,null,null,{"$f":"IFERROR(LEFT(入力シート!$D$38,FIND(\"　\",入力シート!$D$38,1)-1),\"\")","v":""},null,null,null,null,null,null,null,null,null,null,{"$f":"IFERROR(RIGHT(入力シート!$D$38,LEN(入力シート!$D$38)-FIND(\"　\",入力シート!$D$38,1)),\"\")","v":""}]
[]
[]
[]
[]
[]
[null,null,null,"④",null,null,null,{"$f":"IFERROR(IF(入力シート!$F$38=\"\",DBCS(LEFT(RIGHT(入力シート!$G$38,18-COLUMN()))),DBCS(LEFT(RIGHT(入力シート!$F$38,20-COLUMN())))),\"\")","v":""},null,{"$f":"IFERROR(IF(入力シート!$F$38=\"\",DBCS(LEFT(RIGHT(入力シート!$G$38,19-COLUMN()))),DBCS(LEFT(RIGHT(入力シート!$F$38,21-COLUMN())))),\"\")","v":""},null,{"$f":"IFERROR(IF(入力シート!$F$38=\"\",DBCS(LEFT(RIGHT(入力シート!$G$38,20-COLUMN()))),DBCS(LEFT(RIGHT(入力シート!$F$38,22-COLUMN())))),\"\")","v":""},null,{"$f":"IFERROR(IF(入力シート!$F$38=\"\",DBCS(LEFT(RIGHT(入力シート!$G$38,21-COLUMN()))),DBCS(LEFT(RIGHT(入力シート!$F$38,23-COLUMN())))),\"\")","v":""},null,{"$f":"IFERROR(IF(入力シート!$F$38=\"\",DBCS(LEFT(RIGHT(入力シート!$G$38,22-COLUMN()))),DBCS(LEFT(RIGHT(入力シート!$F$38,24-COLUMN())))),\"\")","v":""},null,{"$f":"IFERROR(IF(入力シート!$F$38=\"\",DBCS(LEFT(RIGHT(入力シート!$G$38,23-COLUMN()))),DBCS(LEFT(RIGHT(入力シート!$F$38,25-COLUMN())))),\"\")","v":""},null,{"$f":"IFERROR(IF(入力シート!$F$38=\"\",DBCS(LEFT(RIGHT(入力シート!$G$38,24-COLUMN()))),DBCS(LEFT(RIGHT(入力シート!$F$38,26-COLUMN())))),\"\")","v":""},null,{"$f":"IFERROR(IF(入力シート!$F$38=\"\",DBCS(LEFT(RIGHT(入力シート!$G$38,25-COLUMN()))),DBCS(LEFT(RIGHT(入力シート!$F$38,27-COLUMN())))),\"\")","v":""},null,{"$f":"IFERROR(IF(入力シート!$F$38=\"\",DBCS(LEFT(RIGHT(入力シート!$G$38,26-COLUMN()))),DBCS(LEFT(RIGHT(入力シート!$F$38,28-COLUMN())))),\"\")","v":""},null,{"$f":"IFERROR(IF(入力シート!$F$38=\"\",DBCS(LEFT(RIGHT(入力シート!$G$38,27-COLUMN()))),DBCS(LEFT(RIGHT(入力シート!$F$38,29-COLUMN())))),\"\")","v":""},null,{"$f":"IFERROR(IF(入力シート!$F$38=\"\",\"\",DBCS(LEFT(RIGHT(入力シート!$F$38,30-COLUMN())))),\"\")","v":""},null,{"$f":"IFERROR(IF(入力シート!$F$38=\"\",\"\",DBCS(LEFT(RIGHT(入力シート!$F$38,31-COLUMN())))),\"\")","v":""},null,"⑤",null,null,null,{"$f":"IF(入力シート!$H$38=\"\",\"\",IF(TEXT(入力シート!$H$38,\"g\")=\"S\",\"5．昭和\",IF(TEXT(入力シート!$H$38,\"g\")=\"H\",\"7．平成\",IF(TEXT(入力シート!$H$38,\"g\")=\"R\",\"9．令和\"))))","v":""},null,null,null,null,null,"年",null,null,"月",null,"日",null,null,"⑥"]
[null,null,null,null,null,null,null,null,null,null,null,null,null,null,null,null,null,null,null,null,null,null,null,null,null,null,null,null,null,null,null,null,null,null,null,null,null,null,null,null,null,null,null,null,null,null,null,null,null,null,null,null,null,null,{"$f":"IF(入力シート!$I$38=\"\",\"\",DBCS(入力シート!$I$38))","v":""}]
[null,null,null,"個人番号\n（基礎年\n金番号）",null,null,null,null,null,null,null,null,null,null,null,null,null,null,null,null,null,null,null,null,null,null,null,null,null,null,null,"喪　失\n年月日",null,null,null,null,null,null,null,null,null,{"$f":"IF(入力シート!$H$38=\"\",\"\",DBCS(TEXT(入力シート!$H$38,\"eemmdd\")))","v":""},null,null,null,null,null,null,null,"喪失\n(不該当)\n原因"]
[]
[]
[null,null,null,null,null,null,null,null,null,null,null,null,null,null,null,null,null,null,null,null,null,null,null,null,null,null,null,null,null,null,null,null,null,null,null,null,null,null,null,null,null,null,null,null,null,null,null,null,null,null,null,null,null,null,"（",null,{"$f":"IF(入力シート!$I$38=\"4.退職等\",入力シート!$J$38,IF(入力シート!$I$38=\"5.死亡\",入力シート!$J$38,\"\"))","v":""},null,null,null,null,null,null,null,null,{"$f":"IF(入力シート!$I$38=\"4.退職等\",\"退職等）\",IF(入力シート!$I$38=\"5.死亡\",\"死亡）\",\"）\"))","v":"）"}]
[]
[]
[]
[null,null,null,"⑦",null,null,null,null,null,null,null,null,null,null,null,null,null,null,null,null,null,null,null,null,null,null,null,null,null,null,null,null,null,null,null,"資格確認書等回収",null,null,null,null,null,null,null,null,null,null,null,null,null,"⑧",null,null,null,null,null,null,"70歳以上被用者不該当\n（退職日または死亡日を記入してください）"]
[null,null,null,null,null,null,null,null,{"$f":"IF(入力シート!$L$38=\"\",\"\",DBCS(入力シート!$L$38))","v":""}]
[null,null,null,null,null,null,null,null,null,null,null,null,null,null,null,null,null,null,null,null,null,null,null,null,null,null,null,null,null,null,null,null,null,null,null,null,null,null,null,"添　付",null,null,null,{"$f":"IF(入力シート!$N$38=\"\",\"\",DBCS(入力シート!$N$38))","v":""},null,null,"枚"]
[null,null,null,"備考"]
[null,null,null,null,null,null,null,null,null,null,null,null,null,null,null,null,null,null,null,null,null,null,null,null,null,null,null,null,null,null,null,null,null,null,null,null,null,null,null,null,null,null,null,null,null,null,null,null,null,"70歳\n不該当"]
[null,null,null,null,null,null,null,null,{"$f":"IF(入力シート!$M$38=\"\",\"\",DBCS(入力シート!$M$38))","v":""},null,null,null,null,null,null,null,null,null,null,null,null,null,null,null,null,null,null,null,null,null,null,null,null,null,null,null,null,null,null,null,null,null,null,null,null,null,null,null,null,null,null,null,null,"不該当年月日",null,null,null,null,null,null,null,null,"年",null,null,"月",null,"日"]
[null,null,null,null,null,null,null,null,null,null,null,null,null,null,null,null,null,null,null,null,null,null,null,null,null,null,null,null,null,null,null,null,null,null,null,null,null,null,null,"返不能",null,null,null,{"$f":"IF(入力シート!$O$38=\"\",\"\",DBCS(入力シート!$O$38))","v":""},null,null,"枚"]

{"sheet":"印刷_基金","index":3,"n_rows":908,"n_cols":68,"rows_kept":908,"cut":false,"hidden":false,"merged":[[168,8,170,47],[171,53,171,69],[162,3,164,6],[162,49,164,52],[163,8,164,9],[163,10,164,19],[163,53,166,62],[163,63,166,69],[165,3,171,6],[165,8,167,47],[165,49,171,52],[167,53,170,69],[143,67,145,68],[145,3,152,6],[145,53,152,56],[146,62,152,69],[147,31,152,41],[147,42,152,52],[155,3,161,6],[155,31,161,34],[155,41,161,48],[155,49,161,52],[153,25,161,26],[44,39,50,69],[43,8,47,35],[153,27,161,30],[153,31,154,34],[153,35,161,40],[153,41,154,43],[153,44,154,45],[153,13,161,14],[153,15,161,16],[153,17,161,18],[153,19,161,20],[153,21,161,22],[153,23,161,24],[113,67,115,68],[132,3,134,6],[132,49,134,52],[132,53,132,69],[133,8,134,9],[133,10,134,19],[123,31,124,34],[123,35,131,40],[123,41,124,43],[123,44,124,45],[123,46,124,47],[123,49,124,52],[143,1,171,2],[143,3,144,6],[143,7,152,8],[143,9,152,10],[143,11,152,12],[143,13,152,14],[153,3,154,6],[153,7,161,8],[153,9,161,10],[153,11,161,12],[162,53,162,69],[143,31,146,41],[143,42,146,52],[145,27,152,30],[143,17,152,18],[143,19,152,20],[143,21,152,22],[143,23,152,24],[153,46,154,47],[153,49,154,52],[153,53,161,69],[93,31,94,34],[93,35,101,40],[93,41,94,43],[113,1,141,2],[113,3,114,6],[113,7,122,8],[113,9,122,10],[113,11,122,12],[113,13,122,14],[123,3,124,6],[123,7,131,8],[123,9,131,10],[123,11,131,12],[123,13,131,14],[123,17,131,18],[123,19,131,20],[123,21,131,22],[123,23,131,24],[123,25,131,26],[123,27,131,30],[115,3,122,6],[115,27,122,30],[117,31,122,41],[117,42,122,52],[135,3,141,6],[135,8,137,47],[135,49,141,52],[138,8,140,47],[125,3,131,6],[125,31,131,34],[125,41,131,48],[125,49,131,52],[83,25,92,26],[93,11,101,12],[93,13,101,14],[93,15,101,16],[93,17,101,18],[93,19,101,20],[93,21,101,22],[83,65,85,66],[83,67,85,68],[85,3,92,6],[83,62,85,64],[103,53,106,62],[103,63,106,69],[105,3,111,6],[105,8,107,47],[105,49,111,52],[107,53,110,69],[108,8,110,47],[111,53,111,69],[93,53,101,69],[95,3,101,6],[95,31,101,34],[95,41,101,48],[95,49,101,52],[102,3,104,6],[102,49,104,52],[102,53,102,69],[103,8,104,9],[103,10,104,19],[93,23,101,24],[93,25,101,26],[93,27,101,30],[85,27,92,30],[85,53,92,56],[86,62,92,69],[87,31,92,41],[87,42,92,52],[83,31,86,41],[83,27,84,30],[83,53,84,56],[83,42,86,52],[83,57,92,61],[53,67,55,68],[53,65,55,66],[53,62,55,64],[83,1,111,2],[83,3,84,6],[83,7,92,8],[83,9,92,10],[83,11,92,12],[83,13,92,14],[75,8,77,47],[78,8,80,47],[93,44,94,45],[93,46,94,47],[93,49,94,52],[83,17,92,18],[83,19,92,20],[83,21,92,22],[83,23,92,24],[83,15,92,16],[93,3,94,6],[93,7,101,8],[93,9,101,10],[143,15,152,16],[143,25,152,26],[143,27,144,30],[143,53,144,56],[143,57,152,61],[143,62,145,64],[143,65,145,66],[113,15,122,16],[113,17,122,18],[113,19,122,20],[113,25,122,26],[113,27,114,30],[113,31,116,41],[113,42,116,52],[113,21,122,22],[113,23,122,24],[123,15,131,16],[113,53,114,56],[113,57,122,61],[113,62,115,64],[113,65,115,66],[115,53,122,56],[116,62,122,69],[133,53,136,62],[133,63,136,69],[137,53,140,69],[141,53,141,69],[123,53,131,69],[81,53,81,69],[63,53,71,69],[77,53,80,69],[73,53,76,62],[73,63,76,69],[56,62,62,69],[57,31,62,41],[57,42,62,52],[55,53,62,56],[53,31,56,41],[53,42,56,52],[53,53,54,56],[53,57,62,61],[72,53,72,69],[53,25,62,26],[63,27,71,30],[53,7,62,8],[53,9,62,10],[53,11,62,12],[53,13,62,14],[53,15,62,16],[53,27,54,30],[53,17,62,18],[53,19,62,20],[53,21,62,22],[53,23,62,24],[55,27,62,30],[63,11,71,12],[63,13,71,14],[63,15,71,16],[2,18,6,25],[2,27,6,47],[5,1,7,2],[5,3,7,4],[5,5,7,6],[5,7,7,8],[18,55,20,69],[24,3,24,6],[24,7,50,7],[24,8,25,35],[26,3,37,6],[26,8,29,9],[26,10,29,24],[30,8,33,35],[34,8,37,35],[38,3,42,6],[48,3,50,6],[48,8,50,35],[38,8,42,35],[39,39,41,53],[42,39,43,50],[43,3,47,6],[13,24,17,28],[13,29,17,36],[5,9,7,10],[2,1,4,10],[14,1,17,13],[14,14,17,17],[17,55,17,69],[18,1,50,2],[18,3,22,6],[18,7,22,12],[18,13,22,14],[18,15,22,23],[18,24,22,28],[18,29,22,36],[53,1,81,2],[53,3,54,6],[72,3,74,6],[72,49,74,52],[73,8,74,9],[73,10,74,19],[75,3,81,6],[75,49,81,52],[63,49,64,52],[65,3,71,6],[65,31,71,34],[65,41,71,48],[65,49,71,52],[63,31,64,34],[63,35,71,40],[63,41,64,43],[63,44,64,45],[63,46,64,47],[63,17,71,18],[63,19,71,20],[63,21,71,22],[63,23,71,24],[63,25,71,26],[63,3,64,6],[63,7,71,8],[63,9,71,10],[55,3,62,6],[201,21,210,22],[201,23,210,24],[201,25,210,26],[201,27,202,30],[201,31,204,41],[201,42,204,52],[201,53,202,56],[201,57,210,61],[201,62,203,64],[201,1,229,2],[201,3,202,6],[201,7,210,8],[201,9,210,10],[201,11,210,12],[201,13,210,14],[201,15,210,16],[201,17,210,18],[201,19,210,20],[211,46,212,47],[211,49,212,52],[211,53,219,69],[213,3,219,6],[213,31,219,34],[213,41,219,48],[213,49,219,52],[220,3,222,6],[220,49,222,52],[220,53,220,69],[221,8,222,9],[221,10,222,19],[221,53,224,62],[221,63,224,69],[231,65,233,66],[231,67,233,68],[233,3,240,6],[233,27,240,30],[233,53,240,56],[234,62,240,69],[235,31,240,41],[235,42,240,52],[201,65,203,66],[201,67,203,68],[203,3,210,6],[203,27,210,30],[203,53,210,56],[204,62,210,69],[205,31,210,41],[205,42,210,52],[211,3,212,6],[211,7,219,8],[211,9,219,10],[211,11,219,12],[211,13,219,14],[211,15,219,16],[211,17,219,18],[211,19,219,20],[211,21,219,22],[211,23,219,24],[211,25,219,26],[211,27,219,30],[211,31,212,34],[211,35,219,40],[211,41,212,43],[211,44,212,45],[223,3,229,6],[223,8,225,47],[223,49,229,52],[225,53,228,69],[226,8,228,47],[229,53,229,69],[241,3,242,6],[241,7,249,8],[241,9,249,10],[241,11,249,12],[241,13,249,14],[241,15,249,16],[241,17,249,18],[241,19,249,20],[241,21,249,22],[241,23,249,24],[241,25,249,26],[241,27,249,30],[241,31,242,34],[241,35,249,40],[241,41,242,43],[241,44,242,45],[231,21,240,22],[231,23,240,24],[231,25,240,26],[231,27,232,30],[231,31,234,41],[231,42,234,52],[231,13,240,14],[231,15,240,16],[231,17,240,18],[231,19,240,20],[231,53,232,56],[231,57,240,61],[231,62,233,64],[231,3,232,6],[231,7,240,8],[231,9,240,10],[231,11,240,12],[261,1,289,2],[261,3,262,6],[261,7,270,8],[261,9,270,10],[261,11,270,12],[261,13,270,14],[261,15,270,16],[261,17,270,18],[261,19,270,20],[241,46,242,47],[241,49,242,52],[241,53,249,69],[243,3,249,6],[243,31,249,34],[243,41,249,48],[243,49,249,52],[250,3,252,6],[250,49,252,52],[250,53,250,69],[251,8,252,9],[251,10,252,19],[251,53,254,62],[251,63,254,69],[253,3,259,6],[253,8,255,47],[253,49,259,52],[255,53,258,69],[256,8,258,47],[259,53,259,69],[261,65,263,66],[261,67,263,68],[231,1,259,2],[263,3,270,6],[263,27,270,30],[263,53,270,56],[264,62,270,69],[265,31,270,41],[265,42,270,52],[271,3,272,6],[271,7,279,8],[271,9,279,10],[271,11,279,12],[271,13,279,14],[271,15,279,16],[271,17,279,18],[271,19,279,20],[271,21,279,22],[271,23,279,24],[271,25,279,26],[271,27,279,30],[271,31,272,34],[271,35,279,40],[271,41,272,43],[271,44,272,45],[261,21,270,22],[261,23,270,24],[261,25,270,26],[261,27,262,30],[261,31,264,41],[261,42,264,52],[261,53,262,56],[261,57,270,61],[261,62,263,64],[291,13,300,14],[291,15,300,16],[291,17,300,18],[291,19,300,20],[271,46,272,47],[271,49,272,52],[271,53,279,69],[273,3,279,6],[273,31,279,34],[273,41,279,48],[273,49,279,52],[280,3,282,6],[280,49,282,52],[280,53,280,69],[281,8,282,9],[281,10,282,19],[281,53,284,62],[281,63,284,69],[283,3,289,6],[283,8,285,47],[283,49,289,52],[285,53,288,69],[286,8,288,47],[289,53,289,69],[291,65,293,66],[291,67,293,68],[293,3,300,6],[293,27,300,30],[293,53,300,56],[294,62,300,69],[295,31,300,41],[295,42,300,52],[301,3,302,6],[301,7,309,8],[301,9,309,10],[301,11,309,12],[301,13,309,14],[301,15,309,16],[301,17,309,18],[301,19,309,20],[301,21,309,22],[301,23,309,24],[301,25,309,26],[301,27,309,30],[301,31,302,34],[301,35,309,40],[301,41,302,43],[301,44,302,45],[291,21,300,22],[291,23,300,24],[291,25,300,26],[291,27,292,30],[291,31,294,41],[291,42,294,52],[291,53,292,56],[291,57,300,61],[291,62,293,64],[291,3,292,6],[291,7,300,8],[291,9,300,10],[291,11,300,12],[348,1,376,2],[348,3,349,6],[348,7,357,8],[348,9,357,10],[348,11,357,12],[348,13,357,14],[348,15,357,16],[348,17,357,18],[348,19,357,20],[301,46,302,47],[301,49,302,52],[301,53,309,69],[303,3,309,6],[303,31,309,34],[303,41,309,48],[303,49,309,52],[310,3,312,6],[310,49,312,52],[310,53,310,69],[311,8,312,9],[311,10,312,19],[311,53,314,62],[311,63,314,69],[313,3,319,6],[313,8,315,47],[313,49,319,52],[315,53,318,69],[316,8,318,47],[319,53,319,69],[348,65,350,66],[348,67,350,68],[291,1,319,2],[350,3,357,6],[350,27,357,30],[350,53,357,56],[351,62,357,69],[352,31,357,41],[352,42,357,52],[358,3,359,6],[358,7,366,8],[358,9,366,10],[358,11,366,12],[358,13,366,14],[358,15,366,16],[358,17,366,18],[358,19,366,20],[358,21,366,22],[358,23,366,24],[358,25,366,26],[358,27,366,30],[358,31,359,34],[358,35,366,40],[358,41,359,43],[358,44,359,45],[348,21,357,22],[348,23,357,24],[348,25,357,26],[348,27,349,30],[348,31,351,41],[348,42,351,52],[348,53,349,56],[348,57,357,61],[348,62,350,64],[378,13,387,14],[378,15,387,16],[378,17,387,18],[378,19,387,20],[358,46,359,47],[358,49,359,52],[358,53,366,69],[360,3,366,6],[360,31,366,34],[360,41,366,48],[360,49,366,52],[367,3,369,6],[367,49,369,52],[367,53,367,69],[368,8,369,9],[368,10,369,19],[368,53,371,62],[368,63,371,69],[370,3,376,6],[370,8,372,47],[370,49,376,52],[372,53,375,69],[373,8,375,47],[376,53,376,69],[378,65,380,66],[378,67,380,68],[380,3,387,6],[380,27,387,30],[380,53,387,56],[381,62,387,69],[382,31,387,41],[382,42,387,52],[388,3,389,6],[388,7,396,8],[388,9,396,10],[388,11,396,12],[388,13,396,14],[388,15,396,16],[388,17,396,18],[388,19,396,20],[388,21,396,22],[388,23,396,24],[388,25,396,26],[388,27,396,30],[388,31,389,34],[388,35,396,40],[388,41,389,43],[388,44,389,45],[378,21,387,22],[378,23,387,24],[378,25,387,26],[378,27,379,30],[378,31,381,41],[378,42,381,52],[378,53,379,56],[378,57,387,61],[378,62,380,64],[378,3,379,6],[378,7,387,8],[378,9,387,10],[378,11,387,12],[408,1,436,2],[408,3,409,6],[408,7,417,8],[408,9,417,10],[408,11,417,12],[408,13,417,14],[408,15,417,16],[408,17,417,18],[408,19,417,20],[388,46,389,47],[388,49,389,52],[388,53,396,69],[390,3,396,6],[390,31,396,34],[390,41,396,48],[390,49,396,52],[397,3,399,6],[397,49,399,52],[397,53,397,69],[398,8,399,9],[398,10,399,19],[398,53,401,62],[398,63,401,69],[400,3,406,6],[400,8,402,47],[400,49,406,52],[402,53,405,69],[403,8,405,47],[406,53,406,69],[408,65,410,66],[408,67,410,68],[378,1,406,2],[410,3,417,6],[410,27,417,30],[410,53,417,56],[411,62,417,69],[412,31,417,41],[412,42,417,52],[418,3,419,6],[418,7,426,8],[418,9,426,10],[418,11,426,12],[418,13,426,14],[418,15,426,16],[418,17,426,18],[418,19,426,20],[418,21,426,22],[418,23,426,24],[418,25,426,26],[418,27,426,30],[418,31,419,34],[418,35,426,40],[418,41,419,43],[418,44,419,45],[408,21,417,22],[408,23,417,24],[408,25,417,26],[408,27,409,30],[408,31,411,41],[408,42,411,52],[408,53,409,56],[408,57,417,61],[408,62,410,64],[438,13,447,14],[438,15,447,16],[438,17,447,18],[438,19,447,20],[418,46,419,47],[418,49,419,52],[418,53,426,69],[420,3,426,6],[420,31,426,34],[420,41,426,48],[420,49,426,52],[427,3,429,6],[427,49,429,52],[427,53,427,69],[428,8,429,9],[428,10,429,19],[428,53,431,62],[428,63,431,69],[430,3,436,6],[430,8,432,47],[430,49,436,52],[432,53,435,69],[433,8,435,47],[436,53,436,69],[438,65,440,66],[438,67,440,68],[440,3,447,6],[440,27,447,30],[440,53,447,56],[441,62,447,69],[442,31,447,41],[442,42,447,52],[448,3,449,6],[448,7,456,8],[448,9,456,10],[448,11,456,12],[448,13,456,14],[448,15,456,16],[448,17,456,18],[448,19,456,20],[448,21,456,22],[448,23,456,24],[448,25,456,26],[448,27,456,30],[448,31,449,34],[448,35,456,40],[448,41,449,43],[448,44,449,45],[438,21,447,22],[438,23,447,24],[438,25,447,26],[438,27,439,30],[438,31,441,41],[438,42,441,52],[438,53,439,56],[438,57,447,61],[438,62,440,64],[438,3,439,6],[438,7,447,8],[438,9,447,10],[438,11,447,12],[496,1,524,2],[496,3,497,6],[496,7,505,8],[496,9,505,10],[496,11,505,12],[496,13,505,14],[496,15,505,16],[496,17,505,18],[496,19,505,20],[448,46,449,47],[448,49,449,52],[448,53,456,69],[450,3,456,6],[450,31,456,34],[450,41,456,48],[450,49,456,52],[457,3,459,6],[457,49,459,52],[457,53,457,69],[458,8,459,9],[458,10,459,19],[458,53,461,62],[458,63,461,69],[460,3,466,6],[460,8,462,47],[460,49,466,52],[462,53,465,69],[463,8,465,47],[466,53,466,69],[496,65,498,66],[496,67,498,68],[438,1,466,2],[498,3,505,6],[498,27,505,30],[498,53,505,56],[499,62,505,69],[500,31,505,41],[500,42,505,52],[506,3,507,6],[506,7,514,8],[506,9,514,10],[506,11,514,12],[506,13,514,14],[506,15,514,16],[506,17,514,18],[506,19,514,20],[506,21,514,22],[506,23,514,24],[506,25,514,26],[506,27,514,30],[506,31,507,34],[506,35,514,40],[506,41,507,43],[506,44,507,45],[496,21,505,22],[496,23,505,24],[496,25,505,26],[496,27,497,30],[496,31,499,41],[496,42,499,52],[496,53,497,56],[496,57,505,61],[496,62,498,64],[526,13,535,14],[526,15,535,16],[526,17,535,18],[526,19,535,20],[506,46,507,47],[506,49,507,52],[506,53,514,69],[508,3,514,6],[508,31,514,34],[508,41,514,48],[508,49,514,52],[515,3,517,6],[515,49,517,52],[515,53,515,69],[516,8,517,9],[516,10,517,19],[516,53,519,62],[516,63,519,69],[518,3,524,6],[518,8,520,47],[518,49,524,52],[520,53,523,69],[521,8,523,47],[524,53,524,69],[526,65,528,66],[526,67,528,68],[528,3,535,6],[528,27,535,30],[528,53,535,56],[529,62,535,69],[530,31,535,41],[530,42,535,52],[536,3,537,6],[536,7,544,8],[536,9,544,10],[536,11,544,12],[536,13,544,14],[536,15,544,16],[536,17,544,18],[536,19,544,20],[536,21,544,22],[536,23,544,24],[536,25,544,26],[536,27,544,30],[536,31,537,34],[536,35,544,40],[536,41,537,43],[536,44,537,45],[526,21,535,22],[526,23,535,24],[526,25,535,26],[526,27,527,30],[526,31,529,41],[526,42,529,52],[526,53,527,56],[526,57,535,61],[526,62,528,64],[526,3,527,6],[526,7,535,8],[526,9,535,10],[526,11,535,12],[556,1,584,2],[556,3,557,6],[556,7,565,8],[556,9,565,10],[556,11,565,12],[556,13,565,14],[556,15,565,16],[556,17,565,18],[556,19,565,20],[536,46,537,47],[536,49,537,52],[536,53,544,69],[538,3,544,6],[538,31,544,34],[538,41,544,48],[538,49,544,52],[545,3,547,6],[545,49,547,52],[545,53,545,69],[546,8,547,9],[546,10,547,19],[546,53,549,62],[546,63,549,69],[548,3,554,6],[548,8,550,47],[548,49,554,52],[550,53,553,69],[551,8,553,47],[554,53,554,69],[556,65,558,66],[556,67,558,68],[526,1,554,2],[558,3,565,6],[558,27,565,30],[558,53,565,56],[559,62,565,69],[560,31,565,41],[560,42,565,52],[566,3,567,6],[566,7,574,8],[566,9,574,10],[566,11,574,12],[566,13,574,14],[566,15,574,16],[566,17,574,18],[566,19,574,20],[566,21,574,22],[566,23,574,24],[566,25,574,26],[566,27,574,30],[566,31,567,34],[566,35,574,40],[566,41,567,43],[566,44,567,45],[556,21,565,22],[556,23,565,24],[556,25,565,26],[556,27,557,30],[556,31,559,41],[556,42,559,52],[556,53,557,56],[556,57,565,61],[556,62,558,64],[586,13,595,14],[586,15,595,16],[586,17,595,18],[586,19,595,20],[566,46,567,47],[566,49,567,52],[566,53,574,69],[568,3,574,6],[568,31,574,34],[568,41,574,48],[568,49,574,52],[575,3,577,6],[575,49,577,52],[575,53,575,69],[576,8,577,9],[576,10,577,19],[576,53,579,62],[576,63,579,69],[578,3,584,6],[578,8,580,47],[578,49,584,52],[580,53,583,69],[581,8,583,47],[584,53,584,69],[586,65,588,66],[586,67,588,68],[588,3,595,6],[588,27,595,30],[588,53,595,56],[589,62,595,69],[590,31,595,41],[590,42,595,52],[596,3,597,6],[596,7,604,8],[596,9,604,10],[596,11,604,12],[596,13,604,14],[596,15,604,16],[596,17,604,18],[596,19,604,20],[596,21,604,22],[596,23,604,24],[596,25,604,26],[596,27,604,30],[596,31,597,34],[596,35,604,40],[596,41,597,43],[596,44,597,45],[586,21,595,22],[586,23,595,24],[586,25,595,26],[586,27,587,30]],"merged_total":1526,"flags":["merged_cut"]}
[]
[]
[null,"様式コード",null,null,null,null,null,null,null,null,null,null,null,null,null,null,null,null,"企業年金基金",null,null,null,null,null,null,null,null,"加入者資格喪失届"]
[]
[]
[null,"Ｃ",null,"Ａ",null,"４",null,"０",null,"１"]
[]
[]
[]
[]
[]
[]
[]
[null,null,null,null,null,null,null,null,null,null,null,null,null,null,null,null,null,null,null,null,null,null,null,null,"基金\n事業所番号",null,null,null,null,{"$f":"IF(入力シート!$D$1=\"\",\"\",DBCS(入力シート!$D$1))","v":""}]
[null,{"$f":"IF(入力シート!$D$11=\"\",\"\",入力シート!$D$11)","v":""},null,null,null,null,null,null,null,null,null,null,null,null,"提出"]
[]
[]
[]
[null,"提\n出\n者\n記\n入\n欄",null,"事 業 所\n整理記号",null,null,null,{"$f":"IF(入力シート!$D$2=\"\",\"\",DBCS(入力シート!$D$2))","v":""},null,null,null,null,null,"-",null,{"$f":"IF(入力シート!$G$2=\"\",\"\",DBCS(入力シート!$G$2))","v":""},null,null,null,null,null,null,null,null,"事業所\n番　号",null,null,null,null,{"$f":"IF(入力シート!$D$3=\"\",\"\",DBCS(入力シート!$D$3))","v":""},null,null,null,null,null,null,null,null,null,null,null,null,null,null,null,null,null,null,null,null,null,null,null,null,null,"受付印"]
[]
[]
[]
[]
[]
[]
[]
[null,null,null,"事業所\n所在地",null,null,null,null,"〒",null,{"$f":"IF(入力シート!$D$4=\"\",\"\",DBCS(入力シート!$D$4))","v":""}]
[]
[]
[]
[null,null,null,null,null,null,null,null,{"$f":"IF(入力シート!$D$5=\"\",\"\",DBCS(入力シート!$D$5))","v":""}]
[]
[]
[]
[null,null,null,null,null,null,null,null,{"$f":"IF(入力シート!$D$6=\"\",\"\",DBCS(入力シート!$D$6))","v":""}]
[]
[]
[]
[null,null,null,"事業所\n名　称",null,null,null,null,{"$f":"IF(入力シート!$D$7=\"\",\"\",DBCS(入力シート!$D$7))","v":""}]
[null,null,null,null,null,null,null,null,null,null,null,null,null,null,null,null,null,null,null,null,null,null,null,null,null,null,null,null,null,null,null,null,null,null,null,null,null,null,null,"社会保険労務士記載欄"]
[]
[]
[null,null,null,null,null,null,null,null,null,null,null,null,null,null,null,null,null,null,null,null,null,null,null,null,null,null,null,null,null,null,null,null,null,null,null,null,null,null,null,"　　氏　　名　　等"]
[null,null,null,"事業主\n氏　名",null,null,null,null,{"$f":"IF(入力シート!$D$8=\"\",\"\",DBCS(入力シート!$D$8))","v":""}]
[]
[]
[]
[]
[null,null,null,"電話番号",null,null,null,null,{"$f":"IF(入力シート!$D$9=\"\",\"\",DBCS(入力シート!$D$9))","v":""}]
[]
[]
[]
[]
[null,"加入者\n１",null,"①",null,null,null,{"$f":"IFERROR(IF(入力シート!$U$15=\"\",\"\",DBCS(LEFT(RIGHT(入力シート!$U$15,18-COLUMN())))),\"\")","v":""},null,{"$f":"IFERROR(IF(入力シート!$U$15=\"\",\"\",DBCS(LEFT(RIGHT(入力シート!$U$15,19-COLUMN())))),\"\")","v":""},null,{"$f":"IFERROR(IF(入力シート!$U$15=\"\",\"\",DBCS(LEFT(RIGHT(入力シート!$U$15,20-COLUMN())))),\"\")","v":""},null,{"$f":"IFERROR(IF(入力シート!$U$15=\"\",\"\",DBCS(LEFT(RIGHT(入力シート!$U$15,21-COLUMN())))),\"\")","v":""},null,{"$f":"IFERROR(IF(入力シート!$U$15=\"\",\"\",DBCS(LEFT(RIGHT(入力シート!$U$15,22-COLUMN())))),\"\")","v":""},null,{"$f":"IFERROR(IF(入力シート!$U$15=\"\",\"\",DBCS(LEFT(RIGHT(入力シート!$U$15,23-COLUMN())))),\"\")","v":""},null,{"$f":"IFERROR(IF(入力シート!$U$15=\"\",\"\",DBCS(LEFT(RIGHT(入力シート!$U$15,24-COLUMN())))),\"\")","v":""},null,{"$f":"IFERROR(IF(入力シート!$U$15=\"\",\"\",DBCS(LEFT(RIGHT(入力シート!$U$15,25-COLUMN())))),\"\")","v":""},null,{"$f":"IFERROR(IF(入力シート!$U$15=\"\",\"\",DBCS(LEFT(RIGHT(入力シート!$U$15,26-COLUMN())))),\"\")","v":""},null,{"$f":"IFERROR(IF(入力シート!$U$15=\"\",\"\",DBCS(LEFT(RIGHT(入力シート!$U$15,27-COLUMN())))),\"\")","v":""},null,"②",null,null,null,{"$f":"IFERROR(LEFT(入力シート!$C$15,FIND(\" \",入力シート!$C$15,1)-1),\"\")","v":""},null,null,null,null,null,null,null,null,null,null,{"$f":"IFERROR(RIGHT(入力シート!$C$15,LEN(入力シート!$C$15)-FIND(\" \",入力シート!$C$15,1)),\"\")","v":""},null,null,null,null,null,null,null,null,null,null,"③",null,null,null,{"$f":"IF(入力シート!$E$15=\"\",\"\",IF(TEXT(入力シート!$E$15,\"g\")=\"S\",\"5．昭和\",IF(TEXT(入力シート!$E$15,\"g\")=\"H\",\"7．平成\",IF(TEXT(入力シート!$E$15,\"g\")=\"R\",\"9．令和\"))))","v":""},null,null,null,null,"年",null,null,"月",null,"日"]
[]
[null,null,null,"加入者\n番　号",null,null,null,null,null,null,null,null,null,null,null,null,null,null,null,null,null,null,null,null,null,null,null,"氏名",null,null,null,null,null,null,null,null,null,null,null,null,null,null,null,null,null,null,null,null,null,null,null,null,null,"生年\n月日"]
[null,null,null,null,null,null,null,null,null,null,null,null,null,null,null,null,null,null,null,null,null,null,null,null,null,null,null,null,null,null,null,null,null,null,null,null,null,null,null,null,null,null,null,null,null,null,null,null,null,null,null,null,null,null,null,null,null,null,null,null,null,null,{"$f":"IF(入力シート!$E$15=\"\",\"\",DBCS(TEXT(入力シート!$E$15,\"eemmdd\")))","v":""}]
[null,null,null,null,null,null,null,null,null,null,null,null,null,null,null,null,null,null,null,null,null,null,null,null,null,null,null,null,null,null,null,{"$f":"IFERROR(LEFT(入力シート!$D$15,FIND(\"　\",入力シート!$D$15,1)-1),\"\")","v":""},null,null,null,null,null,null,null,null,null,null,{"$f":"IFERROR(RIGHT(入力シート!$D$15,LEN(入力シート!$D$15)-FIND(\"　\",入力シート!$D$15,1)),\"\")","v":""}]
[]
[]
[]
[]
[]
[null,null,null,"④",null,null,null,{"$f":"IFERROR(IF(入力シート!$G$15=\"\",\"\",DBCS(LEFT(RIGHT(入力シート!$G$15,18-COLUMN())))),\"\")","v":""},null,{"$f":"IFERROR(IF(入力シート!$G$15=\"\",\"\",DBCS(LEFT(RIGHT(入力シート!$G$15,19-COLUMN())))),\"\")","v":""},null,{"$f":"IFERROR(IF(入力シート!$G$15=\"\",\"\",DBCS(LEFT(RIGHT(入力シート!$G$15,20-COLUMN())))),\"\")","v":""},null,{"$f":"IFERROR(IF(入力シート!$G$15=\"\",\"\",DBCS(LEFT(RIGHT(入力シート!$G$15,21-COLUMN())))),\"\")","v":""},null,{"$f":"IFERROR(IF(入力シート!$G$15=\"\",\"\",DBCS(LEFT(RIGHT(入力シート!$G$15,22-COLUMN())))),\"\")","v":""},null,{"$f":"IFERROR(IF(入力シート!$G$15=\"\",\"\",DBCS(LEFT(RIGHT(入力シート!$G$15,23-COLUMN())))),\"\")","v":""},null,{"$f":"IFERROR(IF(入力シート!$G$15=\"\",\"\",DBCS(LEFT(RIGHT(入力シート!$G$15,24-COLUMN())))),\"\")","v":""},null,{"$f":"IFERROR(IF(入力シート!$G$15=\"\",\"\",DBCS(LEFT(RIGHT(入力シート!$G$15,25-COLUMN())))),\"\")","v":""},null,{"$f":"IFERROR(IF(入力シート!$G$15=\"\",\"\",DBCS(LEFT(RIGHT(入力シート!$G$15,26-COLUMN())))),\"\")","v":""},null,{"$f":"IFERROR(IF(入力シート!$G$15=\"\",\"\",DBCS(LEFT(RIGHT(入力シート!$G$15,27-COLUMN())))),\"\")","v":""},null,null,null,null,null,"⑤",null,null,null,{"$f":"IF(入力シート!$H$15=\"\",\"\",IF(TEXT(入力シート!$H$15,\"g\")=\"S\",\"5．昭和\",IF(TEXT(入力シート!$H$15,\"g\")=\"H\",\"7．平成\",IF(TEXT(入力シート!$H$15,\"g\")=\"R\",\"9．令和\"))))","v":""},null,null,null,null,null,"年",null,null,"月",null,"日",null,null,"⑥",null,null,null,{"$f":"IF(入力シート!$K$15=\"\",\"\",DBCS(入力シート!$K$15))","v":""}]
[]
[null,null,null,"基礎年\n金番号",null,null,null,null,null,null,null,null,null,null,null,null,null,null,null,null,null,null,null,null,null,null,null,null,null,null,null,"喪　失\n年月日",null,null,null,null,null,null,null,null,null,{"$f":"IF(入力シート!$H$15=\"\",\"\",DBCS(TEXT(入力シート!$H$15,\"eemmdd\")))","v":""},null,null,null,null,null,null,null,"喪失\n原因"]
[]
[]
[]
[]
[]
[]
[null,null,null,"⑦",null,null,null,null,null,null,null,null,null,null,null,null,null,null,null,null,null,null,null,null,null,null,null,null,null,null,null,null,null,null,null,null,null,null,null,null,null,null,null,null,null,null,null,null,null,"⑧"]
[null,null,null,null,null,null,null,null,"〒",null,{"$f":"IF(入力シート!$P$15=\"\",\"\",DBCS(入力シート!$P$15))","v":""},null,null,null,null,null,null,null,null,null,null,null,null,null,null,null,null,null,null,null,null,null,null,null,null,null,null,null,null,null,null,null,null,null,null,null,null,null,null,null,null,null,null,{"$f":"IF(入力シート!$I$15=\"\",\"\",入力シート!$J$15)","v":""},null,null,null,null,null,null,null,null,null,{"$f":"IF(入力シート!$S$15=\"\",\"\",入力シート!$S$15)","v":""}]
[]
[null,null,null,"住所",null,null,null,null,{"$f":"IF(入力シート!$Q$15=\"\",\"\",DBCS(入力シート!$Q$15))","v":""},null,null,null,null,null,null,null,null,null,null,null,null,null,null,null,null,null,null,null,null,null,null,null,null,null,null,null,null,null,null,null,null,null,null,null,null,null,null,null,null,"備考"]
[]
[null,null,null,null,null,null,null,null,null,null,null,null,null,null,null,null,null,null,null,null,null,null,null,null,null,null,null,null,null,null,null,null,null,null,null,null,null,null,null,null,null,null,null,null,null,null,null,null,null,null,null,null,null,{"$f":"IF(入力シート!$T$15=\"\",\"\",入力シート!$T$15)","v":""}]
[null,null,null,null,null,null,null,null,{"$f":"IF(入力シート!$R$15=\"\",\"\",DBCS(入力シート!$R$15))","v":""}]
[]
[]
[]
[]
[null,"加入者\n２",null,"①",null,null,null,{"$f":"IFERROR(IF(入力シート!$U$16=\"\",\"\",DBCS(LEFT(RIGHT(入力シート!$U$16,18-COLUMN())))),\"\")","v":""},null,{"$f":"IFERROR(IF(入力シート!$U$16=\"\",\"\",DBCS(LEFT(RIGHT(入力シート!$U$16,19-COLUMN())))),\"\")","v":""},null,{"$f":"IFERROR(IF(入力シート!$U$16=\"\",\"\",DBCS(LEFT(RIGHT(入力シート!$U$16,20-COLUMN())))),\"\")","v":""},null,{"$f":"IFERROR(IF(入力シート!$U$16=\"\",\"\",DBCS(LEFT(RIGHT(入力シート!$U$16,21-COLUMN())))),\"\")","v":""},null,{"$f":"IFERROR(IF(入力シート!$U$16=\"\",\"\",DBCS(LEFT(RIGHT(入力シート!$U$16,22-COLUMN())))),\"\")","v":""},null,{"$f":"IFERROR(IF(入力シート!$U$16=\"\",\"\",DBCS(LEFT(RIGHT(入力シート!$U$16,23-COLUMN())))),\"\")","v":""},null,{"$f":"IFERROR(IF(入力シート!$U$16=\"\",\"\",DBCS(LEFT(RIGHT(入力シート!$U$16,24-COLUMN())))),\"\")","v":""},null,{"$f":"IFERROR(IF(入力シート!$U$16=\"\",\"\",DBCS(LEFT(RIGHT(入力シート!$U$16,25-COLUMN())))),\"\")","v":""},null,{"$f":"IFERROR(IF(入力シート!$U$16=\"\",\"\",DBCS(LEFT(RIGHT(入力シート!$U$16,26-COLUMN())))),\"\")","v":""},null,{"$f":"IFERROR(IF(入力シート!$U$16=\"\",\"\",DBCS(LEFT(RIGHT(入力シート!$U$16,27-COLUMN())))),\"\")","v":""},null,"②",null,null,null,{"$f":"IFERROR(LEFT(入力シート!$C$16,FIND(\" \",入力シート!$C$16,1)-1),\"\")","v":""},null,null,null,null,null,null,null,null,null,null,{"$f":"IFERROR(RIGHT(入力シート!$C$16,LEN(入力シート!$C$16)-FIND(\" \",入力シート!$C$16,1)),\"\")","v":""},null,null,null,null,null,null,null,null,null,null,"③",null,null,null,{"$f":"IF(入力シート!$E$16=\"\",\"\",IF(TEXT(入力シート!$E$16,\"g\")=\"S\",\"5．昭和\",IF(TEXT(入力シート!$E$16,\"g\")=\"H\",\"7．平成\",IF(TEXT(入力シート!$E$16,\"g\")=\"R\",\"9．令和\"))))","v":""},null,null,null,null,"年",null,null,"月",null,"日"]
[]
[null,null,null,"加入者\n番　号",null,null,null,null,null,null,null,null,null,null,null,null,null,null,null,null,null,null,null,null,null,null,null,"氏名",null,null,null,null,null,null,null,null,null,null,null,null,null,null,null,null,null,null,null,null,null,null,null,null,null,"生年\n月日"]
[null,null,null,null,null,null,null,null,null,null,null,null,null,null,null,null,null,null,null,null,null,null,null,null,null,null,null,null,null,null,null,null,null,null,null,null,null,null,null,null,null,null,null,null,null,null,null,null,null,null,null,null,null,null,null,null,null,null,null,null,null,null,{"$f":"IF(入力シート!$E$16=\"\",\"\",DBCS(TEXT(入力シート!$E$16,\"eemmdd\")))","v":""}]
[null,null,null,null,null,null,null,null,null,null,null,null,null,null,null,null,null,null,null,null,null,null,null,null,null,null,null,null,null,null,null,{"$f":"IFERROR(LEFT(入力シート!$D$16,FIND(\"　\",入力シート!$D$16,1)-1),\"\")","v":""},null,null,null,null,null,null,null,null,null,null,{"$f":"IFERROR(RIGHT(入力シート!$D$16,LEN(入力シート!$D$16)-FIND(\"　\",入力シート!$D$16,1)),\"\")","v":""}]
[]
[]
[]
[]
[]
[null,null,null,"④",null,null,null,{"$f":"IFERROR(IF(入力シート!$G$16=\"\",\"\",DBCS(LEFT(RIGHT(入力シート!$G$16,18-COLUMN())))),\"\")","v":""},null,{"$f":"IFERROR(IF(入力シート!$G$16=\"\",\"\",DBCS(LEFT(RIGHT(入力シート!$G$16,19-COLUMN())))),\"\")","v":""},null,{"$f":"IFERROR(IF(入力シート!$G$16=\"\",\"\",DBCS(LEFT(RIGHT(入力シート!$G$16,20-COLUMN())))),\"\")","v":""},null,{"$f":"IFERROR(IF(入力シート!$G$16=\"\",\"\",DBCS(LEFT(RIGHT(入力シート!$G$16,21-COLUMN())))),\"\")","v":""},null,{"$f":"IFERROR(IF(入力シート!$G$16=\"\",\"\",DBCS(LEFT(RIGHT(入力シート!$G$16,22-COLUMN())))),\"\")","v":""},null,{"$f":"IFERROR(IF(入力シート!$G$16=\"\",\"\",DBCS(LEFT(RIGHT(入力シート!$G$16,23-COLUMN())))),\"\")","v":""},null,{"$f":"IFERROR(IF(入力シート!$G$16=\"\",\"\",DBCS(LEFT(RIGHT(入力シート!$G$16,24-COLUMN())))),\"\")","v":""},null,{"$f":"IFERROR(IF(入力シート!$G$16=\"\",\"\",DBCS(LEFT(RIGHT(入力シート!$G$16,25-COLUMN())))),\"\")","v":""},null,{"$f":"IFERROR(IF(入力シート!$G$16=\"\",\"\",DBCS(LEFT(RIGHT(入力シート!$G$16,26-COLUMN())))),\"\")","v":""},null,{"$f":"IFERROR(IF(入力シート!$G$16=\"\",\"\",DBCS(LEFT(RIGHT(入力シート!$G$16,27-COLUMN())))),\"\")","v":""},null,null,null,null,null,"⑤",null,null,null,{"$f":"IF(入力シート!$H$16=\"\",\"\",IF(TEXT(入力シート!$H$16,\"g\")=\"S\",\"5．昭和\",IF(TEXT(入力シート!$H$16,\"g\")=\"H\",\"7．平成\",IF(TEXT(入力シート!$H$16,\"g\")=\"R\",\"9．令和\"))))","v":""},null,null,null,null,null,"年",null,null,"月",null,"日",null,null,"⑥",null,null,null,{"$f":"IF(入力シート!$K$16=\"\",\"\",DBCS(入力シート!$K$16))","v":""}]
[]
[null,null,null,"基礎年\n金番号",null,null,null,null,null,null,null,null,null,null,null,null,null,null,null,null,null,null,null,null,null,null,null,null,null,null,null,"喪　失\n年月日",null,null,null,null,null,null,null,null,null,{"$f":"IF(入力シート!$H$16=\"\",\"\",DBCS(TEXT(入力シート!$H$16,\"eemmdd\")))","v":""},null,null,null,null,null,null,null,"喪失\n原因"]
[]
[]
[]
[]
[]
[]
[null,null,null,"⑦",null,null,null,null,null,null,null,null,null,null,null,null,null,null,null,null,null,null,null,null,null,null,null,null,null,null,null,null,null,null,null,null,null,null,null,null,null,null,null,null,null,null,null,null,null,"⑧"]
[null,null,null,null,null,null,null,null,"〒",null,{"$f":"IF(入力シート!$P$16=\"\",\"\",DBCS(入力シート!$P$16))","v":""},null,null,null,null,null,null,null,null,null,null,null,null,null,null,null,null,null,null,null,null,null,null,null,null,null,null,null,null,null,null,null,null,null,null,null,null,null,null,null,null,null,null,{"$f":"IF(入力シート!$I$16=\"\",\"\",入力シート!$J$16)","v":""},null,null,null,null,null,null,null,null,null,{"$f":"IF(入力シート!$S$16=\"\",\"\",入力シート!$S$16)","v":""}]
[]
[null,null,null,"住所",null,null,null,null,{"$f":"IF(入力シート!$Q$16=\"\",\"\",DBCS(入力シート!$Q$16))","v":""},null,null,null,null,null,null,null,null,null,null,null,null,null,null,null,null,null,null,null,null,null,null,null,null,null,null,null,null,null,null,null,null,null,null,null,null,null,null,null,null,"備考"]
[]
[null,null,null,null,null,null,null,null,null,null,null,null,null,null,null,null,null,null,null,null,null,null,null,null,null,null,null,null,null,null,null,null,null,null,null,null,null,null,null,null,null,null,null,null,null,null,null,null,null,null,null,null,null,{"$f":"IF(入力シート!$T$16=\"\",\"\",入力シート!$T$16)","v":""}]
[null,null,null,null,null,null,null,null,{"$f":"IF(入力シート!$R$16=\"\",\"\",DBCS(入力シート!$R$16))","v":""}]
[]
[]
[]
[]
[null,"加入者\n３",null,"①",null,null,null,{"$f":"IFERROR(IF(入力シート!$U$17=\"\",\"\",DBCS(LEFT(RIGHT(入力シート!$U$17,18-COLUMN())))),\"\")","v":""},null,{"$f":"IFERROR(IF(入力シート!$U$17=\"\",\"\",DBCS(LEFT(RIGHT(入力シート!$U$17,19-COLUMN())))),\"\")","v":""},null,{"$f":"IFERROR(IF(入力シート!$U$17=\"\",\"\",DBCS(LEFT(RIGHT(入力シート!$U$17,20-COLUMN())))),\"\")","v":""},null,{"$f":"IFERROR(IF(入力シート!$U$17=\"\",\"\",DBCS(LEFT(RIGHT(入力シート!$U$17,21-COLUMN())))),\"\")","v":""},null,{"$f":"IFERROR(IF(入力シート!$U$17=\"\",\"\",DBCS(LEFT(RIGHT(入力シート!$U$17,22-COLUMN())))),\"\")","v":""},null,{"$f":"IFERROR(IF(入力シート!$U$17=\"\",\"\",DBCS(LEFT(RIGHT(入力シート!$U$17,23-COLUMN())))),\"\")","v":""},null,{"$f":"IFERROR(IF(入力シート!$U$17=\"\",\"\",DBCS(LEFT(RIGHT(入力シート!$U$17,24-COLUMN())))),\"\")","v":""},null,{"$f":"IFERROR(IF(入力シート!$U$17=\"\",\"\",DBCS(LEFT(RIGHT(入力シート!$U$17,25-COLUMN())))),\"\")","v":""},null,{"$f":"IFERROR(IF(入力シート!$U$17=\"\",\"\",DBCS(LEFT(RIGHT(入力シート!$U$17,26-COLUMN())))),\"\")","v":""},null,{"$f":"IFERROR(IF(入力シート!$U$17=\"\",\"\",DBCS(LEFT(RIGHT(入力シート!$U$17,27-COLUMN())))),\"\")","v":""},null,"②",null,null,null,{"$f":"IFERROR(LEFT(入力シート!$C$17,FIND(\" \",入力シート!$C$17,1)-1),\"\")","v":""},null,null,null,null,null,null,null,null,null,null,{"$f":"IFERROR(RIGHT(入力シート!$C$17,LEN(入力シート!$C$17)-FIND(\" \",入力シート!$C$17,1)),\"\")","v":""},null,null,null,null,null,null,null,null,null,null,"③",null,null,null,{"$f":"IF(入力シート!$E$17=\"\",\"\",IF(TEXT(入力シート!$E$17,\"g\")=\"S\",\"5．昭和\",IF(TEXT(入力シート!$E$17,\"g\")=\"H\",\"7．平成\",IF(TEXT(入力シート!$E$17,\"g\")=\"R\",\"9．令和\"))))","v":""},null,null,null,null,"年",null,null,"月",null,"日"]
[]
[null,null,null,"加入者\n番　号",null,null,null,null,null,null,null,null,null,null,null,null,null,null,null,null,null,null,null,null,null,null,null,"氏名",null,null,null,null,null,null,null,null,null,null,null,null,null,null,null,null,null,null,null,null,null,null,null,null,null,"生年\n月日"]
[null,null,null,null,null,null,null,null,null,null,null,null,null,null,null,null,null,null,null,null,null,null,null,null,null,null,null,null,null,null,null,null,null,null,null,null,null,null,null,null,null,null,null,null,null,null,null,null,null,null,null,null,null,null,null,null,null,null,null,null,null,null,{"$f":"IF(入力シート!$E$17=\"\",\"\",DBCS(TEXT(入力シート!$E$17,\"eemmdd\")))","v":""}]
[null,null,null,null,null,null,null,null,null,null,null,null,null,null,null,null,null,null,null,null,null,null,null,null,null,null,null,null,null,null,null,{"$f":"IFERROR(LEFT(入力シート!$D$17,FIND(\"　\",入力シート!$D$17,1)-1),\"\")","v":""},null,null,null,null,null,null,null,null,null,null,{"$f":"IFERROR(RIGHT(入力シート!$D$17,LEN(入力シート!$D$17)-FIND(\"　\",入力シート!$D$17,1)),\"\")","v":""}]
[]
[]
[]
[]
[]
[null,null,null,"④",null,null,null,{"$f":"IFERROR(IF(入力シート!$G$17=\"\",\"\",DBCS(LEFT(RIGHT(入力シート!$G$17,18-COLUMN())))),\"\")","v":""},null,{"$f":"IFERROR(IF(入力シート!$G$17=\"\",\"\",DBCS(LEFT(RIGHT(入力シート!$G$17,19-COLUMN())))),\"\")","v":""},null,{"$f":"IFERROR(IF(入力シート!$G$17=\"\",\"\",DBCS(LEFT(RIGHT(入力シート!$G$17,20-COLUMN())))),\"\")","v":""},null,{"$f":"IFERROR(IF(入力シート!$G$17=\"\",\"\",DBCS(LEFT(RIGHT(入力シート!$G$17,21-COLUMN())))),\"\")","v":""},null,{"$f":"IFERROR(IF(入力シート!$G$17=\"\",\"\",DBCS(LEFT(RIGHT(入力シート!$G$17,22-COLUMN())))),\"\")","v":""},null,{"$f":"IFERROR(IF(入力シート!$G$17=\"\",\"\",DBCS(LEFT(RIGHT(入力シート!$G$17,23-COLUMN())))),\"\")","v":""},null,{"$f":"IFERROR(IF(入力シート!$G$17=\"\",\"\",DBCS(LEFT(RIGHT(入力シート!$G$17,24-COLUMN())))),\"\")","v":""},null,{"$f":"IFERROR(IF(入力シート!$G$17=\"\",\"\",DBCS(LEFT(RIGHT(入力シート!$G$17,25-COLUMN())))),\"\")","v":""},null,{"$f":"IFERROR(IF(入力シート!$G$17=\"\",\"\",DBCS(LEFT(RIGHT(入力シート!$G$17,26-COLUMN())))),\"\")","v":""},null,{"$f":"IFERROR(IF(入力シート!$G$17=\"\",\"\",DBCS(LEFT(RIGHT(入力シート!$G$17,27-COLUMN())))),\"\")","v":""},null,null,null,null,null,"⑤",null,null,null,{"$f":"IF(入力シート!$H$17=\"\",\"\",IF(TEXT(入力シート!$H$17,\"g\")=\"S\",\"5．昭和\",IF(TEXT(入力シート!$H$17,\"g\")=\"H\",\"7．平成\",IF(TEXT(入力シート!$H$17,\"g\")=\"R\",\"9．令和\"))))","v":""},null,null,null,null,null,"年",null,null,"月",null,"日",null,null,"⑥",null,null,null,{"$f":"IF(入力シート!$K$17=\"\",\"\",DBCS(入力シート!$K$17))","v":""}]
[]
[null,null,null,"基礎年\n金番号",null,null,null,null,null,null,null,null,null,null,null,null,null,null,null,null,null,null,null,null,null,null,null,null,null,null,null,"喪　失\n年月日",null,null,null,null,null,null,null,null,null,{"$f":"IF(入力シート!$H$17=\"\",\"\",DBCS(TEXT(入力シート!$H$17,\"eemmdd\")))","v":""},null,null,null,null,null,null,null,"喪失\n原因"]
[]
[]
[]
[]
[]
[]
[null,null,null,"⑦",null,null,null,null,null,null,null,null,null,null,null,null,null,null,null,null,null,null,null,null,null,null,null,null,null,null,null,null,null,null,null,null,null,null,null,null,null,null,null,null,null,null,null,null,null,"⑧"]
[null,null,null,null,null,null,null,null,"〒",null,{"$f":"IF(入力シート!$P$17=\"\",\"\",DBCS(入力シート!$P$17))","v":""},null,null,null,null,null,null,null,null,null,null,null,null,null,null,null,null,null,null,null,null,null,null,null,null,null,null,null,null,null,null,null,null,null,null,null,null,null,null,null,null,null,null,{"$f":"IF(入力シート!$I$17=\"\",\"\",入力シート!$J$17)","v":""},null,null,null,null,null,null,null,null,null,{"$f":"IF(入力シート!$S$17=\"\",\"\",入力シート!$S$17)","v":""}]
[]
[null,null,null,"住所",null,null,null,null,{"$f":"IF(入力シート!$Q$17=\"\",\"\",DBCS(入力シート!$Q$17))","v":""},null,null,null,null,null,null,null,null,null,null,null,null,null,null,null,null,null,null,null,null,null,null,null,null,null,null,null,null,null,null,null,null,null,null,null,null,null,null,null,null,"備考"]
[]
[null,null,null,null,null,null,null,null,null,null,null,null,null,null,null,null,null,null,null,null,null,null,null,null,null,null,null,null,null,null,null,null,null,null,null,null,null,null,null,null,null,null,null,null,null,null,null,null,null,null,null,null,null,{"$f":"IF(入力シート!$T$17=\"\",\"\",入力シート!$T$17)","v":""}]
[null,null,null,null,null,null,null,null,{"$f":"IF(入力シート!$R$17=\"\",\"\",DBCS(入力シート!$R$17))","v":""}]
[]
[]
[]
[]
[null,"加入者\n４",null,"①",null,null,null,{"$f":"IFERROR(IF(入力シート!$U$18=\"\",\"\",DBCS(LEFT(RIGHT(入力シート!$U$18,18-COLUMN())))),\"\")","v":""},null,{"$f":"IFERROR(IF(入力シート!$U$18=\"\",\"\",DBCS(LEFT(RIGHT(入力シート!$U$18,19-COLUMN())))),\"\")","v":""},null,{"$f":"IFERROR(IF(入力シート!$U$18=\"\",\"\",DBCS(LEFT(RIGHT(入力シート!$U$18,20-COLUMN())))),\"\")","v":""},null,{"$f":"IFERROR(IF(入力シート!$U$18=\"\",\"\",DBCS(LEFT(RIGHT(入力シート!$U$18,21-COLUMN())))),\"\")","v":""},null,{"$f":"IFERROR(IF(入力シート!$U$18=\"\",\"\",DBCS(LEFT(RIGHT(入力シート!$U$18,22-COLUMN())))),\"\")","v":""},null,{"$f":"IFERROR(IF(入力シート!$U$18=\"\",\"\",DBCS(LEFT(RIGHT(入力シート!$U$18,23-COLUMN())))),\"\")","v":""},null,{"$f":"IFERROR(IF(入力シート!$U$18=\"\",\"\",DBCS(LEFT(RIGHT(入力シート!$U$18,24-COLUMN())))),\"\")","v":""},null,{"$f":"IFERROR(IF(入力シート!$U$18=\"\",\"\",DBCS(LEFT(RIGHT(入力シート!$U$18,25-COLUMN())))),\"\")","v":""},null,{"$f":"IFERROR(IF(入力シート!$U$18=\"\",\"\",DBCS(LEFT(RIGHT(入力シート!$U$18,26-COLUMN())))),\"\")","v":""},null,{"$f":"IFERROR(IF(入力シート!$U$18=\"\",\"\",DBCS(LEFT(RIGHT(入力シート!$U$18,27-COLUMN())))),\"\")","v":""},null,"②",null,null,null,{"$f":"IFERROR(LEFT(入力シート!$C$18,FIND(\" \",入力シート!$C$18,1)-1),\"\")","v":""},null,null,null,null,null,null,null,null,null,null,{"$f":"IFERROR(RIGHT(入力シート!$C$18,LEN(入力シート!$C$18)-FIND(\" \",入力シート!$C$18,1)),\"\")","v":""},null,null,null,null,null,null,null,null,null,null,"③",null,null,null,{"$f":"IF(入力シート!$E$18=\"\",\"\",IF(TEXT(入力シート!$E$18,\"g\")=\"S\",\"5．昭和\",IF(TEXT(入力シート!$E$18,\"g\")=\"H\",\"7．平成\",IF(TEXT(入力シート!$E$18,\"g\")=\"R\",\"9．令和\"))))","v":""},null,null,null,null,"年",null,null,"月",null,"日"]
[]
[null,null,null,"加入者\n番　号",null,null,null,null,null,null,null,null,null,null,null,null,null,null,null,null,null,null,null,null,null,null,null,"氏名",null,null,null,null,null,null,null,null,null,null,null,null,null,null,null,null,null,null,null,null,null,null,null,null,null,"生年\n月日"]
[null,null,null,null,null,null,null,null,null,null,null,null,null,null,null,null,null,null,null,null,null,null,null,null,null,null,null,null,null,null,null,null,null,null,null,null,null,null,null,null,null,null,null,null,null,null,null,null,null,null,null,null,null,null,null,null,null,null,null,null,null,null,{"$f":"IF(入力シート!$E$18=\"\",\"\",DBCS(TEXT(入力シート!$E$18,\"eemmdd\")))","v":""}]
[null,null,null,null,null,null,null,null,null,null,null,null,null,null,null,null,null,null,null,null,null,null,null,null,null,null,null,null,null,null,null,{"$f":"IFERROR(LEFT(入力シート!$D$18,FIND(\"　\",入力シート!$D$18,1)-1),\"\")","v":""},null,null,null,null,null,null,null,null,null,null,{"$f":"IFERROR(RIGHT(入力シート!$D$18,LEN(入力シート!$D$18)-FIND(\"　\",入力シート!$D$18,1)),\"\")","v":""}]
[]
[]
[]
[]
[]
[null,null,null,"④",null,null,null,{"$f":"IFERROR(IF(入力シート!$G$18=\"\",\"\",DBCS(LEFT(RIGHT(入力シート!$G$18,18-COLUMN())))),\"\")","v":""},null,{"$f":"IFERROR(IF(入力シート!$G$18=\"\",\"\",DBCS(LEFT(RIGHT(入力シート!$G$18,19-COLUMN())))),\"\")","v":""},null,{"$f":"IFERROR(IF(入力シート!$G$18=\"\",\"\",DBCS(LEFT(RIGHT(入力シート!$G$18,20-COLUMN())))),\"\")","v":""},null,{"$f":"IFERROR(IF(入力シート!$G$18=\"\",\"\",DBCS(LEFT(RIGHT(入力シート!$G$18,21-COLUMN())))),\"\")","v":""},null,{"$f":"IFERROR(IF(入力シート!$G$18=\"\",\"\",DBCS(LEFT(RIGHT(入力シート!$G$18,22-COLUMN())))),\"\")","v":""},null,{"$f":"IFERROR(IF(入力シート!$G$18=\"\",\"\",DBCS(LEFT(RIGHT(入力シート!$G$18,23-COLUMN())))),\"\")","v":""},null,{"$f":"IFERROR(IF(入力シート!$G$18=\"\",\"\",DBCS(LEFT(RIGHT(入力シート!$G$18,24-COLUMN())))),\"\")","v":""},null,{"$f":"IFERROR(IF(入力シート!$G$18=\"\",\"\",DBCS(LEFT(RIGHT(入力シート!$G$18,25-COLUMN())))),\"\")","v":""},null,{"$f":"IFERROR(IF(入力シート!$G$18=\"\",\"\",DBCS(LEFT(RIGHT(入力シート!$G$18,26-COLUMN())))),\"\")","v":""},null,{"$f":"IFERROR(IF(入力シート!$G$18=\"\",\"\",DBCS(LEFT(RIGHT(入力シート!$G$18,27-COLUMN())))),\"\")","v":""},null,null,null,null,null,"⑤",null,null,null,{"$f":"IF(入力シート!$H$18=\"\",\"\",IF(TEXT(入力シート!$H$18,\"g\")=\"S\",\"5．昭和\",IF(TEXT(入力シート!$H$18,\"g\")=\"H\",\"7．平成\",IF(TEXT(入力シート!$H$18,\"g\")=\"R\",\"9．令和\"))))","v":""},null,null,null,null,null,"年",null,null,"月",null,"日",null,null,"⑥",null,null,null,{"$f":"IF(入力シート!$K$18=\"\",\"\",DBCS(入力シート!$K$18))","v":""}]
[]
[null,null,null,"基礎年\n金番号",null,null,null,null,null,null,null,null,null,null,null,null,null,null,null,null,null,null,null,null,null,null,null,null,null,null,null,"喪　失\n年月日",null,null,null,null,null,null,null,null,null,{"$f":"IF(入力シート!$H$18=\"\",\"\",DBCS(TEXT(入力シート!$H$18,\"eemmdd\")))","v":""},null,null,null,null,null,null,null,"喪失\n原因"]
[]
[]
[]
[]
[]
[]
[null,null,null,"⑦",null,null,null,null,null,null,null,null,null,null,null,null,null,null,null,null,null,null,null,null,null,null,null,null,null,null,null,null,null,null,null,null,null,null,null,null,null,null,null,null,null,null,null,null,null,"⑧"]
[null,null,null,null,null,null,null,null,"〒",null,{"$f":"IF(入力シート!$P$18=\"\",\"\",DBCS(入力シート!$P$18))","v":""},null,null,null,null,null,null,null,null,null,null,null,null,null,null,null,null,null,null,null,null,null,null,null,null,null,null,null,null,null,null,null,null,null,null,null,null,null,null,null,null,null,null,{"$f":"IF(入力シート!$I$18=\"\",\"\",入力シート!$J$18)","v":""},null,null,null,null,null,null,null,null,null,{"$f":"IF(入力シート!$S$18=\"\",\"\",入力シート!$S$18)","v":""}]
[]
[null,null,null,"住所",null,null,null,null,{"$f":"IF(入力シート!$Q$18=\"\",\"\",DBCS(入力シート!$Q$18))","v":""},null,null,null,null,null,null,null,null,null,null,null,null,null,null,null,null,null,null,null,null,null,null,null,null,null,null,null,null,null,null,null,null,null,null,null,null,null,null,null,null,"備考"]
[]
[null,null,null,null,null,null,null,null,null,null,null,null,null,null,null,null,null,null,null,null,null,null,null,null,null,null,null,null,null,null,null,null,null,null,null,null,null,null,null,null,null,null,null,null,null,null,null,null,null,null,null,null,null,{"$f":"IF(入力シート!$T$18=\"\",\"\",入力シート!$T$18)","v":""}]
[null,null,null,null,null,null,null,null,{"$f":"IF(入力シート!$R$18=\"\",\"\",DBCS(入力シート!$R$18))","v":""}]
[]
[]
[]
[]
[]
[]
[]
[]
[]
[]
[]
[]
[]
[]
[]
[]
[]
[]
[]
[]
[]
[]
[]
[]
[]
[]
[]
[]
[]
[]
[]
[]
[null,"加入者\n１",null,"①",null,null,null,{"$f":"IFERROR(IF(入力シート!$U$19=\"\",\"\",DBCS(LEFT(RIGHT(入力シート!$U$19,18-COLUMN())))),\"\")","v":""},null,{"$f":"IFERROR(IF(入力シート!$U$19=\"\",\"\",DBCS(LEFT(RIGHT(入力シート!$U$19,19-COLUMN())))),\"\")","v":""},null,{"$f":"IFERROR(IF(入力シート!$U$19=\"\",\"\",DBCS(LEFT(RIGHT(入力シート!$U$19,20-COLUMN())))),\"\")","v":""},null,{"$f":"IFERROR(IF(入力シート!$U$19=\"\",\"\",DBCS(LEFT(RIGHT(入力シート!$U$19,21-COLUMN())))),\"\")","v":""},null,{"$f":"IFERROR(IF(入力シート!$U$19=\"\",\"\",DBCS(LEFT(RIGHT(入力シート!$U$19,22-COLUMN())))),\"\")","v":""},null,{"$f":"IFERROR(IF(入力シート!$U$19=\"\",\"\",DBCS(LEFT(RIGHT(入力シート!$U$19,23-COLUMN())))),\"\")","v":""},null,{"$f":"IFERROR(IF(入力シート!$U$19=\"\",\"\",DBCS(LEFT(RIGHT(入力シート!$U$19,24-COLUMN())))),\"\")","v":""},null,{"$f":"IFERROR(IF(入力シート!$U$19=\"\",\"\",DBCS(LEFT(RIGHT(入力シート!$U$19,25-COLUMN())))),\"\")","v":""},null,{"$f":"IFERROR(IF(入力シート!$U$19=\"\",\"\",DBCS(LEFT(RIGHT(入力シート!$U$19,26-COLUMN())))),\"\")","v":""},null,{"$f":"IFERROR(IF(入力シート!$U$19=\"\",\"\",DBCS(LEFT(RIGHT(入力シート!$U$19,27-COLUMN())))),\"\")","v":""},null,"②",null,null,null,{"$f":"IFERROR(LEFT(入力シート!$C$19,FIND(\" \",入力シート!$C$19,1)-1),\"\")","v":""},null,null,null,null,null,null,null,null,null,null,{"$f":"IFERROR(RIGHT(入力シート!$C$19,LEN(入力シート!$C$19)-FIND(\" \",入力シート!$C$19,1)),\"\")","v":""},null,null,null,null,null,null,null,null,null,null,"③",null,null,null,{"$f":"IF(入力シート!$E$19=\"\",\"\",IF(TEXT(入力シート!$E$19,\"g\")=\"S\",\"5．昭和\",IF(TEXT(入力シート!$E$19,\"g\")=\"H\",\"7．平成\",IF(TEXT(入力シート!$E$19,\"g\")=\"R\",\"9．令和\"))))","v":""},null,null,null,null,"年",null,null,"月",null,"日"]
[]
[null,null,null,"加入者\n番　号",null,null,null,null,null,null,null,null,null,null,null,null,null,null,null,null,null,null,null,null,null,null,null,"氏名",null,null,null,null,null,null,null,null,null,null,null,null,null,null,null,null,null,null,null,null,null,null,null,null,null,"生年\n月日"]
[null,null,null,null,null,null,null,null,null,null,null,null,null,null,null,null,null,null,null,null,null,null,null,null,null,null,null,null,null,null,null,null,null,null,null,null,null,null,null,null,null,null,null,null,null,null,null,null,null,null,null,null,null,null,null,null,null,null,null,null,null,null,{"$f":"IF(入力シート!$E$19=\"\",\"\",DBCS(TEXT(入力シート!$E$19,\"eemmdd\")))","v":""}]
[null,null,null,null,null,null,null,null,null,null,null,null,null,null,null,null,null,null,null,null,null,null,null,null,null,null,null,null,null,null,null,{"$f":"IFERROR(LEFT(入力シート!$D$19,FIND(\"　\",入力シート!$D$19,1)-1),\"\")","v":""},null,null,null,null,null,null,null,null,null,null,{"$f":"IFERROR(RIGHT(入力シート!$D$19,LEN(入力シート!$D$19)-FIND(\"　\",入力シート!$D$19,1)),\"\")","v":""}]
[]
[]
[]
[]
[]
[null,null,null,"④",null,null,null,{"$f":"IFERROR(IF(入力シート!$G$19=\"\",\"\",DBCS(LEFT(RIGHT(入力シート!$G$19,18-COLUMN())))),\"\")","v":""},null,{"$f":"IFERROR(IF(入力シート!$G$19=\"\",\"\",DBCS(LEFT(RIGHT(入力シート!$G$19,19-COLUMN())))),\"\")","v":""},null,{"$f":"IFERROR(IF(入力シート!$G$19=\"\",\"\",DBCS(LEFT(RIGHT(入力シート!$G$19,20-COLUMN())))),\"\")","v":""},null,{"$f":"IFERROR(IF(入力シート!$G$19=\"\",\"\",DBCS(LEFT(RIGHT(入力シート!$G$19,21-COLUMN())))),\"\")","v":""},null,{"$f":"IFERROR(IF(入力シート!$G$19=\"\",\"\",DBCS(LEFT(RIGHT(入力シート!$G$19,22-COLUMN())))),\"\")","v":""},null,{"$f":"IFERROR(IF(入力シート!$G$19=\"\",\"\",DBCS(LEFT(RIGHT(入力シート!$G$19,23-COLUMN())))),\"\")","v":""},null,{"$f":"IFERROR(IF(入力シート!$G$19=\"\",\"\",DBCS(LEFT(RIGHT(入力シート!$G$19,24-COLUMN())))),\"\")","v":""},null,{"$f":"IFERROR(IF(入力シート!$G$19=\"\",\"\",DBCS(LEFT(RIGHT(入力シート!$G$19,25-COLUMN())))),\"\")","v":""},null,{"$f":"IFERROR(IF(入力シート!$G$19=\"\",\"\",DBCS(LEFT(RIGHT(入力シート!$G$19,26-COLUMN())))),\"\")","v":""},null,{"$f":"IFERROR(IF(入力シート!$G$19=\"\",\"\",DBCS(LEFT(RIGHT(入力シート!$G$19,27-COLUMN())))),\"\")","v":""},null,null,null,null,null,"⑤",null,null,null,{"$f":"IF(入力シート!$H$19=\"\",\"\",IF(TEXT(入力シート!$H$19,\"g\")=\"S\",\"5．昭和\",IF(TEXT(入力シート!$H$19,\"g\")=\"H\",\"7．平成\",IF(TEXT(入力シート!$H$19,\"g\")=\"R\",\"9．令和\"))))","v":""},null,null,null,null,null,"年",null,null,"月",null,"日",null,null,"⑥",null,null,null,{"$f":"IF(入力シート!$K$19=\"\",\"\",DBCS(入力シート!$K$19))","v":""}]
[]
[null,null,null,"基礎年\n金番号",null,null,null,null,null,null,null,null,null,null,null,null,null,null,null,null,null,null,null,null,null,null,null,null,null,null,null,"喪　失\n年月日",null,null,null,null,null,null,null,null,null,{"$f":"IF(入力シート!$H$19=\"\",\"\",DBCS(TEXT(入力シート!$H$19,\"eemmdd\")))","v":""},null,null,null,null,null,null,null,"喪失\n原因"]
[]
[]
[]
[]
[]
[]
[null,null,null,"⑦",null,null,null,null,null,null,null,null,null,null,null,null,null,null,null,null,null,null,null,null,null,null,null,null,null,null,null,null,null,null,null,null,null,null,null,null,null,null,null,null,null,null,null,null,null,"⑧"]
[null,null,null,null,null,null,null,null,"〒",null,{"$f":"IF(入力シート!$P$19=\"\",\"\",DBCS(入力シート!$P$19))","v":""},null,null,null,null,null,null,null,null,null,null,null,null,null,null,null,null,null,null,null,null,null,null,null,null,null,null,null,null,null,null,null,null,null,null,null,null,null,null,null,null,null,null,{"$f":"IF(入力シート!$I$19=\"\",\"\",入力シート!$J$19)","v":""},null,null,null,null,null,null,null,null,null,{"$f":"IF(入力シート!$S$19=\"\",\"\",入力シート!$S$19)","v":""}]
[]
[null,null,null,"住所",null,null,null,null,{"$f":"IF(入力シート!$Q$19=\"\",\"\",DBCS(入力シート!$Q$19))","v":""},null,null,null,null,null,null,null,null,null,null,null,null,null,null,null,null,null,null,null,null,null,null,null,null,null,null,null,null,null,null,null,null,null,null,null,null,null,null,null,null,"備考"]
[]
[null,null,null,null,null,null,null,null,null,null,null,null,null,null,null,null,null,null,null,null,null,null,null,null,null,null,null,null,null,null,null,null,null,null,null,null,null,null,null,null,null,null,null,null,null,null,null,null,null,null,null,null,null,{"$f":"IF(入力シート!$T$19=\"\",\"\",入力シート!$T$19)","v":""}]
[null,null,null,null,null,null,null,null,{"$f":"IF(入力シート!$R$19=\"\",\"\",DBCS(入力シート!$R$19))","v":""}]
[]
[]
[]
[]
[null,"加入者\n２",null,"①",null,null,null,{"$f":"IFERROR(IF(入力シート!$U$20=\"\",\"\",DBCS(LEFT(RIGHT(入力シート!$U$20,18-COLUMN())))),\"\")","v":""},null,{"$f":"IFERROR(IF(入力シート!$U$20=\"\",\"\",DBCS(LEFT(RIGHT(入力シート!$U$20,19-COLUMN())))),\"\")","v":""},null,{"$f":"IFERROR(IF(入力シート!$U$20=\"\",\"\",DBCS(LEFT(RIGHT(入力シート!$U$20,20-COLUMN())))),\"\")","v":""},null,{"$f":"IFERROR(IF(入力シート!$U$20=\"\",\"\",DBCS(LEFT(RIGHT(入力シート!$U$20,21-COLUMN())))),\"\")","v":""},null,{"$f":"IFERROR(IF(入力シート!$U$20=\"\",\"\",DBCS(LEFT(RIGHT(入力シート!$U$20,22-COLUMN())))),\"\")","v":""},null,{"$f":"IFERROR(IF(入力シート!$U$20=\"\",\"\",DBCS(LEFT(RIGHT(入力シート!$U$20,23-COLUMN())))),\"\")","v":""},null,{"$f":"IFERROR(IF(入力シート!$U$20=\"\",\"\",DBCS(LEFT(RIGHT(入力シート!$U$20,24-COLUMN())))),\"\")","v":""},null,{"$f":"IFERROR(IF(入力シート!$U$20=\"\",\"\",DBCS(LEFT(RIGHT(入力シート!$U$20,25-COLUMN())))),\"\")","v":""},null,{"$f":"IFERROR(IF(入力シート!$U$20=\"\",\"\",DBCS(LEFT(RIGHT(入力シート!$U$20,26-COLUMN())))),\"\")","v":""},null,{"$f":"IFERROR(IF(入力シート!$U$20=\"\",\"\",DBCS(LEFT(RIGHT(入力シート!$U$20,27-COLUMN())))),\"\")","v":""},null,"②",null,null,null,{"$f":"IFERROR(LEFT(入力シート!$C$20,FIND(\" \",入力シート!$C$20,1)-1),\"\")","v":""},null,null,null,null,null,null,null,null,null,null,{"$f":"IFERROR(RIGHT(入力シート!$C$20,LEN(入力シート!$C$20)-FIND(\" \",入力シート!$C$20,1)),\"\")","v":""},null,null,null,null,null,null,null,null,null,null,"③",null,null,null,{"$f":"IF(入力シート!$E$20=\"\",\"\",IF(TEXT(入力シート!$E$20,\"g\")=\"S\",\"5．昭和\",IF(TEXT(入力シート!$E$20,\"g\")=\"H\",\"7．平成\",IF(TEXT(入力シート!$E$20,\"g\")=\"R\",\"9．令和\"))))","v":""},null,null,null,null,"年",null,null,"月",null,"日"]
[]
[null,null,null,"加入者\n番　号",null,null,null,null,null,null,null,null,null,null,null,null,null,null,null,null,null,null,null,null,null,null,null,"氏名",null,null,null,null,null,null,null,null,null,null,null,null,null,null,null,null,null,null,null,null,null,null,null,null,null,"生年\n月日"]
[null,null,null,null,null,null,null,null,null,null,null,null,null,null,null,null,null,null,null,null,null,null,null,null,null,null,null,null,null,null,null,null,null,null,null,null,null,null,null,null,null,null,null,null,null,null,null,null,null,null,null,null,null,null,null,null,null,null,null,null,null,null,{"$f":"IF(入力シート!$E$20=\"\",\"\",DBCS(TEXT(入力シート!$E$20,\"eemmdd\")))","v":""}]
[null,null,null,null,null,null,null,null,null,null,null,null,null,null,null,null,null,null,null,null,null,null,null,null,null,null,null,null,null,null,null,{"$f":"IFERROR(LEFT(入力シート!$D$20,FIND(\"　\",入力シート!$D$20,1)-1),\"\")","v":""},null,null,null,null,null,null,null,null,null,null,{"$f":"IFERROR(RIGHT(入力シート!$D$20,LEN(入力シート!$D$20)-FIND(\"　\",入力シート!$D$20,1)),\"\")","v":""}]
[]
[]
[]
[]
[]
[null,null,null,"④",null,null,null,{"$f":"IFERROR(IF(入力シート!$G$20=\"\",\"\",DBCS(LEFT(RIGHT(入力シート!$G$20,18-COLUMN())))),\"\")","v":""},null,{"$f":"IFERROR(IF(入力シート!$G$20=\"\",\"\",DBCS(LEFT(RIGHT(入力シート!$G$20,19-COLUMN())))),\"\")","v":""},null,{"$f":"IFERROR(IF(入力シート!$G$20=\"\",\"\",DBCS(LEFT(RIGHT(入力シート!$G$20,20-COLUMN())))),\"\")","v":""},null,{"$f":"IFERROR(IF(入力シート!$G$20=\"\",\"\",DBCS(LEFT(RIGHT(入力シート!$G$20,21-COLUMN())))),\"\")","v":""},null,{"$f":"IFERROR(IF(入力シート!$G$20=\"\",\"\",DBCS(LEFT(RIGHT(入力シート!$G$20,22-COLUMN())))),\"\")","v":""},null,{"$f":"IFERROR(IF(入力シート!$G$20=\"\",\"\",DBCS(LEFT(RIGHT(入力シート!$G$20,23-COLUMN())))),\"\")","v":""},null,{"$f":"IFERROR(IF(入力シート!$G$20=\"\",\"\",DBCS(LEFT(RIGHT(入力シート!$G$20,24-COLUMN())))),\"\")","v":""},null,{"$f":"IFERROR(IF(入力シート!$G$20=\"\",\"\",DBCS(LEFT(RIGHT(入力シート!$G$20,25-COLUMN())))),\"\")","v":""},null,{"$f":"IFERROR(IF(入力シート!$G$20=\"\",\"\",DBCS(LEFT(RIGHT(入力シート!$G$20,26-COLUMN())))),\"\")","v":""},null,{"$f":"IFERROR(IF(入力シート!$G$20=\"\",\"\",DBCS(LEFT(RIGHT(入力シート!$G$20,27-COLUMN())))),\"\")","v":""},null,null,null,null,null,"⑤",null,null,null,{"$f":"IF(入力シート!$H$20=\"\",\"\",IF(TEXT(入力シート!$H$20,\"g\")=\"S\",\"5．昭和\",IF(TEXT(入力シート!$H$20,\"g\")=\"H\",\"7．平成\",IF(TEXT(入力シート!$H$20,\"g\")=\"R\",\"9．令和\"))))","v":""},null,null,null,null,null,"年",null,null,"月",null,"日",null,null,"⑥",null,null,null,{"$f":"IF(入力シート!$K$20=\"\",\"\",DBCS(入力シート!$K$20))","v":""}]
[]
[null,null,null,"基礎年\n金番号",null,null,null,null,null,null,null,null,null,null,null,null,null,null,null,null,null,null,null,null,null,null,null,null,null,null,null,"喪　失\n年月日",null,null,null,null,null,null,null,null,null,{"$f":"IF(入力シート!$H$20=\"\",\"\",DBCS(TEXT(入力シート!$H$20,\"eemmdd\")))","v":""},null,null,null,null,null,null,null,"喪失\n原因"]
[]
[]
[]
[]
[]
[]
[null,null,null,"⑦",null,null,null,null,null,null,null,null,null,null,null,null,null,null,null,null,null,null,null,null,null,null,null,null,null,null,null,null,null,null,null,null,null,null,null,null,null,null,null,null,null,null,null,null,null,"⑧"]
[null,null,null,null,null,null,null,null,"〒",null,{"$f":"IF(入力シート!$P$20=\"\",\"\",DBCS(入力シート!$P$20))","v":""},null,null,null,null,null,null,null,null,null,null,null,null,null,null,null,null,null,null,null,null,null,null,null,null,null,null,null,null,null,null,null,null,null,null,null,null,null,null,null,null,null,null,{"$f":"IF(入力シート!$I$20=\"\",\"\",入力シート!$J$20)","v":""},null,null,null,null,null,null,null,null,null,{"$f":"IF(入力シート!$S$20=\"\",\"\",入力シート!$S$20)","v":""}]
[]
[null,null,null,"住所",null,null,null,null,{"$f":"IF(入力シート!$Q$20=\"\",\"\",DBCS(入力シート!$Q$20))","v":""},null,null,null,null,null,null,null,null,null,null,null,null,null,null,null,null,null,null,null,null,null,null,null,null,null,null,null,null,null,null,null,null,null,null,null,null,null,null,null,null,"備考"]
[]
[null,null,null,null,null,null,null,null,null,null,null,null,null,null,null,null,null,null,null,null,null,null,null,null,null,null,null,null,null,null,null,null,null,null,null,null,null,null,null,null,null,null,null,null,null,null,null,null,null,null,null,null,null,{"$f":"IF(入力シート!$T$20=\"\",\"\",入力シート!$T$20)","v":""}]
[null,null,null,null,null,null,null,null,{"$f":"IF(入力シート!$R$20=\"\",\"\",DBCS(入力シート!$R$20))","v":""}]
[]
[]
[]
[]
[null,"加入者\n３",null,"①",null,null,null,{"$f":"IFERROR(IF(入力シート!$U$21=\"\",\"\",DBCS(LEFT(RIGHT(入力シート!$U$21,18-COLUMN())))),\"\")","v":""},null,{"$f":"IFERROR(IF(入力シート!$U$21=\"\",\"\",DBCS(LEFT(RIGHT(入力シート!$U$21,19-COLUMN())))),\"\")","v":""},null,{"$f":"IFERROR(IF(入力シート!$U$21=\"\",\"\",DBCS(LEFT(RIGHT(入力シート!$U$21,20-COLUMN())))),\"\")","v":""},null,{"$f":"IFERROR(IF(入力シート!$U$21=\"\",\"\",DBCS(LEFT(RIGHT(入力シート!$U$21,21-COLUMN())))),\"\")","v":""},null,{"$f":"IFERROR(IF(入力シート!$U$21=\"\",\"\",DBCS(LEFT(RIGHT(入力シート!$U$21,22-COLUMN())))),\"\")","v":""},null,{"$f":"IFERROR(IF(入力シート!$U$21=\"\",\"\",DBCS(LEFT(RIGHT(入力シート!$U$21,23-COLUMN())))),\"\")","v":""},null,{"$f":"IFERROR(IF(入力シート!$U$21=\"\",\"\",DBCS(LEFT(RIGHT(入力シート!$U$21,24-COLUMN())))),\"\")","v":""},null,{"$f":"IFERROR(IF(入力シート!$U$21=\"\",\"\",DBCS(LEFT(RIGHT(入力シート!$U$21,25-COLUMN())))),\"\")","v":""},null,{"$f":"IFERROR(IF(入力シート!$U$21=\"\",\"\",DBCS(LEFT(RIGHT(入力シート!$U$21,26-COLUMN())))),\"\")","v":""},null,{"$f":"IFERROR(IF(入力シート!$U$21=\"\",\"\",DBCS(LEFT(RIGHT(入力シート!$U$21,27-COLUMN())))),\"\")","v":""},null,"②",null,null,null,{"$f":"IFERROR(LEFT(入力シート!$C$21,FIND(\" \",入力シート!$C$21,1)-1),\"\")","v":""},null,null,null,null,null,null,null,null,null,null,{"$f":"IFERROR(RIGHT(入力シート!$C$21,LEN(入力シート!$C$21)-FIND(\" \",入力シート!$C$21,1)),\"\")","v":""},null,null,null,null,null,null,null,null,null,null,"③",null,null,null,{"$f":"IF(入力シート!$E$21=\"\",\"\",IF(TEXT(入力シート!$E$21,\"g\")=\"S\",\"5．昭和\",IF(TEXT(入力シート!$E$21,\"g\")=\"H\",\"7．平成\",IF(TEXT(入力シート!$E$21,\"g\")=\"R\",\"9．令和\"))))","v":""},null,null,null,null,"年",null,null,"月",null,"日"]
[]
[null,null,null,"加入者\n番　号",null,null,null,null,null,null,null,null,null,null,null,null,null,null,null,null,null,null,null,null,null,null,null,"氏名",null,null,null,null,null,null,null,null,null,null,null,null,null,null,null,null,null,null,null,null,null,null,null,null,null,"生年\n月日"]
[null,null,null,null,null,null,null,null,null,null,null,null,null,null,null,null,null,null,null,null,null,null,null,null,null,null,null,null,null,null,null,null,null,null,null,null,null,null,null,null,null,null,null,null,null,null,null,null,null,null,null,null,null,null,null,null,null,null,null,null,null,null,{"$f":"IF(入力シート!$E$21=\"\",\"\",DBCS(TEXT(入力シート!$E$21,\"eemmdd\")))","v":""}]
[null,null,null,null,null,null,null,null,null,null,null,null,null,null,null,null,null,null,null,null,null,null,null,null,null,null,null,null,null,null,null,{"$f":"IFERROR(LEFT(入力シート!$D$21,FIND(\"　\",入力シート!$D$21,1)-1),\"\")","v":""},null,null,null,null,null,null,null,null,null,null,{"$f":"IFERROR(RIGHT(入力シート!$D$21,LEN(入力シート!$D$21)-FIND(\"　\",入力シート!$D$21,1)),\"\")","v":""}]
[]
[]
[]
[]
[]
[null,null,null,"④",null,null,null,{"$f":"IFERROR(IF(入力シート!$G$21=\"\",\"\",DBCS(LEFT(RIGHT(入力シート!$G$21,18-COLUMN())))),\"\")","v":""},null,{"$f":"IFERROR(IF(入力シート!$G$21=\"\",\"\",DBCS(LEFT(RIGHT(入力シート!$G$21,19-COLUMN())))),\"\")","v":""},null,{"$f":"IFERROR(IF(入力シート!$G$21=\"\",\"\",DBCS(LEFT(RIGHT(入力シート!$G$21,20-COLUMN())))),\"\")","v":""},null,{"$f":"IFERROR(IF(入力シート!$G$21=\"\",\"\",DBCS(LEFT(RIGHT(入力シート!$G$21,21-COLUMN())))),\"\")","v":""},null,{"$f":"IFERROR(IF(入力シート!$G$21=\"\",\"\",DBCS(LEFT(RIGHT(入力シート!$G$21,22-COLUMN())))),\"\")","v":""},null,{"$f":"IFERROR(IF(入力シート!$G$21=\"\",\"\",DBCS(LEFT(RIGHT(入力シート!$G$21,23-COLUMN())))),\"\")","v":""},null,{"$f":"IFERROR(IF(入力シート!$G$21=\"\",\"\",DBCS(LEFT(RIGHT(入力シート!$G$21,24-COLUMN())))),\"\")","v":""},null,{"$f":"IFERROR(IF(入力シート!$G$21=\"\",\"\",DBCS(LEFT(RIGHT(入力シート!$G$21,25-COLUMN())))),\"\")","v":""},null,{"$f":"IFERROR(IF(入力シート!$G$21=\"\",\"\",DBCS(LEFT(RIGHT(入力シート!$G$21,26-COLUMN())))),\"\")","v":""},null,{"$f":"IFERROR(IF(入力シート!$G$21=\"\",\"\",DBCS(LEFT(RIGHT(入力シート!$G$21,27-COLUMN())))),\"\")","v":""},null,null,null,null,null,"⑤",null,null,null,{"$f":"IF(入力シート!$H$21=\"\",\"\",IF(TEXT(入力シート!$H$21,\"g\")=\"S\",\"5．昭和\",IF(TEXT(入力シート!$H$21,\"g\")=\"H\",\"7．平成\",IF(TEXT(入力シート!$H$21,\"g\")=\"R\",\"9．令和\"))))","v":""},null,null,null,null,null,"年",null,null,"月",null,"日",null,null,"⑥",null,null,null,{"$f":"IF(入力シート!$K$21=\"\",\"\",DBCS(入力シート!$K$21))","v":""}]
[]
[null,null,null,"基礎年\n金番号",null,null,null,null,null,null,null,null,null,null,null,null,null,null,null,null,null,null,null,null,null,null,null,null,null,null,null,"喪　失\n年月日",null,null,null,null,null,null,null,null,null,{"$f":"IF(入力シート!$H$21=\"\",\"\",DBCS(TEXT(入力シート!$H$21,\"eemmdd\")))","v":""},null,null,null,null,null,null,null,"喪失\n原因"]
[]
[]
[]
[]
[]
[]
[null,null,null,"⑦",null,null,null,null,null,null,null,null,null,null,null,null,null,null,null,null,null,null,null,null,null,null,null,null,null,null,null,null,null,null,null,null,null,null,null,null,null,null,null,null,null,null,null,null,null,"⑧"]
[null,null,null,null,null,null,null,null,"〒",null,{"$f":"IF(入力シート!$P$21=\"\",\"\",DBCS(入力シート!$P$21))","v":""},null,null,null,null,null,null,null,null,null,null,null,null,null,null,null,null,null,null,null,null,null,null,null,null,null,null,null,null,null,null,null,null,null,null,null,null,null,null,null,null,null,null,{"$f":"IF(入力シート!$I$21=\"\",\"\",入力シート!$J$21)","v":""},null,null,null,null,null,null,null,null,null,{"$f":"IF(入力シート!$S$21=\"\",\"\",入力シート!$S$21)","v":""}]
[]
[null,null,null,"住所",null,null,null,null,{"$f":"IF(入力シート!$Q$21=\"\",\"\",DBCS(入力シート!$Q$21))","v":""},null,null,null,null,null,null,null,null,null,null,null,null,null,null,null,null,null,null,null,null,null,null,null,null,null,null,null,null,null,null,null,null,null,null,null,null,null,null,null,null,"備考"]
[]
[null,null,null,null,null,null,null,null,null,null,null,null,null,null,null,null,null,null,null,null,null,null,null,null,null,null,null,null,null,null,null,null,null,null,null,null,null,null,null,null,null,null,null,null,null,null,null,null,null,null,null,null,null,{"$f":"IF(入力シート!$T$21=\"\",\"\",入力シート!$T$21)","v":""}]
[null,null,null,null,null,null,null,null,{"$f":"IF(入力シート!$R$21=\"\",\"\",DBCS(入力シート!$R$21))","v":""}]
[]
[]
[]
[]
[null,"加入者\n４",null,"①",null,null,null,{"$f":"IFERROR(IF(入力シート!$U$22=\"\",\"\",DBCS(LEFT(RIGHT(入力シート!$U$22,18-COLUMN())))),\"\")","v":""},null,{"$f":"IFERROR(IF(入力シート!$U$22=\"\",\"\",DBCS(LEFT(RIGHT(入力シート!$U$22,19-COLUMN())))),\"\")","v":""},null,{"$f":"IFERROR(IF(入力シート!$U$22=\"\",\"\",DBCS(LEFT(RIGHT(入力シート!$U$22,20-COLUMN())))),\"\")","v":""},null,{"$f":"IFERROR(IF(入力シート!$U$22=\"\",\"\",DBCS(LEFT(RIGHT(入力シート!$U$22,21-COLUMN())))),\"\")","v":""},null,{"$f":"IFERROR(IF(入力シート!$U$22=\"\",\"\",DBCS(LEFT(RIGHT(入力シート!$U$22,22-COLUMN())))),\"\")","v":""},null,{"$f":"IFERROR(IF(入力シート!$U$22=\"\",\"\",DBCS(LEFT(RIGHT(入力シート!$U$22,23-COLUMN())))),\"\")","v":""},null,{"$f":"IFERROR(IF(入力シート!$U$22=\"\",\"\",DBCS(LEFT(RIGHT(入力シート!$U$22,24-COLUMN())))),\"\")","v":""},null,{"$f":"IFERROR(IF(入力シート!$U$22=\"\",\"\",DBCS(LEFT(RIGHT(入力シート!$U$22,25-COLUMN())))),\"\")","v":""},null,{"$f":"IFERROR(IF(入力シート!$U$22=\"\",\"\",DBCS(LEFT(RIGHT(入力シート!$U$22,26-COLUMN())))),\"\")","v":""},null,{"$f":"IFERROR(IF(入力シート!$U$22=\"\",\"\",DBCS(LEFT(RIGHT(入力シート!$U$22,27-COLUMN())))),\"\")","v":""},null,"②",null,null,null,{"$f":"IFERROR(LEFT(入力シート!$C$22,FIND(\" \",入力シート!$C$22,1)-1),\"\")","v":""},null,null,null,null,null,null,null,null,null,null,{"$f":"IFERROR(RIGHT(入力シート!$C$22,LEN(入力シート!$C$22)-FIND(\" \",入力シート!$C$22,1)),\"\")","v":""},null,null,null,null,null,null,null,null,null,null,"③",null,null,null,{"$f":"IF(入力シート!$E$22=\"\",\"\",IF(TEXT(入力シート!$E$22,\"g\")=\"S\",\"5．昭和\",IF(TEXT(入力シート!$E$22,\"g\")=\"H\",\"7．平成\",IF(TEXT(入力シート!$E$22,\"g\")=\"R\",\"9．令和\"))))","v":""},null,null,null,null,"年",null,null,"月",null,"日"]
[]
[null,null,null,"加入者\n番　号",null,null,null,null,null,null,null,null,null,null,null,null,null,null,null,null,null,null,null,null,null,null,null,"氏名",null,null,null,null,null,null,null,null,null,null,null,null,null,null,null,null,null,null,null,null,null,null,null,null,null,"生年\n月日"]
[null,null,null,null,null,null,null,null,null,null,null,null,null,null,null,null,null,null,null,null,null,null,null,null,null,null,null,null,null,null,null,null,null,null,null,null,null,null,null,null,null,null,null,null,null,null,null,null,null,null,null,null,null,null,null,null,null,null,null,null,null,null,{"$f":"IF(入力シート!$E$22=\"\",\"\",DBCS(TEXT(入力シート!$E$22,\"eemmdd\")))","v":""}]
[null,null,null,null,null,null,null,null,null,null,null,null,null,null,null,null,null,null,null,null,null,null,null,null,null,null,null,null,null,null,null,{"$f":"IFERROR(LEFT(入力シート!$D$22,FIND(\"　\",入力シート!$D$22,1)-1),\"\")","v":""},null,null,null,null,null,null,null,null,null,null,{"$f":"IFERROR(RIGHT(入力シート!$D$22,LEN(入力シート!$D$22)-FIND(\"　\",入力シート!$D$22,1)),\"\")","v":""}]
[]
[]
[]
[]
[]
[null,null,null,"④",null,null,null,{"$f":"IFERROR(IF(入力シート!$G$22=\"\",\"\",DBCS(LEFT(RIGHT(入力シート!$G$22,18-COLUMN())))),\"\")","v":""},null,{"$f":"IFERROR(IF(入力シート!$G$22=\"\",\"\",DBCS(LEFT(RIGHT(入力シート!$G$22,19-COLUMN())))),\"\")","v":""},null,{"$f":"IFERROR(IF(入力シート!$G$22=\"\",\"\",DBCS(LEFT(RIGHT(入力シート!$G$22,20-COLUMN())))),\"\")","v":""},null,{"$f":"IFERROR(IF(入力シート!$G$22=\"\",\"\",DBCS(LEFT(RIGHT(入力シート!$G$22,21-COLUMN())))),\"\")","v":""},null,{"$f":"IFERROR(IF(入力シート!$G$22=\"\",\"\",DBCS(LEFT(RIGHT(入力シート!$G$22,22-COLUMN())))),\"\")","v":""},null,{"$f":"IFERROR(IF(入力シート!$G$22=\"\",\"\",DBCS(LEFT(RIGHT(入力シート!$G$22,23-COLUMN())))),\"\")","v":""},null,{"$f":"IFERROR(IF(入力シート!$G$22=\"\",\"\",DBCS(LEFT(RIGHT(入力シート!$G$22,24-COLUMN())))),\"\")","v":""},null,{"$f":"IFERROR(IF(入力シート!$G$22=\"\",\"\",DBCS(LEFT(RIGHT(入力シート!$G$22,25-COLUMN())))),\"\")","v":""},null,{"$f":"IFERROR(IF(入力シート!$G$22=\"\",\"\",DBCS(LEFT(RIGHT(入力シート!$G$22,26-COLUMN())))),\"\")","v":""},null,{"$f":"IFERROR(IF(入力シート!$G$22=\"\",\"\",DBCS(LEFT(RIGHT(入力シート!$G$22,27-COLUMN())))),\"\")","v":""},null,null,null,null,null,"⑤",null,null,null,{"$f":"IF(入力シート!$H$22=\"\",\"\",IF(TEXT(入力シート!$H$22,\"g\")=\"S\",\"5．昭和\",IF(TEXT(入力シート!$H$22,\"g\")=\"H\",\"7．平成\",IF(TEXT(入力シート!$H$22,\"g\")=\"R\",\"9．令和\"))))","v":""},null,null,null,null,null,"年",null,null,"月",null,"日",null,null,"⑥",null,null,null,{"$f":"IF(入力シート!$K$22=\"\",\"\",DBCS(入力シート!$K$22))","v":""}]
[]
[null,null,null,"基礎年\n金番号",null,null,null,null,null,null,null,null,null,null,null,null,null,null,null,null,null,null,null,null,null,null,null,null,null,null,null,"喪　失\n年月日",null,null,null,null,null,null,null,null,null,{"$f":"IF(入力シート!$H$22=\"\",\"\",DBCS(TEXT(入力シート!$H$22,\"eemmdd\")))","v":""},null,null,null,null,null,null,null,"喪失\n原因"]
[]
[]
[]
[]
[]
[]
[null,null,null,"⑦",null,null,null,null,null,null,null,null,null,null,null,null,null,null,null,null,null,null,null,null,null,null,null,null,null,null,null,null,null,null,null,null,null,null,null,null,null,null,null,null,null,null,null,null,null,"⑧"]
[null,null,null,null,null,null,null,null,"〒",null,{"$f":"IF(入力シート!$P$22=\"\",\"\",DBCS(入力シート!$P$22))","v":""},null,null,null,null,null,null,null,null,null,null,null,null,null,null,null,null,null,null,null,null,null,null,null,null,null,null,null,null,null,null,null,null,null,null,null,null,null,null,null,null,null,null,{"$f":"IF(入力シート!$I$22=\"\",\"\",入力シート!$J$22)","v":""},null,null,null,null,null,null,null,null,null,{"$f":"IF(入力シート!$S$22=\"\",\"\",入力シート!$S$22)","v":""}]
[]
[null,null,null,"住所",null,null,null,null,{"$f":"IF(入力シート!$Q$22=\"\",\"\",DBCS(入力シート!$Q$22))","v":""},null,null,null,null,null,null,null,null,null,null,null,null,null,null,null,null,null,null,null,null,null,null,null,null,null,null,null,null,null,null,null,null,null,null,null,null,null,null,null,null,"備考"]
[]
[null,null,null,null,null,null,null,null,null,null,null,null,null,null,null,null,null,null,null,null,null,null,null,null,null,null,null,null,null,null,null,null,null,null,null,null,null,null,null,null,null,null,null,null,null,null,null,null,null,null,null,null,null,{"$f":"IF(入力シート!$T$22=\"\",\"\",入力シート!$T$22)","v":""}]
[null,null,null,null,null,null,null,null,{"$f":"IF(入力シート!$R$22=\"\",\"\",DBCS(入力シート!$R$22))","v":""}]
[]
[]
[]
[]
[]
[]
[]
[]
[]
[]
[]
[]
[]
[]
[]
[]
[]
[]
[]
[]
[]
[]
[]
[]
[]
[]
[]
[]
[]
[]
[]
[null,"加入者\n１",null,"①",null,null,null,{"$f":"IFERROR(IF(入力シート!$U$23=\"\",\"\",DBCS(LEFT(RIGHT(入力シート!$U$23,18-COLUMN())))),\"\")","v":""},null,{"$f":"IFERROR(IF(入力シート!$U$23=\"\",\"\",DBCS(LEFT(RIGHT(入力シート!$U$23,19-COLUMN())))),\"\")","v":""},null,{"$f":"IFERROR(IF(入力シート!$U$23=\"\",\"\",DBCS(LEFT(RIGHT(入力シート!$U$23,20-COLUMN())))),\"\")","v":""},null,{"$f":"IFERROR(IF(入力シート!$U$23=\"\",\"\",DBCS(LEFT(RIGHT(入力シート!$U$23,21-COLUMN())))),\"\")","v":""},null,{"$f":"IFERROR(IF(入力シート!$U$23=\"\",\"\",DBCS(LEFT(RIGHT(入力シート!$U$23,22-COLUMN())))),\"\")","v":""},null,{"$f":"IFERROR(IF(入力シート!$U$23=\"\",\"\",DBCS(LEFT(RIGHT(入力シート!$U$23,23-COLUMN())))),\"\")","v":""},null,{"$f":"IFERROR(IF(入力シート!$U$23=\"\",\"\",DBCS(LEFT(RIGHT(入力シート!$U$23,24-COLUMN())))),\"\")","v":""},null,{"$f":"IFERROR(IF(入力シート!$U$23=\"\",\"\",DBCS(LEFT(RIGHT(入力シート!$U$23,25-COLUMN())))),\"\")","v":""},null,{"$f":"IFERROR(IF(入力シート!$U$23=\"\",\"\",DBCS(LEFT(RIGHT(入力シート!$U$23,26-COLUMN())))),\"\")","v":""},null,{"$f":"IFERROR(IF(入力シート!$U$23=\"\",\"\",DBCS(LEFT(RIGHT(入力シート!$U$23,27-COLUMN())))),\"\")","v":""},null,"②",null,null,null,{"$f":"IFERROR(LEFT(入力シート!$C$23,FIND(\" \",入力シート!$C$23,1)-1),\"\")","v":""},null,null,null,null,null,null,null,null,null,null,{"$f":"IFERROR(RIGHT(入力シート!$C$23,LEN(入力シート!$C$23)-FIND(\" \",入力シート!$C$23,1)),\"\")","v":""},null,null,null,null,null,null,null,null,null,null,"③",null,null,null,{"$f":"IF(入力シート!$E$23=\"\",\"\",IF(TEXT(入力シート!$E$23,\"g\")=\"S\",\"5．昭和\",IF(TEXT(入力シート!$E$23,\"g\")=\"H\",\"7．平成\",IF(TEXT(入力シート!$E$23,\"g\")=\"R\",\"9．令和\"))))","v":""},null,null,null,null,"年",null,null,"月",null,"日"]
[]
[null,null,null,"加入者\n番　号",null,null,null,null,null,null,null,null,null,null,null,null,null,null,null,null,null,null,null,null,null,null,null,"氏名",null,null,null,null,null,null,null,null,null,null,null,null,null,null,null,null,null,null,null,null,null,null,null,null,null,"生年\n月日"]
[null,null,null,null,null,null,null,null,null,null,null,null,null,null,null,null,null,null,null,null,null,null,null,null,null,null,null,null,null,null,null,null,null,null,null,null,null,null,null,null,null,null,null,null,null,null,null,null,null,null,null,null,null,null,null,null,null,null,null,null,null,null,{"$f":"IF(入力シート!$E$23=\"\",\"\",DBCS(TEXT(入力シート!$E$23,\"eemmdd\")))","v":""}]
[null,null,null,null,null,null,null,null,null,null,null,null,null,null,null,null,null,null,null,null,null,null,null,null,null,null,null,null,null,null,null,{"$f":"IFERROR(LEFT(入力シート!$D$23,FIND(\"　\",入力シート!$D$23,1)-1),\"\")","v":""},null,null,null,null,null,null,null,null,null,null,{"$f":"IFERROR(RIGHT(入力シート!$D$23,LEN(入力シート!$D$23)-FIND(\"　\",入力シート!$D$23,1)),\"\")","v":""}]
[]
[]
[]
[]
[]
[null,null,null,"④",null,null,null,{"$f":"IFERROR(IF(入力シート!$G$23=\"\",\"\",DBCS(LEFT(RIGHT(入力シート!$G$23,18-COLUMN())))),\"\")","v":""},null,{"$f":"IFERROR(IF(入力シート!$G$23=\"\",\"\",DBCS(LEFT(RIGHT(入力シート!$G$23,19-COLUMN())))),\"\")","v":""},null,{"$f":"IFERROR(IF(入力シート!$G$23=\"\",\"\",DBCS(LEFT(RIGHT(入力シート!$G$23,20-COLUMN())))),\"\")","v":""},null,{"$f":"IFERROR(IF(入力シート!$G$23=\"\",\"\",DBCS(LEFT(RIGHT(入力シート!$G$23,21-COLUMN())))),\"\")","v":""},null,{"$f":"IFERROR(IF(入力シート!$G$23=\"\",\"\",DBCS(LEFT(RIGHT(入力シート!$G$23,22-COLUMN())))),\"\")","v":""},null,{"$f":"IFERROR(IF(入力シート!$G$23=\"\",\"\",DBCS(LEFT(RIGHT(入力シート!$G$23,23-COLUMN())))),\"\")","v":""},null,{"$f":"IFERROR(IF(入力シート!$G$23=\"\",\"\",DBCS(LEFT(RIGHT(入力シート!$G$23,24-COLUMN())))),\"\")","v":""},null,{"$f":"IFERROR(IF(入力シート!$G$23=\"\",\"\",DBCS(LEFT(RIGHT(入力シート!$G$23,25-COLUMN())))),\"\")","v":""},null,{"$f":"IFERROR(IF(入力シート!$G$23=\"\",\"\",DBCS(LEFT(RIGHT(入力シート!$G$23,26-COLUMN())))),\"\")","v":""},null,{"$f":"IFERROR(IF(入力シート!$G$23=\"\",\"\",DBCS(LEFT(RIGHT(入力シート!$G$23,27-COLUMN())))),\"\")","v":""},null,null,null,null,null,"⑤",null,null,null,{"$f":"IF(入力シート!$H$23=\"\",\"\",IF(TEXT(入力シート!$H$23,\"g\")=\"S\",\"5．昭和\",IF(TEXT(入力シート!$H$23,\"g\")=\"H\",\"7．平成\",IF(TEXT(入力シート!$H$23,\"g\")=\"R\",\"9．令和\"))))","v":""},null,null,null,null,null,"年",null,null,"月",null,"日",null,null,"⑥",null,null,null,{"$f":"IF(入力シート!$K$23=\"\",\"\",DBCS(入力シート!$K$23))","v":""}]
[]
[null,null,null,"基礎年\n金番号",null,null,null,null,null,null,null,null,null,null,null,null,null,null,null,null,null,null,null,null,null,null,null,null,null,null,null,"喪　失\n年月日",null,null,null,null,null,null,null,null,null,{"$f":"IF(入力シート!$H$23=\"\",\"\",DBCS(TEXT(入力シート!$H$23,\"eemmdd\")))","v":""},null,null,null,null,null,null,null,"喪失\n原因"]
[]
[]
[]
[]
[]
[]
[null,null,null,"⑦",null,null,null,null,null,null,null,null,null,null,null,null,null,null,null,null,null,null,null,null,null,null,null,null,null,null,null,null,null,null,null,null,null,null,null,null,null,null,null,null,null,null,null,null,null,"⑧"]
[null,null,null,null,null,null,null,null,"〒",null,{"$f":"IF(入力シート!$P$23=\"\",\"\",DBCS(入力シート!$P$23))","v":""},null,null,null,null,null,null,null,null,null,null,null,null,null,null,null,null,null,null,null,null,null,null,null,null,null,null,null,null,null,null,null,null,null,null,null,null,null,null,null,null,null,null,{"$f":"IF(入力シート!$I$23=\"\",\"\",入力シート!$J$23)","v":""},null,null,null,null,null,null,null,null,null,{"$f":"IF(入力シート!$S$23=\"\",\"\",入力シート!$S$23)","v":""}]
[]
[null,null,null,"住所",null,null,null,null,{"$f":"IF(入力シート!$Q$23=\"\",\"\",DBCS(入力シート!$Q$23))","v":""},null,null,null,null,null,null,null,null,null,null,null,null,null,null,null,null,null,null,null,null,null,null,null,null,null,null,null,null,null,null,null,null,null,null,null,null,null,null,null,null,"備考"]
[]
[null,null,null,null,null,null,null,null,null,null,null,null,null,null,null,null,null,null,null,null,null,null,null,null,null,null,null,null,null,null,null,null,null,null,null,null,null,null,null,null,null,null,null,null,null,null,null,null,null,null,null,null,null,{"$f":"IF(入力シート!$T$23=\"\",\"\",入力シート!$T$23)","v":""}]
[null,null,null,null,null,null,null,null,{"$f":"IF(入力シート!$R$23=\"\",\"\",DBCS(入力シート!$R$23))","v":""}]
[]
[]
[]
[]
[null,"加入者\n２",null,"①",null,null,null,{"$f":"IFERROR(IF(入力シート!$U$24=\"\",\"\",DBCS(LEFT(RIGHT(入力シート!$U$24,18-COLUMN())))),\"\")","v":""},null,{"$f":"IFERROR(IF(入力シート!$U$24=\"\",\"\",DBCS(LEFT(RIGHT(入力シート!$U$24,19-COLUMN())))),\"\")","v":""},null,{"$f":"IFERROR(IF(入力シート!$U$24=\"\",\"\",DBCS(LEFT(RIGHT(入力シート!$U$24,20-COLUMN())))),\"\")","v":""},null,{"$f":"IFERROR(IF(入力シート!$U$24=\"\",\"\",DBCS(LEFT(RIGHT(入力シート!$U$24,21-COLUMN())))),\"\")","v":""},null,{"$f":"IFERROR(IF(入力シート!$U$24=\"\",\"\",DBCS(LEFT(RIGHT(入力シート!$U$24,22-COLUMN())))),\"\")","v":""},null,{"$f":"IFERROR(IF(入力シート!$U$24=\"\",\"\",DBCS(LEFT(RIGHT(入力シート!$U$24,23-COLUMN())))),\"\")","v":""},null,{"$f":"IFERROR(IF(入力シート!$U$24=\"\",\"\",DBCS(LEFT(RIGHT(入力シート!$U$24,24-COLUMN())))),\"\")","v":""},null,{"$f":"IFERROR(IF(入力シート!$U$24=\"\",\"\",DBCS(LEFT(RIGHT(入力シート!$U$24,25-COLUMN())))),\"\")","v":""},null,{"$f":"IFERROR(IF(入力シート!$U$24=\"\",\"\",DBCS(LEFT(RIGHT(入力シート!$U$24,26-COLUMN())))),\"\")","v":""},null,{"$f":"IFERROR(IF(入力シート!$U$24=\"\",\"\",DBCS(LEFT(RIGHT(入力シート!$U$24,27-COLUMN())))),\"\")","v":""},null,"②",null,null,null,{"$f":"IFERROR(LEFT(入力シート!$C$24,FIND(\" \",入力シート!$C$24,1)-1),\"\")","v":""},null,null,null,null,null,null,null,null,null,null,{"$f":"IFERROR(RIGHT(入力シート!$C$24,LEN(入力シート!$C$24)-FIND(\" \",入力シート!$C$24,1)),\"\")","v":""},null,null,null,null,null,null,null,null,null,null,"③",null,null,null,{"$f":"IF(入力シート!$E$24=\"\",\"\",IF(TEXT(入力シート!$E$24,\"g\")=\"S\",\"5．昭和\",IF(TEXT(入力シート!$E$24,\"g\")=\"H\",\"7．平成\",IF(TEXT(入力シート!$E$24,\"g\")=\"R\",\"9．令和\"))))","v":""},null,null,null,null,"年",null,null,"月",null,"日"]
[]
[null,null,null,"加入者\n番　号",null,null,null,null,null,null,null,null,null,null,null,null,null,null,null,null,null,null,null,null,null,null,null,"氏名",null,null,null,null,null,null,null,null,null,null,null,null,null,null,null,null,null,null,null,null,null,null,null,null,null,"生年\n月日"]
[null,null,null,null,null,null,null,null,null,null,null,null,null,null,null,null,null,null,null,null,null,null,null,null,null,null,null,null,null,null,null,null,null,null,null,null,null,null,null,null,null,null,null,null,null,null,null,null,null,null,null,null,null,null,null,null,null,null,null,null,null,null,{"$f":"IF(入力シート!$E$24=\"\",\"\",DBCS(TEXT(入力シート!$E$24,\"eemmdd\")))","v":""}]
[null,null,null,null,null,null,null,null,null,null,null,null,null,null,null,null,null,null,null,null,null,null,null,null,null,null,null,null,null,null,null,{"$f":"IFERROR(LEFT(入力シート!$D$24,FIND(\"　\",入力シート!$D$24,1)-1),\"\")","v":""},null,null,null,null,null,null,null,null,null,null,{"$f":"IFERROR(RIGHT(入力シート!$D$24,LEN(入力シート!$D$24)-FIND(\"　\",入力シート!$D$24,1)),\"\")","v":""}]
[]
[]
[]
[]
[]
[null,null,null,"④",null,null,null,{"$f":"IFERROR(IF(入力シート!$G$24=\"\",\"\",DBCS(LEFT(RIGHT(入力シート!$G$24,18-COLUMN())))),\"\")","v":""},null,{"$f":"IFERROR(IF(入力シート!$G$24=\"\",\"\",DBCS(LEFT(RIGHT(入力シート!$G$24,19-COLUMN())))),\"\")","v":""},null,{"$f":"IFERROR(IF(入力シート!$G$24=\"\",\"\",DBCS(LEFT(RIGHT(入力シート!$G$24,20-COLUMN())))),\"\")","v":""},null,{"$f":"IFERROR(IF(入力シート!$G$24=\"\",\"\",DBCS(LEFT(RIGHT(入力シート!$G$24,21-COLUMN())))),\"\")","v":""},null,{"$f":"IFERROR(IF(入力シート!$G$24=\"\",\"\",DBCS(LEFT(RIGHT(入力シート!$G$24,22-COLUMN())))),\"\")","v":""},null,{"$f":"IFERROR(IF(入力シート!$G$24=\"\",\"\",DBCS(LEFT(RIGHT(入力シート!$G$24,23-COLUMN())))),\"\")","v":""},null,{"$f":"IFERROR(IF(入力シート!$G$24=\"\",\"\",DBCS(LEFT(RIGHT(入力シート!$G$24,24-COLUMN())))),\"\")","v":""},null,{"$f":"IFERROR(IF(入力シート!$G$24=\"\",\"\",DBCS(LEFT(RIGHT(入力シート!$G$24,25-COLUMN())))),\"\")","v":""},null,{"$f":"IFERROR(IF(入力シート!$G$24=\"\",\"\",DBCS(LEFT(RIGHT(入力シート!$G$24,26-COLUMN())))),\"\")","v":""},null,{"$f":"IFERROR(IF(入力シート!$G$24=\"\",\"\",DBCS(LEFT(RIGHT(入力シート!$G$24,27-COLUMN())))),\"\")","v":""},null,null,null,null,null,"⑤",null,null,null,{"$f":"IF(入力シート!$H$24=\"\",\"\",IF(TEXT(入力シート!$H$24,\"g\")=\"S\",\"5．昭和\",IF(TEXT(入力シート!$H$24,\"g\")=\"H\",\"7．平成\",IF(TEXT(入力シート!$H$24,\"g\")=\"R\",\"9．令和\"))))","v":""},null,null,null,null,null,"年",null,null,"月",null,"日",null,null,"⑥",null,null,null,{"$f":"IF(入力シート!$K$24=\"\",\"\",DBCS(入力シート!$K$24))","v":""}]
[]
[null,null,null,"基礎年\n金番号",null,null,null,null,null,null,null,null,null,null,null,null,null,null,null,null,null,null,null,null,null,null,null,null,null,null,null,"喪　失\n年月日",null,null,null,null,null,null,null,null,null,{"$f":"IF(入力シート!$H$24=\"\",\"\",DBCS(TEXT(入力シート!$H$24,\"eemmdd\")))","v":""},null,null,null,null,null,null,null,"喪失\n原因"]
[]
[]
[]
[]
[]
[]
[null,null,null,"⑦",null,null,null,null,null,null,null,null,null,null,null,null,null,null,null,null,null,null,null,null,null,null,null,null,null,null,null,null,null,null,null,null,null,null,null,null,null,null,null,null,null,null,null,null,null,"⑧"]
[null,null,null,null,null,null,null,null,"〒",null,{"$f":"IF(入力シート!$P$24=\"\",\"\",DBCS(入力シート!$P$24))","v":""},null,null,null,null,null,null,null,null,null,null,null,null,null,null,null,null,null,null,null,null,null,null,null,null,null,null,null,null,null,null,null,null,null,null,null,null,null,null,null,null,null,null,{"$f":"IF(入力シート!$I$24=\"\",\"\",入力シート!$J$24)","v":""},null,null,null,null,null,null,null,null,null,{"$f":"IF(入力シート!$S$24=\"\",\"\",入力シート!$S$24)","v":""}]
[]
[null,null,null,"住所",null,null,null,null,{"$f":"IF(入力シート!$Q$24=\"\",\"\",DBCS(入力シート!$Q$24))","v":""},null,null,null,null,null,null,null,null,null,null,null,null,null,null,null,null,null,null,null,null,null,null,null,null,null,null,null,null,null,null,null,null,null,null,null,null,null,null,null,null,"備考"]
[]
[null,null,null,null,null,null,null,null,null,null,null,null,null,null,null,null,null,null,null,null,null,null,null,null,null,null,null,null,null,null,null,null,null,null,null,null,null,null,null,null,null,null,null,null,null,null,null,null,null,null,null,null,null,{"$f":"IF(入力シート!$T$24=\"\",\"\",入力シート!$T$24)","v":""}]
[null,null,null,null,null,null,null,null,{"$f":"IF(入力シート!$R$24=\"\",\"\",DBCS(入力シート!$R$24))","v":""}]
[]
[]
[]
[]
[null,"加入者\n３",null,"①",null,null,null,{"$f":"IFERROR(IF(入力シート!$U$25=\"\",\"\",DBCS(LEFT(RIGHT(入力シート!$U$25,18-COLUMN())))),\"\")","v":""},null,{"$f":"IFERROR(IF(入力シート!$U$25=\"\",\"\",DBCS(LEFT(RIGHT(入力シート!$U$25,19-COLUMN())))),\"\")","v":""},null,{"$f":"IFERROR(IF(入力シート!$U$25=\"\",\"\",DBCS(LEFT(RIGHT(入力シート!$U$25,20-COLUMN())))),\"\")","v":""},null,{"$f":"IFERROR(IF(入力シート!$U$25=\"\",\"\",DBCS(LEFT(RIGHT(入力シート!$U$25,21-COLUMN())))),\"\")","v":""},null,{"$f":"IFERROR(IF(入力シート!$U$25=\"\",\"\",DBCS(LEFT(RIGHT(入力シート!$U$25,22-COLUMN())))),\"\")","v":""},null,{"$f":"IFERROR(IF(入力シート!$U$25=\"\",\"\",DBCS(LEFT(RIGHT(入力シート!$U$25,23-COLUMN())))),\"\")","v":""},null,{"$f":"IFERROR(IF(入力シート!$U$25=\"\",\"\",DBCS(LEFT(RIGHT(入力シート!$U$25,24-COLUMN())))),\"\")","v":""},null,{"$f":"IFERROR(IF(入力シート!$U$25=\"\",\"\",DBCS(LEFT(RIGHT(入力シート!$U$25,25-COLUMN())))),\"\")","v":""},null,{"$f":"IFERROR(IF(入力シート!$U$25=\"\",\"\",DBCS(LEFT(RIGHT(入力シート!$U$25,26-COLUMN())))),\"\")","v":""},null,{"$f":"IFERROR(IF(入力シート!$U$25=\"\",\"\",DBCS(LEFT(RIGHT(入力シート!$U$25,27-COLUMN())))),\"\")","v":""},null,"②",null,null,null,{"$f":"IFERROR(LEFT(入力シート!$C$25,FIND(\" \",入力シート!$C$25,1)-1),\"\")","v":""},null,null,null,null,null,null,null,null,null,null,{"$f":"IFERROR(RIGHT(入力シート!$C$25,LEN(入力シート!$C$25)-FIND(\" \",入力シート!$C$25,1)),\"\")","v":""},null,null,null,null,null,null,null,null,null,null,"③",null,null,null,{"$f":"IF(入力シート!$E$25=\"\",\"\",IF(TEXT(入力シート!$E$25,\"g\")=\"S\",\"5．昭和\",IF(TEXT(入力シート!$E$25,\"g\")=\"H\",\"7．平成\",IF(TEXT(入力シート!$E$25,\"g\")=\"R\",\"9．令和\"))))","v":""},null,null,null,null,"年",null,null,"月",null,"日"]
[]
[null,null,null,"加入者\n番　号",null,null,null,null,null,null,null,null,null,null,null,null,null,null,null,null,null,null,null,null,null,null,null,"氏名",null,null,null,null,null,null,null,null,null,null,null,null,null,null,null,null,null,null,null,null,null,null,null,null,null,"生年\n月日"]
[null,null,null,null,null,null,null,null,null,null,null,null,null,null,null,null,null,null,null,null,null,null,null,null,null,null,null,null,null,null,null,null,null,null,null,null,null,null,null,null,null,null,null,null,null,null,null,null,null,null,null,null,null,null,null,null,null,null,null,null,null,null,{"$f":"IF(入力シート!$E$25=\"\",\"\",DBCS(TEXT(入力シート!$E$25,\"eemmdd\")))","v":""}]
[null,null,null,null,null,null,null,null,null,null,null,null,null,null,null,null,null,null,null,null,null,null,null,null,null,null,null,null,null,null,null,{"$f":"IFERROR(LEFT(入力シート!$D$25,FIND(\"　\",入力シート!$D$25,1)-1),\"\")","v":""},null,null,null,null,null,null,null,null,null,null,{"$f":"IFERROR(RIGHT(入力シート!$D$25,LEN(入力シート!$D$25)-FIND(\"　\",入力シート!$D$25,1)),\"\")","v":""}]
[]
[]
[]
[]
[]
[null,null,null,"④",null,null,null,{"$f":"IFERROR(IF(入力シート!$G$25=\"\",\"\",DBCS(LEFT(RIGHT(入力シート!$G$25,18-COLUMN())))),\"\")","v":""},null,{"$f":"IFERROR(IF(入力シート!$G$25=\"\",\"\",DBCS(LEFT(RIGHT(入力シート!$G$25,19-COLUMN())))),\"\")","v":""},null,{"$f":"IFERROR(IF(入力シート!$G$25=\"\",\"\",DBCS(LEFT(RIGHT(入力シート!$G$25,20-COLUMN())))),\"\")","v":""},null,{"$f":"IFERROR(IF(入力シート!$G$25=\"\",\"\",DBCS(LEFT(RIGHT(入力シート!$G$25,21-COLUMN())))),\"\")","v":""},null,{"$f":"IFERROR(IF(入力シート!$G$25=\"\",\"\",DBCS(LEFT(RIGHT(入力シート!$G$25,22-COLUMN())))),\"\")","v":""},null,{"$f":"IFERROR(IF(入力シート!$G$25=\"\",\"\",DBCS(LEFT(RIGHT(入力シート!$G$25,23-COLUMN())))),\"\")","v":""},null,{"$f":"IFERROR(IF(入力シート!$G$25=\"\",\"\",DBCS(LEFT(RIGHT(入力シート!$G$25,24-COLUMN())))),\"\")","v":""},null,{"$f":"IFERROR(IF(入力シート!$G$25=\"\",\"\",DBCS(LEFT(RIGHT(入力シート!$G$25,25-COLUMN())))),\"\")","v":""},null,{"$f":"IFERROR(IF(入力シート!$G$25=\"\",\"\",DBCS(LEFT(RIGHT(入力シート!$G$25,26-COLUMN())))),\"\")","v":""},null,{"$f":"IFERROR(IF(入力シート!$G$25=\"\",\"\",DBCS(LEFT(RIGHT(入力シート!$G$25,27-COLUMN())))),\"\")","v":""},null,null,null,null,null,"⑤",null,null,null,{"$f":"IF(入力シート!$H$25=\"\",\"\",IF(TEXT(入力シート!$H$25,\"g\")=\"S\",\"5．昭和\",IF(TEXT(入力シート!$H$25,\"g\")=\"H\",\"7．平成\",IF(TEXT(入力シート!$H$25,\"g\")=\"R\",\"9．令和\"))))","v":""},null,null,null,null,null,"年",null,null,"月",null,"日",null,null,"⑥",null,null,null,{"$f":"IF(入力シート!$K$25=\"\",\"\",DBCS(入力シート!$K$25))","v":""}]
[]
[null,null,null,"基礎年\n金番号",null,null,null,null,null,null,null,null,null,null,null,null,null,null,null,null,null,null,null,null,null,null,null,null,null,null,null,"喪　失\n年月日",null,null,null,null,null,null,null,null,null,{"$f":"IF(入力シート!$H$25=\"\",\"\",DBCS(TEXT(入力シート!$H$25,\"eemmdd\")))","v":""},null,null,null,null,null,null,null,"喪失\n原因"]
[]
[]
[]
[]
[]
[]
[null,null,null,"⑦",null,null,null,null,null,null,null,null,null,null,null,null,null,null,null,null,null,null,null,null,null,null,null,null,null,null,null,null,null,null,null,null,null,null,null,null,null,null,null,null,null,null,null,null,null,"⑧"]
[null,null,null,null,null,null,null,null,"〒",null,{"$f":"IF(入力シート!$P$25=\"\",\"\",DBCS(入力シート!$P$25))","v":""},null,null,null,null,null,null,null,null,null,null,null,null,null,null,null,null,null,null,null,null,null,null,null,null,null,null,null,null,null,null,null,null,null,null,null,null,null,null,null,null,null,null,{"$f":"IF(入力シート!$I$25=\"\",\"\",入力シート!$J$25)","v":""},null,null,null,null,null,null,null,null,null,{"$f":"IF(入力シート!$S$25=\"\",\"\",入力シート!$S$25)","v":""}]
[]
[null,null,null,"住所",null,null,null,null,{"$f":"IF(入力シート!$Q$25=\"\",\"\",DBCS(入力シート!$Q$25))","v":""},null,null,null,null,null,null,null,null,null,null,null,null,null,null,null,null,null,null,null,null,null,null,null,null,null,null,null,null,null,null,null,null,null,null,null,null,null,null,null,null,"備考"]
[]
[null,null,null,null,null,null,null,null,null,null,null,null,null,null,null,null,null,null,null,null,null,null,null,null,null,null,null,null,null,null,null,null,null,null,null,null,null,null,null,null,null,null,null,null,null,null,null,null,null,null,null,null,null,{"$f":"IF(入力シート!$T$25=\"\",\"\",入力シート!$T$25)","v":""}]
[null,null,null,null,null,null,null,null,{"$f":"IF(入力シート!$R$25=\"\",\"\",DBCS(入力シート!$R$25))","v":""}]
[]
[]
[]
[]
[null,"加入者\n４",null,"①",null,null,null,{"$f":"IFERROR(IF(入力シート!$U$26=\"\",\"\",DBCS(LEFT(RIGHT(入力シート!$U$26,18-COLUMN())))),\"\")","v":""},null,{"$f":"IFERROR(IF(入力シート!$U$26=\"\",\"\",DBCS(LEFT(RIGHT(入力シート!$U$26,19-COLUMN())))),\"\")","v":""},null,{"$f":"IFERROR(IF(入力シート!$U$26=\"\",\"\",DBCS(LEFT(RIGHT(入力シート!$U$26,20-COLUMN())))),\"\")","v":""},null,{"$f":"IFERROR(IF(入力シート!$U$26=\"\",\"\",DBCS(LEFT(RIGHT(入力シート!$U$26,21-COLUMN())))),\"\")","v":""},null,{"$f":"IFERROR(IF(入力シート!$U$26=\"\",\"\",DBCS(LEFT(RIGHT(入力シート!$U$26,22-COLUMN())))),\"\")","v":""},null,{"$f":"IFERROR(IF(入力シート!$U$26=\"\",\"\",DBCS(LEFT(RIGHT(入力シート!$U$26,23-COLUMN())))),\"\")","v":""},null,{"$f":"IFERROR(IF(入力シート!$U$26=\"\",\"\",DBCS(LEFT(RIGHT(入力シート!$U$26,24-COLUMN())))),\"\")","v":""},null,{"$f":"IFERROR(IF(入力シート!$U$26=\"\",\"\",DBCS(LEFT(RIGHT(入力シート!$U$26,25-COLUMN())))),\"\")","v":""},null,{"$f":"IFERROR(IF(入力シート!$U$26=\"\",\"\",DBCS(LEFT(RIGHT(入力シート!$U$26,26-COLUMN())))),\"\")","v":""},null,{"$f":"IFERROR(IF(入力シート!$U$26=\"\",\"\",DBCS(LEFT(RIGHT(入力シート!$U$26,27-COLUMN())))),\"\")","v":""},null,"②",null,null,null,{"$f":"IFERROR(LEFT(入力シート!$C$26,FIND(\" \",入力シート!$C$26,1)-1),\"\")","v":""},null,null,null,null,null,null,null,null,null,null,{"$f":"IFERROR(RIGHT(入力シート!$C$26,LEN(入力シート!$C$26)-FIND(\" \",入力シート!$C$26,1)),\"\")","v":""},null,null,null,null,null,null,null,null,null,null,"③",null,null,null,{"$f":"IF(入力シート!$E$26=\"\",\"\",IF(TEXT(入力シート!$E$26,\"g\")=\"S\",\"5．昭和\",IF(TEXT(入力シート!$E$26,\"g\")=\"H\",\"7．平成\",IF(TEXT(入力シート!$E$26,\"g\")=\"R\",\"9．令和\"))))","v":""},null,null,null,null,"年",null,null,"月",null,"日"]
[]
[null,null,null,"加入者\n番　号",null,null,null,null,null,null,null,null,null,null,null,null,null,null,null,null,null,null,null,null,null,null,null,"氏名",null,null,null,null,null,null,null,null,null,null,null,null,null,null,null,null,null,null,null,null,null,null,null,null,null,"生年\n月日"]
[null,null,null,null,null,null,null,null,null,null,null,null,null,null,null,null,null,null,null,null,null,null,null,null,null,null,null,null,null,null,null,null,null,null,null,null,null,null,null,null,null,null,null,null,null,null,null,null,null,null,null,null,null,null,null,null,null,null,null,null,null,null,{"$f":"IF(入力シート!$E$26=\"\",\"\",DBCS(TEXT(入力シート!$E$26,\"eemmdd\")))","v":""}]
[null,null,null,null,null,null,null,null,null,null,null,null,null,null,null,null,null,null,null,null,null,null,null,null,null,null,null,null,null,null,null,{"$f":"IFERROR(LEFT(入力シート!$D$26,FIND(\"　\",入力シート!$D$26,1)-1),\"\")","v":""},null,null,null,null,null,null,null,null,null,null,{"$f":"IFERROR(RIGHT(入力シート!$D$26,LEN(入力シート!$D$26)-FIND(\"　\",入力シート!$D$26,1)),\"\")","v":""}]
[]
[]
[]
[]
[]
[null,null,null,"④",null,null,null,{"$f":"IFERROR(IF(入力シート!$G$26=\"\",\"\",DBCS(LEFT(RIGHT(入力シート!$G$26,18-COLUMN())))),\"\")","v":""},null,{"$f":"IFERROR(IF(入力シート!$G$26=\"\",\"\",DBCS(LEFT(RIGHT(入力シート!$G$26,19-COLUMN())))),\"\")","v":""},null,{"$f":"IFERROR(IF(入力シート!$G$26=\"\",\"\",DBCS(LEFT(RIGHT(入力シート!$G$26,20-COLUMN())))),\"\")","v":""},null,{"$f":"IFERROR(IF(入力シート!$G$26=\"\",\"\",DBCS(LEFT(RIGHT(入力シート!$G$26,21-COLUMN())))),\"\")","v":""},null,{"$f":"IFERROR(IF(入力シート!$G$26=\"\",\"\",DBCS(LEFT(RIGHT(入力シート!$G$26,22-COLUMN())))),\"\")","v":""},null,{"$f":"IFERROR(IF(入力シート!$G$26=\"\",\"\",DBCS(LEFT(RIGHT(入力シート!$G$26,23-COLUMN())))),\"\")","v":""},null,{"$f":"IFERROR(IF(入力シート!$G$26=\"\",\"\",DBCS(LEFT(RIGHT(入力シート!$G$26,24-COLUMN())))),\"\")","v":""},null,{"$f":"IFERROR(IF(入力シート!$G$26=\"\",\"\",DBCS(LEFT(RIGHT(入力シート!$G$26,25-COLUMN())))),\"\")","v":""},null,{"$f":"IFERROR(IF(入力シート!$G$26=\"\",\"\",DBCS(LEFT(RIGHT(入力シート!$G$26,26-COLUMN())))),\"\")","v":""},null,{"$f":"IFERROR(IF(入力シート!$G$26=\"\",\"\",DBCS(LEFT(RIGHT(入力シート!$G$26,27-COLUMN())))),\"\")","v":""},null,null,null,null,null,"⑤",null,null,null,{"$f":"IF(入力シート!$H$26=\"\",\"\",IF(TEXT(入力シート!$H$26,\"g\")=\"S\",\"5．昭和\",IF(TEXT(入力シート!$H$26,\"g\")=\"H\",\"7．平成\",IF(TEXT(入力シート!$H$26,\"g\")=\"R\",\"9．令和\"))))","v":""},null,null,null,null,null,"年",null,null,"月",null,"日",null,null,"⑥",null,null,null,{"$f":"IF(入力シート!$K$26=\"\",\"\",DBCS(入力シート!$K$26))","v":""}]
[]
[null,null,null,"基礎年\n金番号",null,null,null,null,null,null,null,null,null,null,null,null,null,null,null,null,null,null,null,null,null,null,null,null,null,null,null,"喪　失\n年月日",null,null,null,null,null,null,null,null,null,{"$f":"IF(入力シート!$H$26=\"\",\"\",DBCS(TEXT(入力シート!$H$26,\"eemmdd\")))","v":""},null,null,null,null,null,null,null,"喪失\n原因"]
[]
[]
[]
[]
[]
[]
[null,null,null,"⑦",null,null,null,null,null,null,null,null,null,null,null,null,null,null,null,null,null,null,null,null,null,null,null,null,null,null,null,null,null,null,null,null,null,null,null,null,null,null,null,null,null,null,null,null,null,"⑧"]
[null,null,null,null,null,null,null,null,"〒",null,{"$f":"IF(入力シート!$P$26=\"\",\"\",DBCS(入力シート!$P$26))","v":""},null,null,null,null,null,null,null,null,null,null,null,null,null,null,null,null,null,null,null,null,null,null,null,null,null,null,null,null,null,null,null,null,null,null,null,null,null,null,null,null,null,null,{"$f":"IF(入力シート!$I$26=\"\",\"\",入力シート!$J$26)","v":""},null,null,null,null,null,null,null,null,null,{"$f":"IF(入力シート!$S$26=\"\",\"\",入力シート!$S$26)","v":""}]
[]
[null,null,null,"住所",null,null,null,null,{"$f":"IF(入力シート!$Q$26=\"\",\"\",DBCS(入力シート!$Q$26))","v":""},null,null,null,null,null,null,null,null,null,null,null,null,null,null,null,null,null,null,null,null,null,null,null,null,null,null,null,null,null,null,null,null,null,null,null,null,null,null,null,null,"備考"]
[]
[null,null,null,null,null,null,null,null,null,null,null,null,null,null,null,null,null,null,null,null,null,null,null,null,null,null,null,null,null,null,null,null,null,null,null,null,null,null,null,null,null,null,null,null,null,null,null,null,null,null,null,null,null,{"$f":"IF(入力シート!$T$26=\"\",\"\",入力シート!$T$26)","v":""}]
[null,null,null,null,null,null,null,null,{"$f":"IF(入力シート!$R$26=\"\",\"\",DBCS(入力シート!$R$26))","v":""}]
[]
[]
[]
[]
[]
[]
[]
[]
[]
[]
[]
[]
[]
[]
[]
[]
[]
[]
[]
[]
[]
[]
[]
[]
[]
[]
[]
[]
[]
[]
[]
[]
[null,"加入者\n１",null,"①",null,null,null,{"$f":"IFERROR(IF(入力シート!$U$27=\"\",\"\",DBCS(LEFT(RIGHT(入力シート!$U$27,18-COLUMN())))),\"\")","v":""},null,{"$f":"IFERROR(IF(入力シート!$U$27=\"\",\"\",DBCS(LEFT(RIGHT(入力シート!$U$27,19-COLUMN())))),\"\")","v":""},null,{"$f":"IFERROR(IF(入力シート!$U$27=\"\",\"\",DBCS(LEFT(RIGHT(入力シート!$U$27,20-COLUMN())))),\"\")","v":""},null,{"$f":"IFERROR(IF(入力シート!$U$27=\"\",\"\",DBCS(LEFT(RIGHT(入力シート!$U$27,21-COLUMN())))),\"\")","v":""},null,{"$f":"IFERROR(IF(入力シート!$U$27=\"\",\"\",DBCS(LEFT(RIGHT(入力シート!$U$27,22-COLUMN())))),\"\")","v":""},null,{"$f":"IFERROR(IF(入力シート!$U$27=\"\",\"\",DBCS(LEFT(RIGHT(入力シート!$U$27,23-COLUMN())))),\"\")","v":""},null,{"$f":"IFERROR(IF(入力シート!$U$27=\"\",\"\",DBCS(LEFT(RIGHT(入力シート!$U$27,24-COLUMN())))),\"\")","v":""},null,{"$f":"IFERROR(IF(入力シート!$U$27=\"\",\"\",DBCS(LEFT(RIGHT(入力シート!$U$27,25-COLUMN())))),\"\")","v":""},null,{"$f":"IFERROR(IF(入力シート!$U$27=\"\",\"\",DBCS(LEFT(RIGHT(入力シート!$U$27,26-COLUMN())))),\"\")","v":""},null,{"$f":"IFERROR(IF(入力シート!$U$27=\"\",\"\",DBCS(LEFT(RIGHT(入力シート!$U$27,27-COLUMN())))),\"\")","v":""},null,"②",null,null,null,{"$f":"IFERROR(LEFT(入力シート!$C$27,FIND(\" \",入力シート!$C$27,1)-1),\"\")","v":""},null,null,null,null,null,null,null,null,null,null,{"$f":"IFERROR(RIGHT(入力シート!$C$27,LEN(入力シート!$C$27)-FIND(\" \",入力シート!$C$27,1)),\"\")","v":""},null,null,null,null,null,null,null,null,null,null,"③",null,null,null,{"$f":"IF(入力シート!$E$27=\"\",\"\",IF(TEXT(入力シート!$E$27,\"g\")=\"S\",\"5．昭和\",IF(TEXT(入力シート!$E$27,\"g\")=\"H\",\"7．平成\",IF(TEXT(入力シート!$E$27,\"g\")=\"R\",\"9．令和\"))))","v":""},null,null,null,null,"年",null,null,"月",null,"日"]
[]
[null,null,null,"加入者\n番　号",null,null,null,null,null,null,null,null,null,null,null,null,null,null,null,null,null,null,null,null,null,null,null,"氏名",null,null,null,null,null,null,null,null,null,null,null,null,null,null,null,null,null,null,null,null,null,null,null,null,null,"生年\n月日"]
[null,null,null,null,null,null,null,null,null,null,null,null,null,null,null,null,null,null,null,null,null,null,null,null,null,null,null,null,null,null,null,null,null,null,null,null,null,null,null,null,null,null,null,null,null,null,null,null,null,null,null,null,null,null,null,null,null,null,null,null,null,null,{"$f":"IF(入力シート!$E$27=\"\",\"\",DBCS(TEXT(入力シート!$E$27,\"eemmdd\")))","v":""}]
[null,null,null,null,null,null,null,null,null,null,null,null,null,null,null,null,null,null,null,null,null,null,null,null,null,null,null,null,null,null,null,{"$f":"IFERROR(LEFT(入力シート!$D$27,FIND(\"　\",入力シート!$D$27,1)-1),\"\")","v":""},null,null,null,null,null,null,null,null,null,null,{"$f":"IFERROR(RIGHT(入力シート!$D$27,LEN(入力シート!$D$27)-FIND(\"　\",入力シート!$D$27,1)),\"\")","v":""}]
[]
[]
[]
[]
[]
[null,null,null,"④",null,null,null,{"$f":"IFERROR(IF(入力シート!$G$27=\"\",\"\",DBCS(LEFT(RIGHT(入力シート!$G$27,18-COLUMN())))),\"\")","v":""},null,{"$f":"IFERROR(IF(入力シート!$G$27=\"\",\"\",DBCS(LEFT(RIGHT(入力シート!$G$27,19-COLUMN())))),\"\")","v":""},null,{"$f":"IFERROR(IF(入力シート!$G$27=\"\",\"\",DBCS(LEFT(RIGHT(入力シート!$G$27,20-COLUMN())))),\"\")","v":""},null,{"$f":"IFERROR(IF(入力シート!$G$27=\"\",\"\",DBCS(LEFT(RIGHT(入力シート!$G$27,21-COLUMN())))),\"\")","v":""},null,{"$f":"IFERROR(IF(入力シート!$G$27=\"\",\"\",DBCS(LEFT(RIGHT(入力シート!$G$27,22-COLUMN())))),\"\")","v":""},null,{"$f":"IFERROR(IF(入力シート!$G$27=\"\",\"\",DBCS(LEFT(RIGHT(入力シート!$G$27,23-COLUMN())))),\"\")","v":""},null,{"$f":"IFERROR(IF(入力シート!$G$27=\"\",\"\",DBCS(LEFT(RIGHT(入力シート!$G$27,24-COLUMN())))),\"\")","v":""},null,{"$f":"IFERROR(IF(入力シート!$G$27=\"\",\"\",DBCS(LEFT(RIGHT(入力シート!$G$27,25-COLUMN())))),\"\")","v":""},null,{"$f":"IFERROR(IF(入力シート!$G$27=\"\",\"\",DBCS(LEFT(RIGHT(入力シート!$G$27,26-COLUMN())))),\"\")","v":""},null,{"$f":"IFERROR(IF(入力シート!$G$27=\"\",\"\",DBCS(LEFT(RIGHT(入力シート!$G$27,27-COLUMN())))),\"\")","v":""},null,null,null,null,null,"⑤",null,null,null,{"$f":"IF(入力シート!$H$27=\"\",\"\",IF(TEXT(入力シート!$H$27,\"g\")=\"S\",\"5．昭和\",IF(TEXT(入力シート!$H$27,\"g\")=\"H\",\"7．平成\",IF(TEXT(入力シート!$H$27,\"g\")=\"R\",\"9．令和\"))))","v":""},null,null,null,null,null,"年",null,null,"月",null,"日",null,null,"⑥",null,null,null,{"$f":"IF(入力シート!$K$27=\"\",\"\",DBCS(入力シート!$K$27))","v":""}]
[]
[null,null,null,"基礎年\n金番号",null,null,null,null,null,null,null,null,null,null,null,null,null,null,null,null,null,null,null,null,null,null,null,null,null,null,null,"喪　失\n年月日",null,null,null,null,null,null,null,null,null,{"$f":"IF(入力シート!$H$27=\"\",\"\",DBCS(TEXT(入力シート!$H$27,\"eemmdd\")))","v":""},null,null,null,null,null,null,null,"喪失\n原因"]
[]
[]
[]
[]
[]
[]
[null,null,null,"⑦",null,null,null,null,null,null,null,null,null,null,null,null,null,null,null,null,null,null,null,null,null,null,null,null,null,null,null,null,null,null,null,null,null,null,null,null,null,null,null,null,null,null,null,null,null,"⑧"]
[null,null,null,null,null,null,null,null,"〒",null,{"$f":"IF(入力シート!$P$27=\"\",\"\",DBCS(入力シート!$P$27))","v":""},null,null,null,null,null,null,null,null,null,null,null,null,null,null,null,null,null,null,null,null,null,null,null,null,null,null,null,null,null,null,null,null,null,null,null,null,null,null,null,null,null,null,{"$f":"IF(入力シート!$I$27=\"\",\"\",入力シート!$J$27)","v":""},null,null,null,null,null,null,null,null,null,{"$f":"IF(入力シート!$S$27=\"\",\"\",入力シート!$S$27)","v":""}]
[]
[null,null,null,"住所",null,null,null,null,{"$f":"IF(入力シート!$Q$27=\"\",\"\",DBCS(入力シート!$Q$27))","v":""},null,null,null,null,null,null,null,null,null,null,null,null,null,null,null,null,null,null,null,null,null,null,null,null,null,null,null,null,null,null,null,null,null,null,null,null,null,null,null,null,"備考"]
[]
[null,null,null,null,null,null,null,null,null,null,null,null,null,null,null,null,null,null,null,null,null,null,null,null,null,null,null,null,null,null,null,null,null,null,null,null,null,null,null,null,null,null,null,null,null,null,null,null,null,null,null,null,null,{"$f":"IF(入力シート!$T$27=\"\",\"\",入力シート!$T$27)","v":""}]
[null,null,null,null,null,null,null,null,{"$f":"IF(入力シート!$R$27=\"\",\"\",DBCS(入力シート!$R$27))","v":""}]
[]
[]
[]
[]
[null,"加入者\n２",null,"①",null,null,null,{"$f":"IFERROR(IF(入力シート!$U$28=\"\",\"\",DBCS(LEFT(RIGHT(入力シート!$U$28,18-COLUMN())))),\"\")","v":""},null,{"$f":"IFERROR(IF(入力シート!$U$28=\"\",\"\",DBCS(LEFT(RIGHT(入力シート!$U$28,19-COLUMN())))),\"\")","v":""},null,{"$f":"IFERROR(IF(入力シート!$U$28=\"\",\"\",DBCS(LEFT(RIGHT(入力シート!$U$28,20-COLUMN())))),\"\")","v":""},null,{"$f":"IFERROR(IF(入力シート!$U$28=\"\",\"\",DBCS(LEFT(RIGHT(入力シート!$U$28,21-COLUMN())))),\"\")","v":""},null,{"$f":"IFERROR(IF(入力シート!$U$28=\"\",\"\",DBCS(LEFT(RIGHT(入力シート!$U$28,22-COLUMN())))),\"\")","v":""},null,{"$f":"IFERROR(IF(入力シート!$U$28=\"\",\"\",DBCS(LEFT(RIGHT(入力シート!$U$28,23-COLUMN())))),\"\")","v":""},null,{"$f":"IFERROR(IF(入力シート!$U$28=\"\",\"\",DBCS(LEFT(RIGHT(入力シート!$U$28,24-COLUMN())))),\"\")","v":""},null,{"$f":"IFERROR(IF(入力シート!$U$28=\"\",\"\",DBCS(LEFT(RIGHT(入力シート!$U$28,25-COLUMN())))),\"\")","v":""},null,{"$f":"IFERROR(IF(入力シート!$U$28=\"\",\"\",DBCS(LEFT(RIGHT(入力シート!$U$28,26-COLUMN())))),\"\")","v":""},null,{"$f":"IFERROR(IF(入力シート!$U$28=\"\",\"\",DBCS(LEFT(RIGHT(入力シート!$U$28,27-COLUMN())))),\"\")","v":""},null,"②",null,null,null,{"$f":"IFERROR(LEFT(入力シート!$C$28,FIND(\" \",入力シート!$C$28,1)-1),\"\")","v":""},null,null,null,null,null,null,null,null,null,null,{"$f":"IFERROR(RIGHT(入力シート!$C$28,LEN(入力シート!$C$28)-FIND(\" \",入力シート!$C$28,1)),\"\")","v":""},null,null,null,null,null,null,null,null,null,null,"③",null,null,null,{"$f":"IF(入力シート!$E$28=\"\",\"\",IF(TEXT(入力シート!$E$28,\"g\")=\"S\",\"5．昭和\",IF(TEXT(入力シート!$E$28,\"g\")=\"H\",\"7．平成\",IF(TEXT(入力シート!$E$28,\"g\")=\"R\",\"9．令和\"))))","v":""},null,null,null,null,"年",null,null,"月",null,"日"]
[]
[null,null,null,"加入者\n番　号",null,null,null,null,null,null,null,null,null,null,null,null,null,null,null,null,null,null,null,null,null,null,null,"氏名",null,null,null,null,null,null,null,null,null,null,null,null,null,null,null,null,null,null,null,null,null,null,null,null,null,"生年\n月日"]
[null,null,null,null,null,null,null,null,null,null,null,null,null,null,null,null,null,null,null,null,null,null,null,null,null,null,null,null,null,null,null,null,null,null,null,null,null,null,null,null,null,null,null,null,null,null,null,null,null,null,null,null,null,null,null,null,null,null,null,null,null,null,{"$f":"IF(入力シート!$E$28=\"\",\"\",DBCS(TEXT(入力シート!$E$28,\"eemmdd\")))","v":""}]
[null,null,null,null,null,null,null,null,null,null,null,null,null,null,null,null,null,null,null,null,null,null,null,null,null,null,null,null,null,null,null,{"$f":"IFERROR(LEFT(入力シート!$D$28,FIND(\"　\",入力シート!$D$28,1)-1),\"\")","v":""},null,null,null,null,null,null,null,null,null,null,{"$f":"IFERROR(RIGHT(入力シート!$D$28,LEN(入力シート!$D$28)-FIND(\"　\",入力シート!$D$28,1)),\"\")","v":""}]
[]
[]
[]
[]
[]
[null,null,null,"④",null,null,null,{"$f":"IFERROR(IF(入力シート!$G$28=\"\",\"\",DBCS(LEFT(RIGHT(入力シート!$G$28,18-COLUMN())))),\"\")","v":""},null,{"$f":"IFERROR(IF(入力シート!$G$28=\"\",\"\",DBCS(LEFT(RIGHT(入力シート!$G$28,19-COLUMN())))),\"\")","v":""},null,{"$f":"IFERROR(IF(入力シート!$G$28=\"\",\"\",DBCS(LEFT(RIGHT(入力シート!$G$28,20-COLUMN())))),\"\")","v":""},null,{"$f":"IFERROR(IF(入力シート!$G$28=\"\",\"\",DBCS(LEFT(RIGHT(入力シート!$G$28,21-COLUMN())))),\"\")","v":""},null,{"$f":"IFERROR(IF(入力シート!$G$28=\"\",\"\",DBCS(LEFT(RIGHT(入力シート!$G$28,22-COLUMN())))),\"\")","v":""},null,{"$f":"IFERROR(IF(入力シート!$G$28=\"\",\"\",DBCS(LEFT(RIGHT(入力シート!$G$28,23-COLUMN())))),\"\")","v":""},null,{"$f":"IFERROR(IF(入力シート!$G$28=\"\",\"\",DBCS(LEFT(RIGHT(入力シート!$G$28,24-COLUMN())))),\"\")","v":""},null,{"$f":"IFERROR(IF(入力シート!$G$28=\"\",\"\",DBCS(LEFT(RIGHT(入力シート!$G$28,25-COLUMN())))),\"\")","v":""},null,{"$f":"IFERROR(IF(入力シート!$G$28=\"\",\"\",DBCS(LEFT(RIGHT(入力シート!$G$28,26-COLUMN())))),\"\")","v":""},null,{"$f":"IFERROR(IF(入力シート!$G$28=\"\",\"\",DBCS(LEFT(RIGHT(入力シート!$G$28,27-COLUMN())))),\"\")","v":""},null,null,null,null,null,"⑤",null,null,null,{"$f":"IF(入力シート!$H$28=\"\",\"\",IF(TEXT(入力シート!$H$28,\"g\")=\"S\",\"5．昭和\",IF(TEXT(入力シート!$H$28,\"g\")=\"H\",\"7．平成\",IF(TEXT(入力シート!$H$28,\"g\")=\"R\",\"9．令和\"))))","v":""},null,null,null,null,null,"年",null,null,"月",null,"日",null,null,"⑥",null,null,null,{"$f":"IF(入力シート!$K$28=\"\",\"\",DBCS(入力シート!$K$28))","v":""}]
[]
[null,null,null,"基礎年\n金番号",null,null,null,null,null,null,null,null,null,null,null,null,null,null,null,null,null,null,null,null,null,null,null,null,null,null,null,"喪　失\n年月日",null,null,null,null,null,null,null,null,null,{"$f":"IF(入力シート!$H$28=\"\",\"\",DBCS(TEXT(入力シート!$H$28,\"eemmdd\")))","v":""},null,null,null,null,null,null,null,"喪失\n原因"]
[]
[]
[]
[]
[]
[]
[null,null,null,"⑦",null,null,null,null,null,null,null,null,null,null,null,null,null,null,null,null,null,null,null,null,null,null,null,null,null,null,null,null,null,null,null,null,null,null,null,null,null,null,null,null,null,null,null,null,null,"⑧"]
[null,null,null,null,null,null,null,null,"〒",null,{"$f":"IF(入力シート!$P$28=\"\",\"\",DBCS(入力シート!$P$28))","v":""},null,null,null,null,null,null,null,null,null,null,null,null,null,null,null,null,null,null,null,null,null,null,null,null,null,null,null,null,null,null,null,null,null,null,null,null,null,null,null,null,null,null,{"$f":"IF(入力シート!$I$28=\"\",\"\",入力シート!$J$28)","v":""},null,null,null,null,null,null,null,null,null,{"$f":"IF(入力シート!$S$28=\"\",\"\",入力シート!$S$28)","v":""}]
[]
[null,null,null,"住所",null,null,null,null,{"$f":"IF(入力シート!$Q$28=\"\",\"\",DBCS(入力シート!$Q$28))","v":""},null,null,null,null,null,null,null,null,null,null,null,null,null,null,null,null,null,null,null,null,null,null,null,null,null,null,null,null,null,null,null,null,null,null,null,null,null,null,null,null,"備考"]
[]
[null,null,null,null,null,null,null,null,null,null,null,null,null,null,null,null,null,null,null,null,null,null,null,null,null,null,null,null,null,null,null,null,null,null,null,null,null,null,null,null,null,null,null,null,null,null,null,null,null,null,null,null,null,{"$f":"IF(入力シート!$T$28=\"\",\"\",入力シート!$T$28)","v":""}]
[null,null,null,null,null,null,null,null,{"$f":"IF(入力シート!$R$28=\"\",\"\",DBCS(入力シート!$R$28))","v":""}]
[]
[]
[]
[]
[null,"加入者\n３",null,"①",null,null,null,{"$f":"IFERROR(IF(入力シート!$U$29=\"\",\"\",DBCS(LEFT(RIGHT(入力シート!$U$29,18-COLUMN())))),\"\")","v":""},null,{"$f":"IFERROR(IF(入力シート!$U$29=\"\",\"\",DBCS(LEFT(RIGHT(入力シート!$U$29,19-COLUMN())))),\"\")","v":""},null,{"$f":"IFERROR(IF(入力シート!$U$29=\"\",\"\",DBCS(LEFT(RIGHT(入力シート!$U$29,20-COLUMN())))),\"\")","v":""},null,{"$f":"IFERROR(IF(入力シート!$U$29=\"\",\"\",DBCS(LEFT(RIGHT(入力シート!$U$29,21-COLUMN())))),\"\")","v":""},null,{"$f":"IFERROR(IF(入力シート!$U$29=\"\",\"\",DBCS(LEFT(RIGHT(入力シート!$U$29,22-COLUMN())))),\"\")","v":""},null,{"$f":"IFERROR(IF(入力シート!$U$29=\"\",\"\",DBCS(LEFT(RIGHT(入力シート!$U$29,23-COLUMN())))),\"\")","v":""},null,{"$f":"IFERROR(IF(入力シート!$U$29=\"\",\"\",DBCS(LEFT(RIGHT(入力シート!$U$29,24-COLUMN())))),\"\")","v":""},null,{"$f":"IFERROR(IF(入力シート!$U$29=\"\",\"\",DBCS(LEFT(RIGHT(入力シート!$U$29,25-COLUMN())))),\"\")","v":""},null,{"$f":"IFERROR(IF(入力シート!$U$29=\"\",\"\",DBCS(LEFT(RIGHT(入力シート!$U$29,26-COLUMN())))),\"\")","v":""},null,{"$f":"IFERROR(IF(入力シート!$U$29=\"\",\"\",DBCS(LEFT(RIGHT(入力シート!$U$29,27-COLUMN())))),\"\")","v":""},null,"②",null,null,null,{"$f":"IFERROR(LEFT(入力シート!$C$29,FIND(\" \",入力シート!$C$29,1)-1),\"\")","v":""},null,null,null,null,null,null,null,null,null,null,{"$f":"IFERROR(RIGHT(入力シート!$C$29,LEN(入力シート!$C$29)-FIND(\" \",入力シート!$C$29,1)),\"\")","v":""},null,null,null,null,null,null,null,null,null,null,"③",null,null,null,{"$f":"IF(入力シート!$E$29=\"\",\"\",IF(TEXT(入力シート!$E$29,\"g\")=\"S\",\"5．昭和\",IF(TEXT(入力シート!$E$29,\"g\")=\"H\",\"7．平成\",IF(TEXT(入力シート!$E$29,\"g\")=\"R\",\"9．令和\"))))","v":""},null,null,null,null,"年",null,null,"月",null,"日"]
[]
[null,null,null,"加入者\n番　号",null,null,null,null,null,null,null,null,null,null,null,null,null,null,null,null,null,null,null,null,null,null,null,"氏名",null,null,null,null,null,null,null,null,null,null,null,null,null,null,null,null,null,null,null,null,null,null,null,null,null,"生年\n月日"]
[null,null,null,null,null,null,null,null,null,null,null,null,null,null,null,null,null,null,null,null,null,null,null,null,null,null,null,null,null,null,null,null,null,null,null,null,null,null,null,null,null,null,null,null,null,null,null,null,null,null,null,null,null,null,null,null,null,null,null,null,null,null,{"$f":"IF(入力シート!$E$29=\"\",\"\",DBCS(TEXT(入力シート!$E$29,\"eemmdd\")))","v":""}]
[null,null,null,null,null,null,null,null,null,null,null,null,null,null,null,null,null,null,null,null,null,null,null,null,null,null,null,null,null,null,null,{"$f":"IFERROR(LEFT(入力シート!$D$29,FIND(\"　\",入力シート!$D$29,1)-1),\"\")","v":""},null,null,null,null,null,null,null,null,null,null,{"$f":"IFERROR(RIGHT(入力シート!$D$29,LEN(入力シート!$D$29)-FIND(\"　\",入力シート!$D$29,1)),\"\")","v":""}]
[]
[]
[]
[]
[]
[null,null,null,"④",null,null,null,{"$f":"IFERROR(IF(入力シート!$G$29=\"\",\"\",DBCS(LEFT(RIGHT(入力シート!$G$29,18-COLUMN())))),\"\")","v":""},null,{"$f":"IFERROR(IF(入力シート!$G$29=\"\",\"\",DBCS(LEFT(RIGHT(入力シート!$G$29,19-COLUMN())))),\"\")","v":""},null,{"$f":"IFERROR(IF(入力シート!$G$29=\"\",\"\",DBCS(LEFT(RIGHT(入力シート!$G$29,20-COLUMN())))),\"\")","v":""},null,{"$f":"IFERROR(IF(入力シート!$G$29=\"\",\"\",DBCS(LEFT(RIGHT(入力シート!$G$29,21-COLUMN())))),\"\")","v":""},null,{"$f":"IFERROR(IF(入力シート!$G$29=\"\",\"\",DBCS(LEFT(RIGHT(入力シート!$G$29,22-COLUMN())))),\"\")","v":""},null,{"$f":"IFERROR(IF(入力シート!$G$29=\"\",\"\",DBCS(LEFT(RIGHT(入力シート!$G$29,23-COLUMN())))),\"\")","v":""},null,{"$f":"IFERROR(IF(入力シート!$G$29=\"\",\"\",DBCS(LEFT(RIGHT(入力シート!$G$29,24-COLUMN())))),\"\")","v":""},null,{"$f":"IFERROR(IF(入力シート!$G$29=\"\",\"\",DBCS(LEFT(RIGHT(入力シート!$G$29,25-COLUMN())))),\"\")","v":""},null,{"$f":"IFERROR(IF(入力シート!$G$29=\"\",\"\",DBCS(LEFT(RIGHT(入力シート!$G$29,26-COLUMN())))),\"\")","v":""},null,{"$f":"IFERROR(IF(入力シート!$G$29=\"\",\"\",DBCS(LEFT(RIGHT(入力シート!$G$29,27-COLUMN())))),\"\")","v":""},null,null,null,null,null,"⑤",null,null,null,{"$f":"IF(入力シート!$H$29=\"\",\"\",IF(TEXT(入力シート!$H$29,\"g\")=\"S\",\"5．昭和\",IF(TEXT(入力シート!$H$29,\"g\")=\"H\",\"7．平成\",IF(TEXT(入力シート!$H$29,\"g\")=\"R\",\"9．令和\"))))","v":""},null,null,null,null,null,"年",null,null,"月",null,"日",null,null,"⑥",null,null,null,{"$f":"IF(入力シート!$K$29=\"\",\"\",DBCS(入力シート!$K$29))","v":""}]
[]
[null,null,null,"基礎年\n金番号",null,null,null,null,null,null,null,null,null,null,null,null,null,null,null,null,null,null,null,null,null,null,null,null,null,null,null,"喪　失\n年月日",null,null,null,null,null,null,null,null,null,{"$f":"IF(入力シート!$H$29=\"\",\"\",DBCS(TEXT(入力シート!$H$29,\"eemmdd\")))","v":""},null,null,null,null,null,null,null,"喪失\n原因"]
[]
[]
[]
[]
[]
[]
[null,null,null,"⑦",null,null,null,null,null,null,null,null,null,null,null,null,null,null,null,null,null,null,null,null,null,null,null,null,null,null,null,null,null,null,null,null,null,null,null,null,null,null,null,null,null,null,null,null,null,"⑧"]
[null,null,null,null,null,null,null,null,"〒",null,{"$f":"IF(入力シート!$P$29=\"\",\"\",DBCS(入力シート!$P$29))","v":""},null,null,null,null,null,null,null,null,null,null,null,null,null,null,null,null,null,null,null,null,null,null,null,null,null,null,null,null,null,null,null,null,null,null,null,null,null,null,null,null,null,null,{"$f":"IF(入力シート!$I$29=\"\",\"\",入力シート!$J$29)","v":""},null,null,null,null,null,null,null,null,null,{"$f":"IF(入力シート!$S$29=\"\",\"\",入力シート!$S$29)","v":""}]
[]
[null,null,null,"住所",null,null,null,null,{"$f":"IF(入力シート!$Q$29=\"\",\"\",DBCS(入力シート!$Q$29))","v":""},null,null,null,null,null,null,null,null,null,null,null,null,null,null,null,null,null,null,null,null,null,null,null,null,null,null,null,null,null,null,null,null,null,null,null,null,null,null,null,null,"備考"]
[]
[null,null,null,null,null,null,null,null,null,null,null,null,null,null,null,null,null,null,null,null,null,null,null,null,null,null,null,null,null,null,null,null,null,null,null,null,null,null,null,null,null,null,null,null,null,null,null,null,null,null,null,null,null,{"$f":"IF(入力シート!$T$29=\"\",\"\",入力シート!$T$29)","v":""}]
[null,null,null,null,null,null,null,null,{"$f":"IF(入力シート!$R$29=\"\",\"\",DBCS(入力シート!$R$29))","v":""}]
[]
[]
[]
[]
[null,"加入者\n４",null,"①",null,null,null,{"$f":"IFERROR(IF(入力シート!$U$30=\"\",\"\",DBCS(LEFT(RIGHT(入力シート!$U$30,18-COLUMN())))),\"\")","v":""},null,{"$f":"IFERROR(IF(入力シート!$U$30=\"\",\"\",DBCS(LEFT(RIGHT(入力シート!$U$30,19-COLUMN())))),\"\")","v":""},null,{"$f":"IFERROR(IF(入力シート!$U$30=\"\",\"\",DBCS(LEFT(RIGHT(入力シート!$U$30,20-COLUMN())))),\"\")","v":""},null,{"$f":"IFERROR(IF(入力シート!$U$30=\"\",\"\",DBCS(LEFT(RIGHT(入力シート!$U$30,21-COLUMN())))),\"\")","v":""},null,{"$f":"IFERROR(IF(入力シート!$U$30=\"\",\"\",DBCS(LEFT(RIGHT(入力シート!$U$30,22-COLUMN())))),\"\")","v":""},null,{"$f":"IFERROR(IF(入力シート!$U$30=\"\",\"\",DBCS(LEFT(RIGHT(入力シート!$U$30,23-COLUMN())))),\"\")","v":""},null,{"$f":"IFERROR(IF(入力シート!$U$30=\"\",\"\",DBCS(LEFT(RIGHT(入力シート!$U$30,24-COLUMN())))),\"\")","v":""},null,{"$f":"IFERROR(IF(入力シート!$U$30=\"\",\"\",DBCS(LEFT(RIGHT(入力シート!$U$30,25-COLUMN())))),\"\")","v":""},null,{"$f":"IFERROR(IF(入力シート!$U$30=\"\",\"\",DBCS(LEFT(RIGHT(入力シート!$U$30,26-COLUMN())))),\"\")","v":""},null,{"$f":"IFERROR(IF(入力シート!$U$30=\"\",\"\",DBCS(LEFT(RIGHT(入力シート!$U$30,27-COLUMN())))),\"\")","v":""},null,"②",null,null,null,{"$f":"IFERROR(LEFT(入力シート!$C$30,FIND(\" \",入力シート!$C$30,1)-1),\"\")","v":""},null,null,null,null,null,null,null,null,null,null,{"$f":"IFERROR(RIGHT(入力シート!$C$30,LEN(入力シート!$C$30)-FIND(\" \",入力シート!$C$30,1)),\"\")","v":""},null,null,null,null,null,null,null,null,null,null,"③",null,null,null,{"$f":"IF(入力シート!$E$30=\"\",\"\",IF(TEXT(入力シート!$E$30,\"g\")=\"S\",\"5．昭和\",IF(TEXT(入力シート!$E$30,\"g\")=\"H\",\"7．平成\",IF(TEXT(入力シート!$E$30,\"g\")=\"R\",\"9．令和\"))))","v":""},null,null,null,null,"年",null,null,"月",null,"日"]
[]
[null,null,null,"加入者\n番　号",null,null,null,null,null,null,null,null,null,null,null,null,null,null,null,null,null,null,null,null,null,null,null,"氏名",null,null,null,null,null,null,null,null,null,null,null,null,null,null,null,null,null,null,null,null,null,null,null,null,null,"生年\n月日"]
[null,null,null,null,null,null,null,null,null,null,null,null,null,null,null,null,null,null,null,null,null,null,null,null,null,null,null,null,null,null,null,null,null,null,null,null,null,null,null,null,null,null,null,null,null,null,null,null,null,null,null,null,null,null,null,null,null,null,null,null,null,null,{"$f":"IF(入力シート!$E$30=\"\",\"\",DBCS(TEXT(入力シート!$E$30,\"eemmdd\")))","v":""}]
[null,null,null,null,null,null,null,null,null,null,null,null,null,null,null,null,null,null,null,null,null,null,null,null,null,null,null,null,null,null,null,{"$f":"IFERROR(LEFT(入力シート!$D$30,FIND(\"　\",入力シート!$D$30,1)-1),\"\")","v":""},null,null,null,null,null,null,null,null,null,null,{"$f":"IFERROR(RIGHT(入力シート!$D$30,LEN(入力シート!$D$30)-FIND(\"　\",入力シート!$D$30,1)),\"\")","v":""}]
[]
[]
[]
[]
[]
[null,null,null,"④",null,null,null,{"$f":"IFERROR(IF(入力シート!$G$30=\"\",\"\",DBCS(LEFT(RIGHT(入力シート!$G$30,18-COLUMN())))),\"\")","v":""},null,{"$f":"IFERROR(IF(入力シート!$G$30=\"\",\"\",DBCS(LEFT(RIGHT(入力シート!$G$30,19-COLUMN())))),\"\")","v":""},null,{"$f":"IFERROR(IF(入力シート!$G$30=\"\",\"\",DBCS(LEFT(RIGHT(入力シート!$G$30,20-COLUMN())))),\"\")","v":""},null,{"$f":"IFERROR(IF(入力シート!$G$30=\"\",\"\",DBCS(LEFT(RIGHT(入力シート!$G$30,21-COLUMN())))),\"\")","v":""},null,{"$f":"IFERROR(IF(入力シート!$G$30=\"\",\"\",DBCS(LEFT(RIGHT(入力シート!$G$30,22-COLUMN())))),\"\")","v":""},null,{"$f":"IFERROR(IF(入力シート!$G$30=\"\",\"\",DBCS(LEFT(RIGHT(入力シート!$G$30,23-COLUMN())))),\"\")","v":""},null,{"$f":"IFERROR(IF(入力シート!$G$30=\"\",\"\",DBCS(LEFT(RIGHT(入力シート!$G$30,24-COLUMN())))),\"\")","v":""},null,{"$f":"IFERROR(IF(入力シート!$G$30=\"\",\"\",DBCS(LEFT(RIGHT(入力シート!$G$30,25-COLUMN())))),\"\")","v":""},null,{"$f":"IFERROR(IF(入力シート!$G$30=\"\",\"\",DBCS(LEFT(RIGHT(入力シート!$G$30,26-COLUMN())))),\"\")","v":""},null,{"$f":"IFERROR(IF(入力シート!$G$30=\"\",\"\",DBCS(LEFT(RIGHT(入力シート!$G$30,27-COLUMN())))),\"\")","v":""},null,null,null,null,null,"⑤",null,null,null,{"$f":"IF(入力シート!$H$30=\"\",\"\",IF(TEXT(入力シート!$H$30,\"g\")=\"S\",\"5．昭和\",IF(TEXT(入力シート!$H$30,\"g\")=\"H\",\"7．平成\",IF(TEXT(入力シート!$H$30,\"g\")=\"R\",\"9．令和\"))))","v":""},null,null,null,null,null,"年",null,null,"月",null,"日",null,null,"⑥",null,null,null,{"$f":"IF(入力シート!$K$30=\"\",\"\",DBCS(入力シート!$K$30))","v":""}]
[]
[null,null,null,"基礎年\n金番号",null,null,null,null,null,null,null,null,null,null,null,null,null,null,null,null,null,null,null,null,null,null,null,null,null,null,null,"喪　失\n年月日",null,null,null,null,null,null,null,null,null,{"$f":"IF(入力シート!$H$30=\"\",\"\",DBCS(TEXT(入力シート!$H$30,\"eemmdd\")))","v":""},null,null,null,null,null,null,null,"喪失\n原因"]
[]
[]
[]
[]
[]
[]
[null,null,null,"⑦",null,null,null,null,null,null,null,null,null,null,null,null,null,null,null,null,null,null,null,null,null,null,null,null,null,null,null,null,null,null,null,null,null,null,null,null,null,null,null,null,null,null,null,null,null,"⑧"]
[null,null,null,null,null,null,null,null,"〒",null,{"$f":"IF(入力シート!$P$30=\"\",\"\",DBCS(入力シート!$P$30))","v":""},null,null,null,null,null,null,null,null,null,null,null,null,null,null,null,null,null,null,null,null,null,null,null,null,null,null,null,null,null,null,null,null,null,null,null,null,null,null,null,null,null,null,{"$f":"IF(入力シート!$I$30=\"\",\"\",入力シート!$J$30)","v":""},null,null,null,null,null,null,null,null,null,{"$f":"IF(入力シート!$S$30=\"\",\"\",入力シート!$S$30)","v":""}]
[]
[null,null,null,"住所",null,null,null,null,{"$f":"IF(入力シート!$Q$30=\"\",\"\",DBCS(入力シート!$Q$30))","v":""},null,null,null,null,null,null,null,null,null,null,null,null,null,null,null,null,null,null,null,null,null,null,null,null,null,null,null,null,null,null,null,null,null,null,null,null,null,null,null,null,"備考"]
[]
[null,null,null,null,null,null,null,null,null,null,null,null,null,null,null,null,null,null,null,null,null,null,null,null,null,null,null,null,null,null,null,null,null,null,null,null,null,null,null,null,null,null,null,null,null,null,null,null,null,null,null,null,null,{"$f":"IF(入力シート!$T$30=\"\",\"\",入力シート!$T$30)","v":""}]
[null,null,null,null,null,null,null,null,{"$f":"IF(入力シート!$R$30=\"\",\"\",DBCS(入力シート!$R$30))","v":""}]
[]
[]
[]
[]
[]
[]
[]
[]
[]
[]
[]
[]
[]
[]
[]
[]
[]
[]
[]
[]
[]
[]
[]
[]
[]
[]
[]
[]
[]
[]
[]
[]
[null,"加入者\n１",null,"①",null,null,null,{"$f":"IFERROR(IF(入力シート!$U$31=\"\",\"\",DBCS(LEFT(RIGHT(入力シート!$U$31,18-COLUMN())))),\"\")","v":""},null,{"$f":"IFERROR(IF(入力シート!$U$31=\"\",\"\",DBCS(LEFT(RIGHT(入力シート!$U$31,19-COLUMN())))),\"\")","v":""},null,{"$f":"IFERROR(IF(入力シート!$U$31=\"\",\"\",DBCS(LEFT(RIGHT(入力シート!$U$31,20-COLUMN())))),\"\")","v":""},null,{"$f":"IFERROR(IF(入力シート!$U$31=\"\",\"\",DBCS(LEFT(RIGHT(入力シート!$U$31,21-COLUMN())))),\"\")","v":""},null,{"$f":"IFERROR(IF(入力シート!$U$31=\"\",\"\",DBCS(LEFT(RIGHT(入力シート!$U$31,22-COLUMN())))),\"\")","v":""},null,{"$f":"IFERROR(IF(入力シート!$U$31=\"\",\"\",DBCS(LEFT(RIGHT(入力シート!$U$31,23-COLUMN())))),\"\")","v":""},null,{"$f":"IFERROR(IF(入力シート!$U$31=\"\",\"\",DBCS(LEFT(RIGHT(入力シート!$U$31,24-COLUMN())))),\"\")","v":""},null,{"$f":"IFERROR(IF(入力シート!$U$31=\"\",\"\",DBCS(LEFT(RIGHT(入力シート!$U$31,25-COLUMN())))),\"\")","v":""},null,{"$f":"IFERROR(IF(入力シート!$U$31=\"\",\"\",DBCS(LEFT(RIGHT(入力シート!$U$31,26-COLUMN())))),\"\")","v":""},null,{"$f":"IFERROR(IF(入力シート!$U$31=\"\",\"\",DBCS(LEFT(RIGHT(入力シート!$U$31,27-COLUMN())))),\"\")","v":""},null,"②",null,null,null,{"$f":"IFERROR(LEFT(入力シート!$C$31,FIND(\" \",入力シート!$C$31,1)-1),\"\")","v":""},null,null,null,null,null,null,null,null,null,null,{"$f":"IFERROR(RIGHT(入力シート!$C$31,LEN(入力シート!$C$31)-FIND(\" \",入力シート!$C$31,1)),\"\")","v":""},null,null,null,null,null,null,null,null,null,null,"③",null,null,null,{"$f":"IF(入力シート!$E$31=\"\",\"\",IF(TEXT(入力シート!$E$31,\"g\")=\"S\",\"5．昭和\",IF(TEXT(入力シート!$E$31,\"g\")=\"H\",\"7．平成\",IF(TEXT(入力シート!$E$31,\"g\")=\"R\",\"9．令和\"))))","v":""},null,null,null,null,"年",null,null,"月",null,"日"]
[]
[null,null,null,"加入者\n番　号",null,null,null,null,null,null,null,null,null,null,null,null,null,null,null,null,null,null,null,null,null,null,null,"氏名",null,null,null,null,null,null,null,null,null,null,null,null,null,null,null,null,null,null,null,null,null,null,null,null,null,"生年\n月日"]
[null,null,null,null,null,null,null,null,null,null,null,null,null,null,null,null,null,null,null,null,null,null,null,null,null,null,null,null,null,null,null,null,null,null,null,null,null,null,null,null,null,null,null,null,null,null,null,null,null,null,null,null,null,null,null,null,null,null,null,null,null,null,{"$f":"IF(入力シート!$E$31=\"\",\"\",DBCS(TEXT(入力シート!$E$31,\"eemmdd\")))","v":""}]
[null,null,null,null,null,null,null,null,null,null,null,null,null,null,null,null,null,null,null,null,null,null,null,null,null,null,null,null,null,null,null,{"$f":"IFERROR(LEFT(入力シート!$D$31,FIND(\"　\",入力シート!$D$31,1)-1),\"\")","v":""},null,null,null,null,null,null,null,null,null,null,{"$f":"IFERROR(RIGHT(入力シート!$D$31,LEN(入力シート!$D$31)-FIND(\"　\",入力シート!$D$31,1)),\"\")","v":""}]
[]
[]
[]
[]
[]
[null,null,null,"④",null,null,null,{"$f":"IFERROR(IF(入力シート!$G$31=\"\",\"\",DBCS(LEFT(RIGHT(入力シート!$G$31,18-COLUMN())))),\"\")","v":""},null,{"$f":"IFERROR(IF(入力シート!$G$31=\"\",\"\",DBCS(LEFT(RIGHT(入力シート!$G$31,19-COLUMN())))),\"\")","v":""},null,{"$f":"IFERROR(IF(入力シート!$G$31=\"\",\"\",DBCS(LEFT(RIGHT(入力シート!$G$31,20-COLUMN())))),\"\")","v":""},null,{"$f":"IFERROR(IF(入力シート!$G$31=\"\",\"\",DBCS(LEFT(RIGHT(入力シート!$G$31,21-COLUMN())))),\"\")","v":""},null,{"$f":"IFERROR(IF(入力シート!$G$31=\"\",\"\",DBCS(LEFT(RIGHT(入力シート!$G$31,22-COLUMN())))),\"\")","v":""},null,{"$f":"IFERROR(IF(入力シート!$G$31=\"\",\"\",DBCS(LEFT(RIGHT(入力シート!$G$31,23-COLUMN())))),\"\")","v":""},null,{"$f":"IFERROR(IF(入力シート!$G$31=\"\",\"\",DBCS(LEFT(RIGHT(入力シート!$G$31,24-COLUMN())))),\"\")","v":""},null,{"$f":"IFERROR(IF(入力シート!$G$31=\"\",\"\",DBCS(LEFT(RIGHT(入力シート!$G$31,25-COLUMN())))),\"\")","v":""},null,{"$f":"IFERROR(IF(入力シート!$G$31=\"\",\"\",DBCS(LEFT(RIGHT(入力シート!$G$31,26-COLUMN())))),\"\")","v":""},null,{"$f":"IFERROR(IF(入力シート!$G$31=\"\",\"\",DBCS(LEFT(RIGHT(入力シート!$G$31,27-COLUMN())))),\"\")","v":""},null,null,null,null,null,"⑤",null,null,null,{"$f":"IF(入力シート!$H$31=\"\",\"\",IF(TEXT(入力シート!$H$31,\"g\")=\"S\",\"5．昭和\",IF(TEXT(入力シート!$H$31,\"g\")=\"H\",\"7．平成\",IF(TEXT(入力シート!$H$31,\"g\")=\"R\",\"9．令和\"))))","v":""},null,null,null,null,null,"年",null,null,"月",null,"日",null,null,"⑥",null,null,null,{"$f":"IF(入力シート!$K$31=\"\",\"\",DBCS(入力シート!$K$31))","v":""}]
[]
[null,null,null,"基礎年\n金番号",null,null,null,null,null,null,null,null,null,null,null,null,null,null,null,null,null,null,null,null,null,null,null,null,null,null,null,"喪　失\n年月日",null,null,null,null,null,null,null,null,null,{"$f":"IF(入力シート!$H$31=\"\",\"\",DBCS(TEXT(入力シート!$H$31,\"eemmdd\")))","v":""},null,null,null,null,null,null,null,"喪失\n原因"]
[]
[]
[]
[]
[]
[]
[null,null,null,"⑦",null,null,null,null,null,null,null,null,null,null,null,null,null,null,null,null,null,null,null,null,null,null,null,null,null,null,null,null,null,null,null,null,null,null,null,null,null,null,null,null,null,null,null,null,null,"⑧"]
[null,null,null,null,null,null,null,null,"〒",null,{"$f":"IF(入力シート!$P$31=\"\",\"\",DBCS(入力シート!$P$31))","v":""},null,null,null,null,null,null,null,null,null,null,null,null,null,null,null,null,null,null,null,null,null,null,null,null,null,null,null,null,null,null,null,null,null,null,null,null,null,null,null,null,null,null,{"$f":"IF(入力シート!$I$31=\"\",\"\",入力シート!$J$31)","v":""},null,null,null,null,null,null,null,null,null,{"$f":"IF(入力シート!$S$31=\"\",\"\",入力シート!$S$31)","v":""}]
[]
[null,null,null,"住所",null,null,null,null,{"$f":"IF(入力シート!$Q$31=\"\",\"\",DBCS(入力シート!$Q$31))","v":""},null,null,null,null,null,null,null,null,null,null,null,null,null,null,null,null,null,null,null,null,null,null,null,null,null,null,null,null,null,null,null,null,null,null,null,null,null,null,null,null,"備考"]
[]
[null,null,null,null,null,null,null,null,null,null,null,null,null,null,null,null,null,null,null,null,null,null,null,null,null,null,null,null,null,null,null,null,null,null,null,null,null,null,null,null,null,null,null,null,null,null,null,null,null,null,null,null,null,{"$f":"IF(入力シート!$T$31=\"\",\"\",入力シート!$T$31)","v":""}]
[null,null,null,null,null,null,null,null,{"$f":"IF(入力シート!$R$31=\"\",\"\",DBCS(入力シート!$R$31))","v":""}]
[]
[]
[]
[]
[null,"加入者\n２",null,"①",null,null,null,{"$f":"IFERROR(IF(入力シート!$U$32=\"\",\"\",DBCS(LEFT(RIGHT(入力シート!$U$32,18-COLUMN())))),\"\")","v":""},null,{"$f":"IFERROR(IF(入力シート!$U$32=\"\",\"\",DBCS(LEFT(RIGHT(入力シート!$U$32,19-COLUMN())))),\"\")","v":""},null,{"$f":"IFERROR(IF(入力シート!$U$32=\"\",\"\",DBCS(LEFT(RIGHT(入力シート!$U$32,20-COLUMN())))),\"\")","v":""},null,{"$f":"IFERROR(IF(入力シート!$U$32=\"\",\"\",DBCS(LEFT(RIGHT(入力シート!$U$32,21-COLUMN())))),\"\")","v":""},null,{"$f":"IFERROR(IF(入力シート!$U$32=\"\",\"\",DBCS(LEFT(RIGHT(入力シート!$U$32,22-COLUMN())))),\"\")","v":""},null,{"$f":"IFERROR(IF(入力シート!$U$32=\"\",\"\",DBCS(LEFT(RIGHT(入力シート!$U$32,23-COLUMN())))),\"\")","v":""},null,{"$f":"IFERROR(IF(入力シート!$U$32=\"\",\"\",DBCS(LEFT(RIGHT(入力シート!$U$32,24-COLUMN())))),\"\")","v":""},null,{"$f":"IFERROR(IF(入力シート!$U$32=\"\",\"\",DBCS(LEFT(RIGHT(入力シート!$U$32,25-COLUMN())))),\"\")","v":""},null,{"$f":"IFERROR(IF(入力シート!$U$32=\"\",\"\",DBCS(LEFT(RIGHT(入力シート!$U$32,26-COLUMN())))),\"\")","v":""},null,{"$f":"IFERROR(IF(入力シート!$U$32=\"\",\"\",DBCS(LEFT(RIGHT(入力シート!$U$32,27-COLUMN())))),\"\")","v":""},null,"②",null,null,null,{"$f":"IFERROR(LEFT(入力シート!$C$32,FIND(\" \",入力シート!$C$32,1)-1),\"\")","v":""},null,null,null,null,null,null,null,null,null,null,{"$f":"IFERROR(RIGHT(入力シート!$C$32,LEN(入力シート!$C$32)-FIND(\" \",入力シート!$C$32,1)),\"\")","v":""},null,null,null,null,null,null,null,null,null,null,"③",null,null,null,{"$f":"IF(入力シート!$E$32=\"\",\"\",IF(TEXT(入力シート!$E$32,\"g\")=\"S\",\"5．昭和\",IF(TEXT(入力シート!$E$32,\"g\")=\"H\",\"7．平成\",IF(TEXT(入力シート!$E$32,\"g\")=\"R\",\"9．令和\"))))","v":""},null,null,null,null,"年",null,null,"月",null,"日"]
[]
[null,null,null,"加入者\n番　号",null,null,null,null,null,null,null,null,null,null,null,null,null,null,null,null,null,null,null,null,null,null,null,"氏名",null,null,null,null,null,null,null,null,null,null,null,null,null,null,null,null,null,null,null,null,null,null,null,null,null,"生年\n月日"]
[null,null,null,null,null,null,null,null,null,null,null,null,null,null,null,null,null,null,null,null,null,null,null,null,null,null,null,null,null,null,null,null,null,null,null,null,null,null,null,null,null,null,null,null,null,null,null,null,null,null,null,null,null,null,null,null,null,null,null,null,null,null,{"$f":"IF(入力シート!$E$32=\"\",\"\",DBCS(TEXT(入力シート!$E$32,\"eemmdd\")))","v":""}]
[null,null,null,null,null,null,null,null,null,null,null,null,null,null,null,null,null,null,null,null,null,null,null,null,null,null,null,null,null,null,null,{"$f":"IFERROR(LEFT(入力シート!$D$32,FIND(\"　\",入力シート!$D$32,1)-1),\"\")","v":""},null,null,null,null,null,null,null,null,null,null,{"$f":"IFERROR(RIGHT(入力シート!$D$32,LEN(入力シート!$D$32)-FIND(\"　\",入力シート!$D$32,1)),\"\")","v":""}]
[]
[]
[]
[]
[]
[null,null,null,"④",null,null,null,{"$f":"IFERROR(IF(入力シート!$G$32=\"\",\"\",DBCS(LEFT(RIGHT(入力シート!$G$32,18-COLUMN())))),\"\")","v":""},null,{"$f":"IFERROR(IF(入力シート!$G$32=\"\",\"\",DBCS(LEFT(RIGHT(入力シート!$G$32,19-COLUMN())))),\"\")","v":""},null,{"$f":"IFERROR(IF(入力シート!$G$32=\"\",\"\",DBCS(LEFT(RIGHT(入力シート!$G$32,20-COLUMN())))),\"\")","v":""},null,{"$f":"IFERROR(IF(入力シート!$G$32=\"\",\"\",DBCS(LEFT(RIGHT(入力シート!$G$32,21-COLUMN())))),\"\")","v":""},null,{"$f":"IFERROR(IF(入力シート!$G$32=\"\",\"\",DBCS(LEFT(RIGHT(入力シート!$G$32,22-COLUMN())))),\"\")","v":""},null,{"$f":"IFERROR(IF(入力シート!$G$32=\"\",\"\",DBCS(LEFT(RIGHT(入力シート!$G$32,23-COLUMN())))),\"\")","v":""},null,{"$f":"IFERROR(IF(入力シート!$G$32=\"\",\"\",DBCS(LEFT(RIGHT(入力シート!$G$32,24-COLUMN())))),\"\")","v":""},null,{"$f":"IFERROR(IF(入力シート!$G$32=\"\",\"\",DBCS(LEFT(RIGHT(入力シート!$G$32,25-COLUMN())))),\"\")","v":""},null,{"$f":"IFERROR(IF(入力シート!$G$32=\"\",\"\",DBCS(LEFT(RIGHT(入力シート!$G$32,26-COLUMN())))),\"\")","v":""},null,{"$f":"IFERROR(IF(入力シート!$G$32=\"\",\"\",DBCS(LEFT(RIGHT(入力シート!$G$32,27-COLUMN())))),\"\")","v":""},null,null,null,null,null,"⑤",null,null,null,{"$f":"IF(入力シート!$H$32=\"\",\"\",IF(TEXT(入力シート!$H$32,\"g\")=\"S\",\"5．昭和\",IF(TEXT(入力シート!$H$32,\"g\")=\"H\",\"7．平成\",IF(TEXT(入力シート!$H$32,\"g\")=\"R\",\"9．令和\"))))","v":""},null,null,null,null,null,"年",null,null,"月",null,"日",null,null,"⑥",null,null,null,{"$f":"IF(入力シート!$K$32=\"\",\"\",DBCS(入力シート!$K$32))","v":""}]
[]
[null,null,null,"基礎年\n金番号",null,null,null,null,null,null,null,null,null,null,null,null,null,null,null,null,null,null,null,null,null,null,null,null,null,null,null,"喪　失\n年月日",null,null,null,null,null,null,null,null,null,{"$f":"IF(入力シート!$H$32=\"\",\"\",DBCS(TEXT(入力シート!$H$32,\"eemmdd\")))","v":""},null,null,null,null,null,null,null,"喪失\n原因"]
[]
[]
[]
[]
[]
[]
[null,null,null,"⑦",null,null,null,null,null,null,null,null,null,null,null,null,null,null,null,null,null,null,null,null,null,null,null,null,null,null,null,null,null,null,null,null,null,null,null,null,null,null,null,null,null,null,null,null,null,"⑧"]
[null,null,null,null,null,null,null,null,"〒",null,{"$f":"IF(入力シート!$P$32=\"\",\"\",DBCS(入力シート!$P$32))","v":""},null,null,null,null,null,null,null,null,null,null,null,null,null,null,null,null,null,null,null,null,null,null,null,null,null,null,null,null,null,null,null,null,null,null,null,null,null,null,null,null,null,null,{"$f":"IF(入力シート!$I$32=\"\",\"\",入力シート!$J$32)","v":""},null,null,null,null,null,null,null,null,null,{"$f":"IF(入力シート!$S$32=\"\",\"\",入力シート!$S$32)","v":""}]
[]
[null,null,null,"住所",null,null,null,null,{"$f":"IF(入力シート!$Q$32=\"\",\"\",DBCS(入力シート!$Q$32))","v":""},null,null,null,null,null,null,null,null,null,null,null,null,null,null,null,null,null,null,null,null,null,null,null,null,null,null,null,null,null,null,null,null,null,null,null,null,null,null,null,null,"備考"]
[]
[null,null,null,null,null,null,null,null,null,null,null,null,null,null,null,null,null,null,null,null,null,null,null,null,null,null,null,null,null,null,null,null,null,null,null,null,null,null,null,null,null,null,null,null,null,null,null,null,null,null,null,null,null,{"$f":"IF(入力シート!$T$32=\"\",\"\",入力シート!$T$32)","v":""}]
[null,null,null,null,null,null,null,null,{"$f":"IF(入力シート!$R$32=\"\",\"\",DBCS(入力シート!$R$32))","v":""}]
[]
[]
[]
[]
[null,"加入者\n３",null,"①",null,null,null,{"$f":"IFERROR(IF(入力シート!$U$33=\"\",\"\",DBCS(LEFT(RIGHT(入力シート!$U$33,18-COLUMN())))),\"\")","v":""},null,{"$f":"IFERROR(IF(入力シート!$U$33=\"\",\"\",DBCS(LEFT(RIGHT(入力シート!$U$33,19-COLUMN())))),\"\")","v":""},null,{"$f":"IFERROR(IF(入力シート!$U$33=\"\",\"\",DBCS(LEFT(RIGHT(入力シート!$U$33,20-COLUMN())))),\"\")","v":""},null,{"$f":"IFERROR(IF(入力シート!$U$33=\"\",\"\",DBCS(LEFT(RIGHT(入力シート!$U$33,21-COLUMN())))),\"\")","v":""},null,{"$f":"IFERROR(IF(入力シート!$U$33=\"\",\"\",DBCS(LEFT(RIGHT(入力シート!$U$33,22-COLUMN())))),\"\")","v":""},null,{"$f":"IFERROR(IF(入力シート!$U$33=\"\",\"\",DBCS(LEFT(RIGHT(入力シート!$U$33,23-COLUMN())))),\"\")","v":""},null,{"$f":"IFERROR(IF(入力シート!$U$33=\"\",\"\",DBCS(LEFT(RIGHT(入力シート!$U$33,24-COLUMN())))),\"\")","v":""},null,{"$f":"IFERROR(IF(入力シート!$U$33=\"\",\"\",DBCS(LEFT(RIGHT(入力シート!$U$33,25-COLUMN())))),\"\")","v":""},null,{"$f":"IFERROR(IF(入力シート!$U$33=\"\",\"\",DBCS(LEFT(RIGHT(入力シート!$U$33,26-COLUMN())))),\"\")","v":""},null,{"$f":"IFERROR(IF(入力シート!$U$33=\"\",\"\",DBCS(LEFT(RIGHT(入力シート!$U$33,27-COLUMN())))),\"\")","v":""},null,"②",null,null,null,{"$f":"IFERROR(LEFT(入力シート!$C$33,FIND(\" \",入力シート!$C$33,1)-1),\"\")","v":""},null,null,null,null,null,null,null,null,null,null,{"$f":"IFERROR(RIGHT(入力シート!$C$33,LEN(入力シート!$C$33)-FIND(\" \",入力シート!$C$33,1)),\"\")","v":""},null,null,null,null,null,null,null,null,null,null,"③",null,null,null,{"$f":"IF(入力シート!$E$33=\"\",\"\",IF(TEXT(入力シート!$E$33,\"g\")=\"S\",\"5．昭和\",IF(TEXT(入力シート!$E$33,\"g\")=\"H\",\"7．平成\",IF(TEXT(入力シート!$E$33,\"g\")=\"R\",\"9．令和\"))))","v":""},null,null,null,null,"年",null,null,"月",null,"日"]
[]
[null,null,null,"加入者\n番　号",null,null,null,null,null,null,null,null,null,null,null,null,null,null,null,null,null,null,null,null,null,null,null,"氏名",null,null,null,null,null,null,null,null,null,null,null,null,null,null,null,null,null,null,null,null,null,null,null,null,null,"生年\n月日"]
[null,null,null,null,null,null,null,null,null,null,null,null,null,null,null,null,null,null,null,null,null,null,null,null,null,null,null,null,null,null,null,null,null,null,null,null,null,null,null,null,null,null,null,null,null,null,null,null,null,null,null,null,null,null,null,null,null,null,null,null,null,null,{"$f":"IF(入力シート!$E$33=\"\",\"\",DBCS(TEXT(入力シート!$E$33,\"eemmdd\")))","v":""}]
[null,null,null,null,null,null,null,null,null,null,null,null,null,null,null,null,null,null,null,null,null,null,null,null,null,null,null,null,null,null,null,{"$f":"IFERROR(LEFT(入力シート!$D$33,FIND(\"　\",入力シート!$D$33,1)-1),\"\")","v":""},null,null,null,null,null,null,null,null,null,null,{"$f":"IFERROR(RIGHT(入力シート!$D$33,LEN(入力シート!$D$33)-FIND(\"　\",入力シート!$D$33,1)),\"\")","v":""}]
[]
[]
[]
[]
[]
[null,null,null,"④",null,null,null,{"$f":"IFERROR(IF(入力シート!$G$33=\"\",\"\",DBCS(LEFT(RIGHT(入力シート!$G$33,18-COLUMN())))),\"\")","v":""},null,{"$f":"IFERROR(IF(入力シート!$G$33=\"\",\"\",DBCS(LEFT(RIGHT(入力シート!$G$33,19-COLUMN())))),\"\")","v":""},null,{"$f":"IFERROR(IF(入力シート!$G$33=\"\",\"\",DBCS(LEFT(RIGHT(入力シート!$G$33,20-COLUMN())))),\"\")","v":""},null,{"$f":"IFERROR(IF(入力シート!$G$33=\"\",\"\",DBCS(LEFT(RIGHT(入力シート!$G$33,21-COLUMN())))),\"\")","v":""},null,{"$f":"IFERROR(IF(入力シート!$G$33=\"\",\"\",DBCS(LEFT(RIGHT(入力シート!$G$33,22-COLUMN())))),\"\")","v":""},null,{"$f":"IFERROR(IF(入力シート!$G$33=\"\",\"\",DBCS(LEFT(RIGHT(入力シート!$G$33,23-COLUMN())))),\"\")","v":""},null,{"$f":"IFERROR(IF(入力シート!$G$33=\"\",\"\",DBCS(LEFT(RIGHT(入力シート!$G$33,24-COLUMN())))),\"\")","v":""},null,{"$f":"IFERROR(IF(入力シート!$G$33=\"\",\"\",DBCS(LEFT(RIGHT(入力シート!$G$33,25-COLUMN())))),\"\")","v":""},null,{"$f":"IFERROR(IF(入力シート!$G$33=\"\",\"\",DBCS(LEFT(RIGHT(入力シート!$G$33,26-COLUMN())))),\"\")","v":""},null,{"$f":"IFERROR(IF(入力シート!$G$33=\"\",\"\",DBCS(LEFT(RIGHT(入力シート!$G$33,27-COLUMN())))),\"\")","v":""},null,null,null,null,null,"⑤",null,null,null,{"$f":"IF(入力シート!$H$33=\"\",\"\",IF(TEXT(入力シート!$H$33,\"g\")=\"S\",\"5．昭和\",IF(TEXT(入力シート!$H$33,\"g\")=\"H\",\"7．平成\",IF(TEXT(入力シート!$H$33,\"g\")=\"R\",\"9．令和\"))))","v":""},null,null,null,null,null,"年",null,null,"月",null,"日",null,null,"⑥",null,null,null,{"$f":"IF(入力シート!$K$33=\"\",\"\",DBCS(入力シート!$K$33))","v":""}]
[]
[null,null,null,"基礎年\n金番号",null,null,null,null,null,null,null,null,null,null,null,null,null,null,null,null,null,null,null,null,null,null,null,null,null,null,null,"喪　失\n年月日",null,null,null,null,null,null,null,null,null,{"$f":"IF(入力シート!$H$33=\"\",\"\",DBCS(TEXT(入力シート!$H$33,\"eemmdd\")))","v":""},null,null,null,null,null,null,null,"喪失\n原因"]
[]
[]
[]
[]
[]
[]
[null,null,null,"⑦",null,null,null,null,null,null,null,null,null,null,null,null,null,null,null,null,null,null,null,null,null,null,null,null,null,null,null,null,null,null,null,null,null,null,null,null,null,null,null,null,null,null,null,null,null,"⑧"]
[null,null,null,null,null,null,null,null,"〒",null,{"$f":"IF(入力シート!$P$33=\"\",\"\",DBCS(入力シート!$P$33))","v":""},null,null,null,null,null,null,null,null,null,null,null,null,null,null,null,null,null,null,null,null,null,null,null,null,null,null,null,null,null,null,null,null,null,null,null,null,null,null,null,null,null,null,{"$f":"IF(入力シート!$I$33=\"\",\"\",入力シート!$J$33)","v":""},null,null,null,null,null,null,null,null,null,{"$f":"IF(入力シート!$S$33=\"\",\"\",入力シート!$S$33)","v":""}]
[]
[null,null,null,"住所",null,null,null,null,{"$f":"IF(入力シート!$Q$33=\"\",\"\",DBCS(入力シート!$Q$33))","v":""},null,null,null,null,null,null,null,null,null,null,null,null,null,null,null,null,null,null,null,null,null,null,null,null,null,null,null,null,null,null,null,null,null,null,null,null,null,null,null,null,"備考"]
[]
[null,null,null,null,null,null,null,null,null,null,null,null,null,null,null,null,null,null,null,null,null,null,null,null,null,null,null,null,null,null,null,null,null,null,null,null,null,null,null,null,null,null,null,null,null,null,null,null,null,null,null,null,null,{"$f":"IF(入力シート!$T$33=\"\",\"\",入力シート!$T$33)","v":""}]
[null,null,null,null,null,null,null,null,{"$f":"IF(入力シート!$R$33=\"\",\"\",DBCS(入力シート!$R$33))","v":""}]
[]
[]
[]
[]
[null,"加入者\n４",null,"①",null,null,null,{"$f":"IFERROR(IF(入力シート!$U$34=\"\",\"\",DBCS(LEFT(RIGHT(入力シート!$U$34,18-COLUMN())))),\"\")","v":""},null,{"$f":"IFERROR(IF(入力シート!$U$34=\"\",\"\",DBCS(LEFT(RIGHT(入力シート!$U$34,19-COLUMN())))),\"\")","v":""},null,{"$f":"IFERROR(IF(入力シート!$U$34=\"\",\"\",DBCS(LEFT(RIGHT(入力シート!$U$34,20-COLUMN())))),\"\")","v":""},null,{"$f":"IFERROR(IF(入力シート!$U$34=\"\",\"\",DBCS(LEFT(RIGHT(入力シート!$U$34,21-COLUMN())))),\"\")","v":""},null,{"$f":"IFERROR(IF(入力シート!$U$34=\"\",\"\",DBCS(LEFT(RIGHT(入力シート!$U$34,22-COLUMN())))),\"\")","v":""},null,{"$f":"IFERROR(IF(入力シート!$U$34=\"\",\"\",DBCS(LEFT(RIGHT(入力シート!$U$34,23-COLUMN())))),\"\")","v":""},null,{"$f":"IFERROR(IF(入力シート!$U$34=\"\",\"\",DBCS(LEFT(RIGHT(入力シート!$U$34,24-COLUMN())))),\"\")","v":""},null,{"$f":"IFERROR(IF(入力シート!$U$34=\"\",\"\",DBCS(LEFT(RIGHT(入力シート!$U$34,25-COLUMN())))),\"\")","v":""},null,{"$f":"IFERROR(IF(入力シート!$U$34=\"\",\"\",DBCS(LEFT(RIGHT(入力シート!$U$34,26-COLUMN())))),\"\")","v":""},null,{"$f":"IFERROR(IF(入力シート!$U$34=\"\",\"\",DBCS(LEFT(RIGHT(入力シート!$U$34,27-COLUMN())))),\"\")","v":""},null,"②",null,null,null,{"$f":"IFERROR(LEFT(入力シート!$C$34,FIND(\" \",入力シート!$C$34,1)-1),\"\")","v":""},null,null,null,null,null,null,null,null,null,null,{"$f":"IFERROR(RIGHT(入力シート!$C$34,LEN(入力シート!$C$34)-FIND(\" \",入力シート!$C$34,1)),\"\")","v":""},null,null,null,null,null,null,null,null,null,null,"③",null,null,null,{"$f":"IF(入力シート!$E$34=\"\",\"\",IF(TEXT(入力シート!$E$34,\"g\")=\"S\",\"5．昭和\",IF(TEXT(入力シート!$E$34,\"g\")=\"H\",\"7．平成\",IF(TEXT(入力シート!$E$34,\"g\")=\"R\",\"9．令和\"))))","v":""},null,null,null,null,"年",null,null,"月",null,"日"]
[]
[null,null,null,"加入者\n番　号",null,null,null,null,null,null,null,null,null,null,null,null,null,null,null,null,null,null,null,null,null,null,null,"氏名",null,null,null,null,null,null,null,null,null,null,null,null,null,null,null,null,null,null,null,null,null,null,null,null,null,"生年\n月日"]
[null,null,null,null,null,null,null,null,null,null,null,null,null,null,null,null,null,null,null,null,null,null,null,null,null,null,null,null,null,null,null,null,null,null,null,null,null,null,null,null,null,null,null,null,null,null,null,null,null,null,null,null,null,null,null,null,null,null,null,null,null,null,{"$f":"IF(入力シート!$E$34=\"\",\"\",DBCS(TEXT(入力シート!$E$34,\"eemmdd\")))","v":""}]
[null,null,null,null,null,null,null,null,null,null,null,null,null,null,null,null,null,null,null,null,null,null,null,null,null,null,null,null,null,null,null,{"$f":"IFERROR(LEFT(入力シート!$D$34,FIND(\"　\",入力シート!$D$34,1)-1),\"\")","v":""},null,null,null,null,null,null,null,null,null,null,{"$f":"IFERROR(RIGHT(入力シート!$D$34,LEN(入力シート!$D$34)-FIND(\"　\",入力シート!$D$34,1)),\"\")","v":""}]
[]
[]
[]
[]
[]
[null,null,null,"④",null,null,null,{"$f":"IFERROR(IF(入力シート!$G$34=\"\",\"\",DBCS(LEFT(RIGHT(入力シート!$G$34,18-COLUMN())))),\"\")","v":""},null,{"$f":"IFERROR(IF(入力シート!$G$34=\"\",\"\",DBCS(LEFT(RIGHT(入力シート!$G$34,19-COLUMN())))),\"\")","v":""},null,{"$f":"IFERROR(IF(入力シート!$G$34=\"\",\"\",DBCS(LEFT(RIGHT(入力シート!$G$34,20-COLUMN())))),\"\")","v":""},null,{"$f":"IFERROR(IF(入力シート!$G$34=\"\",\"\",DBCS(LEFT(RIGHT(入力シート!$G$34,21-COLUMN())))),\"\")","v":""},null,{"$f":"IFERROR(IF(入力シート!$G$34=\"\",\"\",DBCS(LEFT(RIGHT(入力シート!$G$34,22-COLUMN())))),\"\")","v":""},null,{"$f":"IFERROR(IF(入力シート!$G$34=\"\",\"\",DBCS(LEFT(RIGHT(入力シート!$G$34,23-COLUMN())))),\"\")","v":""},null,{"$f":"IFERROR(IF(入力シート!$G$34=\"\",\"\",DBCS(LEFT(RIGHT(入力シート!$G$34,24-COLUMN())))),\"\")","v":""},null,{"$f":"IFERROR(IF(入力シート!$G$34=\"\",\"\",DBCS(LEFT(RIGHT(入力シート!$G$34,25-COLUMN())))),\"\")","v":""},null,{"$f":"IFERROR(IF(入力シート!$G$34=\"\",\"\",DBCS(LEFT(RIGHT(入力シート!$G$34,26-COLUMN())))),\"\")","v":""},null,{"$f":"IFERROR(IF(入力シート!$G$34=\"\",\"\",DBCS(LEFT(RIGHT(入力シート!$G$34,27-COLUMN())))),\"\")","v":""},null,null,null,null,null,"⑤",null,null,null,{"$f":"IF(入力シート!$H$34=\"\",\"\",IF(TEXT(入力シート!$H$34,\"g\")=\"S\",\"5．昭和\",IF(TEXT(入力シート!$H$34,\"g\")=\"H\",\"7．平成\",IF(TEXT(入力シート!$H$34,\"g\")=\"R\",\"9．令和\"))))","v":""},null,null,null,null,null,"年",null,null,"月",null,"日",null,null,"⑥",null,null,null,{"$f":"IF(入力シート!$K$34=\"\",\"\",DBCS(入力シート!$K$34))","v":""}]
[]
[null,null,null,"基礎年\n金番号",null,null,null,null,null,null,null,null,null,null,null,null,null,null,null,null,null,null,null,null,null,null,null,null,null,null,null,"喪　失\n年月日",null,null,null,null,null,null,null,null,null,{"$f":"IF(入力シート!$H$34=\"\",\"\",DBCS(TEXT(入力シート!$H$34,\"eemmdd\")))","v":""},null,null,null,null,null,null,null,"喪失\n原因"]
[]
[]
[]
[]
[]
[]
[null,null,null,"⑦",null,null,null,null,null,null,null,null,null,null,null,null,null,null,null,null,null,null,null,null,null,null,null,null,null,null,null,null,null,null,null,null,null,null,null,null,null,null,null,null,null,null,null,null,null,"⑧"]
[null,null,null,null,null,null,null,null,"〒",null,{"$f":"IF(入力シート!$P$34=\"\",\"\",DBCS(入力シート!$P$34))","v":""},null,null,null,null,null,null,null,null,null,null,null,null,null,null,null,null,null,null,null,null,null,null,null,null,null,null,null,null,null,null,null,null,null,null,null,null,null,null,null,null,null,null,{"$f":"IF(入力シート!$I$34=\"\",\"\",入力シート!$J$34)","v":""},null,null,null,null,null,null,null,null,null,{"$f":"IF(入力シート!$S$34=\"\",\"\",入力シート!$S$34)","v":""}]
[]
[null,null,null,"住所",null,null,null,null,{"$f":"IF(入力シート!$Q$34=\"\",\"\",DBCS(入力シート!$Q$34))","v":""},null,null,null,null,null,null,null,null,null,null,null,null,null,null,null,null,null,null,null,null,null,null,null,null,null,null,null,null,null,null,null,null,null,null,null,null,null,null,null,null,"備考"]
[]
[null,null,null,null,null,null,null,null,null,null,null,null,null,null,null,null,null,null,null,null,null,null,null,null,null,null,null,null,null,null,null,null,null,null,null,null,null,null,null,null,null,null,null,null,null,null,null,null,null,null,null,null,null,{"$f":"IF(入力シート!$T$34=\"\",\"\",入力シート!$T$34)","v":""}]
[null,null,null,null,null,null,null,null,{"$f":"IF(入力シート!$R$34=\"\",\"\",DBCS(入力シート!$R$34))","v":""}]
[]
[]
[]
[]
[]
[]
[]
[]
[]
[]
[]
[]
[]
[]
[]
[]
[]
[]
[]
[]
[]
[]
[]
[]
[]
[]
[]
[]
[]
[]
[]
[]
[null,"加入者\n１",null,"①",null,null,null,{"$f":"IFERROR(IF(入力シート!$U$35=\"\",\"\",DBCS(LEFT(RIGHT(入力シート!$U$35,18-COLUMN())))),\"\")","v":""},null,{"$f":"IFERROR(IF(入力シート!$U$35=\"\",\"\",DBCS(LEFT(RIGHT(入力シート!$U$35,19-COLUMN())))),\"\")","v":""},null,{"$f":"IFERROR(IF(入力シート!$U$35=\"\",\"\",DBCS(LEFT(RIGHT(入力シート!$U$35,20-COLUMN())))),\"\")","v":""},null,{"$f":"IFERROR(IF(入力シート!$U$35=\"\",\"\",DBCS(LEFT(RIGHT(入力シート!$U$35,21-COLUMN())))),\"\")","v":""},null,{"$f":"IFERROR(IF(入力シート!$U$35=\"\",\"\",DBCS(LEFT(RIGHT(入力シート!$U$35,22-COLUMN())))),\"\")","v":""},null,{"$f":"IFERROR(IF(入力シート!$U$35=\"\",\"\",DBCS(LEFT(RIGHT(入力シート!$U$35,23-COLUMN())))),\"\")","v":""},null,{"$f":"IFERROR(IF(入力シート!$U$35=\"\",\"\",DBCS(LEFT(RIGHT(入力シート!$U$35,24-COLUMN())))),\"\")","v":""},null,{"$f":"IFERROR(IF(入力シート!$U$35=\"\",\"\",DBCS(LEFT(RIGHT(入力シート!$U$35,25-COLUMN())))),\"\")","v":""},null,{"$f":"IFERROR(IF(入力シート!$U$35=\"\",\"\",DBCS(LEFT(RIGHT(入力シート!$U$35,26-COLUMN())))),\"\")","v":""},null,{"$f":"IFERROR(IF(入力シート!$U$35=\"\",\"\",DBCS(LEFT(RIGHT(入力シート!$U$35,27-COLUMN())))),\"\")","v":""},null,"②",null,null,null,{"$f":"IFERROR(LEFT(入力シート!$C$35,FIND(\" \",入力シート!$C$35,1)-1),\"\")","v":""},null,null,null,null,null,null,null,null,null,null,{"$f":"IFERROR(RIGHT(入力シート!$C$35,LEN(入力シート!$C$35)-FIND(\" \",入力シート!$C$35,1)),\"\")","v":""},null,null,null,null,null,null,null,null,null,null,"③",null,null,null,{"$f":"IF(入力シート!$E$35=\"\",\"\",IF(TEXT(入力シート!$E$35,\"g\")=\"S\",\"5．昭和\",IF(TEXT(入力シート!$E$35,\"g\")=\"H\",\"7．平成\",IF(TEXT(入力シート!$E$35,\"g\")=\"R\",\"9．令和\"))))","v":""},null,null,null,null,"年",null,null,"月",null,"日"]
[]
[null,null,null,"加入者\n番　号",null,null,null,null,null,null,null,null,null,null,null,null,null,null,null,null,null,null,null,null,null,null,null,"氏名",null,null,null,null,null,null,null,null,null,null,null,null,null,null,null,null,null,null,null,null,null,null,null,null,null,"生年\n月日"]
[null,null,null,null,null,null,null,null,null,null,null,null,null,null,null,null,null,null,null,null,null,null,null,null,null,null,null,null,null,null,null,null,null,null,null,null,null,null,null,null,null,null,null,null,null,null,null,null,null,null,null,null,null,null,null,null,null,null,null,null,null,null,{"$f":"IF(入力シート!$E$35=\"\",\"\",DBCS(TEXT(入力シート!$E$35,\"eemmdd\")))","v":""}]
[null,null,null,null,null,null,null,null,null,null,null,null,null,null,null,null,null,null,null,null,null,null,null,null,null,null,null,null,null,null,null,{"$f":"IFERROR(LEFT(入力シート!$D$35,FIND(\"　\",入力シート!$D$35,1)-1),\"\")","v":""},null,null,null,null,null,null,null,null,null,null,{"$f":"IFERROR(RIGHT(入力シート!$D$35,LEN(入力シート!$D$35)-FIND(\"　\",入力シート!$D$35,1)),\"\")","v":""}]
[]
[]
[]
[]
[]
[null,null,null,"④",null,null,null,{"$f":"IFERROR(IF(入力シート!$G$35=\"\",\"\",DBCS(LEFT(RIGHT(入力シート!$G$35,18-COLUMN())))),\"\")","v":""},null,{"$f":"IFERROR(IF(入力シート!$G$35=\"\",\"\",DBCS(LEFT(RIGHT(入力シート!$G$35,19-COLUMN())))),\"\")","v":""},null,{"$f":"IFERROR(IF(入力シート!$G$35=\"\",\"\",DBCS(LEFT(RIGHT(入力シート!$G$35,20-COLUMN())))),\"\")","v":""},null,{"$f":"IFERROR(IF(入力シート!$G$35=\"\",\"\",DBCS(LEFT(RIGHT(入力シート!$G$35,21-COLUMN())))),\"\")","v":""},null,{"$f":"IFERROR(IF(入力シート!$G$35=\"\",\"\",DBCS(LEFT(RIGHT(入力シート!$G$35,22-COLUMN())))),\"\")","v":""},null,{"$f":"IFERROR(IF(入力シート!$G$35=\"\",\"\",DBCS(LEFT(RIGHT(入力シート!$G$35,23-COLUMN())))),\"\")","v":""},null,{"$f":"IFERROR(IF(入力シート!$G$35=\"\",\"\",DBCS(LEFT(RIGHT(入力シート!$G$35,24-COLUMN())))),\"\")","v":""},null,{"$f":"IFERROR(IF(入力シート!$G$35=\"\",\"\",DBCS(LEFT(RIGHT(入力シート!$G$35,25-COLUMN())))),\"\")","v":""},null,{"$f":"IFERROR(IF(入力シート!$G$35=\"\",\"\",DBCS(LEFT(RIGHT(入力シート!$G$35,26-COLUMN())))),\"\")","v":""},null,{"$f":"IFERROR(IF(入力シート!$G$35=\"\",\"\",DBCS(LEFT(RIGHT(入力シート!$G$35,27-COLUMN())))),\"\")","v":""},null,null,null,null,null,"⑤",null,null,null,{"$f":"IF(入力シート!$H$35=\"\",\"\",IF(TEXT(入力シート!$H$35,\"g\")=\"S\",\"5．昭和\",IF(TEXT(入力シート!$H$35,\"g\")=\"H\",\"7．平成\",IF(TEXT(入力シート!$H$35,\"g\")=\"R\",\"9．令和\"))))","v":""},null,null,null,null,null,"年",null,null,"月",null,"日",null,null,"⑥",null,null,null,{"$f":"IF(入力シート!$K$35=\"\",\"\",DBCS(入力シート!$K$35))","v":""}]
[]
[null,null,null,"基礎年\n金番号",null,null,null,null,null,null,null,null,null,null,null,null,null,null,null,null,null,null,null,null,null,null,null,null,null,null,null,"喪　失\n年月日",null,null,null,null,null,null,null,null,null,{"$f":"IF(入力シート!$H$35=\"\",\"\",DBCS(TEXT(入力シート!$H$35,\"eemmdd\")))","v":""},null,null,null,null,null,null,null,"喪失\n原因"]
[]
[]
[]
[]
[]
[]
[null,null,null,"⑦",null,null,null,null,null,null,null,null,null,null,null,null,null,null,null,null,null,null,null,null,null,null,null,null,null,null,null,null,null,null,null,null,null,null,null,null,null,null,null,null,null,null,null,null,null,"⑧"]
[null,null,null,null,null,null,null,null,"〒",null,{"$f":"IF(入力シート!$P$35=\"\",\"\",DBCS(入力シート!$P$35))","v":""},null,null,null,null,null,null,null,null,null,null,null,null,null,null,null,null,null,null,null,null,null,null,null,null,null,null,null,null,null,null,null,null,null,null,null,null,null,null,null,null,null,null,{"$f":"IF(入力シート!$I$35=\"\",\"\",入力シート!$J$35)","v":""},null,null,null,null,null,null,null,null,null,{"$f":"IF(入力シート!$S$35=\"\",\"\",入力シート!$S$35)","v":""}]
[]
[null,null,null,"住所",null,null,null,null,{"$f":"IF(入力シート!$Q$35=\"\",\"\",DBCS(入力シート!$Q$35))","v":""},null,null,null,null,null,null,null,null,null,null,null,null,null,null,null,null,null,null,null,null,null,null,null,null,null,null,null,null,null,null,null,null,null,null,null,null,null,null,null,null,"備考"]
[]
[null,null,null,null,null,null,null,null,null,null,null,null,null,null,null,null,null,null,null,null,null,null,null,null,null,null,null,null,null,null,null,null,null,null,null,null,null,null,null,null,null,null,null,null,null,null,null,null,null,null,null,null,null,{"$f":"IF(入力シート!$T$35=\"\",\"\",入力シート!$T$35)","v":""}]
[null,null,null,null,null,null,null,null,{"$f":"IF(入力シート!$R$35=\"\",\"\",DBCS(入力シート!$R$35))","v":""}]
[]
[]
[]
[]
[null,"加入者\n２",null,"①",null,null,null,{"$f":"IFERROR(IF(入力シート!$U$36=\"\",\"\",DBCS(LEFT(RIGHT(入力シート!$U$36,18-COLUMN())))),\"\")","v":""},null,{"$f":"IFERROR(IF(入力シート!$U$36=\"\",\"\",DBCS(LEFT(RIGHT(入力シート!$U$36,19-COLUMN())))),\"\")","v":""},null,{"$f":"IFERROR(IF(入力シート!$U$36=\"\",\"\",DBCS(LEFT(RIGHT(入力シート!$U$36,20-COLUMN())))),\"\")","v":""},null,{"$f":"IFERROR(IF(入力シート!$U$36=\"\",\"\",DBCS(LEFT(RIGHT(入力シート!$U$36,21-COLUMN())))),\"\")","v":""},null,{"$f":"IFERROR(IF(入力シート!$U$36=\"\",\"\",DBCS(LEFT(RIGHT(入力シート!$U$36,22-COLUMN())))),\"\")","v":""},null,{"$f":"IFERROR(IF(入力シート!$U$36=\"\",\"\",DBCS(LEFT(RIGHT(入力シート!$U$36,23-COLUMN())))),\"\")","v":""},null,{"$f":"IFERROR(IF(入力シート!$U$36=\"\",\"\",DBCS(LEFT(RIGHT(入力シート!$U$36,24-COLUMN())))),\"\")","v":""},null,{"$f":"IFERROR(IF(入力シート!$U$36=\"\",\"\",DBCS(LEFT(RIGHT(入力シート!$U$36,25-COLUMN())))),\"\")","v":""},null,{"$f":"IFERROR(IF(入力シート!$U$36=\"\",\"\",DBCS(LEFT(RIGHT(入力シート!$U$36,26-COLUMN())))),\"\")","v":""},null,{"$f":"IFERROR(IF(入力シート!$U$36=\"\",\"\",DBCS(LEFT(RIGHT(入力シート!$U$36,27-COLUMN())))),\"\")","v":""},null,"②",null,null,null,{"$f":"IFERROR(LEFT(入力シート!$C$36,FIND(\" \",入力シート!$C$36,1)-1),\"\")","v":""},null,null,null,null,null,null,null,null,null,null,{"$f":"IFERROR(RIGHT(入力シート!$C$36,LEN(入力シート!$C$36)-FIND(\" \",入力シート!$C$36,1)),\"\")","v":""},null,null,null,null,null,null,null,null,null,null,"③",null,null,null,{"$f":"IF(入力シート!$E$36=\"\",\"\",IF(TEXT(入力シート!$E$36,\"g\")=\"S\",\"5．昭和\",IF(TEXT(入力シート!$E$36,\"g\")=\"H\",\"7．平成\",IF(TEXT(入力シート!$E$36,\"g\")=\"R\",\"9．令和\"))))","v":""},null,null,null,null,"年",null,null,"月",null,"日"]
[]
[null,null,null,"加入者\n番　号",null,null,null,null,null,null,null,null,null,null,null,null,null,null,null,null,null,null,null,null,null,null,null,"氏名",null,null,null,null,null,null,null,null,null,null,null,null,null,null,null,null,null,null,null,null,null,null,null,null,null,"生年\n月日"]
[null,null,null,null,null,null,null,null,null,null,null,null,null,null,null,null,null,null,null,null,null,null,null,null,null,null,null,null,null,null,null,null,null,null,null,null,null,null,null,null,null,null,null,null,null,null,null,null,null,null,null,null,null,null,null,null,null,null,null,null,null,null,{"$f":"IF(入力シート!$E$36=\"\",\"\",DBCS(TEXT(入力シート!$E$36,\"eemmdd\")))","v":""}]
[null,null,null,null,null,null,null,null,null,null,null,null,null,null,null,null,null,null,null,null,null,null,null,null,null,null,null,null,null,null,null,{"$f":"IFERROR(LEFT(入力シート!$D$36,FIND(\"　\",入力シート!$D$36,1)-1),\"\")","v":""},null,null,null,null,null,null,null,null,null,null,{"$f":"IFERROR(RIGHT(入力シート!$D$36,LEN(入力シート!$D$36)-FIND(\"　\",入力シート!$D$36,1)),\"\")","v":""}]
[]
[]
[]
[]
[]
[null,null,null,"④",null,null,null,{"$f":"IFERROR(IF(入力シート!$G$36=\"\",\"\",DBCS(LEFT(RIGHT(入力シート!$G$36,18-COLUMN())))),\"\")","v":""},null,{"$f":"IFERROR(IF(入力シート!$G$36=\"\",\"\",DBCS(LEFT(RIGHT(入力シート!$G$36,19-COLUMN())))),\"\")","v":""},null,{"$f":"IFERROR(IF(入力シート!$G$36=\"\",\"\",DBCS(LEFT(RIGHT(入力シート!$G$36,20-COLUMN())))),\"\")","v":""},null,{"$f":"IFERROR(IF(入力シート!$G$36=\"\",\"\",DBCS(LEFT(RIGHT(入力シート!$G$36,21-COLUMN())))),\"\")","v":""},null,{"$f":"IFERROR(IF(入力シート!$G$36=\"\",\"\",DBCS(LEFT(RIGHT(入力シート!$G$36,22-COLUMN())))),\"\")","v":""},null,{"$f":"IFERROR(IF(入力シート!$G$36=\"\",\"\",DBCS(LEFT(RIGHT(入力シート!$G$36,23-COLUMN())))),\"\")","v":""},null,{"$f":"IFERROR(IF(入力シート!$G$36=\"\",\"\",DBCS(LEFT(RIGHT(入力シート!$G$36,24-COLUMN())))),\"\")","v":""},null,{"$f":"IFERROR(IF(入力シート!$G$36=\"\",\"\",DBCS(LEFT(RIGHT(入力シート!$G$36,25-COLUMN())))),\"\")","v":""},null,{"$f":"IFERROR(IF(入力シート!$G$36=\"\",\"\",DBCS(LEFT(RIGHT(入力シート!$G$36,26-COLUMN())))),\"\")","v":""},null,{"$f":"IFERROR(IF(入力シート!$G$36=\"\",\"\",DBCS(LEFT(RIGHT(入力シート!$G$36,27-COLUMN())))),\"\")","v":""},null,null,null,null,null,"⑤",null,null,null,{"$f":"IF(入力シート!$H$36=\"\",\"\",IF(TEXT(入力シート!$H$36,\"g\")=\"S\",\"5．昭和\",IF(TEXT(入力シート!$H$36,\"g\")=\"H\",\"7．平成\",IF(TEXT(入力シート!$H$36,\"g\")=\"R\",\"9．令和\"))))","v":""},null,null,null,null,null,"年",null,null,"月",null,"日",null,null,"⑥",null,null,null,{"$f":"IF(入力シート!$K$36=\"\",\"\",DBCS(入力シート!$K$36))","v":""}]
[]
[null,null,null,"基礎年\n金番号",null,null,null,null,null,null,null,null,null,null,null,null,null,null,null,null,null,null,null,null,null,null,null,null,null,null,null,"喪　失\n年月日",null,null,null,null,null,null,null,null,null,{"$f":"IF(入力シート!$H$36=\"\",\"\",DBCS(TEXT(入力シート!$H$36,\"eemmdd\")))","v":""},null,null,null,null,null,null,null,"喪失\n原因"]
[]
[]
[]
[]
[]
[]
[null,null,null,"⑦",null,null,null,null,null,null,null,null,null,null,null,null,null,null,null,null,null,null,null,null,null,null,null,null,null,null,null,null,null,null,null,null,null,null,null,null,null,null,null,null,null,null,null,null,null,"⑧"]
[null,null,null,null,null,null,null,null,"〒",null,{"$f":"IF(入力シート!$P$36=\"\",\"\",DBCS(入力シート!$P$36))","v":""},null,null,null,null,null,null,null,null,null,null,null,null,null,null,null,null,null,null,null,null,null,null,null,null,null,null,null,null,null,null,null,null,null,null,null,null,null,null,null,null,null,null,{"$f":"IF(入力シート!$I$36=\"\",\"\",入力シート!$J$36)","v":""},null,null,null,null,null,null,null,null,null,{"$f":"IF(入力シート!$S$36=\"\",\"\",入力シート!$S$36)","v":""}]
[]
[null,null,null,"住所",null,null,null,null,{"$f":"IF(入力シート!$Q$36=\"\",\"\",DBCS(入力シート!$Q$36))","v":""},null,null,null,null,null,null,null,null,null,null,null,null,null,null,null,null,null,null,null,null,null,null,null,null,null,null,null,null,null,null,null,null,null,null,null,null,null,null,null,null,"備考"]
[]
[null,null,null,null,null,null,null,null,null,null,null,null,null,null,null,null,null,null,null,null,null,null,null,null,null,null,null,null,null,null,null,null,null,null,null,null,null,null,null,null,null,null,null,null,null,null,null,null,null,null,null,null,null,{"$f":"IF(入力シート!$T$36=\"\",\"\",入力シート!$T$36)","v":""}]
[null,null,null,null,null,null,null,null,{"$f":"IF(入力シート!$R$36=\"\",\"\",DBCS(入力シート!$R$36))","v":""}]
[]
[]
[]
[]
[null,"加入者\n３",null,"①",null,null,null,{"$f":"IFERROR(IF(入力シート!$U$37=\"\",\"\",DBCS(LEFT(RIGHT(入力シート!$U$37,18-COLUMN())))),\"\")","v":""},null,{"$f":"IFERROR(IF(入力シート!$U$37=\"\",\"\",DBCS(LEFT(RIGHT(入力シート!$U$37,19-COLUMN())))),\"\")","v":""},null,{"$f":"IFERROR(IF(入力シート!$U$37=\"\",\"\",DBCS(LEFT(RIGHT(入力シート!$U$37,20-COLUMN())))),\"\")","v":""},null,{"$f":"IFERROR(IF(入力シート!$U$37=\"\",\"\",DBCS(LEFT(RIGHT(入力シート!$U$37,21-COLUMN())))),\"\")","v":""},null,{"$f":"IFERROR(IF(入力シート!$U$37=\"\",\"\",DBCS(LEFT(RIGHT(入力シート!$U$37,22-COLUMN())))),\"\")","v":""},null,{"$f":"IFERROR(IF(入力シート!$U$37=\"\",\"\",DBCS(LEFT(RIGHT(入力シート!$U$37,23-COLUMN())))),\"\")","v":""},null,{"$f":"IFERROR(IF(入力シート!$U$37=\"\",\"\",DBCS(LEFT(RIGHT(入力シート!$U$37,24-COLUMN())))),\"\")","v":""},null,{"$f":"IFERROR(IF(入力シート!$U$37=\"\",\"\",DBCS(LEFT(RIGHT(入力シート!$U$37,25-COLUMN())))),\"\")","v":""},null,{"$f":"IFERROR(IF(入力シート!$U$37=\"\",\"\",DBCS(LEFT(RIGHT(入力シート!$U$37,26-COLUMN())))),\"\")","v":""},null,{"$f":"IFERROR(IF(入力シート!$U$37=\"\",\"\",DBCS(LEFT(RIGHT(入力シート!$U$37,27-COLUMN())))),\"\")","v":""},null,"②",null,null,null,{"$f":"IFERROR(LEFT(入力シート!$C$37,FIND(\" \",入力シート!$C$37,1)-1),\"\")","v":""},null,null,null,null,null,null,null,null,null,null,{"$f":"IFERROR(RIGHT(入力シート!$C$37,LEN(入力シート!$C$37)-FIND(\" \",入力シート!$C$37,1)),\"\")","v":""},null,null,null,null,null,null,null,null,null,null,"③",null,null,null,{"$f":"IF(入力シート!$E$37=\"\",\"\",IF(TEXT(入力シート!$E$37,\"g\")=\"S\",\"5．昭和\",IF(TEXT(入力シート!$E$37,\"g\")=\"H\",\"7．平成\",IF(TEXT(入力シート!$E$37,\"g\")=\"R\",\"9．令和\"))))","v":""},null,null,null,null,"年",null,null,"月",null,"日"]
[]
[null,null,null,"加入者\n番　号",null,null,null,null,null,null,null,null,null,null,null,null,null,null,null,null,null,null,null,null,null,null,null,"氏名",null,null,null,null,null,null,null,null,null,null,null,null,null,null,null,null,null,null,null,null,null,null,null,null,null,"生年\n月日"]
[null,null,null,null,null,null,null,null,null,null,null,null,null,null,null,null,null,null,null,null,null,null,null,null,null,null,null,null,null,null,null,null,null,null,null,null,null,null,null,null,null,null,null,null,null,null,null,null,null,null,null,null,null,null,null,null,null,null,null,null,null,null,{"$f":"IF(入力シート!$E$37=\"\",\"\",DBCS(TEXT(入力シート!$E$37,\"eemmdd\")))","v":""}]
[null,null,null,null,null,null,null,null,null,null,null,null,null,null,null,null,null,null,null,null,null,null,null,null,null,null,null,null,null,null,null,{"$f":"IFERROR(LEFT(入力シート!$D$37,FIND(\"　\",入力シート!$D$37,1)-1),\"\")","v":""},null,null,null,null,null,null,null,null,null,null,{"$f":"IFERROR(RIGHT(入力シート!$D$37,LEN(入力シート!$D$37)-FIND(\"　\",入力シート!$D$37,1)),\"\")","v":""}]
[]
[]
[]
[]
[]
[null,null,null,"④",null,null,null,{"$f":"IFERROR(IF(入力シート!$G$37=\"\",\"\",DBCS(LEFT(RIGHT(入力シート!$G$37,18-COLUMN())))),\"\")","v":""},null,{"$f":"IFERROR(IF(入力シート!$G$37=\"\",\"\",DBCS(LEFT(RIGHT(入力シート!$G$37,19-COLUMN())))),\"\")","v":""},null,{"$f":"IFERROR(IF(入力シート!$G$37=\"\",\"\",DBCS(LEFT(RIGHT(入力シート!$G$37,20-COLUMN())))),\"\")","v":""},null,{"$f":"IFERROR(IF(入力シート!$G$37=\"\",\"\",DBCS(LEFT(RIGHT(入力シート!$G$37,21-COLUMN())))),\"\")","v":""},null,{"$f":"IFERROR(IF(入力シート!$G$37=\"\",\"\",DBCS(LEFT(RIGHT(入力シート!$G$37,22-COLUMN())))),\"\")","v":""},null,{"$f":"IFERROR(IF(入力シート!$G$37=\"\",\"\",DBCS(LEFT(RIGHT(入力シート!$G$37,23-COLUMN())))),\"\")","v":""},null,{"$f":"IFERROR(IF(入力シート!$G$37=\"\",\"\",DBCS(LEFT(RIGHT(入力シート!$G$37,24-COLUMN())))),\"\")","v":""},null,{"$f":"IFERROR(IF(入力シート!$G$37=\"\",\"\",DBCS(LEFT(RIGHT(入力シート!$G$37,25-COLUMN())))),\"\")","v":""},null,{"$f":"IFERROR(IF(入力シート!$G$37=\"\",\"\",DBCS(LEFT(RIGHT(入力シート!$G$37,26-COLUMN())))),\"\")","v":""},null,{"$f":"IFERROR(IF(入力シート!$G$37=\"\",\"\",DBCS(LEFT(RIGHT(入力シート!$G$37,27-COLUMN())))),\"\")","v":""},null,null,null,null,null,"⑤",null,null,null,{"$f":"IF(入力シート!$H$37=\"\",\"\",IF(TEXT(入力シート!$H$37,\"g\")=\"S\",\"5．昭和\",IF(TEXT(入力シート!$H$37,\"g\")=\"H\",\"7．平成\",IF(TEXT(入力シート!$H$37,\"g\")=\"R\",\"9．令和\"))))","v":""},null,null,null,null,null,"年",null,null,"月",null,"日",null,null,"⑥",null,null,null,{"$f":"IF(入力シート!$K$37=\"\",\"\",DBCS(入力シート!$K$37))","v":""}]
[]
[null,null,null,"基礎年\n金番号",null,null,null,null,null,null,null,null,null,null,null,null,null,null,null,null,null,null,null,null,null,null,null,null,null,null,null,"喪　失\n年月日",null,null,null,null,null,null,null,null,null,{"$f":"IF(入力シート!$H$37=\"\",\"\",DBCS(TEXT(入力シート!$H$37,\"eemmdd\")))","v":""},null,null,null,null,null,null,null,"喪失\n原因"]
[]
[]
[]
[]
[]
[]
[null,null,null,"⑦",null,null,null,null,null,null,null,null,null,null,null,null,null,null,null,null,null,null,null,null,null,null,null,null,null,null,null,null,null,null,null,null,null,null,null,null,null,null,null,null,null,null,null,null,null,"⑧"]
[null,null,null,null,null,null,null,null,"〒",null,{"$f":"IF(入力シート!$P$37=\"\",\"\",DBCS(入力シート!$P$37))","v":""},null,null,null,null,null,null,null,null,null,null,null,null,null,null,null,null,null,null,null,null,null,null,null,null,null,null,null,null,null,null,null,null,null,null,null,null,null,null,null,null,null,null,{"$f":"IF(入力シート!$I$37=\"\",\"\",入力シート!$J$37)","v":""},null,null,null,null,null,null,null,null,null,{"$f":"IF(入力シート!$S$37=\"\",\"\",入力シート!$S$37)","v":""}]
[]
[null,null,null,"住所",null,null,null,null,{"$f":"IF(入力シート!$Q$37=\"\",\"\",DBCS(入力シート!$Q$37))","v":""},null,null,null,null,null,null,null,null,null,null,null,null,null,null,null,null,null,null,null,null,null,null,null,null,null,null,null,null,null,null,null,null,null,null,null,null,null,null,null,null,"備考"]
[]
[null,null,null,null,null,null,null,null,null,null,null,null,null,null,null,null,null,null,null,null,null,null,null,null,null,null,null,null,null,null,null,null,null,null,null,null,null,null,null,null,null,null,null,null,null,null,null,null,null,null,null,null,null,{"$f":"IF(入力シート!$T$37=\"\",\"\",入力シート!$T$37)","v":""}]
[null,null,null,null,null,null,null,null,{"$f":"IF(入力シート!$R$37=\"\",\"\",DBCS(入力シート!$R$37))","v":""}]
[]
[]
[]
[]
[null,"加入者\n４",null,"①",null,null,null,{"$f":"IFERROR(IF(入力シート!$U$38=\"\",\"\",DBCS(LEFT(RIGHT(入力シート!$U$38,18-COLUMN())))),\"\")","v":""},null,{"$f":"IFERROR(IF(入力シート!$U$38=\"\",\"\",DBCS(LEFT(RIGHT(入力シート!$U$38,19-COLUMN())))),\"\")","v":""},null,{"$f":"IFERROR(IF(入力シート!$U$38=\"\",\"\",DBCS(LEFT(RIGHT(入力シート!$U$38,20-COLUMN())))),\"\")","v":""},null,{"$f":"IFERROR(IF(入力シート!$U$38=\"\",\"\",DBCS(LEFT(RIGHT(入力シート!$U$38,21-COLUMN())))),\"\")","v":""},null,{"$f":"IFERROR(IF(入力シート!$U$38=\"\",\"\",DBCS(LEFT(RIGHT(入力シート!$U$38,22-COLUMN())))),\"\")","v":""},null,{"$f":"IFERROR(IF(入力シート!$U$38=\"\",\"\",DBCS(LEFT(RIGHT(入力シート!$U$38,23-COLUMN())))),\"\")","v":""},null,{"$f":"IFERROR(IF(入力シート!$U$38=\"\",\"\",DBCS(LEFT(RIGHT(入力シート!$U$38,24-COLUMN())))),\"\")","v":""},null,{"$f":"IFERROR(IF(入力シート!$U$38=\"\",\"\",DBCS(LEFT(RIGHT(入力シート!$U$38,25-COLUMN())))),\"\")","v":""},null,{"$f":"IFERROR(IF(入力シート!$U$38=\"\",\"\",DBCS(LEFT(RIGHT(入力シート!$U$38,26-COLUMN())))),\"\")","v":""},null,{"$f":"IFERROR(IF(入力シート!$U$38=\"\",\"\",DBCS(LEFT(RIGHT(入力シート!$U$38,27-COLUMN())))),\"\")","v":""},null,"②",null,null,null,{"$f":"IFERROR(LEFT(入力シート!$C$38,FIND(\" \",入力シート!$C$38,1)-1),\"\")","v":""},null,null,null,null,null,null,null,null,null,null,{"$f":"IFERROR(RIGHT(入力シート!$C$38,LEN(入力シート!$C$38)-FIND(\" \",入力シート!$C$38,1)),\"\")","v":""},null,null,null,null,null,null,null,null,null,null,"③",null,null,null,{"$f":"IF(入力シート!$E$38=\"\",\"\",IF(TEXT(入力シート!$E$38,\"g\")=\"S\",\"5．昭和\",IF(TEXT(入力シート!$E$38,\"g\")=\"H\",\"7．平成\",IF(TEXT(入力シート!$E$38,\"g\")=\"R\",\"9．令和\"))))","v":""},null,null,null,null,"年",null,null,"月",null,"日"]
[]
[null,null,null,"加入者\n番　号",null,null,null,null,null,null,null,null,null,null,null,null,null,null,null,null,null,null,null,null,null,null,null,"氏名",null,null,null,null,null,null,null,null,null,null,null,null,null,null,null,null,null,null,null,null,null,null,null,null,null,"生年\n月日"]
[null,null,null,null,null,null,null,null,null,null,null,null,null,null,null,null,null,null,null,null,null,null,null,null,null,null,null,null,null,null,null,null,null,null,null,null,null,null,null,null,null,null,null,null,null,null,null,null,null,null,null,null,null,null,null,null,null,null,null,null,null,null,{"$f":"IF(入力シート!$E$38=\"\",\"\",DBCS(TEXT(入力シート!$E$38,\"eemmdd\")))","v":""}]
[null,null,null,null,null,null,null,null,null,null,null,null,null,null,null,null,null,null,null,null,null,null,null,null,null,null,null,null,null,null,null,{"$f":"IFERROR(LEFT(入力シート!$D$38,FIND(\"　\",入力シート!$D$38,1)-1),\"\")","v":""},null,null,null,null,null,null,null,null,null,null,{"$f":"IFERROR(RIGHT(入力シート!$D$38,LEN(入力シート!$D$38)-FIND(\"　\",入力シート!$D$38,1)),\"\")","v":""}]
[]
[]
[]
[]
[]
[null,null,null,"④",null,null,null,{"$f":"IFERROR(IF(入力シート!$G$38=\"\",\"\",DBCS(LEFT(RIGHT(入力シート!$G$38,18-COLUMN())))),\"\")","v":""},null,{"$f":"IFERROR(IF(入力シート!$G$38=\"\",\"\",DBCS(LEFT(RIGHT(入力シート!$G$38,19-COLUMN())))),\"\")","v":""},null,{"$f":"IFERROR(IF(入力シート!$G$38=\"\",\"\",DBCS(LEFT(RIGHT(入力シート!$G$38,20-COLUMN())))),\"\")","v":""},null,{"$f":"IFERROR(IF(入力シート!$G$38=\"\",\"\",DBCS(LEFT(RIGHT(入力シート!$G$38,21-COLUMN())))),\"\")","v":""},null,{"$f":"IFERROR(IF(入力シート!$G$38=\"\",\"\",DBCS(LEFT(RIGHT(入力シート!$G$38,22-COLUMN())))),\"\")","v":""},null,{"$f":"IFERROR(IF(入力シート!$G$38=\"\",\"\",DBCS(LEFT(RIGHT(入力シート!$G$38,23-COLUMN())))),\"\")","v":""},null,{"$f":"IFERROR(IF(入力シート!$G$38=\"\",\"\",DBCS(LEFT(RIGHT(入力シート!$G$38,24-COLUMN())))),\"\")","v":""},null,{"$f":"IFERROR(IF(入力シート!$G$38=\"\",\"\",DBCS(LEFT(RIGHT(入力シート!$G$38,25-COLUMN())))),\"\")","v":""},null,{"$f":"IFERROR(IF(入力シート!$G$38=\"\",\"\",DBCS(LEFT(RIGHT(入力シート!$G$38,26-COLUMN())))),\"\")","v":""},null,{"$f":"IFERROR(IF(入力シート!$G$38=\"\",\"\",DBCS(LEFT(RIGHT(入力シート!$G$38,27-COLUMN())))),\"\")","v":""},null,null,null,null,null,"⑤",null,null,null,{"$f":"IF(入力シート!$H$38=\"\",\"\",IF(TEXT(入力シート!$H$38,\"g\")=\"S\",\"5．昭和\",IF(TEXT(入力シート!$H$38,\"g\")=\"H\",\"7．平成\",IF(TEXT(入力シート!$H$38,\"g\")=\"R\",\"9．令和\"))))","v":""},null,null,null,null,null,"年",null,null,"月",null,"日",null,null,"⑥",null,null,null,{"$f":"IF(入力シート!$K$38=\"\",\"\",DBCS(入力シート!$K$38))","v":""}]
[]
[null,null,null,"基礎年\n金番号",null,null,null,null,null,null,null,null,null,null,null,null,null,null,null,null,null,null,null,null,null,null,null,null,null,null,null,"喪　失\n年月日",null,null,null,null,null,null,null,null,null,{"$f":"IF(入力シート!$H$38=\"\",\"\",DBCS(TEXT(入力シート!$H$38,\"eemmdd\")))","v":""},null,null,null,null,null,null,null,"喪失\n原因"]
[]
[]
[]
[]
[]
[]
[null,null,null,"⑦",null,null,null,null,null,null,null,null,null,null,null,null,null,null,null,null,null,null,null,null,null,null,null,null,null,null,null,null,null,null,null,null,null,null,null,null,null,null,null,null,null,null,null,null,null,"⑧"]
[null,null,null,null,null,null,null,null,"〒",null,{"$f":"IF(入力シート!$P$38=\"\",\"\",DBCS(入力シート!$P$38))","v":""},null,null,null,null,null,null,null,null,null,null,null,null,null,null,null,null,null,null,null,null,null,null,null,null,null,null,null,null,null,null,null,null,null,null,null,null,null,null,null,null,null,null,{"$f":"IF(入力シート!$I$38=\"\",\"\",入力シート!$J$38)","v":""},null,null,null,null,null,null,null,null,null,{"$f":"IF(入力シート!$S$38=\"\",\"\",入力シート!$S$38)","v":""}]
[]
[null,null,null,"住所",null,null,null,null,{"$f":"IF(入力シート!$Q$38=\"\",\"\",DBCS(入力シート!$Q$38))","v":""},null,null,null,null,null,null,null,null,null,null,null,null,null,null,null,null,null,null,null,null,null,null,null,null,null,null,null,null,null,null,null,null,null,null,null,null,null,null,null,null,"備考"]
[]
[null,null,null,null,null,null,null,null,null,null,null,null,null,null,null,null,null,null,null,null,null,null,null,null,null,null,null,null,null,null,null,null,null,null,null,null,null,null,null,null,null,null,null,null,null,null,null,null,null,null,null,null,null,{"$f":"IF(入力シート!$T$38=\"\",\"\",入力シート!$T$38)","v":""}]
[null,null,null,null,null,null,null,null,{"$f":"IF(入力シート!$R$38=\"\",\"\",DBCS(入力シート!$R$38))","v":""}]